Workbook

Sheet Readme
A1: DO NOT CHANGE THE STRUCTURE OF THE SPREADSHEET (i.e. add or delete rows/columns, modify formulas, etc.)
A4: GENERAL
A5: § this spreadsheet may be used by survey companies to input ATC data
A6: § automatically produces hourly flows
A7: § there is no warranty that the spreadsheet will meet your requirements
A8: § it is the responsibility of the user to check the results
A9: § ATC data should be input separately for each date into respective sheets. The name of such sheet should comply with the following format <DD MM YYYY>
A10: § if ATC data is not available by vehicle class and 15-minute interval, the hourly data can be input directly into the 1hr summary sheets
A12: SPREADSHEET STRUCTURE
A14: Sheet Name | B14: Description | C14: Comments
A15: Site Plan | B15: Contains general information about the survey site | C15: can be printed out for the survey report
A16: INFO - Vehicle classification | B16: Information about vehicle classification
A17: <DD MM YYYY> | B17: ATC data by vehicle class and 15-minute interval | C17: to be filled in by the survey company (values in grey areas are calculated automatically)
A18: rolling hour totals_dir 1 | B18: Rolling hour ATC summary | C18: calculated automatically and can be used to identify the busiest hour
A19: rolling hour totals_dir 2 | B19: Rolling hour ATC summary | C19: calculated automatically and can be used to identify the busiest hour
A20: 1hr_summary_dir 1 | B20: Hourly ATC summary, calculates the mean and compliance with WebTAG criteria | C20: calculated automatically or can be partially filled in
A21: 1hr_summary_dir 2 | B21: Hourly ATC summary, calculates the mean and compliance with WebTAG criteria | C21: calculated automatically or can be partially filled in
A22: at a glance_for the report | B22: Survey results at a glance | C22: can be printed out for the survey report

Sheet Site Plan
A1: AUTOMATIC TRAFFIC COUNT (ATC)
A2: Project Reference | C2: ID02591 | H2: Site ID | J2: Site 23 | O2: Survey Period | Q2: 15 minutes
A3: Client | C3: WSP | Parsons Brinckerhoff | H3: Site Location | J3: A131 Ballingdon Street | O3: Start Date of Survey Period | Q3: 2016-04-07
A4: Survey Company Name | C4: Intelligent Data Collection | H4: Easting | J4: 586680 | K4: Latitude | M4: =IFERROR(E_N_to_Lat(J4,J5,a,b,E0,N0,F0,DecimalPHI0,DecimalLAM0),"") -> 52.03435998 | O4: End Date of Survery Period | Q4: 2016-04-19
A5: Prepared by | C5: David Brown | H5: Northing | J5: 240872 | K5: Longitude | M5: =IFERROR(E_N_to_Long(J4,J5,a,b,E0,N0,F0,DecimalPHI0,DecimalLAM0),"") -> 0.7218730317 | O5: Weather conditions | Q5: Raining
A6: Checked by | C6: Luke Martin | H6: Link to location on Google Maps | J6: =HYPERLINK("http://maps.google.co.uk/maps?hl=en&safe=off&q="&M4&","&M5&"&cr=countryUK|countryGB&um=1&ie=UTF-8&sa=N&tab=wl","Click for location") -> Click for location | O6: Incidents | Q6: None
A8: Comments | C8: The tubes were damaged from the 19th at 13:45 | O8: Units | Q8: Vehicles
A17: Directions
A19: Direction 1 | C19: Eastbound | F19: EB
A20: Direction 2 | C20: Westbound | F20: WB

Sheet INFO - Vehicle classification
A1: Source: | B1: Coba 11 User Manual currently DMRB Volume 13
B2: Part 4: Traffic input to COBA (revised June 2006)
A4: Vehicle class | B4: Description
A5: CAR | B5: Including taxis, estate cars, ‘people carriers’ and other passenger vehicles (for example, minibuses and camper vans) with a gross vehicle weight of less than 3.5 tonnes, normally ones which can accommodate not more than 15 seats. Three-wheeled cars, motor invalid carriages, Land Rovers, Range Rovers and Jeeps and smaller ambulances are included. Cars towing caravans or trailers are counted as one vehicle unless included as a separate class
A6: LGV | B6: Light Goods Vehicles Includes all goods vehicles up to 3.5 tonnes gross vehicle weight (goods vehicles over 3.5 tonnes have sideguards fitted between axles), including those towing a trailer or caravan. This includes all car delivery vans and those of the next larger carrying capacity such as transit vans. Included here are small pickup vans, three-wheeled goods vehicles, milk floats and pedestrian controlled motor vehicles. Most of this group are delivery vans of one type or another
A7: OGV1 | B7: Other Goods Vehicles 1 Includes all rigid vehicles over 3.5 tonnes gross vehicle weight with two or three axles Includes larger ambulances, tractors (without trailers), road rollers for tarmac pressing, box vans and similar large vans. A two or three axle motor tractive unit without a trailer is also included
A8: OGV2 | B8: Other Goods Vehicles 2 Includes all rigid vehicles with four or more axles and all articulated vehicles. Also included in this class are OGV1 goods vehicles towing a caravan or trailer
A9: PSV | B9: Buses and Coaches Includes all public service vehicles and works buses with a gross vehicle weight of 3.5 tonnes or more, usually vehicles with more than 16 seats
A10: MCL | B10: Motorcycle Includes all types of motorcycles and also those with sidecars
A11: PCL | B11: Pedal Cycle Includes all types of pedal cycles and those carrying one or more passengers

Sheet 07 04 2016
A1: * Fill the table with data
A2: DO NOT CHANGE THE STRUCTURE OF THE SPREADSHEET (i.e. ADD OR DELETE ROWS/COLUMNS, ETC.)
B4: ='Site Plan'!$A$19&" - "&'Site Plan'!$C$19 -> Direction 1 - Eastbound | I4: TOTAL | L4: ='Site Plan'!$A$20&" - "&'Site Plan'!$C$20 -> Direction 2 - Westbound | S4: TOTAL
A5: TIME | B5: CAR | C5: LGV | D5: OGV1 | E5: OGV2 | F5: PSV | G5: MCL | H5: PCL | I5: CAR + LGV + HGV | J5: HGV | K5: ALL modes | L5: CAR | M5: LGV | N5: OGV1 | O5: OGV2 | P5: PSV | Q5: MCL | R5: PCL | S5: CAR + LGV + HGV | T5: HGV | U5: ALL modes
A6: 00:00:00 | B6: 4 | C6: 5 | D6: 1 | E6: 0 | F6: 0 | G6: 0 | H6: 0 | I6: =SUM(B6:E6) -> 10 | J6: =SUM(D6:E6) -> 1 | K6: =SUM(B6:H6) -> 10 | L6: 2 | M6: 2 | N6: 1 | O6: 0 | P6: 0 | Q6: 0 | R6: 0 | S6: =SUM(L6:O6) -> 5 | T6: =SUM(N6:O6) -> 1 | U6: =SUM(L6:R6) -> 5
A7: 00:15:00 | B7: 1 | C7: 5 | D7: 0 | E7: 0 | F7: 0 | G7: 0 | H7: 0 | I7: =SUM(B7:E7) -> 6 | J7: =SUM(D7:E7) -> 0 | K7: =SUM(B7:H7) -> 6 | L7: 2 | M7: 1 | N7: 0 | O7: 0 | P7: 0 | Q7: 0 | R7: 0 | S7: =SUM(L7:O7) -> 3 | T7: =SUM(N7:O7) -> 0 | U7: =SUM(L7:R7) -> 3
A8: 00:30:00 | B8: 3 | C8: 1 | D8: 0 | E8: 0 | F8: 0 | G8: 0 | H8: 0 | I8: 4 | J8: 0 | K8: 4 | L8: 3 | M8: 1 | N8: 0 | O8: 0 | P8: 0 | Q8: 0 | R8: 0 | S8: 4 | T8: 0 | U8: 4
A9: 00:45:00 | B9: 3 | C9: 2 | D9: 0 | E9: 0 | F9: 0 | G9: 0 | H9: 0 | I9: 5 | J9: 0 | K9: 5 | L9: 0 | M9: 2 | N9: 1 | O9: 0 | P9: 0 | Q9: 0 | R9: 0 | S9: 3 | T9: 1 | U9: 3
A10: 01:00:00 | B10: 1 | C10: 2 | D10: 0 | E10: 0 | F10: 0 | G10: 0 | H10: 0 | I10: 3 | J10: 0 | K10: 3 | L10: 0 | M10: 2 | N10: 0 | O10: 0 | P10: 0 | Q10: 1 | R10: 0 | S10: 2 | T10: 0 | U10: 3
A11: 01:15:00 | B11: 1 | C11: 1 | D11: 0 | E11: 0 | F11: 0 | G11: 1 | H11: 0 | I11: 2 | J11: 0 | K11: 3 | L11: 1 | M11: 1 | N11: 0 | O11: 0 | P11: 0 | Q11: 0 | R11: 0 | S11: 2 | T11: 0 | U11: 2
A12: 01:30:00 | B12: 0 | C12: 1 | D12: 0 | E12: 0 | F12: 0 | G12: 0 | H12: 0 | I12: 1 | J12: 0 | K12: 1 | L12: 0 | M12: 0 | N12: 0 | O12: 0 | P12: 0 | Q12: 0 | R12: 0 | S12: 0 | T12: 0 | U12: 0
A13: 01:45:00 | B13: 0 | C13: 1 | D13: 0 | E13: 1 | F13: 0 | G13: 0 | H13: 0 | I13: 2 | J13: 1 | K13: 2 | L13: 1 | M13: 1 | N13: 0 | O13: 0 | P13: 0 | Q13: 0 | R13: 0 | S13: 2 | T13: 0 | U13: 2
A14: 02:00:00 | B14: 1 | C14: 1 | D14: 0 | E14: 0 | F14: 0 | G14: 0 | H14: 0 | I14: 2 | J14: 0 | K14: 2 | L14: 0 | M14: 1 | N14: 1 | O14: 0 | P14: 0 | Q14: 0 | R14: 0 | S14: 2 | T14: 1 | U14: 2
A15: 02:15:00 | B15: 3 | C15: 1 | D15: 0 | E15: 0 | F15: 0 | G15: 0 | H15: 0 | I15: 4 | J15: 0 | K15: 4 | L15: 0 | M15: 2 | N15: 0 | O15: 0 | P15: 0 | Q15: 0 | R15: 0 | S15: 2 | T15: 0 | U15: 2
A16: 02:30:00 | B16: 1 | C16: 0 | D16: 0 | E16: 0 | F16: 0 | G16: 0 | H16: 0 | I16: 1 | J16: 0 | K16: 1 | L16: 1 | M16: 2 | N16: 0 | O16: 0 | P16: 0 | Q16: 0 | R16: 0 | S16: 3 | T16: 0 | U16: 3
A17: 02:45:00 | B17: 0 | C17: 1 | D17: 1 | E17: 1 | F17: 0 | G17: 0 | H17: 0 | I17: 3 | J17: 2 | K17: 3 | L17: 2 | M17: 0 | N17: 0 | O17: 0 | P17: 0 | Q17: 0 | R17: 0 | S17: 2 | T17: 0 | U17: 2
A18: 03:00:00 | B18: 0 | C18: 3 | D18: 0 | E18: 0 | F18: 0 | G18: 0 | H18: 0 | I18: 3 | J18: 0 | K18: 3 | L18: 1 | M18: 2 | N18: 0 | O18: 0 | P18: 0 | Q18: 0 | R18: 0 | S18: 3 | T18: 0 | U18: 3
A19: 03:15:00 | B19: 0 | C19: 1 | D19: 0 | E19: 0 | F19: 0 | G19: 0 | H19: 0 | I19: 1 | J19: 0 | K19: 1 | L19: 1 | M19: 3 | N19: 0 | O19: 0 | P19: 0 | Q19: 0 | R19: 0 | S19: 4 | T19: 0 | U19: 4
A20: 03:30:00 | B20: 0 | C20: 1 | D20: 0 | E20: 0 | F20: 0 | G20: 0 | H20: 0 | I20: 1 | J20: 0 | K20: 1 | L20: 0 | M20: 1 | N20: 0 | O20: 0 | P20: 0 | Q20: 0 | R20: 0 | S20: 1 | T20: 0 | U20: 1
A21: 03:45:00 | B21: 0 | C21: 0 | D21: 0 | E21: 1 | F21: 0 | G21: 0 | H21: 0 | I21: 1 | J21: 1 | K21: 1 | L21: 1 | M21: 1 | N21: 1 | O21: 0 | P21: 0 | Q21: 0 | R21: 0 | S21: 3 | T21: 1 | U21: 3
A22: 04:00:00 | B22: 3 | C22: 2 | D22: 2 | E22: 0 | F22: 0 | G22: 0 | H22: 0 | I22: 7 | J22: 2 | K22: 7 | L22: 3 | M22: 1 | N22: 0 | O22: 0 | P22: 1 | Q22: 0 | R22: 0 | S22: 4 | T22: 0 | U22: 5
A23: 04:15:00 | B23: 2 | C23: 1 | D23: 0 | E23: 0 | F23: 0 | G23: 0 | H23: 0 | I23: 3 | J23: 0 | K23: 3 | L23: 1 | M23: 10 | N23: 2 | O23: 1 | P23: 0 | Q23: 0 | R23: 0 | S23: 14 | T23: 3 | U23: 14
A24: 04:30:00 | B24: 3 | C24: 3 | D24: 0 | E24: 0 | F24: 0 | G24: 0 | H24: 0 | I24: 6 | J24: 0 | K24: 6 | L24: 2 | M24: 8 | N24: 1 | O24: 0 | P24: 0 | Q24: 0 | R24: 0 | S24: 11 | T24: 1 | U24: 11
A25: 04:45:00 | B25: 5 | C25: 3 | D25: 0 | E25: 0 | F25: 0 | G25: 0 | H25: 0 | I25: 8 | J25: 0 | K25: 8 | L25: 6 | M25: 9 | N25: 1 | O25: 0 | P25: 0 | Q25: 0 | R25: 0 | S25: 16 | T25: 1 | U25: 16
A26: 05:00:00 | B26: 4 | C26: 5 | D26: 3 | E26: 1 | F26: 0 | G26: 0 | H26: 2 | I26: 13 | J26: 4 | K26: 15 | L26: 6 | M26: 13 | N26: 4 | O26: 2 | P26: 0 | Q26: 0 | R26: 0 | S26: 25 | T26: 6 | U26: 25
A27: 05:15:00 | B27: 5 | C27: 4 | D27: 2 | E27: 0 | F27: 0 | G27: 1 | H27: 0 | I27: 11 | J27: 2 | K27: 12 | L27: 17 | M27: 17 | N27: 2 | O27: 0 | P27: 0 | Q27: 0 | R27: 0 | S27: 36 | T27: 2 | U27: 36
A28: 05:30:00 | B28: 11 | C28: 8 | D28: 1 | E28: 0 | F28: 0 | G28: 0 | H28: 0 | I28: 20 | J28: 1 | K28: 20 | L28: 9 | M28: 23 | N28: 3 | O28: 1 | P28: 0 | Q28: 2 | R28: 0 | S28: 36 | T28: 4 | U28: 38
A29: 05:45:00 | B29: 17 | C29: 9 | D29: 6 | E29: 0 | F29: 0 | G29: 0 | H29: 0 | I29: 32 | J29: 6 | K29: 32 | L29: 17 | M29: 26 | N29: 2 | O29: 1 | P29: 0 | Q29: 1 | R29: 0 | S29: 46 | T29: 3 | U29: 47
A30: 06:00:00 | B30: 17 | C30: 11 | D30: 3 | E30: 0 | F30: 0 | G30: 1 | H30: 1 | I30: 31 | J30: 3 | K30: 33 | L30: 27 | M30: 30 | N30: 5 | O30: 1 | P30: 0 | Q30: 0 | R30: 0 | S30: 63 | T30: 6 | U30: 63
A31: 06:15:00 | B31: 31 | C31: 14 | D31: 3 | E31: 0 | F31: 0 | G31: 0 | H31: 0 | I31: 48 | J31: 3 | K31: 48 | L31: 19 | M31: 30 | N31: 2 | O31: 1 | P31: 0 | Q31: 3 | R31: 1 | S31: 52 | T31: 3 | U31: 56
A32: 06:30:00 | B32: 41 | C32: 26 | D32: 4 | E32: 1 | F32: 0 | G32: 0 | H32: 0 | I32: 72 | J32: 5 | K32: 72 | L32: 35 | M32: 32 | N32: 7 | O32: 0 | P32: 0 | Q32: 2 | R32: 0 | S32: 74 | T32: 7 | U32: 76
A33: 06:45:00 | B33: 31 | C33: 32 | D33: 1 | E33: 2 | F33: 0 | G33: 0 | H33: 0 | I33: 66 | J33: 3 | K33: 66 | L33: 43 | M33: 50 | N33: 6 | O33: 1 | P33: 0 | Q33: 3 | R33: 0 | S33: 100 | T33: 7 | U33: 103
A34: 07:00:00 | B34: 49 | C34: 32 | D34: 6 | E34: 0 | F34: 1 | G34: 1 | H34: 2 | I34: 87 | J34: 6 | K34: 91 | L34: 69 | M34: 47 | N34: 5 | O34: 1 | P34: 1 | Q34: 2 | R34: 0 | S34: 122 | T34: 6 | U34: 125
A35: 07:15:00 | B35: 79 | C35: 37 | D35: 3 | E35: 1 | F35: 0 | G35: 0 | H35: 0 | I35: 120 | J35: 4 | K35: 120 | L35: 56 | M35: 65 | N35: 4 | O35: 4 | P35: 0 | Q35: 5 | R35: 0 | S35: 129 | T35: 8 | U35: 134
A36: 07:30:00 | B36: 90 | C36: 53 | D36: 1 | E36: 2 | F36: 0 | G36: 1 | H36: 0 | I36: 146 | J36: 3 | K36: 147 | L36: 61 | M36: 61 | N36: 4 | O36: 2 | P36: 1 | Q36: 0 | R36: 1 | S36: 128 | T36: 6 | U36: 130
A37: 07:45:00 | B37: 90 | C37: 43 | D37: 3 | E37: 2 | F37: 2 | G37: 1 | H37: 0 | I37: 138 | J37: 5 | K37: 141 | L37: 84 | M37: 48 | N37: 5 | O37: 1 | P37: 1 | Q37: 0 | R37: 1 | S37: 138 | T37: 6 | U37: 140
A38: 08:00:00 | B38: 85 | C38: 32 | D38: 6 | E38: 2 | F38: 0 | G38: 0 | H38: 1 | I38: 125 | J38: 8 | K38: 126 | L38: 91 | M38: 43 | N38: 2 | O38: 1 | P38: 0 | Q38: 0 | R38: 1 | S38: 137 | T38: 3 | U38: 138
A39: 08:15:00 | B39: 96 | C39: 59 | D39: 3 | E39: 2 | F39: 3 | G39: 0 | H39: 0 | I39: 160 | J39: 5 | K39: 163 | L39: 66 | M39: 51 | N39: 7 | O39: 2 | P39: 0 | Q39: 0 | R39: 0 | S39: 126 | T39: 9 | U39: 126
A40: 08:30:00 | B40: 85 | C40: 35 | D40: 5 | E40: 1 | F40: 1 | G40: 0 | H40: 0 | I40: 126 | J40: 6 | K40: 127 | L40: 77 | M40: 53 | N40: 10 | O40: 2 | P40: 0 | Q40: 1 | R40: 0 | S40: 142 | T40: 12 | U40: 143
A41: 08:45:00 | B41: 90 | C41: 47 | D41: 11 | E41: 0 | F41: 0 | G41: 0 | H41: 0 | I41: 148 | J41: 11 | K41: 148 | L41: 87 | M41: 44 | N41: 5 | O41: 0 | P41: 1 | Q41: 1 | R41: 0 | S41: 136 | T41: 5 | U41: 138
A42: 09:00:00 | B42: 75 | C42: 54 | D42: 2 | E42: 2 | F42: 2 | G42: 2 | H42: 0 | I42: 133 | J42: 4 | K42: 137 | L42: 70 | M42: 43 | N42: 6 | O42: 1 | P42: 1 | Q42: 0 | R42: 1 | S42: 120 | T42: 7 | U42: 122
A43: 09:15:00 | B43: 88 | C43: 49 | D43: 8 | E43: 2 | F43: 1 | G43: 0 | H43: 0 | I43: 147 | J43: 10 | K43: 148 | L43: 59 | M43: 34 | N43: 6 | O43: 1 | P43: 1 | Q43: 2 | R43: 0 | S43: 100 | T43: 7 | U43: 103
A44: 09:30:00 | B44: 71 | C44: 42 | D44: 10 | E44: 1 | F44: 3 | G44: 1 | H44: 0 | I44: 124 | J44: 11 | K44: 128 | L44: 76 | M44: 44 | N44: 5 | O44: 1 | P44: 0 | Q44: 2 | R44: 0 | S44: 126 | T44: 6 | U44: 128
A45: 09:45:00 | B45: 88 | C45: 56 | D45: 7 | E45: 0 | F45: 0 | G45: 1 | H45: 1 | I45: 151 | J45: 7 | K45: 153 | L45: 62 | M45: 25 | N45: 7 | O45: 0 | P45: 0 | Q45: 0 | R45: 0 | S45: 94 | T45: 7 | U45: 94
A46: 10:00:00 | B46: 81 | C46: 47 | D46: 4 | E46: 5 | F46: 0 | G46: 0 | H46: 0 | I46: 137 | J46: 9 | K46: 137 | L46: 75 | M46: 42 | N46: 2 | O46: 1 | P46: 1 | Q46: 0 | R46: 0 | S46: 120 | T46: 3 | U46: 121
A47: 10:15:00 | B47: 90 | C47: 50 | D47: 5 | E47: 0 | F47: 1 | G47: 0 | H47: 0 | I47: 145 | J47: 5 | K47: 146 | L47: 67 | M47: 43 | N47: 6 | O47: 1 | P47: 2 | Q47: 1 | R47: 0 | S47: 117 | T47: 7 | U47: 120
A48: 10:30:00 | B48: 88 | C48: 49 | D48: 2 | E48: 4 | F48: 4 | G48: 1 | H48: 0 | I48: 143 | J48: 6 | K48: 148 | L48: 76 | M48: 36 | N48: 3 | O48: 2 | P48: 0 | Q48: 1 | R48: 0 | S48: 117 | T48: 5 | U48: 118
A49: 10:45:00 | B49: 96 | C49: 56 | D49: 8 | E49: 3 | F49: 1 | G49: 0 | H49: 0 | I49: 163 | J49: 11 | K49: 164 | L49: 65 | M49: 39 | N49: 7 | O49: 0 | P49: 1 | Q49: 0 | R49: 0 | S49: 111 | T49: 7 | U49: 112
A50: 11:00:00 | B50: 105 | C50: 53 | D50: 4 | E50: 5 | F50: 1 | G50: 0 | H50: 1 | I50: 167 | J50: 9 | K50: 169 | L50: 72 | M50: 42 | N50: 6 | O50: 0 | P50: 0 | Q50: 0 | R50: 0 | S50: 120 | T50: 6 | U50: 120
A51: 11:15:00 | B51: 98 | C51: 42 | D51: 6 | E51: 2 | F51: 0 | G51: 0 | H51: 0 | I51: 148 | J51: 8 | K51: 148 | L51: 88 | M51: 53 | N51: 3 | O51: 0 | P51: 2 | Q51: 0 | R51: 1 | S51: 144 | T51: 3 | U51: 147
A52: 11:30:00 | B52: 81 | C52: 42 | D52: 5 | E52: 1 | F52: 2 | G52: 0 | H52: 1 | I52: 129 | J52: 6 | K52: 132 | L52: 88 | M52: 38 | N52: 3 | O52: 1 | P52: 0 | Q52: 0 | R52: 0 | S52: 130 | T52: 4 | U52: 130
A53: 11:45:00 | B53: 82 | C53: 43 | D53: 5 | E53: 1 | F53: 0 | G53: 1 | H53: 0 | I53: 131 | J53: 6 | K53: 132 | L53: 72 | M53: 32 | N53: 4 | O53: 2 | P53: 0 | Q53: 0 | R53: 0 | S53: 110 | T53: 6 | U53: 110
A54: 12:00:00 | B54: 93 | C54: 48 | D54: 5 | E54: 0 | F54: 0 | G54: 2 | H54: 0 | I54: 146 | J54: 5 | K54: 148 | L54: 90 | M54: 59 | N54: 6 | O54: 0 | P54: 1 | Q54: 0 | R54: 0 | S54: 155 | T54: 6 | U54: 156
A55: 12:15:00 | B55: 80 | C55: 49 | D55: 8 | E55: 5 | F55: 0 | G55: 0 | H55: 0 | I55: 142 | J55: 13 | K55: 142 | L55: 94 | M55: 47 | N55: 3 | O55: 1 | P55: 0 | Q55: 1 | R55: 0 | S55: 145 | T55: 4 | U55: 146
A56: 12:30:00 | B56: 117 | C56: 32 | D56: 6 | E56: 2 | F56: 0 | G56: 1 | H56: 0 | I56: 157 | J56: 8 | K56: 158 | L56: 102 | M56: 29 | N56: 5 | O56: 3 | P56: 1 | Q56: 1 | R56: 0 | S56: 139 | T56: 8 | U56: 141
A57: 12:45:00 | B57: 86 | C57: 50 | D57: 9 | E57: 1 | F57: 0 | G57: 0 | H57: 0 | I57: 146 | J57: 10 | K57: 146 | L57: 77 | M57: 39 | N57: 7 | O57: 3 | P57: 0 | Q57: 0 | R57: 0 | S57: 126 | T57: 10 | U57: 126
A58: 13:00:00 | B58: 101 | C58: 44 | D58: 4 | E58: 2 | F58: 0 | G58: 2 | H58: 1 | I58: 151 | J58: 6 | K58: 154 | L58: 71 | M58: 49 | N58: 5 | O58: 1 | P58: 1 | Q58: 1 | R58: 0 | S58: 126 | T58: 6 | U58: 128
A59: 13:15:00 | B59: 90 | C59: 43 | D59: 5 | E59: 4 | F59: 1 | G59: 0 | H59: 1 | I59: 142 | J59: 9 | K59: 144 | L59: 80 | M59: 43 | N59: 6 | O59: 1 | P59: 1 | Q59: 0 | R59: 0 | S59: 130 | T59: 7 | U59: 131
A60: 13:30:00 | B60: 101 | C60: 47 | D60: 3 | E60: 2 | F60: 1 | G60: 0 | H60: 0 | I60: 153 | J60: 5 | K60: 154 | L60: 85 | M60: 49 | N60: 4 | O60: 0 | P60: 3 | Q60: 1 | R60: 0 | S60: 138 | T60: 4 | U60: 142
A61: 13:45:00 | B61: 98 | C61: 42 | D61: 5 | E61: 4 | F61: 3 | G61: 0 | H61: 1 | I61: 149 | J61: 9 | K61: 153 | L61: 82 | M61: 37 | N61: 3 | O61: 0 | P61: 1 | Q61: 0 | R61: 1 | S61: 122 | T61: 3 | U61: 124
A62: 14:00:00 | B62: 81 | C62: 33 | D62: 7 | E62: 0 | F62: 0 | G62: 1 | H62: 0 | I62: 121 | J62: 7 | K62: 122 | L62: 93 | M62: 52 | N62: 3 | O62: 2 | P62: 0 | Q62: 0 | R62: 1 | S62: 150 | T62: 5 | U62: 151
A63: 14:15:00 | B63: 83 | C63: 41 | D63: 7 | E63: 2 | F63: 1 | G63: 0 | H63: 0 | I63: 133 | J63: 9 | K63: 134 | L63: 74 | M63: 45 | N63: 6 | O63: 4 | P63: 1 | Q63: 0 | R63: 0 | S63: 129 | T63: 10 | U63: 130
A64: 14:30:00 | B64: 77 | C64: 43 | D64: 9 | E64: 3 | F64: 0 | G64: 1 | H64: 0 | I64: 132 | J64: 12 | K64: 133 | L64: 87 | M64: 51 | N64: 5 | O64: 0 | P64: 0 | Q64: 0 | R64: 0 | S64: 143 | T64: 5 | U64: 143
A65: 14:45:00 | B65: 58 | C65: 38 | D65: 3 | E65: 0 | F65: 2 | G65: 0 | H65: 1 | I65: 99 | J65: 3 | K65: 102 | L65: 76 | M65: 46 | N65: 7 | O65: 1 | P65: 0 | Q65: 2 | R65: 0 | S65: 130 | T65: 8 | U65: 132
A66: 15:00:00 | B66: 96 | C66: 38 | D66: 8 | E66: 2 | F66: 0 | G66: 0 | H66: 0 | I66: 144 | J66: 10 | K66: 144 | L66: 78 | M66: 26 | N66: 7 | O66: 2 | P66: 0 | Q66: 0 | R66: 0 | S66: 113 | T66: 9 | U66: 113
A67: 15:15:00 | B67: 80 | C67: 47 | D67: 7 | E67: 2 | F67: 0 | G67: 1 | H67: 0 | I67: 136 | J67: 9 | K67: 137 | L67: 102 | M67: 56 | N67: 4 | O67: 2 | P67: 0 | Q67: 1 | R67: 0 | S67: 164 | T67: 6 | U67: 165
A68: 15:30:00 | B68: 96 | C68: 49 | D68: 4 | E68: 4 | F68: 0 | G68: 2 | H68: 0 | I68: 153 | J68: 8 | K68: 155 | L68: 89 | M68: 47 | N68: 5 | O68: 3 | P68: 0 | Q68: 0 | R68: 1 | S68: 144 | T68: 8 | U68: 145
A69: 15:45:00 | B69: 84 | C69: 47 | D69: 4 | E69: 3 | F69: 0 | G69: 0 | H69: 0 | I69: 138 | J69: 7 | K69: 138 | L69: 95 | M69: 57 | N69: 7 | O69: 2 | P69: 0 | Q69: 0 | R69: 0 | S69: 161 | T69: 9 | U69: 161
A70: 16:00:00 | B70: 109 | C70: 43 | D70: 5 | E70: 2 | F70: 0 | G70: 0 | H70: 0 | I70: 159 | J70: 7 | K70: 159 | L70: 91 | M70: 54 | N70: 6 | O70: 1 | P70: 0 | Q70: 1 | R70: 0 | S70: 152 | T70: 7 | U70: 153
A71: 16:15:00 | B71: 92 | C71: 38 | D71: 6 | E71: 0 | F71: 0 | G71: 0 | H71: 0 | I71: =SUM(B71:E71) -> 136 | J71: =SUM(D71:E71) -> 6 | K71: =SUM(B71:H71) -> 136 | L71: 97 | M71: 60 | N71: 7 | O71: 0 | P71: 1 | Q71: 1 | R71: 0 | S71: =SUM(L71:O71) -> 164 | T71: =SUM(N71:O71) -> 7 | U71: =SUM(L71:R71) -> 166
A72: 16:30:00 | B72: 114 | C72: 60 | D72: 5 | E72: 1 | F72: 0 | G72: 1 | H72: 0 | I72: 180 | J72: 6 | K72: 181 | L72: 94 | M72: 47 | N72: 3 | O72: 1 | P72: 0 | Q72: 0 | R72: 3 | S72: 145 | T72: 4 | U72: 148
A73: 16:45:00 | B73: 102 | C73: 49 | D73: 0 | E73: 2 | F73: 0 | G73: 1 | H73: 1 | I73: 153 | J73: 2 | K73: 155 | L73: 97 | M73: 67 | N73: 5 | O73: 1 | P73: 0 | Q73: 1 | R73: 1 | S73: 170 | T73: 6 | U73: 172
A74: 17:00:00 | B74: 125 | C74: 54 | D74: 2 | E74: 6 | F74: 0 | G74: 0 | H74: 1 | I74: 187 | J74: 8 | K74: 188 | L74: 132 | M74: 52 | N74: 3 | O74: 1 | P74: 0 | Q74: 0 | R74: 0 | S74: 188 | T74: 4 | U74: 188
A75: 17:15:00 | B75: 129 | C75: 62 | D75: 3 | E75: 1 | F75: 0 | G75: 1 | H75: 1 | I75: 195 | J75: 4 | K75: 197 | L75: 93 | M75: 54 | N75: 1 | O75: 0 | P75: 0 | Q75: 1 | R75: 1 | S75: 148 | T75: 1 | U75: 150
A76: 17:30:00 | B76: 106 | C76: 66 | D76: 3 | E76: 1 | F76: 0 | G76: 3 | H76: 0 | I76: 176 | J76: 4 | K76: 179 | L76: 118 | M76: 55 | N76: 0 | O76: 1 | P76: 0 | Q76: 0 | R76: 2 | S76: 174 | T76: 1 | U76: 176
A77: 17:45:00 | B77: 100 | C77: 46 | D77: 0 | E77: 0 | F77: 0 | G77: 2 | H77: 0 | I77: 146 | J77: 0 | K77: 148 | L77: 86 | M77: 46 | N77: 4 | O77: 0 | P77: 0 | Q77: 0 | R77: 0 | S77: 136 | T77: 4 | U77: 136
A78: 18:00:00 | B78: 92 | C78: 59 | D78: 4 | E78: 1 | F78: 0 | G78: 0 | H78: 0 | I78: 156 | J78: 5 | K78: 156 | L78: 69 | M78: 43 | N78: 1 | O78: 1 | P78: 0 | Q78: 0 | R78: 0 | S78: 114 | T78: 2 | U78: 114
A79: 18:15:00 | B79: 82 | C79: 50 | D79: 3 | E79: 1 | F79: 0 | G79: 1 | H79: 0 | I79: 136 | J79: 4 | K79: 137 | L79: 78 | M79: 37 | N79: 0 | O79: 1 | P79: 0 | Q79: 0 | R79: 1 | S79: 116 | T79: 1 | U79: 117
A80: 18:30:00 | B80: 68 | C80: 38 | D80: 3 | E80: 0 | F80: 0 | G80: 0 | H80: 0 | I80: 109 | J80: 3 | K80: 109 | L80: 80 | M80: 44 | N80: 2 | O80: 2 | P80: 0 | Q80: 0 | R80: 0 | S80: 128 | T80: 4 | U80: 128
A81: 18:45:00 | B81: 75 | C81: 47 | D81: 5 | E81: 3 | F81: 0 | G81: 1 | H81: 1 | I81: 130 | J81: 8 | K81: 132 | L81: 39 | M81: 35 | N81: 1 | O81: 0 | P81: 0 | Q81: 0 | R81: 1 | S81: 75 | T81: 1 | U81: 76
A82: 19:00:00 | B82: 69 | C82: 37 | D82: 1 | E82: 0 | F82: 0 | G82: 1 | H82: 0 | I82: 107 | J82: 1 | K82: 108 | L82: 51 | M82: 30 | N82: 0 | O82: 0 | P82: 0 | Q82: 0 | R82: 1 | S82: 81 | T82: 0 | U82: 82
A83: 19:15:00 | B83: 59 | C83: 32 | D83: 1 | E83: 0 | F83: 0 | G83: 2 | H83: 0 | I83: 92 | J83: 1 | K83: 94 | L83: 60 | M83: 27 | N83: 2 | O83: 0 | P83: 0 | Q83: 1 | R83: 0 | S83: 89 | T83: 2 | U83: 90
A84: 19:30:00 | B84: 55 | C84: 37 | D84: 2 | E84: 2 | F84: 0 | G84: 0 | H84: 1 | I84: 96 | J84: 4 | K84: 97 | L84: 44 | M84: 28 | N84: 4 | O84: 0 | P84: 0 | Q84: 0 | R84: 1 | S84: 76 | T84: 4 | U84: 77
A85: 19:45:00 | B85: 43 | C85: 25 | D85: 2 | E85: 1 | F85: 0 | G85: 2 | H85: 0 | I85: 71 | J85: 3 | K85: 73 | L85: 37 | M85: 26 | N85: 0 | O85: 0 | P85: 0 | Q85: 0 | R85: 0 | S85: 63 | T85: 0 | U85: 63
A86: 20:00:00 | B86: 31 | C86: 24 | D86: 1 | E86: 1 | F86: 0 | G86: 0 | H86: 0 | I86: 57 | J86: 2 | K86: 57 | L86: 46 | M86: 14 | N86: 0 | O86: 1 | P86: 0 | Q86: 0 | R86: 0 | S86: 61 | T86: 1 | U86: 61
A87: 20:15:00 | B87: 24 | C87: 18 | D87: 2 | E87: 1 | F87: 0 | G87: 0 | H87: 0 | I87: 45 | J87: 3 | K87: 45 | L87: 23 | M87: 29 | N87: 0 | O87: 0 | P87: 0 | Q87: 2 | R87: 0 | S87: 52 | T87: 0 | U87: 54
A88: 20:30:00 | B88: 24 | C88: 19 | D88: 1 | E88: 0 | F88: 0 | G88: 1 | H88: 0 | I88: 44 | J88: 1 | K88: 45 | L88: 24 | M88: 7 | N88: 0 | O88: 0 | P88: 0 | Q88: 1 | R88: 0 | S88: 31 | T88: 0 | U88: 32
A89: 20:45:00 | B89: 34 | C89: 14 | D89: 1 | E89: 0 | F89: 0 | G89: 0 | H89: 0 | I89: 49 | J89: 1 | K89: 49 | L89: 25 | M89: 14 | N89: 1 | O89: 0 | P89: 0 | Q89: 0 | R89: 0 | S89: 40 | T89: 1 | U89: 40
A90: 21:00:00 | B90: 21 | C90: 15 | D90: 0 | E90: 0 | F90: 0 | G90: 0 | H90: 1 | I90: 36 | J90: 0 | K90: 37 | L90: 24 | M90: 7 | N90: 1 | O90: 0 | P90: 0 | Q90: 0 | R90: 0 | S90: 32 | T90: 1 | U90: 32
A91: 21:15:00 | B91: 13 | C91: 11 | D91: 0 | E91: 1 | F91: 0 | G91: 0 | H91: 0 | I91: 25 | J91: 1 | K91: 25 | L91: 17 | M91: 12 | N91: 0 | O91: 0 | P91: 0 | Q91: 1 | R91: 0 | S91: 29 | T91: 0 | U91: 30
A92: 21:30:00 | B92: 23 | C92: 16 | D92: 0 | E92: 1 | F92: 0 | G92: 0 | H92: 0 | I92: 40 | J92: 1 | K92: 40 | L92: 39 | M92: 15 | N92: 0 | O92: 0 | P92: 0 | Q92: 0 | R92: 0 | S92: 54 | T92: 0 | U92: 54
A93: 21:45:00 | B93: 15 | C93: 14 | D93: 1 | E93: 0 | F93: 0 | G93: 0 | H93: 0 | I93: 30 | J93: 1 | K93: 30 | L93: 22 | M93: 8 | N93: 0 | O93: 1 | P93: 0 | Q93: 1 | R93: 0 | S93: 31 | T93: 1 | U93: 32
A94: 22:00:00 | B94: 22 | C94: 14 | D94: 2 | E94: 0 | F94: 0 | G94: 1 | H94: 0 | I94: 38 | J94: 2 | K94: 39 | L94: 14 | M94: 13 | N94: 0 | O94: 0 | P94: 0 | Q94: 1 | R94: 0 | S94: 27 | T94: 0 | U94: 28
A95: 22:15:00 | B95: 10 | C95: 11 | D95: 1 | E95: 0 | F95: 0 | G95: 0 | H95: 0 | I95: 22 | J95: 1 | K95: 22 | L95: 14 | M95: 19 | N95: 0 | O95: 1 | P95: 0 | Q95: 0 | R95: 0 | S95: 34 | T95: 1 | U95: 34
A96: 22:30:00 | B96: 24 | C96: 7 | D96: 0 | E96: 0 | F96: 0 | G96: 0 | H96: 0 | I96: 31 | J96: 0 | K96: 31 | L96: 17 | M96: 15 | N96: 0 | O96: 0 | P96: 0 | Q96: 0 | R96: 0 | S96: 32 | T96: 0 | U96: 32
A97: 22:45:00 | B97: 11 | C97: 6 | D97: 0 | E97: 0 | F97: 0 | G97: 1 | H97: 0 | I97: 17 | J97: 0 | K97: 18 | L97: 12 | M97: 4 | N97: 0 | O97: 0 | P97: 0 | Q97: 1 | R97: 0 | S97: 16 | T97: 0 | U97: 17
A98: 23:00:00 | B98: 8 | C98: 9 | D98: 0 | E98: 0 | F98: 0 | G98: 0 | H98: 0 | I98: 17 | J98: 0 | K98: 17 | L98: 13 | M98: 8 | N98: 0 | O98: 0 | P98: 0 | Q98: 0 | R98: 1 | S98: 21 | T98: 0 | U98: 22
A99: 23:15:00 | B99: 3 | C99: 5 | D99: 0 | E99: 0 | F99: 0 | G99: 0 | H99: 0 | I99: 8 | J99: 0 | K99: 8 | L99: 7 | M99: 9 | N99: 0 | O99: 0 | P99: 0 | Q99: 0 | R99: 0 | S99: 16 | T99: 0 | U99: 16
A100: 23:30:00 | B100: 5 | C100: 7 | D100: 0 | E100: 0 | F100: 0 | G100: 0 | H100: 0 | I100: 12 | J100: 0 | K100: 12 | L100: 1 | M100: 5 | N100: 0 | O100: 0 | P100: 0 | Q100: 0 | R100: 0 | S100: 6 | T100: 0 | U100: 6
A101: 23:45:00 | B101: 7 | C101: 6 | D101: 0 | E101: 0 | F101: 0 | G101: 0 | H101: 0 | I101: 13 | J101: 0 | K101: 13 | L101: 3 | M101: 2 | N101: 0 | O101: 0 | P101: 0 | Q101: 1 | R101: 0 | S101: 5 | T101: 0 | U101: 6
A102: TOTAL | B102: =SUM(B6:B101) -> 5011 | C102: =SUM(C6:C101) -> 2695 | D102: 279 | E102: 104 | F102: 30 | G102: 40 | H102: 19 | I102: 8089 | J102: 383 | K102: 8178 | L102: =SUM(L6:L101) -> 4603 | M102: =SUM(M6:M101) -> 2772 | N102: 263 | O102: 68 | P102: 23 | Q102: 47 | R102: 21 | S102: 7706 | T102: 331 | U102: 7797

Sheet 08 04 2016
A1: * Fill the table with data
A2: DO NOT CHANGE THE STRUCTURE OF THE SPREADSHEET (i.e. ADD OR DELETE ROWS/COLUMNS, ETC.)
B4: ='Site Plan'!$A$19&" - "&'Site Plan'!$C$19 -> Direction 1 - Eastbound | I4: TOTAL | L4: ='Site Plan'!$A$20&" - "&'Site Plan'!$C$20 -> Direction 2 - Westbound | S4: TOTAL
A5: TIME | B5: CAR | C5: LGV | D5: OGV1 | E5: OGV2 | F5: PSV | G5: MCL | H5: PCL | I5: CAR + LGV + HGV | J5: HGV | K5: ALL modes | L5: CAR | M5: LGV | N5: OGV1 | O5: OGV2 | P5: PSV | Q5: MCL | R5: PCL | S5: CAR + LGV + HGV | T5: HGV | U5: ALL modes
A6: 00:00:00 | B6: 7 | C6: 2 | D6: 1 | E6: 0 | F6: 0 | G6: 1 | H6: 0 | I6: =SUM(B6:E6) -> 10 | J6: =SUM(D6:E6) -> 1 | K6: =SUM(B6:H6) -> 11 | L6: 1 | M6: 4 | N6: 0 | O6: 0 | P6: 0 | Q6: 0 | R6: 0 | S6: =SUM(L6:O6) -> 5 | T6: =SUM(N6:O6) -> 0 | U6: =SUM(L6:R6) -> 5
A7: 00:15:00 | B7: 4 | C7: 4 | D7: 0 | E7: 0 | F7: 0 | G7: 0 | H7: 0 | I7: =SUM(B7:E7) -> 8 | J7: =SUM(D7:E7) -> 0 | K7: =SUM(B7:H7) -> 8 | L7: 1 | M7: 2 | N7: 0 | O7: 0 | P7: 0 | Q7: 0 | R7: 0 | S7: =SUM(L7:O7) -> 3 | T7: =SUM(N7:O7) -> 0 | U7: =SUM(L7:R7) -> 3
A8: 00:30:00 | B8: 6 | C8: 3 | D8: 0 | E8: 0 | F8: 0 | G8: 0 | H8: 0 | I8: 9 | J8: 0 | K8: 9 | L8: 3 | M8: 0 | N8: 0 | O8: 0 | P8: 0 | Q8: 0 | R8: 1 | S8: 3 | T8: 0 | U8: 4
A9: 00:45:00 | B9: 4 | C9: 1 | D9: 0 | E9: 0 | F9: 0 | G9: 0 | H9: 0 | I9: 5 | J9: 0 | K9: 5 | L9: 0 | M9: 2 | N9: 0 | O9: 0 | P9: 0 | Q9: 0 | R9: 0 | S9: 2 | T9: 0 | U9: 2
A10: 01:00:00 | B10: 0 | C10: 2 | D10: 0 | E10: 0 | F10: 0 | G10: 0 | H10: 0 | I10: 2 | J10: 0 | K10: 2 | L10: 2 | M10: 1 | N10: 0 | O10: 0 | P10: 0 | Q10: 0 | R10: 0 | S10: 3 | T10: 0 | U10: 3
A11: 01:15:00 | B11: 2 | C11: 2 | D11: 0 | E11: 0 | F11: 0 | G11: 0 | H11: 0 | I11: 4 | J11: 0 | K11: 4 | L11: 0 | M11: 2 | N11: 0 | O11: 0 | P11: 1 | Q11: 0 | R11: 0 | S11: 2 | T11: 0 | U11: 3
A12: 01:30:00 | B12: 1 | C12: 1 | D12: 0 | E12: 0 | F12: 0 | G12: 0 | H12: 0 | I12: 2 | J12: 0 | K12: 2 | L12: 1 | M12: 0 | N12: 0 | O12: 0 | P12: 0 | Q12: 0 | R12: 0 | S12: 1 | T12: 0 | U12: 1
A13: 01:45:00 | B13: 0 | C13: 1 | D13: 1 | E13: 1 | F13: 0 | G13: 0 | H13: 0 | I13: 3 | J13: 2 | K13: 3 | L13: 0 | M13: 0 | N13: 0 | O13: 1 | P13: 0 | Q13: 0 | R13: 0 | S13: 1 | T13: 1 | U13: 1
A14: 02:00:00 | B14: 4 | C14: 2 | D14: 0 | E14: 0 | F14: 0 | G14: 0 | H14: 0 | I14: 6 | J14: 0 | K14: 6 | L14: 1 | M14: 0 | N14: 0 | O14: 0 | P14: 0 | Q14: 0 | R14: 0 | S14: 1 | T14: 0 | U14: 1
A15: 02:15:00 | B15: 1 | C15: 1 | D15: 0 | E15: 1 | F15: 0 | G15: 0 | H15: 0 | I15: 3 | J15: 1 | K15: 3 | L15: 0 | M15: 3 | N15: 1 | O15: 0 | P15: 0 | Q15: 0 | R15: 0 | S15: 4 | T15: 1 | U15: 4
A16: 02:30:00 | B16: 0 | C16: 0 | D16: 0 | E16: 0 | F16: 0 | G16: 0 | H16: 0 | I16: 0 | J16: 0 | K16: 0 | L16: 0 | M16: 2 | N16: 0 | O16: 0 | P16: 0 | Q16: 0 | R16: 0 | S16: 2 | T16: 0 | U16: 2
A17: 02:45:00 | B17: 1 | C17: 3 | D17: 0 | E17: 0 | F17: 0 | G17: 0 | H17: 0 | I17: 4 | J17: 0 | K17: 4 | L17: 1 | M17: 1 | N17: 0 | O17: 1 | P17: 0 | Q17: 0 | R17: 1 | S17: 3 | T17: 1 | U17: 4
A18: 03:00:00 | B18: 1 | C18: 3 | D18: 1 | E18: 0 | F18: 0 | G18: 0 | H18: 0 | I18: 5 | J18: 1 | K18: 5 | L18: 1 | M18: 3 | N18: 0 | O18: 0 | P18: 0 | Q18: 0 | R18: 0 | S18: 4 | T18: 0 | U18: 4
A19: 03:15:00 | B19: 0 | C19: 1 | D19: 1 | E19: 0 | F19: 0 | G19: 0 | H19: 0 | I19: 2 | J19: 1 | K19: 2 | L19: 2 | M19: 3 | N19: 1 | O19: 0 | P19: 0 | Q19: 0 | R19: 0 | S19: 6 | T19: 1 | U19: 6
A20: 03:30:00 | B20: 1 | C20: 2 | D20: 0 | E20: 0 | F20: 0 | G20: 0 | H20: 0 | I20: 3 | J20: 0 | K20: 3 | L20: 0 | M20: 1 | N20: 0 | O20: 0 | P20: 0 | Q20: 0 | R20: 0 | S20: 1 | T20: 0 | U20: 1
A21: 03:45:00 | B21: 0 | C21: 0 | D21: 1 | E21: 0 | F21: 0 | G21: 0 | H21: 0 | I21: 1 | J21: 1 | K21: 1 | L21: 2 | M21: 1 | N21: 0 | O21: 0 | P21: 0 | Q21: 0 | R21: 0 | S21: 3 | T21: 0 | U21: 3
A22: 04:00:00 | B22: 3 | C22: 1 | D22: 1 | E22: 0 | F22: 0 | G22: 1 | H22: 0 | I22: 5 | J22: 1 | K22: 6 | L22: 3 | M22: 4 | N22: 2 | O22: 0 | P22: 0 | Q22: 0 | R22: 0 | S22: 9 | T22: 2 | U22: 9
A23: 04:15:00 | B23: 1 | C23: 0 | D23: 0 | E23: 0 | F23: 0 | G23: 0 | H23: 0 | I23: 1 | J23: 0 | K23: 1 | L23: 4 | M23: 6 | N23: 0 | O23: 0 | P23: 0 | Q23: 0 | R23: 0 | S23: 10 | T23: 0 | U23: 10
A24: 04:30:00 | B24: 4 | C24: 3 | D24: 1 | E24: 1 | F24: 0 | G24: 0 | H24: 0 | I24: 9 | J24: 2 | K24: 9 | L24: 3 | M24: 7 | N24: 1 | O24: 1 | P24: 0 | Q24: 0 | R24: 0 | S24: 12 | T24: 2 | U24: 12
A25: 04:45:00 | B25: 3 | C25: 1 | D25: 0 | E25: 0 | F25: 0 | G25: 0 | H25: 0 | I25: 4 | J25: 0 | K25: 4 | L25: 6 | M25: 8 | N25: 2 | O25: 0 | P25: 0 | Q25: 0 | R25: 0 | S25: 16 | T25: 2 | U25: 16
A26: 05:00:00 | B26: 10 | C26: 5 | D26: 2 | E26: 0 | F26: 0 | G26: 1 | H26: 0 | I26: 17 | J26: 2 | K26: 18 | L26: 7 | M26: 9 | N26: 0 | O26: 0 | P26: 1 | Q26: 0 | R26: 0 | S26: 16 | T26: 0 | U26: 17
A27: 05:15:00 | B27: 4 | C27: 3 | D27: 2 | E27: 0 | F27: 2 | G27: 0 | H27: 0 | I27: 9 | J27: 2 | K27: 11 | L27: 14 | M27: 14 | N27: 4 | O27: 3 | P27: 0 | Q27: 0 | R27: 0 | S27: 35 | T27: 7 | U27: 35
A28: 05:30:00 | B28: 13 | C28: 8 | D28: 1 | E28: 0 | F28: 0 | G28: 0 | H28: 0 | I28: 22 | J28: 1 | K28: 22 | L28: 17 | M28: 17 | N28: 3 | O28: 0 | P28: 0 | Q28: 0 | R28: 0 | S28: 37 | T28: 3 | U28: 37
A29: 05:45:00 | B29: 11 | C29: 7 | D29: 4 | E29: 0 | F29: 0 | G29: 0 | H29: 0 | I29: 22 | J29: 4 | K29: 22 | L29: 25 | M29: 16 | N29: 4 | O29: 1 | P29: 0 | Q29: 3 | R29: 0 | S29: 46 | T29: 5 | U29: 49
A30: 06:00:00 | B30: 18 | C30: 17 | D30: 1 | E30: 0 | F30: 0 | G30: 0 | H30: 0 | I30: 36 | J30: 1 | K30: 36 | L30: 27 | M30: 36 | N30: 2 | O30: 0 | P30: 0 | Q30: 1 | R30: 0 | S30: 65 | T30: 2 | U30: 66
A31: 06:15:00 | B31: 20 | C31: 18 | D31: 1 | E31: 0 | F31: 0 | G31: 0 | H31: 0 | I31: 39 | J31: 1 | K31: 39 | L31: 26 | M31: 32 | N31: 7 | O31: 0 | P31: 2 | Q31: 1 | R31: 0 | S31: 65 | T31: 7 | U31: 68
A32: 06:30:00 | B32: 22 | C32: 19 | D32: 1 | E32: 1 | F32: 0 | G32: 0 | H32: 0 | I32: 43 | J32: 2 | K32: 43 | L32: 45 | M32: 37 | N32: 3 | O32: 0 | P32: 0 | Q32: 2 | R32: 0 | S32: 85 | T32: 3 | U32: 87
A33: 06:45:00 | B33: 37 | C33: 28 | D33: 4 | E33: 1 | F33: 0 | G33: 0 | H33: 0 | I33: 70 | J33: 5 | K33: 70 | L33: 45 | M33: 41 | N33: 6 | O33: 2 | P33: 0 | Q33: 4 | R33: 0 | S33: 94 | T33: 8 | U33: 98
A34: 07:00:00 | B34: 57 | C34: 30 | D34: 4 | E34: 3 | F34: 0 | G34: 1 | H34: 1 | I34: 94 | J34: 7 | K34: 96 | L34: 59 | M34: 49 | N34: 4 | O34: 2 | P34: 0 | Q34: 1 | R34: 0 | S34: 114 | T34: 6 | U34: 115
A35: 07:15:00 | B35: 51 | C35: 52 | D35: 3 | E35: 0 | F35: 0 | G35: 0 | H35: 0 | I35: 106 | J35: 3 | K35: 106 | L35: 54 | M35: 65 | N35: 5 | O35: 1 | P35: 0 | Q35: 0 | R35: 0 | S35: 125 | T35: 6 | U35: 125
A36: 07:30:00 | B36: 73 | C36: 40 | D36: 3 | E36: 2 | F36: 1 | G36: 2 | H36: 0 | I36: 118 | J36: 5 | K36: 121 | L36: 75 | M36: 54 | N36: 11 | O36: 0 | P36: 0 | Q36: 2 | R36: 1 | S36: 140 | T36: 11 | U36: 143
A37: 07:45:00 | B37: 91 | C37: 44 | D37: 9 | E37: 1 | F37: 1 | G37: 0 | H37: 0 | I37: 145 | J37: 10 | K37: 146 | L37: 119 | M37: 57 | N37: 7 | O37: 2 | P37: 0 | Q37: 1 | R37: 0 | S37: 185 | T37: 9 | U37: 186
A38: 08:00:00 | B38: 79 | C38: 44 | D38: 8 | E38: 2 | F38: 0 | G38: 0 | H38: 0 | I38: 133 | J38: 10 | K38: 133 | L38: 91 | M38: 52 | N38: 5 | O38: 1 | P38: 0 | Q38: 2 | R38: 1 | S38: 149 | T38: 6 | U38: 152
A39: 08:15:00 | B39: 82 | C39: 45 | D39: 3 | E39: 0 | F39: 0 | G39: 1 | H39: 0 | I39: 130 | J39: 3 | K39: 131 | L39: 69 | M39: 41 | N39: 8 | O39: 1 | P39: 1 | Q39: 1 | R39: 1 | S39: 119 | T39: 9 | U39: 122
A40: 08:30:00 | B40: 102 | C40: 50 | D40: 10 | E40: 0 | F40: 0 | G40: 0 | H40: 0 | I40: 162 | J40: 10 | K40: 162 | L40: 65 | M40: 43 | N40: 3 | O40: 0 | P40: 0 | Q40: 1 | R40: 1 | S40: 111 | T40: 3 | U40: 113
A41: 08:45:00 | B41: 85 | C41: 41 | D41: 2 | E41: 0 | F41: 1 | G41: 2 | H41: 0 | I41: 128 | J41: 2 | K41: 131 | L41: 58 | M41: 48 | N41: 7 | O41: 0 | P41: 1 | Q41: 0 | R41: 0 | S41: 113 | T41: 7 | U41: 114
A42: 09:00:00 | B42: 91 | C42: 49 | D42: 10 | E42: 2 | F42: 0 | G42: 0 | H42: 0 | I42: 152 | J42: 12 | K42: 152 | L42: 59 | M42: 44 | N42: 3 | O42: 0 | P42: 0 | Q42: 0 | R42: 0 | S42: 106 | T42: 3 | U42: 106
A43: 09:15:00 | B43: 86 | C43: 44 | D43: 8 | E43: 2 | F43: 1 | G43: 0 | H43: 0 | I43: 140 | J43: 10 | K43: 141 | L43: 67 | M43: 41 | N43: 7 | O43: 0 | P43: 0 | Q43: 0 | R43: 0 | S43: 115 | T43: 7 | U43: 115
A44: 09:30:00 | B44: 95 | C44: 35 | D44: 4 | E44: 2 | F44: 0 | G44: 0 | H44: 0 | I44: 136 | J44: 6 | K44: 136 | L44: 75 | M44: 40 | N44: 4 | O44: 4 | P44: 1 | Q44: 0 | R44: 0 | S44: 123 | T44: 8 | U44: 124
A45: 09:45:00 | B45: 96 | C45: 44 | D45: 5 | E45: 1 | F45: 0 | G45: 0 | H45: 0 | I45: 146 | J45: 6 | K45: 146 | L45: 67 | M45: 46 | N45: 5 | O45: 2 | P45: 1 | Q45: 0 | R45: 1 | S45: 120 | T45: 7 | U45: 122
A46: 10:00:00 | B46: 103 | C46: 54 | D46: 5 | E46: 4 | F46: 0 | G46: 0 | H46: 0 | I46: 166 | J46: 9 | K46: 166 | L46: 69 | M46: 33 | N46: 4 | O46: 3 | P46: 0 | Q46: 1 | R46: 0 | S46: 109 | T46: 7 | U46: 110
A47: 10:15:00 | B47: 104 | C47: 37 | D47: 6 | E47: 4 | F47: 1 | G47: 2 | H47: 3 | I47: 151 | J47: 10 | K47: 157 | L47: 76 | M47: 45 | N47: 5 | O47: 2 | P47: 0 | Q47: 0 | R47: 0 | S47: 128 | T47: 7 | U47: 128
A48: 10:30:00 | B48: 95 | C48: 58 | D48: 6 | E48: 0 | F48: 0 | G48: 1 | H48: 0 | I48: 159 | J48: 6 | K48: 160 | L48: 72 | M48: 47 | N48: 2 | O48: 0 | P48: 0 | Q48: 1 | R48: 2 | S48: 121 | T48: 2 | U48: 124
A49: 10:45:00 | B49: 93 | C49: 34 | D49: 3 | E49: 1 | F49: 1 | G49: 0 | H49: 0 | I49: 131 | J49: 4 | K49: 132 | L49: 71 | M49: 50 | N49: 5 | O49: 2 | P49: 0 | Q49: 0 | R49: 0 | S49: 128 | T49: 7 | U49: 128
A50: 11:00:00 | B50: 106 | C50: 43 | D50: 10 | E50: 4 | F50: 2 | G50: 1 | H50: 1 | I50: 163 | J50: 14 | K50: 167 | L50: 68 | M50: 36 | N50: 6 | O50: 0 | P50: 0 | Q50: 1 | R50: 0 | S50: 110 | T50: 6 | U50: 111
A51: 11:15:00 | B51: 79 | C51: 40 | D51: 6 | E51: 0 | F51: 0 | G51: 1 | H51: 1 | I51: 125 | J51: 6 | K51: 127 | L51: 89 | M51: 41 | N51: 5 | O51: 1 | P51: 0 | Q51: 0 | R51: 0 | S51: 136 | T51: 6 | U51: 136
A52: 11:30:00 | B52: 85 | C52: 41 | D52: 6 | E52: 1 | F52: 3 | G52: 2 | H52: 0 | I52: 133 | J52: 7 | K52: 138 | L52: 81 | M52: 38 | N52: 4 | O52: 0 | P52: 1 | Q52: 0 | R52: 0 | S52: 123 | T52: 4 | U52: 124
A53: 11:45:00 | B53: 97 | C53: 56 | D53: 5 | E53: 1 | F53: 0 | G53: 0 | H53: 0 | I53: 159 | J53: 6 | K53: 159 | L53: 70 | M53: 47 | N53: 9 | O53: 1 | P53: 0 | Q53: 1 | R53: 1 | S53: 127 | T53: 10 | U53: 129
A54: 12:00:00 | B54: 97 | C54: 59 | D54: 1 | E54: 1 | F54: 0 | G54: 1 | H54: 1 | I54: 158 | J54: 2 | K54: 160 | L54: 76 | M54: 52 | N54: 3 | O54: 1 | P54: 1 | Q54: 0 | R54: 0 | S54: 132 | T54: 4 | U54: 133
A55: 12:15:00 | B55: 98 | C55: 41 | D55: 8 | E55: 2 | F55: 0 | G55: 0 | H55: 1 | I55: 149 | J55: 10 | K55: 150 | L55: 80 | M55: 38 | N55: 5 | O55: 0 | P55: 0 | Q55: 1 | R55: 0 | S55: 123 | T55: 5 | U55: 124
A56: 12:30:00 | B56: 80 | C56: 43 | D56: 7 | E56: 1 | F56: 0 | G56: 2 | H56: 1 | I56: 131 | J56: 8 | K56: 134 | L56: 92 | M56: 49 | N56: 4 | O56: 0 | P56: 0 | Q56: 4 | R56: 0 | S56: 145 | T56: 4 | U56: 149
A57: 12:45:00 | B57: 83 | C57: 58 | D57: 6 | E57: 4 | F57: 0 | G57: 0 | H57: 2 | I57: 151 | J57: 10 | K57: 153 | L57: 89 | M57: 47 | N57: 1 | O57: 0 | P57: 0 | Q57: 1 | R57: 0 | S57: 137 | T57: 1 | U57: 138
A58: 13:00:00 | B58: 94 | C58: 61 | D58: 7 | E58: 0 | F58: 0 | G58: 1 | H58: 0 | I58: 162 | J58: 7 | K58: 163 | L58: 101 | M58: 40 | N58: 5 | O58: 1 | P58: 0 | Q58: 3 | R58: 2 | S58: 147 | T58: 6 | U58: 152
A59: 13:15:00 | B59: 112 | C59: 33 | D59: 4 | E59: 2 | F59: 0 | G59: 0 | H59: 0 | I59: 151 | J59: 6 | K59: 151 | L59: 63 | M59: 43 | N59: 4 | O59: 2 | P59: 0 | Q59: 0 | R59: 1 | S59: 112 | T59: 6 | U59: 113
A60: 13:30:00 | B60: 96 | C60: 38 | D60: 3 | E60: 1 | F60: 1 | G60: 1 | H60: 0 | I60: 138 | J60: 4 | K60: 140 | L60: 103 | M60: 39 | N60: 6 | O60: 3 | P60: 1 | Q60: 1 | R60: 0 | S60: 151 | T60: 9 | U60: 153
A61: 13:45:00 | B61: 110 | C61: 48 | D61: 3 | E61: 2 | F61: 1 | G61: 0 | H61: 0 | I61: 163 | J61: 5 | K61: 164 | L61: 95 | M61: 39 | N61: 3 | O61: 1 | P61: 1 | Q61: 0 | R61: 0 | S61: 138 | T61: 4 | U61: 139
A62: 14:00:00 | B62: 109 | C62: 57 | D62: 3 | E62: 2 | F62: 0 | G62: 2 | H62: 2 | I62: 171 | J62: 5 | K62: 175 | L62: 86 | M62: 49 | N62: 7 | O62: 0 | P62: 0 | Q62: 0 | R62: 0 | S62: 142 | T62: 7 | U62: 142
A63: 14:15:00 | B63: 102 | C63: 45 | D63: 7 | E63: 3 | F63: 0 | G63: 1 | H63: 0 | I63: 157 | J63: 10 | K63: 158 | L63: 91 | M63: 52 | N63: 6 | O63: 1 | P63: 0 | Q63: 0 | R63: 1 | S63: 150 | T63: 7 | U63: 151
A64: 14:30:00 | B64: 114 | C64: 61 | D64: 4 | E64: 3 | F64: 0 | G64: 1 | H64: 1 | I64: 182 | J64: 7 | K64: 184 | L64: 74 | M64: 46 | N64: 3 | O64: 1 | P64: 0 | Q64: 0 | R64: 0 | S64: 124 | T64: 4 | U64: 124
A65: 14:45:00 | B65: 82 | C65: 48 | D65: 4 | E65: 2 | F65: 1 | G65: 0 | H65: 0 | I65: 136 | J65: 6 | K65: 137 | L65: 89 | M65: 61 | N65: 3 | O65: 0 | P65: 0 | Q65: 2 | R65: 0 | S65: 153 | T65: 3 | U65: 155
A66: 15:00:00 | B66: 99 | C66: 49 | D66: 4 | E66: 0 | F66: 0 | G66: 1 | H66: 0 | I66: 152 | J66: 4 | K66: 153 | L66: 96 | M66: 53 | N66: 11 | O66: 3 | P66: 0 | Q66: 1 | R66: 0 | S66: 163 | T66: 14 | U66: 164
A67: 15:15:00 | B67: 90 | C67: 51 | D67: 3 | E67: 3 | F67: 0 | G67: 0 | H67: 3 | I67: 147 | J67: 6 | K67: 150 | L67: 81 | M67: 51 | N67: 5 | O67: 2 | P67: 0 | Q67: 0 | R67: 0 | S67: 139 | T67: 7 | U67: 139
A68: 15:30:00 | B68: 112 | C68: 54 | D68: 6 | E68: 0 | F68: 0 | G68: 2 | H68: 0 | I68: 172 | J68: 6 | K68: 174 | L68: 112 | M68: 54 | N68: 4 | O68: 2 | P68: 1 | Q68: 1 | R68: 3 | S68: 172 | T68: 6 | U68: 177
A69: 15:45:00 | B69: 114 | C69: 54 | D69: 4 | E69: 1 | F69: 0 | G69: 2 | H69: 3 | I69: 173 | J69: 5 | K69: 178 | L69: 117 | M69: 53 | N69: 6 | O69: 1 | P69: 0 | Q69: 2 | R69: 0 | S69: 177 | T69: 7 | U69: 179
A70: 16:00:00 | B70: 103 | C70: 54 | D70: 2 | E70: 0 | F70: 0 | G70: 2 | H70: 0 | I70: 159 | J70: 2 | K70: 161 | L70: 109 | M70: 52 | N70: 5 | O70: 2 | P70: 0 | Q70: 1 | R70: 1 | S70: 168 | T70: 7 | U70: 170
A71: 16:15:00 | B71: 90 | C71: 51 | D71: 6 | E71: 1 | F71: 0 | G71: 2 | H71: 1 | I71: =SUM(B71:E71) -> 148 | J71: =SUM(D71:E71) -> 7 | K71: =SUM(B71:H71) -> 151 | L71: 127 | M71: 52 | N71: 5 | O71: 2 | P71: 0 | Q71: 0 | R71: 0 | S71: =SUM(L71:O71) -> 186 | T71: =SUM(N71:O71) -> 7 | U71: =SUM(L71:R71) -> 186
A72: 16:30:00 | B72: 126 | C72: 78 | D72: 2 | E72: 1 | F72: 0 | G72: 3 | H72: 1 | I72: 207 | J72: 3 | K72: 211 | L72: 110 | M72: 54 | N72: 4 | O72: 0 | P72: 0 | Q72: 0 | R72: 0 | S72: 168 | T72: 4 | U72: 168
A73: 16:45:00 | B73: 123 | C73: 60 | D73: 6 | E73: 1 | F73: 1 | G73: 1 | H73: 1 | I73: 190 | J73: 7 | K73: 193 | L73: 116 | M73: 55 | N73: 3 | O73: 0 | P73: 0 | Q73: 0 | R73: 0 | S73: 174 | T73: 3 | U73: 174
A74: 17:00:00 | B74: 131 | C74: 71 | D74: 1 | E74: 2 | F74: 0 | G74: 3 | H74: 1 | I74: 205 | J74: 3 | K74: 209 | L74: 98 | M74: 46 | N74: 0 | O74: 0 | P74: 0 | Q74: 0 | R74: 0 | S74: 144 | T74: 0 | U74: 144
A75: 17:15:00 | B75: 128 | C75: 62 | D75: 1 | E75: 3 | F75: 0 | G75: 3 | H75: 0 | I75: 194 | J75: 4 | K75: 197 | L75: 99 | M75: 54 | N75: 2 | O75: 1 | P75: 0 | Q75: 1 | R75: 0 | S75: 156 | T75: 3 | U75: 157
A76: 17:30:00 | B76: 111 | C76: 51 | D76: 0 | E76: 0 | F76: 0 | G76: 0 | H76: 0 | I76: 162 | J76: 0 | K76: 162 | L76: 107 | M76: 53 | N76: 1 | O76: 0 | P76: 0 | Q76: 1 | R76: 2 | S76: 161 | T76: 1 | U76: 164
A77: 17:45:00 | B77: 83 | C77: 46 | D77: 2 | E77: 1 | F77: 0 | G77: 0 | H77: 0 | I77: 132 | J77: 3 | K77: 132 | L77: 71 | M77: 57 | N77: 4 | O77: 1 | P77: 0 | Q77: 1 | R77: 0 | S77: 133 | T77: 5 | U77: 134
A78: 18:00:00 | B78: 114 | C78: 45 | D78: 1 | E78: 0 | F78: 0 | G78: 3 | H78: 0 | I78: 160 | J78: 1 | K78: 163 | L78: 86 | M78: 38 | N78: 2 | O78: 0 | P78: 0 | Q78: 2 | R78: 0 | S78: 126 | T78: 2 | U78: 128
A79: 18:15:00 | B79: 82 | C79: 48 | D79: 3 | E79: 0 | F79: 0 | G79: 1 | H79: 0 | I79: 133 | J79: 3 | K79: 134 | L79: 92 | M79: 35 | N79: 2 | O79: 0 | P79: 0 | Q79: 1 | R79: 0 | S79: 129 | T79: 2 | U79: 130
A80: 18:30:00 | B80: 60 | C80: 39 | D80: 2 | E80: 1 | F80: 0 | G80: 0 | H80: 1 | I80: 102 | J80: 3 | K80: 103 | L80: 77 | M80: 37 | N80: 1 | O80: 0 | P80: 0 | Q80: 0 | R80: 1 | S80: 115 | T80: 1 | U80: 116
A81: 18:45:00 | B81: 67 | C81: 42 | D81: 1 | E81: 2 | F81: 0 | G81: 1 | H81: 1 | I81: 112 | J81: 3 | K81: 114 | L81: 61 | M81: 46 | N81: 1 | O81: 0 | P81: 0 | Q81: 2 | R81: 0 | S81: 108 | T81: 1 | U81: 110
A82: 19:00:00 | B82: 62 | C82: 31 | D82: 2 | E82: 0 | F82: 0 | G82: 1 | H82: 0 | I82: 95 | J82: 2 | K82: 96 | L82: 47 | M82: 37 | N82: 0 | O82: 1 | P82: 0 | Q82: 1 | R82: 0 | S82: 85 | T82: 1 | U82: 86
A83: 19:15:00 | B83: 47 | C83: 26 | D83: 2 | E83: 1 | F83: 0 | G83: 0 | H83: 2 | I83: 76 | J83: 3 | K83: 78 | L83: 46 | M83: 25 | N83: 0 | O83: 2 | P83: 0 | Q83: 1 | R83: 1 | S83: 73 | T83: 2 | U83: 75
A84: 19:30:00 | B84: 35 | C84: 26 | D84: 1 | E84: 0 | F84: 0 | G84: 2 | H84: 0 | I84: 62 | J84: 1 | K84: 64 | L84: 36 | M84: 27 | N84: 0 | O84: 1 | P84: 0 | Q84: 0 | R84: 1 | S84: 64 | T84: 1 | U84: 65
A85: 19:45:00 | B85: 41 | C85: 33 | D85: 0 | E85: 0 | F85: 0 | G85: 0 | H85: 0 | I85: 74 | J85: 0 | K85: 74 | L85: 34 | M85: 24 | N85: 1 | O85: 1 | P85: 0 | Q85: 0 | R85: 0 | S85: 60 | T85: 2 | U85: 60
A86: 20:00:00 | B86: 41 | C86: 23 | D86: 0 | E86: 2 | F86: 0 | G86: 2 | H86: 0 | I86: 66 | J86: 2 | K86: 68 | L86: 39 | M86: 19 | N86: 0 | O86: 0 | P86: 0 | Q86: 1 | R86: 0 | S86: 58 | T86: 0 | U86: 59
A87: 20:15:00 | B87: 33 | C87: 17 | D87: 0 | E87: 0 | F87: 0 | G87: 1 | H87: 0 | I87: 50 | J87: 0 | K87: 51 | L87: 32 | M87: 28 | N87: 1 | O87: 0 | P87: 0 | Q87: 0 | R87: 0 | S87: 61 | T87: 1 | U87: 61
A88: 20:30:00 | B88: 29 | C88: 18 | D88: 0 | E88: 0 | F88: 0 | G88: 1 | H88: 0 | I88: 47 | J88: 0 | K88: 48 | L88: 27 | M88: 16 | N88: 0 | O88: 0 | P88: 0 | Q88: 0 | R88: 0 | S88: 43 | T88: 0 | U88: 43
A89: 20:45:00 | B89: 18 | C89: 13 | D89: 0 | E89: 0 | F89: 0 | G89: 0 | H89: 0 | I89: 31 | J89: 0 | K89: 31 | L89: 20 | M89: 21 | N89: 0 | O89: 0 | P89: 0 | Q89: 0 | R89: 0 | S89: 41 | T89: 0 | U89: 41
A90: 21:00:00 | B90: 32 | C90: 19 | D90: 1 | E90: 1 | F90: 0 | G90: 0 | H90: 0 | I90: 53 | J90: 2 | K90: 53 | L90: 19 | M90: 22 | N90: 0 | O90: 0 | P90: 0 | Q90: 1 | R90: 0 | S90: 41 | T90: 0 | U90: 42
A91: 21:15:00 | B91: 25 | C91: 14 | D91: 1 | E91: 1 | F91: 0 | G91: 0 | H91: 0 | I91: 41 | J91: 2 | K91: 41 | L91: 20 | M91: 13 | N91: 0 | O91: 0 | P91: 0 | Q91: 0 | R91: 0 | S91: 33 | T91: 0 | U91: 33
A92: 21:30:00 | B92: 30 | C92: 16 | D92: 0 | E92: 0 | F92: 0 | G92: 0 | H92: 0 | I92: 46 | J92: 0 | K92: 46 | L92: 29 | M92: 16 | N92: 0 | O92: 0 | P92: 0 | Q92: 1 | R92: 0 | S92: 45 | T92: 0 | U92: 46
A93: 21:45:00 | B93: 32 | C93: 9 | D93: 1 | E93: 0 | F93: 0 | G93: 1 | H93: 1 | I93: 42 | J93: 1 | K93: 44 | L93: 25 | M93: 10 | N93: 0 | O93: 0 | P93: 0 | Q93: 0 | R93: 0 | S93: 35 | T93: 0 | U93: 35
A94: 22:00:00 | B94: 31 | C94: 12 | D94: 0 | E94: 1 | F94: 0 | G94: 0 | H94: 0 | I94: 44 | J94: 1 | K94: 44 | L94: 20 | M94: 11 | N94: 0 | O94: 1 | P94: 0 | Q94: 1 | R94: 0 | S94: 32 | T94: 1 | U94: 33
A95: 22:15:00 | B95: 17 | C95: 16 | D95: 0 | E95: 0 | F95: 0 | G95: 0 | H95: 0 | I95: 33 | J95: 0 | K95: 33 | L95: 23 | M95: 16 | N95: 0 | O95: 0 | P95: 0 | Q95: 0 | R95: 0 | S95: 39 | T95: 0 | U95: 39
A96: 22:30:00 | B96: 18 | C96: 11 | D96: 0 | E96: 0 | F96: 0 | G96: 0 | H96: 0 | I96: 29 | J96: 0 | K96: 29 | L96: 14 | M96: 6 | N96: 0 | O96: 1 | P96: 0 | Q96: 0 | R96: 0 | S96: 21 | T96: 1 | U96: 21
A97: 22:45:00 | B97: 19 | C97: 10 | D97: 0 | E97: 0 | F97: 0 | G97: 0 | H97: 0 | I97: 29 | J97: 0 | K97: 29 | L97: 8 | M97: 13 | N97: 0 | O97: 0 | P97: 0 | Q97: 0 | R97: 0 | S97: 21 | T97: 0 | U97: 21
A98: 23:00:00 | B98: 13 | C98: 5 | D98: 0 | E98: 0 | F98: 0 | G98: 0 | H98: 0 | I98: 18 | J98: 0 | K98: 18 | L98: 21 | M98: 5 | N98: 0 | O98: 0 | P98: 0 | Q98: 0 | R98: 1 | S98: 26 | T98: 0 | U98: 27
A99: 23:15:00 | B99: 11 | C99: 7 | D99: 0 | E99: 0 | F99: 0 | G99: 0 | H99: 0 | I99: 18 | J99: 0 | K99: 18 | L99: 10 | M99: 7 | N99: 0 | O99: 0 | P99: 0 | Q99: 0 | R99: 0 | S99: 17 | T99: 0 | U99: 17
A100: 23:30:00 | B100: 15 | C100: 7 | D100: 0 | E100: 0 | F100: 0 | G100: 0 | H100: 0 | I100: 22 | J100: 0 | K100: 22 | L100: 11 | M100: 5 | N100: 0 | O100: 0 | P100: 0 | Q100: 0 | R100: 0 | S100: 16 | T100: 0 | U100: 16
A101: 23:45:00 | B101: 11 | C101: 10 | D101: 0 | E101: 0 | F101: 0 | G101: 0 | H101: 0 | I101: 21 | J101: 0 | K101: 21 | L101: 8 | M101: 5 | N101: 0 | O101: 0 | P101: 0 | Q101: 0 | R101: 0 | S101: 13 | T101: 0 | U101: 13
A102: TOTAL | B102: =SUM(B6:B101) -> 5298 | C102: =SUM(C6:C101) -> 2789 | D102: 248 | E102: 80 | F102: 17 | G102: 57 | H102: 29 | I102: 8415 | J102: 328 | K102: 8518 | L102: =SUM(L6:L101) -> 4778 | M102: =SUM(M6:M101) -> 2840 | N102: 253 | O102: 62 | P102: 13 | Q102: 54 | R102: 24 | S102: 7933 | T102: 315 | U102: 8024

Sheet 09 04 2016
A1: * Fill the table with data
A2: DO NOT CHANGE THE STRUCTURE OF THE SPREADSHEET (i.e. ADD OR DELETE ROWS/COLUMNS, ETC.)
B4: ='Site Plan'!$A$19&" - "&'Site Plan'!$C$19 -> Direction 1 - Eastbound | I4: TOTAL | L4: ='Site Plan'!$A$20&" - "&'Site Plan'!$C$20 -> Direction 2 - Westbound | S4: TOTAL
A5: TIME | B5: CAR | C5: LGV | D5: OGV1 | E5: OGV2 | F5: PSV | G5: MCL | H5: PCL | I5: CAR + LGV + HGV | J5: HGV | K5: ALL modes | L5: CAR | M5: LGV | N5: OGV1 | O5: OGV2 | P5: PSV | Q5: MCL | R5: PCL | S5: CAR + LGV + HGV | T5: HGV | U5: ALL modes
A6: 00:00:00 | B6: 6 | C6: 5 | D6: 0 | E6: 0 | F6: 0 | G6: 0 | H6: 0 | I6: =SUM(B6:E6) -> 11 | J6: =SUM(D6:E6) -> 0 | K6: =SUM(B6:H6) -> 11 | L6: 10 | M6: 12 | N6: 0 | O6: 0 | P6: 0 | Q6: 0 | R6: 0 | S6: =SUM(L6:O6) -> 22 | T6: =SUM(N6:O6) -> 0 | U6: =SUM(L6:R6) -> 22
A7: 00:15:00 | B7: 6 | C7: 13 | D7: 0 | E7: 0 | F7: 0 | G7: 0 | H7: 0 | I7: =SUM(B7:E7) -> 19 | J7: =SUM(D7:E7) -> 0 | K7: =SUM(B7:H7) -> 19 | L7: 6 | M7: 2 | N7: 0 | O7: 0 | P7: 0 | Q7: 0 | R7: 0 | S7: =SUM(L7:O7) -> 8 | T7: =SUM(N7:O7) -> 0 | U7: =SUM(L7:R7) -> 8
A8: 00:30:00 | B8: 5 | C8: 5 | D8: 0 | E8: 0 | F8: 0 | G8: 0 | H8: 0 | I8: 10 | J8: 0 | K8: 10 | L8: 5 | M8: 1 | N8: 0 | O8: 0 | P8: 0 | Q8: 0 | R8: 0 | S8: 6 | T8: 0 | U8: 6
A9: 00:45:00 | B9: 3 | C9: 3 | D9: 3 | E9: 0 | F9: 0 | G9: 0 | H9: 0 | I9: 9 | J9: 3 | K9: 9 | L9: 6 | M9: 2 | N9: 1 | O9: 0 | P9: 0 | Q9: 0 | R9: 0 | S9: 9 | T9: 1 | U9: 9
A10: 01:00:00 | B10: 4 | C10: 2 | D10: 0 | E10: 0 | F10: 0 | G10: 0 | H10: 0 | I10: 6 | J10: 0 | K10: 6 | L10: 3 | M10: 2 | N10: 0 | O10: 0 | P10: 0 | Q10: 0 | R10: 0 | S10: 5 | T10: 0 | U10: 5
A11: 01:15:00 | B11: 2 | C11: 2 | D11: 0 | E11: 0 | F11: 0 | G11: 0 | H11: 0 | I11: 4 | J11: 0 | K11: 4 | L11: 1 | M11: 4 | N11: 0 | O11: 0 | P11: 0 | Q11: 0 | R11: 0 | S11: 5 | T11: 0 | U11: 5
A12: 01:30:00 | B12: 4 | C12: 1 | D12: 0 | E12: 0 | F12: 0 | G12: 0 | H12: 0 | I12: 5 | J12: 0 | K12: 5 | L12: 4 | M12: 3 | N12: 0 | O12: 0 | P12: 0 | Q12: 0 | R12: 0 | S12: 7 | T12: 0 | U12: 7
A13: 01:45:00 | B13: 1 | C13: 2 | D13: 0 | E13: 1 | F13: 0 | G13: 0 | H13: 0 | I13: 4 | J13: 1 | K13: 4 | L13: 3 | M13: 1 | N13: 0 | O13: 0 | P13: 0 | Q13: 0 | R13: 0 | S13: 4 | T13: 0 | U13: 4
A14: 02:00:00 | B14: 0 | C14: 0 | D14: 0 | E14: 0 | F14: 0 | G14: 0 | H14: 0 | I14: 0 | J14: 0 | K14: 0 | L14: 2 | M14: 0 | N14: 0 | O14: 0 | P14: 0 | Q14: 0 | R14: 0 | S14: 2 | T14: 0 | U14: 2
A15: 02:15:00 | B15: 1 | C15: 1 | D15: 0 | E15: 2 | F15: 0 | G15: 0 | H15: 0 | I15: 4 | J15: 2 | K15: 4 | L15: 0 | M15: 0 | N15: 0 | O15: 0 | P15: 0 | Q15: 0 | R15: 0 | S15: 0 | T15: 0 | U15: 0
A16: 02:30:00 | B16: 0 | C16: 0 | D16: 0 | E16: 0 | F16: 0 | G16: 0 | H16: 0 | I16: 0 | J16: 0 | K16: 0 | L16: 1 | M16: 0 | N16: 0 | O16: 0 | P16: 0 | Q16: 0 | R16: 0 | S16: 1 | T16: 0 | U16: 1
A17: 02:45:00 | B17: 0 | C17: 0 | D17: 0 | E17: 0 | F17: 0 | G17: 0 | H17: 0 | I17: 0 | J17: 0 | K17: 0 | L17: 0 | M17: 0 | N17: 0 | O17: 0 | P17: 0 | Q17: 0 | R17: 0 | S17: 0 | T17: 0 | U17: 0
A18: 03:00:00 | B18: 0 | C18: 1 | D18: 0 | E18: 0 | F18: 0 | G18: 0 | H18: 0 | I18: 1 | J18: 0 | K18: 1 | L18: 1 | M18: 1 | N18: 0 | O18: 0 | P18: 0 | Q18: 0 | R18: 0 | S18: 2 | T18: 0 | U18: 2
A19: 03:15:00 | B19: 0 | C19: 2 | D19: 1 | E19: 0 | F19: 0 | G19: 0 | H19: 0 | I19: 3 | J19: 1 | K19: 3 | L19: 1 | M19: 2 | N19: 0 | O19: 1 | P19: 0 | Q19: 0 | R19: 0 | S19: 4 | T19: 1 | U19: 4
A20: 03:30:00 | B20: 1 | C20: 1 | D20: 1 | E20: 1 | F20: 0 | G20: 0 | H20: 0 | I20: 4 | J20: 2 | K20: 4 | L20: 4 | M20: 1 | N20: 1 | O20: 0 | P20: 0 | Q20: 0 | R20: 0 | S20: 6 | T20: 1 | U20: 6
A21: 03:45:00 | B21: 1 | C21: 1 | D21: 0 | E21: 0 | F21: 0 | G21: 0 | H21: 0 | I21: 2 | J21: 0 | K21: 2 | L21: 2 | M21: 1 | N21: 0 | O21: 0 | P21: 0 | Q21: 0 | R21: 0 | S21: 3 | T21: 0 | U21: 3
A22: 04:00:00 | B22: 1 | C22: 2 | D22: 0 | E22: 0 | F22: 0 | G22: 0 | H22: 0 | I22: 3 | J22: 0 | K22: 3 | L22: 3 | M22: 6 | N22: 0 | O22: 0 | P22: 1 | Q22: 0 | R22: 0 | S22: 9 | T22: 0 | U22: 10
A23: 04:15:00 | B23: 2 | C23: 0 | D23: 0 | E23: 0 | F23: 0 | G23: 0 | H23: 0 | I23: 2 | J23: 0 | K23: 2 | L23: 2 | M23: 0 | N23: 0 | O23: 0 | P23: 0 | Q23: 0 | R23: 0 | S23: 2 | T23: 0 | U23: 2
A24: 04:30:00 | B24: 0 | C24: 1 | D24: 1 | E24: 1 | F24: 0 | G24: 0 | H24: 0 | I24: 3 | J24: 2 | K24: 3 | L24: 3 | M24: 4 | N24: 0 | O24: 0 | P24: 0 | Q24: 0 | R24: 0 | S24: 7 | T24: 0 | U24: 7
A25: 04:45:00 | B25: 1 | C25: 2 | D25: 2 | E25: 0 | F25: 0 | G25: 0 | H25: 0 | I25: 5 | J25: 2 | K25: 5 | L25: 4 | M25: 1 | N25: 0 | O25: 0 | P25: 0 | Q25: 0 | R25: 0 | S25: 5 | T25: 0 | U25: 5
A26: 05:00:00 | B26: 7 | C26: 1 | D26: 0 | E26: 0 | F26: 0 | G26: 1 | H26: 0 | I26: 8 | J26: 0 | K26: 9 | L26: 2 | M26: 5 | N26: 0 | O26: 0 | P26: 0 | Q26: 0 | R26: 0 | S26: 7 | T26: 0 | U26: 7
A27: 05:15:00 | B27: 4 | C27: 2 | D27: 1 | E27: 0 | F27: 0 | G27: 0 | H27: 0 | I27: 7 | J27: 1 | K27: 7 | L27: 4 | M27: 2 | N27: 2 | O27: 0 | P27: 0 | Q27: 0 | R27: 0 | S27: 8 | T27: 2 | U27: 8
A28: 05:30:00 | B28: 5 | C28: 8 | D28: 2 | E28: 0 | F28: 0 | G28: 0 | H28: 0 | I28: 15 | J28: 2 | K28: 15 | L28: 11 | M28: 8 | N28: 0 | O28: 0 | P28: 0 | Q28: 0 | R28: 0 | S28: 19 | T28: 0 | U28: 19
A29: 05:45:00 | B29: 10 | C29: 4 | D29: 0 | E29: 0 | F29: 0 | G29: 0 | H29: 0 | I29: 14 | J29: 0 | K29: 14 | L29: 5 | M29: 13 | N29: 0 | O29: 1 | P29: 0 | Q29: 0 | R29: 0 | S29: 19 | T29: 1 | U29: 19
A30: 06:00:00 | B30: 9 | C30: 4 | D30: 0 | E30: 0 | F30: 0 | G30: 0 | H30: 0 | I30: 13 | J30: 0 | K30: 13 | L30: 10 | M30: 4 | N30: 0 | O30: 1 | P30: 0 | Q30: 1 | R30: 0 | S30: 15 | T30: 1 | U30: 16
A31: 06:15:00 | B31: 7 | C31: 2 | D31: 2 | E31: 0 | F31: 0 | G31: 0 | H31: 0 | I31: 11 | J31: 2 | K31: 11 | L31: 13 | M31: 10 | N31: 1 | O31: 1 | P31: 0 | Q31: 0 | R31: 0 | S31: 25 | T31: 2 | U31: 25
A32: 06:30:00 | B32: 14 | C32: 8 | D32: 1 | E32: 0 | F32: 0 | G32: 0 | H32: 0 | I32: 23 | J32: 1 | K32: 23 | L32: 14 | M32: 4 | N32: 1 | O32: 2 | P32: 0 | Q32: 1 | R32: 0 | S32: 21 | T32: 3 | U32: 22
A33: 06:45:00 | B33: 17 | C33: 12 | D33: 2 | E33: 3 | F33: 0 | G33: 0 | H33: 0 | I33: 34 | J33: 5 | K33: 34 | L33: 10 | M33: 8 | N33: 2 | O33: 2 | P33: 0 | Q33: 1 | R33: 0 | S33: 22 | T33: 4 | U33: 23
A34: 07:00:00 | B34: 20 | C34: 6 | D34: 3 | E34: 1 | F34: 0 | G34: 0 | H34: 0 | I34: 30 | J34: 4 | K34: 30 | L34: 20 | M34: 20 | N34: 2 | O34: 0 | P34: 0 | Q34: 0 | R34: 0 | S34: 42 | T34: 2 | U34: 42
A35: 07:15:00 | B35: 25 | C35: 25 | D35: 1 | E35: 0 | F35: 1 | G35: 0 | H35: 0 | I35: 51 | J35: 1 | K35: 52 | L35: 21 | M35: 12 | N35: 1 | O35: 0 | P35: 0 | Q35: 0 | R35: 0 | S35: 34 | T35: 1 | U35: 34
A36: 07:30:00 | B36: 46 | C36: 25 | D36: 1 | E36: 0 | F36: 0 | G36: 0 | H36: 0 | I36: 72 | J36: 1 | K36: 72 | L36: 27 | M36: 19 | N36: 0 | O36: 2 | P36: 0 | Q36: 0 | R36: 0 | S36: 48 | T36: 2 | U36: 48
A37: 07:45:00 | B37: 35 | C37: 32 | D37: 1 | E37: 1 | F37: 0 | G37: 0 | H37: 0 | I37: 69 | J37: 2 | K37: 69 | L37: 26 | M37: 25 | N37: 3 | O37: 0 | P37: 0 | Q37: 0 | R37: 0 | S37: 54 | T37: 3 | U37: 54
A38: 08:00:00 | B38: 52 | C38: 27 | D38: 2 | E38: 2 | F38: 0 | G38: 0 | H38: 0 | I38: 83 | J38: 4 | K38: 83 | L38: 39 | M38: 24 | N38: 4 | O38: 2 | P38: 0 | Q38: 1 | R38: 0 | S38: 69 | T38: 6 | U38: 70
A39: 08:15:00 | B39: 86 | C39: 28 | D39: 3 | E39: 0 | F39: 0 | G39: 0 | H39: 0 | I39: 117 | J39: 3 | K39: 117 | L39: 46 | M39: 36 | N39: 1 | O39: 0 | P39: 0 | Q39: 0 | R39: 0 | S39: 83 | T39: 1 | U39: 83
A40: 08:30:00 | B40: 72 | C40: 53 | D40: 2 | E40: 1 | F40: 2 | G40: 0 | H40: 1 | I40: 128 | J40: 3 | K40: 131 | L40: 52 | M40: 22 | N40: 2 | O40: 1 | P40: 0 | Q40: 0 | R40: 0 | S40: 77 | T40: 3 | U40: 77
A41: 08:45:00 | B41: 90 | C41: 62 | D41: 1 | E41: 1 | F41: 0 | G41: 0 | H41: 0 | I41: 154 | J41: 2 | K41: 154 | L41: 51 | M41: 35 | N41: 2 | O41: 0 | P41: 0 | Q41: 1 | R41: 0 | S41: 88 | T41: 2 | U41: 89
A42: 09:00:00 | B42: 81 | C42: 52 | D42: 1 | E42: 0 | F42: 0 | G42: 1 | H42: 0 | I42: 134 | J42: 1 | K42: 135 | L42: 60 | M42: 32 | N42: 1 | O42: 0 | P42: 0 | Q42: 1 | R42: 1 | S42: 93 | T42: 1 | U42: 95
A43: 09:15:00 | B43: 84 | C43: 50 | D43: 1 | E43: 0 | F43: 0 | G43: 0 | H43: 0 | I43: 135 | J43: 1 | K43: 135 | L43: 43 | M43: 42 | N43: 2 | O43: 0 | P43: 1 | Q43: 1 | R43: 0 | S43: 87 | T43: 2 | U43: 89
A44: 09:30:00 | B44: 89 | C44: 51 | D44: 3 | E44: 0 | F44: 0 | G44: 1 | H44: 0 | I44: 143 | J44: 3 | K44: 144 | L44: 61 | M44: 51 | N44: 2 | O44: 0 | P44: 0 | Q44: 0 | R44: 0 | S44: 114 | T44: 2 | U44: 114
A45: 09:45:00 | B45: 106 | C45: 54 | D45: 0 | E45: 4 | F45: 0 | G45: 0 | H45: 0 | I45: 164 | J45: 4 | K45: 164 | L45: 80 | M45: 46 | N45: 0 | O45: 0 | P45: 0 | Q45: 0 | R45: 0 | S45: 126 | T45: 0 | U45: 126
A46: 10:00:00 | B46: 105 | C46: 42 | D46: 3 | E46: 2 | F46: 0 | G46: 0 | H46: 0 | I46: 152 | J46: 5 | K46: 152 | L46: 92 | M46: 41 | N46: 3 | O46: 1 | P46: 0 | Q46: 0 | R46: 0 | S46: 137 | T46: 4 | U46: 137
A47: 10:15:00 | B47: 132 | C47: 56 | D47: 2 | E47: 1 | F47: 0 | G47: 0 | H47: 0 | I47: 191 | J47: 3 | K47: 191 | L47: 90 | M47: 51 | N47: 1 | O47: 0 | P47: 0 | Q47: 0 | R47: 0 | S47: 142 | T47: 1 | U47: 142
A48: 10:30:00 | B48: 119 | C48: 44 | D48: 1 | E48: 0 | F48: 0 | G48: 0 | H48: 0 | I48: 164 | J48: 1 | K48: 164 | L48: 73 | M48: 52 | N48: 3 | O48: 1 | P48: 1 | Q48: 0 | R48: 0 | S48: 129 | T48: 4 | U48: 130
A49: 10:45:00 | B49: 111 | C49: 47 | D49: 2 | E49: 1 | F49: 0 | G49: 0 | H49: 1 | I49: 161 | J49: 3 | K49: 162 | L49: 98 | M49: 40 | N49: 3 | O49: 0 | P49: 0 | Q49: 0 | R49: 1 | S49: 141 | T49: 3 | U49: 142
A50: 11:00:00 | B50: 116 | C50: 52 | D50: 3 | E50: 0 | F50: 0 | G50: 0 | H50: 0 | I50: 171 | J50: 3 | K50: 171 | L50: 100 | M50: 56 | N50: 0 | O50: 0 | P50: 0 | Q50: 0 | R50: 1 | S50: 156 | T50: 0 | U50: 157
A51: 11:15:00 | B51: 94 | C51: 56 | D51: 0 | E51: 0 | F51: 0 | G51: 0 | H51: 0 | I51: 150 | J51: 0 | K51: 150 | L51: 116 | M51: 45 | N51: 1 | O51: 0 | P51: 0 | Q51: 0 | R51: 0 | S51: 162 | T51: 1 | U51: 162
A52: 11:30:00 | B52: 127 | C52: 59 | D52: 4 | E52: 1 | F52: 0 | G52: 0 | H52: 0 | I52: 191 | J52: 5 | K52: 191 | L52: 101 | M52: 45 | N52: 1 | O52: 1 | P52: 0 | Q52: 0 | R52: 0 | S52: 148 | T52: 2 | U52: 148
A53: 11:45:00 | B53: 101 | C53: 57 | D53: 0 | E53: 1 | F53: 0 | G53: 0 | H53: 0 | I53: 159 | J53: 1 | K53: 159 | L53: 113 | M53: 42 | N53: 1 | O53: 1 | P53: 0 | Q53: 0 | R53: 0 | S53: 157 | T53: 2 | U53: 157
A54: 12:00:00 | B54: 119 | C54: 53 | D54: 1 | E54: 0 | F54: 2 | G54: 2 | H54: 0 | I54: 173 | J54: 1 | K54: 177 | L54: 108 | M54: 54 | N54: 2 | O54: 0 | P54: 0 | Q54: 0 | R54: 0 | S54: 164 | T54: 2 | U54: 164
A55: 12:15:00 | B55: 137 | C55: 51 | D55: 3 | E55: 1 | F55: 1 | G55: 1 | H55: 0 | I55: 192 | J55: 4 | K55: 194 | L55: 108 | M55: 41 | N55: 0 | O55: 0 | P55: 0 | Q55: 1 | R55: 0 | S55: 149 | T55: 0 | U55: 150
A56: 12:30:00 | B56: 113 | C56: 66 | D56: 5 | E56: 0 | F56: 0 | G56: 0 | H56: 0 | I56: 184 | J56: 5 | K56: 184 | L56: 119 | M56: 52 | N56: 3 | O56: 0 | P56: 0 | Q56: 0 | R56: 0 | S56: 174 | T56: 3 | U56: 174
A57: 12:45:00 | B57: 110 | C57: 63 | D57: 1 | E57: 1 | F57: 0 | G57: 0 | H57: 0 | I57: 175 | J57: 2 | K57: 175 | L57: 119 | M57: 39 | N57: 0 | O57: 0 | P57: 0 | Q57: 1 | R57: 0 | S57: 158 | T57: 0 | U57: 159
A58: 13:00:00 | B58: 111 | C58: 34 | D58: 1 | E58: 0 | F58: 0 | G58: 1 | H58: 0 | I58: 146 | J58: 1 | K58: 147 | L58: 92 | M58: 42 | N58: 4 | O58: 0 | P58: 0 | Q58: 0 | R58: 0 | S58: 138 | T58: 4 | U58: 138
A59: 13:15:00 | B59: 110 | C59: 50 | D59: 2 | E59: 1 | F59: 0 | G59: 0 | H59: 0 | I59: 163 | J59: 3 | K59: 163 | L59: 92 | M59: 56 | N59: 2 | O59: 0 | P59: 0 | Q59: 0 | R59: 1 | S59: 150 | T59: 2 | U59: 151
A60: 13:30:00 | B60: 103 | C60: 56 | D60: 1 | E60: 1 | F60: 0 | G60: 1 | H60: 0 | I60: 161 | J60: 2 | K60: 162 | L60: 88 | M60: 50 | N60: 1 | O60: 0 | P60: 0 | Q60: 1 | R60: 0 | S60: 139 | T60: 1 | U60: 140
A61: 13:45:00 | B61: 106 | C61: 46 | D61: 1 | E61: 3 | F61: 0 | G61: 0 | H61: 1 | I61: 156 | J61: 4 | K61: 157 | L61: 92 | M61: 46 | N61: 0 | O61: 0 | P61: 0 | Q61: 0 | R61: 0 | S61: 138 | T61: 0 | U61: 138
A62: 14:00:00 | B62: 86 | C62: 42 | D62: 0 | E62: 0 | F62: 0 | G62: 0 | H62: 0 | I62: 128 | J62: 0 | K62: 128 | L62: 106 | M62: 57 | N62: 1 | O62: 0 | P62: 0 | Q62: 0 | R62: 1 | S62: 164 | T62: 1 | U62: 165
A63: 14:15:00 | B63: 101 | C63: 52 | D63: 1 | E63: 1 | F63: 0 | G63: 0 | H63: 0 | I63: 155 | J63: 2 | K63: 155 | L63: 81 | M63: 42 | N63: 0 | O63: 0 | P63: 0 | Q63: 0 | R63: 0 | S63: 123 | T63: 0 | U63: 123
A64: 14:30:00 | B64: 91 | C64: 40 | D64: 1 | E64: 2 | F64: 0 | G64: 0 | H64: 0 | I64: 134 | J64: 3 | K64: 134 | L64: 82 | M64: 46 | N64: 3 | O64: 0 | P64: 0 | Q64: 1 | R64: 1 | S64: 131 | T64: 3 | U64: 133
A65: 14:45:00 | B65: 85 | C65: 54 | D65: 2 | E65: 0 | F65: 0 | G65: 0 | H65: 0 | I65: 141 | J65: 2 | K65: 141 | L65: 100 | M65: 43 | N65: 1 | O65: 0 | P65: 0 | Q65: 0 | R65: 0 | S65: 144 | T65: 1 | U65: 144
A66: 15:00:00 | B66: 75 | C66: 32 | D66: 1 | E66: 0 | F66: 0 | G66: 0 | H66: 1 | I66: 108 | J66: 1 | K66: 109 | L66: 115 | M66: 42 | N66: 0 | O66: 0 | P66: 0 | Q66: 0 | R66: 0 | S66: 157 | T66: 0 | U66: 157
A67: 15:15:00 | B67: 63 | C67: 38 | D67: 0 | E67: 0 | F67: 0 | G67: 1 | H67: 0 | I67: 101 | J67: 0 | K67: 102 | L67: 96 | M67: 41 | N67: 0 | O67: 0 | P67: 1 | Q67: 0 | R67: 0 | S67: 137 | T67: 0 | U67: 138
A68: 15:30:00 | B68: 70 | C68: 33 | D68: 0 | E68: 0 | F68: 0 | G68: 0 | H68: 0 | I68: 103 | J68: 0 | K68: 103 | L68: 85 | M68: 52 | N68: 4 | O68: 0 | P68: 0 | Q68: 0 | R68: 0 | S68: 141 | T68: 4 | U68: 141
A69: 15:45:00 | B69: 63 | C69: 40 | D69: 1 | E69: 0 | F69: 0 | G69: 1 | H69: 0 | I69: 104 | J69: 1 | K69: 105 | L69: 85 | M69: 46 | N69: 2 | O69: 1 | P69: 0 | Q69: 0 | R69: 0 | S69: 134 | T69: 3 | U69: 134
A70: 16:00:00 | B70: 84 | C70: 42 | D70: 3 | E70: 2 | F70: 0 | G70: 2 | H70: 0 | I70: 131 | J70: 5 | K70: 133 | L70: 79 | M70: 45 | N70: 0 | O70: 1 | P70: 0 | Q70: 0 | R70: 1 | S70: 125 | T70: 1 | U70: 126
A71: 16:15:00 | B71: 72 | C71: 33 | D71: 2 | E71: 0 | F71: 0 | G71: 0 | H71: 0 | I71: =SUM(B71:E71) -> 107 | J71: =SUM(D71:E71) -> 2 | K71: =SUM(B71:H71) -> 107 | L71: 99 | M71: 53 | N71: 2 | O71: 0 | P71: 0 | Q71: 0 | R71: 0 | S71: =SUM(L71:O71) -> 154 | T71: =SUM(N71:O71) -> 2 | U71: =SUM(L71:R71) -> 154
A72: 16:30:00 | B72: 64 | C72: 47 | D72: 2 | E72: 1 | F72: 0 | G72: 0 | H72: 0 | I72: 114 | J72: 3 | K72: 114 | L72: 91 | M72: 51 | N72: 2 | O72: 0 | P72: 0 | Q72: 0 | R72: 0 | S72: 144 | T72: 2 | U72: 144
A73: 16:45:00 | B73: 77 | C73: 25 | D73: 3 | E73: 0 | F73: 0 | G73: 0 | H73: 1 | I73: 105 | J73: 3 | K73: 106 | L73: 99 | M73: 48 | N73: 3 | O73: 1 | P73: 0 | Q73: 0 | R73: 1 | S73: 151 | T73: 4 | U73: 152
A74: 17:00:00 | B74: 67 | C74: 31 | D74: 3 | E74: 0 | F74: 0 | G74: 1 | H74: 0 | I74: 101 | J74: 3 | K74: 102 | L74: 55 | M74: 58 | N74: 2 | O74: 0 | P74: 0 | Q74: 0 | R74: 0 | S74: 115 | T74: 2 | U74: 115
A75: 17:15:00 | B75: 67 | C75: 29 | D75: 1 | E75: 0 | F75: 0 | G75: 1 | H75: 0 | I75: 97 | J75: 1 | K75: 98 | L75: 75 | M75: 34 | N75: 4 | O75: 1 | P75: 0 | Q75: 1 | R75: 0 | S75: 114 | T75: 5 | U75: 115
A76: 17:30:00 | B76: 80 | C76: 40 | D76: 2 | E76: 0 | F76: 0 | G76: 0 | H76: 0 | I76: 122 | J76: 2 | K76: 122 | L76: 73 | M76: 52 | N76: 1 | O76: 0 | P76: 0 | Q76: 0 | R76: 0 | S76: 126 | T76: 1 | U76: 126
A77: 17:45:00 | B77: 77 | C77: 37 | D77: 0 | E77: 1 | F77: 0 | G77: 0 | H77: 1 | I77: 115 | J77: 1 | K77: 116 | L77: 70 | M77: 54 | N77: 1 | O77: 1 | P77: 0 | Q77: 0 | R77: 0 | S77: 126 | T77: 2 | U77: 126
A78: 18:00:00 | B78: 62 | C78: 45 | D78: 2 | E78: 0 | F78: 0 | G78: 0 | H78: 1 | I78: 109 | J78: 2 | K78: 110 | L78: 81 | M78: 33 | N78: 1 | O78: 0 | P78: 0 | Q78: 0 | R78: 0 | S78: 115 | T78: 1 | U78: 115
A79: 18:15:00 | B79: 55 | C79: 25 | D79: 1 | E79: 0 | F79: 0 | G79: 0 | H79: 0 | I79: 81 | J79: 1 | K79: 81 | L79: 76 | M79: 29 | N79: 0 | O79: 0 | P79: 0 | Q79: 1 | R79: 0 | S79: 105 | T79: 0 | U79: 106
A80: 18:30:00 | B80: 44 | C80: 42 | D80: 1 | E80: 0 | F80: 0 | G80: 0 | H80: 0 | I80: 87 | J80: 1 | K80: 87 | L80: 55 | M80: 23 | N80: 1 | O80: 0 | P80: 0 | Q80: 0 | R80: 0 | S80: 79 | T80: 1 | U80: 79
A81: 18:45:00 | B81: 58 | C81: 28 | D81: 0 | E81: 1 | F81: 0 | G81: 0 | H81: 0 | I81: 87 | J81: 1 | K81: 87 | L81: 46 | M81: 45 | N81: 1 | O81: 0 | P81: 0 | Q81: 1 | R81: 0 | S81: 92 | T81: 1 | U81: 93
A82: 19:00:00 | B82: 50 | C82: 22 | D82: 0 | E82: 0 | F82: 0 | G82: 0 | H82: 0 | I82: 72 | J82: 0 | K82: 72 | L82: 52 | M82: 30 | N82: 1 | O82: 1 | P82: 0 | Q82: 2 | R82: 0 | S82: 84 | T82: 2 | U82: 86
A83: 19:15:00 | B83: 61 | C83: 29 | D83: 0 | E83: 0 | F83: 0 | G83: 0 | H83: 0 | I83: 90 | J83: 0 | K83: 90 | L83: 35 | M83: 34 | N83: 2 | O83: 0 | P83: 0 | Q83: 0 | R83: 0 | S83: 71 | T83: 2 | U83: 71
A84: 19:30:00 | B84: 43 | C84: 23 | D84: 1 | E84: 0 | F84: 0 | G84: 0 | H84: 1 | I84: 67 | J84: 1 | K84: 68 | L84: 35 | M84: 31 | N84: 1 | O84: 0 | P84: 0 | Q84: 0 | R84: 0 | S84: 67 | T84: 1 | U84: 67
A85: 19:45:00 | B85: 39 | C85: 22 | D85: 0 | E85: 0 | F85: 0 | G85: 0 | H85: 0 | I85: 61 | J85: 0 | K85: 61 | L85: 35 | M85: 19 | N85: 0 | O85: 0 | P85: 0 | Q85: 0 | R85: 0 | S85: 54 | T85: 0 | U85: 54
A86: 20:00:00 | B86: 33 | C86: 18 | D86: 0 | E86: 0 | F86: 0 | G86: 0 | H86: 0 | I86: 51 | J86: 0 | K86: 51 | L86: 45 | M86: 20 | N86: 1 | O86: 0 | P86: 0 | Q86: 0 | R86: 0 | S86: 66 | T86: 1 | U86: 66
A87: 20:15:00 | B87: 27 | C87: 13 | D87: 1 | E87: 0 | F87: 1 | G87: 0 | H87: 0 | I87: 41 | J87: 1 | K87: 42 | L87: 26 | M87: 18 | N87: 0 | O87: 0 | P87: 0 | Q87: 0 | R87: 0 | S87: 44 | T87: 0 | U87: 44
A88: 20:30:00 | B88: 39 | C88: 16 | D88: 0 | E88: 0 | F88: 0 | G88: 0 | H88: 0 | I88: 55 | J88: 0 | K88: 55 | L88: 32 | M88: 11 | N88: 0 | O88: 0 | P88: 0 | Q88: 0 | R88: 0 | S88: 43 | T88: 0 | U88: 43
A89: 20:45:00 | B89: 31 | C89: 24 | D89: 0 | E89: 0 | F89: 0 | G89: 0 | H89: 0 | I89: 55 | J89: 0 | K89: 55 | L89: 22 | M89: 15 | N89: 0 | O89: 0 | P89: 0 | Q89: 0 | R89: 0 | S89: 37 | T89: 0 | U89: 37
A90: 21:00:00 | B90: 21 | C90: 20 | D90: 0 | E90: 1 | F90: 0 | G90: 0 | H90: 0 | I90: 42 | J90: 1 | K90: 42 | L90: 20 | M90: 12 | N90: 0 | O90: 0 | P90: 0 | Q90: 0 | R90: 0 | S90: 32 | T90: 0 | U90: 32
A91: 21:15:00 | B91: 40 | C91: 13 | D91: 1 | E91: 0 | F91: 0 | G91: 0 | H91: 0 | I91: 54 | J91: 1 | K91: 54 | L91: 30 | M91: 9 | N91: 0 | O91: 0 | P91: 0 | Q91: 0 | R91: 0 | S91: 39 | T91: 0 | U91: 39
A92: 21:30:00 | B92: 17 | C92: 10 | D92: 0 | E92: 0 | F92: 0 | G92: 2 | H92: 0 | I92: 27 | J92: 0 | K92: 29 | L92: 15 | M92: 17 | N92: 0 | O92: 0 | P92: 0 | Q92: 0 | R92: 0 | S92: 32 | T92: 0 | U92: 32
A93: 21:45:00 | B93: 29 | C93: 14 | D93: 0 | E93: 0 | F93: 0 | G93: 0 | H93: 0 | I93: 43 | J93: 0 | K93: 43 | L93: 10 | M93: 12 | N93: 0 | O93: 0 | P93: 0 | Q93: 0 | R93: 0 | S93: 22 | T93: 0 | U93: 22
A94: 22:00:00 | B94: 26 | C94: 12 | D94: 0 | E94: 0 | F94: 0 | G94: 1 | H94: 0 | I94: 38 | J94: 0 | K94: 39 | L94: 26 | M94: 16 | N94: 0 | O94: 0 | P94: 0 | Q94: 0 | R94: 0 | S94: 42 | T94: 0 | U94: 42
A95: 22:15:00 | B95: 33 | C95: 10 | D95: 0 | E95: 0 | F95: 0 | G95: 0 | H95: 0 | I95: 43 | J95: 0 | K95: 43 | L95: 27 | M95: 8 | N95: 1 | O95: 1 | P95: 0 | Q95: 0 | R95: 0 | S95: 37 | T95: 2 | U95: 37
A96: 22:30:00 | B96: 15 | C96: 11 | D96: 0 | E96: 0 | F96: 0 | G96: 0 | H96: 0 | I96: 26 | J96: 0 | K96: 26 | L96: 19 | M96: 14 | N96: 0 | O96: 0 | P96: 0 | Q96: 1 | R96: 0 | S96: 33 | T96: 0 | U96: 34
A97: 22:45:00 | B97: 20 | C97: 11 | D97: 0 | E97: 0 | F97: 0 | G97: 0 | H97: 0 | I97: 31 | J97: 0 | K97: 31 | L97: 16 | M97: 10 | N97: 0 | O97: 0 | P97: 0 | Q97: 0 | R97: 0 | S97: 26 | T97: 0 | U97: 26
A98: 23:00:00 | B98: 13 | C98: 8 | D98: 0 | E98: 0 | F98: 0 | G98: 1 | H98: 0 | I98: 21 | J98: 0 | K98: 22 | L98: 11 | M98: 9 | N98: 0 | O98: 0 | P98: 0 | Q98: 0 | R98: 0 | S98: 20 | T98: 0 | U98: 20
A99: 23:15:00 | B99: 18 | C99: 13 | D99: 0 | E99: 0 | F99: 0 | G99: 0 | H99: 0 | I99: 31 | J99: 0 | K99: 31 | L99: 17 | M99: 8 | N99: 1 | O99: 0 | P99: 0 | Q99: 0 | R99: 0 | S99: 26 | T99: 1 | U99: 26
A100: 23:30:00 | B100: 15 | C100: 3 | D100: 0 | E100: 0 | F100: 0 | G100: 0 | H100: 0 | I100: 18 | J100: 0 | K100: 18 | L100: 20 | M100: 12 | N100: 0 | O100: 0 | P100: 0 | Q100: 0 | R100: 0 | S100: 32 | T100: 0 | U100: 32
A101: 23:45:00 | B101: 13 | C101: 13 | D101: 0 | E101: 0 | F101: 0 | G101: 1 | H101: 0 | I101: 26 | J101: 0 | K101: 27 | L101: 22 | M101: 6 | N101: 0 | O101: 0 | P101: 0 | Q101: 1 | R101: 0 | S101: 28 | T101: 0 | U101: 29
A102: TOTAL | B102: =SUM(B6:B101) -> 4735 | C102: =SUM(C6:C101) -> 2442 | D102: 94 | E102: 40 | F102: 7 | G102: 19 | H102: 8 | I102: 7311 | J102: 134 | K102: 7345 | L102: =SUM(L6:L101) -> 4421 | M102: =SUM(M6:M101) -> 2418 | N102: 89 | O102: 24 | P102: 4 | Q102: 18 | R102: 8 | S102: 6952 | T102: 113 | U102: 6982

Sheet 10 04 2016
A1: * Fill the table with data
A2: DO NOT CHANGE THE STRUCTURE OF THE SPREADSHEET (i.e. ADD OR DELETE ROWS/COLUMNS, ETC.)
B4: ='Site Plan'!$A$19&" - "&'Site Plan'!$C$19 -> Direction 1 - Eastbound | I4: TOTAL | L4: ='Site Plan'!$A$20&" - "&'Site Plan'!$C$20 -> Direction 2 - Westbound | S4: TOTAL
A5: TIME | B5: CAR | C5: LGV | D5: OGV1 | E5: OGV2 | F5: PSV | G5: MCL | H5: PCL | I5: CAR + LGV + HGV | J5: HGV | K5: ALL modes | L5: CAR | M5: LGV | N5: OGV1 | O5: OGV2 | P5: PSV | Q5: MCL | R5: PCL | S5: CAR + LGV + HGV | T5: HGV | U5: ALL modes
A6: 00:00:00 | B6: 19 | C6: 5 | D6: 1 | E6: 1 | F6: 0 | G6: 0 | H6: 0 | I6: =SUM(B6:E6) -> 26 | J6: =SUM(D6:E6) -> 2 | K6: =SUM(B6:H6) -> 26 | L6: 11 | M6: 11 | N6: 0 | O6: 0 | P6: 0 | Q6: 0 | R6: 0 | S6: =SUM(L6:O6) -> 22 | T6: =SUM(N6:O6) -> 0 | U6: =SUM(L6:R6) -> 22
A7: 00:15:00 | B7: 11 | C7: 9 | D7: 0 | E7: 0 | F7: 0 | G7: 0 | H7: 0 | I7: =SUM(B7:E7) -> 20 | J7: =SUM(D7:E7) -> 0 | K7: =SUM(B7:H7) -> 20 | L7: 6 | M7: 10 | N7: 0 | O7: 0 | P7: 0 | Q7: 0 | R7: 0 | S7: =SUM(L7:O7) -> 16 | T7: =SUM(N7:O7) -> 0 | U7: =SUM(L7:R7) -> 16
A8: 00:30:00 | B8: 11 | C8: 9 | D8: 0 | E8: 0 | F8: 0 | G8: 0 | H8: 0 | I8: 20 | J8: 0 | K8: 20 | L8: 7 | M8: 9 | N8: 0 | O8: 0 | P8: 0 | Q8: 0 | R8: 0 | S8: 16 | T8: 0 | U8: 16
A9: 00:45:00 | B9: 3 | C9: 4 | D9: 0 | E9: 0 | F9: 0 | G9: 0 | H9: 0 | I9: 7 | J9: 0 | K9: 7 | L9: 4 | M9: 3 | N9: 0 | O9: 0 | P9: 0 | Q9: 0 | R9: 0 | S9: 7 | T9: 0 | U9: 7
A10: 01:00:00 | B10: 4 | C10: 4 | D10: 0 | E10: 0 | F10: 0 | G10: 0 | H10: 0 | I10: 8 | J10: 0 | K10: 8 | L10: 2 | M10: 1 | N10: 0 | O10: 0 | P10: 0 | Q10: 0 | R10: 0 | S10: 3 | T10: 0 | U10: 3
A11: 01:15:00 | B11: 5 | C11: 3 | D11: 0 | E11: 0 | F11: 0 | G11: 0 | H11: 0 | I11: 8 | J11: 0 | K11: 8 | L11: 3 | M11: 4 | N11: 0 | O11: 1 | P11: 0 | Q11: 0 | R11: 0 | S11: 8 | T11: 1 | U11: 8
A12: 01:30:00 | B12: 4 | C12: 4 | D12: 1 | E12: 0 | F12: 0 | G12: 0 | H12: 0 | I12: 9 | J12: 1 | K12: 9 | L12: 3 | M12: 3 | N12: 0 | O12: 0 | P12: 0 | Q12: 0 | R12: 0 | S12: 6 | T12: 0 | U12: 6
A13: 01:45:00 | B13: 5 | C13: 3 | D13: 0 | E13: 1 | F13: 0 | G13: 0 | H13: 0 | I13: 9 | J13: 1 | K13: 9 | L13: 5 | M13: 2 | N13: 0 | O13: 0 | P13: 0 | Q13: 0 | R13: 0 | S13: 7 | T13: 0 | U13: 7
A14: 02:00:00 | B14: 6 | C14: 2 | D14: 0 | E14: 1 | F14: 0 | G14: 0 | H14: 0 | I14: 9 | J14: 1 | K14: 9 | L14: 4 | M14: 2 | N14: 0 | O14: 0 | P14: 0 | Q14: 0 | R14: 0 | S14: 6 | T14: 0 | U14: 6
A15: 02:15:00 | B15: 2 | C15: 1 | D15: 0 | E15: 0 | F15: 0 | G15: 0 | H15: 0 | I15: 3 | J15: 0 | K15: 3 | L15: 2 | M15: 0 | N15: 0 | O15: 1 | P15: 0 | Q15: 0 | R15: 0 | S15: 3 | T15: 1 | U15: 3
A16: 02:30:00 | B16: 5 | C16: 3 | D16: 0 | E16: 0 | F16: 0 | G16: 0 | H16: 0 | I16: 8 | J16: 0 | K16: 8 | L16: 3 | M16: 7 | N16: 0 | O16: 0 | P16: 0 | Q16: 0 | R16: 0 | S16: 10 | T16: 0 | U16: 10
A17: 02:45:00 | B17: 2 | C17: 2 | D17: 0 | E17: 0 | F17: 0 | G17: 0 | H17: 0 | I17: 4 | J17: 0 | K17: 4 | L17: 1 | M17: 3 | N17: 0 | O17: 0 | P17: 0 | Q17: 0 | R17: 0 | S17: 4 | T17: 0 | U17: 4
A18: 03:00:00 | B18: 1 | C18: 6 | D18: 0 | E18: 0 | F18: 0 | G18: 0 | H18: 0 | I18: 7 | J18: 0 | K18: 7 | L18: 3 | M18: 0 | N18: 0 | O18: 0 | P18: 0 | Q18: 0 | R18: 1 | S18: 3 | T18: 0 | U18: 4
A19: 03:15:00 | B19: 1 | C19: 2 | D19: 0 | E19: 0 | F19: 0 | G19: 0 | H19: 0 | I19: 3 | J19: 0 | K19: 3 | L19: 0 | M19: 3 | N19: 0 | O19: 0 | P19: 0 | Q19: 0 | R19: 0 | S19: 3 | T19: 0 | U19: 3
A20: 03:30:00 | B20: 1 | C20: 0 | D20: 0 | E20: 0 | F20: 0 | G20: 0 | H20: 0 | I20: 1 | J20: 0 | K20: 1 | L20: 3 | M20: 2 | N20: 0 | O20: 0 | P20: 0 | Q20: 0 | R20: 0 | S20: 5 | T20: 0 | U20: 5
A21: 03:45:00 | B21: 2 | C21: 1 | D21: 0 | E21: 0 | F21: 0 | G21: 0 | H21: 0 | I21: 3 | J21: 0 | K21: 3 | L21: 2 | M21: 2 | N21: 0 | O21: 0 | P21: 0 | Q21: 0 | R21: 0 | S21: 4 | T21: 0 | U21: 4
A22: 04:00:00 | B22: 2 | C22: 1 | D22: 0 | E22: 0 | F22: 0 | G22: 0 | H22: 0 | I22: 3 | J22: 0 | K22: 3 | L22: 5 | M22: 1 | N22: 0 | O22: 0 | P22: 0 | Q22: 0 | R22: 0 | S22: 6 | T22: 0 | U22: 6
A23: 04:15:00 | B23: 1 | C23: 2 | D23: 0 | E23: 0 | F23: 0 | G23: 0 | H23: 0 | I23: 3 | J23: 0 | K23: 3 | L23: 3 | M23: 5 | N23: 0 | O23: 0 | P23: 0 | Q23: 0 | R23: 0 | S23: 8 | T23: 0 | U23: 8
A24: 04:30:00 | B24: 2 | C24: 0 | D24: 0 | E24: 0 | F24: 0 | G24: 0 | H24: 0 | I24: 2 | J24: 0 | K24: 2 | L24: 4 | M24: 4 | N24: 0 | O24: 0 | P24: 0 | Q24: 0 | R24: 0 | S24: 8 | T24: 0 | U24: 8
A25: 04:45:00 | B25: 2 | C25: 1 | D25: 0 | E25: 0 | F25: 0 | G25: 0 | H25: 0 | I25: 3 | J25: 0 | K25: 3 | L25: 2 | M25: 3 | N25: 0 | O25: 0 | P25: 0 | Q25: 0 | R25: 0 | S25: 5 | T25: 0 | U25: 5
A26: 05:00:00 | B26: 4 | C26: 6 | D26: 0 | E26: 0 | F26: 0 | G26: 1 | H26: 0 | I26: 10 | J26: 0 | K26: 11 | L26: 3 | M26: 5 | N26: 0 | O26: 0 | P26: 0 | Q26: 0 | R26: 0 | S26: 8 | T26: 0 | U26: 8
A27: 05:15:00 | B27: 3 | C27: 2 | D27: 0 | E27: 0 | F27: 0 | G27: 0 | H27: 0 | I27: 5 | J27: 0 | K27: 5 | L27: 4 | M27: 3 | N27: 0 | O27: 0 | P27: 0 | Q27: 0 | R27: 0 | S27: 7 | T27: 0 | U27: 7
A28: 05:30:00 | B28: 3 | C28: 4 | D28: 0 | E28: 0 | F28: 0 | G28: 0 | H28: 0 | I28: 7 | J28: 0 | K28: 7 | L28: 1 | M28: 6 | N28: 0 | O28: 1 | P28: 0 | Q28: 3 | R28: 0 | S28: 8 | T28: 1 | U28: 11
A29: 05:45:00 | B29: 5 | C29: 5 | D29: 0 | E29: 0 | F29: 0 | G29: 0 | H29: 0 | I29: 10 | J29: 0 | K29: 10 | L29: 5 | M29: 4 | N29: 1 | O29: 1 | P29: 0 | Q29: 0 | R29: 0 | S29: 11 | T29: 2 | U29: 11
A30: 06:00:00 | B30: 5 | C30: 3 | D30: 0 | E30: 0 | F30: 0 | G30: 0 | H30: 0 | I30: 8 | J30: 0 | K30: 8 | L30: 6 | M30: 4 | N30: 0 | O30: 0 | P30: 0 | Q30: 0 | R30: 0 | S30: 10 | T30: 0 | U30: 10
A31: 06:15:00 | B31: 14 | C31: 5 | D31: 1 | E31: 0 | F31: 0 | G31: 0 | H31: 0 | I31: 20 | J31: 1 | K31: 20 | L31: 5 | M31: 5 | N31: 0 | O31: 0 | P31: 0 | Q31: 0 | R31: 0 | S31: 10 | T31: 0 | U31: 10
A32: 06:30:00 | B32: 5 | C32: 6 | D32: 0 | E32: 0 | F32: 0 | G32: 0 | H32: 0 | I32: 11 | J32: 0 | K32: 11 | L32: 10 | M32: 2 | N32: 2 | O32: 0 | P32: 0 | Q32: 0 | R32: 0 | S32: 14 | T32: 2 | U32: 14
A33: 06:45:00 | B33: 10 | C33: 5 | D33: 0 | E33: 0 | F33: 0 | G33: 0 | H33: 0 | I33: 15 | J33: 0 | K33: 15 | L33: 9 | M33: 3 | N33: 1 | O33: 1 | P33: 0 | Q33: 0 | R33: 0 | S33: 14 | T33: 2 | U33: 14
A34: 07:00:00 | B34: 10 | C34: 0 | D34: 0 | E34: 0 | F34: 0 | G34: 0 | H34: 0 | I34: 10 | J34: 0 | K34: 10 | L34: 12 | M34: 9 | N34: 0 | O34: 0 | P34: 0 | Q34: 0 | R34: 1 | S34: 21 | T34: 0 | U34: 22
A35: 07:15:00 | B35: 10 | C35: 10 | D35: 0 | E35: 2 | F35: 0 | G35: 0 | H35: 0 | I35: 22 | J35: 2 | K35: 22 | L35: 15 | M35: 11 | N35: 1 | O35: 1 | P35: 0 | Q35: 1 | R35: 0 | S35: 28 | T35: 2 | U35: 29
A36: 07:30:00 | B36: 21 | C36: 8 | D36: 2 | E36: 0 | F36: 0 | G36: 0 | H36: 0 | I36: 31 | J36: 2 | K36: 31 | L36: 14 | M36: 13 | N36: 1 | O36: 0 | P36: 0 | Q36: 1 | R36: 0 | S36: 28 | T36: 1 | U36: 29
A37: 07:45:00 | B37: 20 | C37: 4 | D37: 0 | E37: 1 | F37: 0 | G37: 0 | H37: 0 | I37: 25 | J37: 1 | K37: 25 | L37: 21 | M37: 16 | N37: 1 | O37: 0 | P37: 0 | Q37: 0 | R37: 1 | S37: 38 | T37: 1 | U37: 39
A38: 08:00:00 | B38: 25 | C38: 16 | D38: 1 | E38: 0 | F38: 1 | G38: 0 | H38: 1 | I38: 42 | J38: 1 | K38: 44 | L38: 17 | M38: 19 | N38: 3 | O38: 0 | P38: 0 | Q38: 0 | R38: 0 | S38: 39 | T38: 3 | U38: 39
A39: 08:15:00 | B39: 31 | C39: 13 | D39: 3 | E39: 0 | F39: 0 | G39: 0 | H39: 4 | I39: 47 | J39: 3 | K39: 51 | L39: 23 | M39: 17 | N39: 1 | O39: 2 | P39: 0 | Q39: 1 | R39: 0 | S39: 43 | T39: 3 | U39: 44
A40: 08:30:00 | B40: 33 | C40: 15 | D40: 0 | E40: 1 | F40: 0 | G40: 2 | H40: 4 | I40: 49 | J40: 1 | K40: 55 | L40: 36 | M40: 18 | N40: 1 | O40: 1 | P40: 0 | Q40: 1 | R40: 0 | S40: 56 | T40: 2 | U40: 57
A41: 08:45:00 | B41: 47 | C41: 26 | D41: 1 | E41: 0 | F41: 0 | G41: 2 | H41: 2 | I41: 74 | J41: 1 | K41: 78 | L41: 23 | M41: 24 | N41: 2 | O41: 0 | P41: 0 | Q41: 1 | R41: 2 | S41: 49 | T41: 2 | U41: 52
A42: 09:00:00 | B42: 53 | C42: 30 | D42: 0 | E42: 0 | F42: 0 | G42: 0 | H42: 3 | I42: 83 | J42: 0 | K42: 86 | L42: 44 | M42: 22 | N42: 0 | O42: 1 | P42: 0 | Q42: 2 | R42: 0 | S42: 67 | T42: 1 | U42: 69
A43: 09:15:00 | B43: 59 | C43: 43 | D43: 0 | E43: 2 | F43: 0 | G43: 8 | H43: 1 | I43: 104 | J43: 2 | K43: 113 | L43: 35 | M43: 24 | N43: 1 | O43: 1 | P43: 0 | Q43: 0 | R43: 0 | S43: 61 | T43: 2 | U43: 61
A44: 09:30:00 | B44: 80 | C44: 37 | D44: 2 | E44: 0 | F44: 0 | G44: 6 | H44: 0 | I44: 119 | J44: 2 | K44: 125 | L44: 62 | M44: 26 | N44: 0 | O44: 3 | P44: 0 | Q44: 6 | R44: 0 | S44: 91 | T44: 3 | U44: 97
A45: 09:45:00 | B45: 110 | C45: 44 | D45: 0 | E45: 1 | F45: 0 | G45: 5 | H45: 3 | I45: 155 | J45: 1 | K45: 163 | L45: 50 | M45: 29 | N45: 1 | O45: 1 | P45: 0 | Q45: 2 | R45: 0 | S45: 81 | T45: 2 | U45: 83
A46: 10:00:00 | B46: 101 | C46: 62 | D46: 0 | E46: 3 | F46: 0 | G46: 4 | H46: 3 | I46: 166 | J46: 3 | K46: 173 | L46: 68 | M46: 38 | N46: 1 | O46: 1 | P46: 0 | Q46: 1 | R46: 2 | S46: 108 | T46: 2 | U46: 111
A47: 10:15:00 | B47: 98 | C47: 50 | D47: 3 | E47: 0 | F47: 1 | G47: 5 | H47: 0 | I47: 151 | J47: 3 | K47: 157 | L47: 81 | M47: 45 | N47: 5 | O47: 1 | P47: 0 | Q47: 4 | R47: 1 | S47: 132 | T47: 6 | U47: 137
A48: 10:30:00 | B48: 66 | C48: 50 | D48: 3 | E48: 1 | F48: 0 | G48: 5 | H48: 2 | I48: 120 | J48: 4 | K48: 127 | L48: 62 | M48: 49 | N48: 1 | O48: 0 | P48: 0 | Q48: 1 | R48: 2 | S48: 112 | T48: 1 | U48: 115
A49: 10:45:00 | B49: 128 | C49: 44 | D49: 2 | E49: 1 | F49: 0 | G49: 2 | H49: 2 | I49: 175 | J49: 3 | K49: 179 | L49: 79 | M49: 38 | N49: 2 | O49: 0 | P49: 0 | Q49: 1 | R49: 1 | S49: 119 | T49: 2 | U49: 121
A50: 11:00:00 | B50: 100 | C50: 48 | D50: 1 | E50: 3 | F50: 0 | G50: 2 | H50: 0 | I50: 152 | J50: 4 | K50: 154 | L50: 86 | M50: 31 | N50: 0 | O50: 1 | P50: 0 | Q50: 6 | R50: 2 | S50: 118 | T50: 1 | U50: 126
A51: 11:15:00 | B51: 98 | C51: 36 | D51: 1 | E51: 7 | F51: 0 | G51: 12 | H51: 0 | I51: 142 | J51: 8 | K51: 154 | L51: 95 | M51: 55 | N51: 0 | O51: 0 | P51: 0 | Q51: 1 | R51: 0 | S51: 150 | T51: 0 | U51: 151
A52: 11:30:00 | B52: 96 | C52: 42 | D52: 0 | E52: 0 | F52: 0 | G52: 7 | H52: 0 | I52: 138 | J52: 0 | K52: 145 | L52: 90 | M52: 43 | N52: 0 | O52: 1 | P52: 0 | Q52: 2 | R52: 0 | S52: 134 | T52: 1 | U52: 136
A53: 11:45:00 | B53: 119 | C53: 44 | D53: 1 | E53: 2 | F53: 0 | G53: 9 | H53: 0 | I53: 166 | J53: 3 | K53: 175 | L53: 114 | M53: 54 | N53: 0 | O53: 1 | P53: 0 | Q53: 6 | R53: 0 | S53: 169 | T53: 1 | U53: 175
A54: 12:00:00 | B54: 95 | C54: 46 | D54: 1 | E54: 2 | F54: 0 | G54: 4 | H54: 0 | I54: 144 | J54: 3 | K54: 148 | L54: 85 | M54: 35 | N54: 1 | O54: 2 | P54: 0 | Q54: 4 | R54: 3 | S54: 123 | T54: 3 | U54: 130
A55: 12:15:00 | B55: 93 | C55: 37 | D55: 1 | E55: 0 | F55: 0 | G55: 7 | H55: 0 | I55: 131 | J55: 1 | K55: 138 | L55: 100 | M55: 50 | N55: 1 | O55: 0 | P55: 0 | Q55: 6 | R55: 2 | S55: 151 | T55: 1 | U55: 159
A56: 12:30:00 | B56: 99 | C56: 34 | D56: 0 | E56: 0 | F56: 0 | G56: 2 | H56: 2 | I56: 133 | J56: 0 | K56: 137 | L56: 97 | M56: 47 | N56: 1 | O56: 0 | P56: 0 | Q56: 4 | R56: 1 | S56: 145 | T56: 1 | U56: 150
A57: 12:45:00 | B57: 97 | C57: 47 | D57: 3 | E57: 1 | F57: 0 | G57: 3 | H57: 0 | I57: 148 | J57: 4 | K57: 151 | L57: 90 | M57: 53 | N57: 1 | O57: 1 | P57: 0 | Q57: 4 | R57: 1 | S57: 145 | T57: 2 | U57: 150
A58: 13:00:00 | B58: 85 | C58: 43 | D58: 1 | E58: 2 | F58: 0 | G58: 1 | H58: 0 | I58: 131 | J58: 3 | K58: 132 | L58: 79 | M58: 52 | N58: 1 | O58: 6 | P58: 0 | Q58: 9 | R58: 2 | S58: 138 | T58: 7 | U58: 149
A59: 13:15:00 | B59: 91 | C59: 37 | D59: 2 | E59: 2 | F59: 0 | G59: 0 | H59: 5 | I59: 132 | J59: 4 | K59: 137 | L59: 87 | M59: 43 | N59: 2 | O59: 2 | P59: 0 | Q59: 13 | R59: 1 | S59: 134 | T59: 4 | U59: 148
A60: 13:30:00 | B60: 101 | C60: 40 | D60: 0 | E60: 1 | F60: 0 | G60: 6 | H60: 1 | I60: 142 | J60: 1 | K60: 149 | L60: 92 | M60: 40 | N60: 1 | O60: 3 | P60: 0 | Q60: 6 | R60: 1 | S60: 136 | T60: 4 | U60: 143
A61: 13:45:00 | B61: 93 | C61: 46 | D61: 0 | E61: 0 | F61: 0 | G61: 3 | H61: 2 | I61: 139 | J61: 0 | K61: 144 | L61: 104 | M61: 43 | N61: 0 | O61: 2 | P61: 0 | Q61: 3 | R61: 0 | S61: 149 | T61: 2 | U61: 152
A62: 14:00:00 | B62: 71 | C62: 34 | D62: 2 | E62: 0 | F62: 1 | G62: 1 | H62: 0 | I62: 107 | J62: 2 | K62: 109 | L62: 105 | M62: 55 | N62: 0 | O62: 2 | P62: 0 | Q62: 11 | R62: 2 | S62: 162 | T62: 2 | U62: 175
A63: 14:15:00 | B63: 102 | C63: 37 | D63: 4 | E63: 0 | F63: 0 | G63: 4 | H63: 0 | I63: 143 | J63: 4 | K63: 147 | L63: 115 | M63: 44 | N63: 0 | O63: 4 | P63: 0 | Q63: 4 | R63: 1 | S63: 163 | T63: 4 | U63: 168
A64: 14:30:00 | B64: 101 | C64: 34 | D64: 1 | E64: 2 | F64: 0 | G64: 3 | H64: 1 | I64: 138 | J64: 3 | K64: 142 | L64: 77 | M64: 57 | N64: 1 | O64: 2 | P64: 0 | Q64: 8 | R64: 0 | S64: 137 | T64: 3 | U64: 145
A65: 14:45:00 | B65: 80 | C65: 33 | D65: 0 | E65: 1 | F65: 0 | G65: 3 | H65: 1 | I65: 114 | J65: 1 | K65: 118 | L65: 92 | M65: 37 | N65: 0 | O65: 1 | P65: 0 | Q65: 4 | R65: 0 | S65: 130 | T65: 1 | U65: 134
A66: 15:00:00 | B66: 66 | C66: 35 | D66: 1 | E66: 0 | F66: 0 | G66: 4 | H66: 1 | I66: 102 | J66: 1 | K66: 107 | L66: 64 | M66: 45 | N66: 0 | O66: 1 | P66: 0 | Q66: 1 | R66: 0 | S66: 110 | T66: 1 | U66: 111
A67: 15:15:00 | B67: 56 | C67: 31 | D67: 0 | E67: 1 | F67: 0 | G67: 2 | H67: 0 | I67: 88 | J67: 1 | K67: 90 | L67: 84 | M67: 43 | N67: 0 | O67: 2 | P67: 0 | Q67: 0 | R67: 0 | S67: 129 | T67: 2 | U67: 129
A68: 15:30:00 | B68: 73 | C68: 43 | D68: 2 | E68: 1 | F68: 0 | G68: 2 | H68: 1 | I68: 119 | J68: 3 | K68: 122 | L68: 84 | M68: 39 | N68: 1 | O68: 0 | P68: 0 | Q68: 4 | R68: 0 | S68: 124 | T68: 1 | U68: 128
A69: 15:45:00 | B69: 75 | C69: 37 | D69: 2 | E69: 2 | F69: 0 | G69: 3 | H69: 1 | I69: 116 | J69: 4 | K69: 120 | L69: 83 | M69: 59 | N69: 1 | O69: 0 | P69: 0 | Q69: 0 | R69: 0 | S69: 143 | T69: 1 | U69: 143
A70: 16:00:00 | B70: 45 | C70: 21 | D70: 0 | E70: 1 | F70: 0 | G70: 10 | H70: 0 | I70: 67 | J70: 1 | K70: 77 | L70: 79 | M70: 62 | N70: 1 | O70: 1 | P70: 0 | Q70: 2 | R70: 0 | S70: 143 | T70: 2 | U70: 145
A71: 16:15:00 | B71: 46 | C71: 35 | D71: 1 | E71: 1 | F71: 0 | G71: 3 | H71: 0 | I71: =SUM(B71:E71) -> 83 | J71: =SUM(D71:E71) -> 2 | K71: =SUM(B71:H71) -> 86 | L71: 71 | M71: 44 | N71: 0 | O71: 0 | P71: 0 | Q71: 2 | R71: 0 | S71: =SUM(L71:O71) -> 115 | T71: =SUM(N71:O71) -> 0 | U71: =SUM(L71:R71) -> 117
A72: 16:30:00 | B72: 67 | C72: 35 | D72: 0 | E72: 0 | F72: 0 | G72: 0 | H72: 1 | I72: 102 | J72: 0 | K72: 103 | L72: 70 | M72: 43 | N72: 2 | O72: 0 | P72: 0 | Q72: 6 | R72: 0 | S72: 115 | T72: 2 | U72: 121
A73: 16:45:00 | B73: 50 | C73: 20 | D73: 1 | E73: 1 | F73: 0 | G73: 2 | H73: 0 | I73: 72 | J73: 2 | K73: 74 | L73: 71 | M73: 31 | N73: 0 | O73: 1 | P73: 0 | Q73: 0 | R73: 0 | S73: 103 | T73: 1 | U73: 103
A74: 17:00:00 | B74: 45 | C74: 35 | D74: 3 | E74: 0 | F74: 0 | G74: 1 | H74: 0 | I74: 83 | J74: 3 | K74: 84 | L74: 54 | M74: 30 | N74: 1 | O74: 0 | P74: 0 | Q74: 0 | R74: 0 | S74: 85 | T74: 1 | U74: 85
A75: 17:15:00 | B75: 38 | C75: 24 | D75: 0 | E75: 0 | F75: 0 | G75: 1 | H75: 0 | I75: 62 | J75: 0 | K75: 63 | L75: 74 | M75: 28 | N75: 1 | O75: 0 | P75: 0 | Q75: 2 | R75: 0 | S75: 103 | T75: 1 | U75: 105
A76: 17:30:00 | B76: 39 | C76: 28 | D76: 0 | E76: 0 | F76: 0 | G76: 0 | H76: 0 | I76: 67 | J76: 0 | K76: 67 | L76: 67 | M76: 34 | N76: 0 | O76: 0 | P76: 0 | Q76: 1 | R76: 1 | S76: 101 | T76: 0 | U76: 103
A77: 17:45:00 | B77: 36 | C77: 28 | D77: 0 | E77: 0 | F77: 0 | G77: 1 | H77: 0 | I77: 64 | J77: 0 | K77: 65 | L77: 56 | M77: 31 | N77: 2 | O77: 0 | P77: 0 | Q77: 0 | R77: 0 | S77: 89 | T77: 2 | U77: 89
A78: 18:00:00 | B78: 44 | C78: 21 | D78: 1 | E78: 0 | F78: 0 | G78: 0 | H78: 0 | I78: 66 | J78: 1 | K78: 66 | L78: 60 | M78: 25 | N78: 0 | O78: 0 | P78: 0 | Q78: 1 | R78: 1 | S78: 85 | T78: 0 | U78: 87
A79: 18:15:00 | B79: 46 | C79: 25 | D79: 1 | E79: 2 | F79: 0 | G79: 1 | H79: 0 | I79: 74 | J79: 3 | K79: 75 | L79: 43 | M79: 17 | N79: 1 | O79: 0 | P79: 0 | Q79: 2 | R79: 1 | S79: 61 | T79: 1 | U79: 64
A80: 18:30:00 | B80: 29 | C80: 25 | D80: 0 | E80: 0 | F80: 0 | G80: 0 | H80: 0 | I80: 54 | J80: 0 | K80: 54 | L80: 34 | M80: 24 | N80: 0 | O80: 0 | P80: 0 | Q80: 0 | R80: 0 | S80: 58 | T80: 0 | U80: 58
A81: 18:45:00 | B81: 51 | C81: 8 | D81: 0 | E81: 0 | F81: 0 | G81: 0 | H81: 0 | I81: 59 | J81: 0 | K81: 59 | L81: 45 | M81: 27 | N81: 0 | O81: 1 | P81: 0 | Q81: 1 | R81: 0 | S81: 73 | T81: 1 | U81: 74
A82: 19:00:00 | B82: 39 | C82: 26 | D82: 0 | E82: 0 | F82: 0 | G82: 0 | H82: 0 | I82: 65 | J82: 0 | K82: 65 | L82: 31 | M82: 17 | N82: 0 | O82: 1 | P82: 0 | Q82: 1 | R82: 0 | S82: 49 | T82: 1 | U82: 50
A83: 19:15:00 | B83: 38 | C83: 13 | D83: 0 | E83: 1 | F83: 1 | G83: 0 | H83: 0 | I83: 52 | J83: 1 | K83: 53 | L83: 37 | M83: 21 | N83: 0 | O83: 0 | P83: 0 | Q83: 0 | R83: 0 | S83: 58 | T83: 0 | U83: 58
A84: 19:30:00 | B84: 33 | C84: 35 | D84: 0 | E84: 0 | F84: 0 | G84: 0 | H84: 0 | I84: 68 | J84: 0 | K84: 68 | L84: 26 | M84: 32 | N84: 1 | O84: 0 | P84: 0 | Q84: 0 | R84: 0 | S84: 59 | T84: 1 | U84: 59
A85: 19:45:00 | B85: 19 | C85: 16 | D85: 1 | E85: 0 | F85: 0 | G85: 0 | H85: 0 | I85: 36 | J85: 1 | K85: 36 | L85: 30 | M85: 15 | N85: 1 | O85: 0 | P85: 0 | Q85: 0 | R85: 0 | S85: 46 | T85: 1 | U85: 46
A86: 20:00:00 | B86: 36 | C86: 14 | D86: 0 | E86: 0 | F86: 0 | G86: 1 | H86: 0 | I86: 50 | J86: 0 | K86: 51 | L86: 30 | M86: 14 | N86: 0 | O86: 0 | P86: 0 | Q86: 0 | R86: 0 | S86: 44 | T86: 0 | U86: 44
A87: 20:15:00 | B87: 29 | C87: 20 | D87: 0 | E87: 1 | F87: 0 | G87: 0 | H87: 1 | I87: 50 | J87: 1 | K87: 51 | L87: 22 | M87: 20 | N87: 0 | O87: 0 | P87: 0 | Q87: 0 | R87: 0 | S87: 42 | T87: 0 | U87: 42
A88: 20:30:00 | B88: 19 | C88: 16 | D88: 0 | E88: 0 | F88: 0 | G88: 0 | H88: 0 | I88: 35 | J88: 0 | K88: 35 | L88: 24 | M88: 12 | N88: 1 | O88: 0 | P88: 0 | Q88: 0 | R88: 0 | S88: 37 | T88: 1 | U88: 37
A89: 20:45:00 | B89: 22 | C89: 12 | D89: 0 | E89: 0 | F89: 0 | G89: 0 | H89: 0 | I89: 34 | J89: 0 | K89: 34 | L89: 23 | M89: 6 | N89: 0 | O89: 0 | P89: 0 | Q89: 0 | R89: 0 | S89: 29 | T89: 0 | U89: 29
A90: 21:00:00 | B90: 23 | C90: 10 | D90: 0 | E90: 1 | F90: 0 | G90: 0 | H90: 0 | I90: 34 | J90: 1 | K90: 34 | L90: 24 | M90: 12 | N90: 1 | O90: 0 | P90: 1 | Q90: 0 | R90: 0 | S90: 37 | T90: 1 | U90: 38
A91: 21:15:00 | B91: 26 | C91: 12 | D91: 2 | E91: 0 | F91: 0 | G91: 0 | H91: 0 | I91: 40 | J91: 2 | K91: 40 | L91: 20 | M91: 8 | N91: 0 | O91: 0 | P91: 0 | Q91: 0 | R91: 0 | S91: 28 | T91: 0 | U91: 28
A92: 21:30:00 | B92: 18 | C92: 7 | D92: 2 | E92: 0 | F92: 0 | G92: 0 | H92: 0 | I92: 27 | J92: 2 | K92: 27 | L92: 16 | M92: 5 | N92: 1 | O92: 0 | P92: 0 | Q92: 0 | R92: 0 | S92: 22 | T92: 1 | U92: 22
A93: 21:45:00 | B93: 10 | C93: 4 | D93: 0 | E93: 0 | F93: 0 | G93: 0 | H93: 0 | I93: 14 | J93: 0 | K93: 14 | L93: 17 | M93: 7 | N93: 0 | O93: 0 | P93: 0 | Q93: 0 | R93: 0 | S93: 24 | T93: 0 | U93: 24
A94: 22:00:00 | B94: 16 | C94: 7 | D94: 0 | E94: 0 | F94: 0 | G94: 0 | H94: 0 | I94: 23 | J94: 0 | K94: 23 | L94: 11 | M94: 6 | N94: 0 | O94: 0 | P94: 0 | Q94: 0 | R94: 0 | S94: 17 | T94: 0 | U94: 17
A95: 22:15:00 | B95: 11 | C95: 12 | D95: 1 | E95: 0 | F95: 0 | G95: 0 | H95: 0 | I95: 24 | J95: 1 | K95: 24 | L95: 8 | M95: 7 | N95: 0 | O95: 0 | P95: 0 | Q95: 0 | R95: 0 | S95: 15 | T95: 0 | U95: 15
A96: 22:30:00 | B96: 9 | C96: 8 | D96: 0 | E96: 0 | F96: 0 | G96: 0 | H96: 0 | I96: 17 | J96: 0 | K96: 17 | L96: 8 | M96: 3 | N96: 0 | O96: 1 | P96: 0 | Q96: 0 | R96: 1 | S96: 12 | T96: 1 | U96: 13
A97: 22:45:00 | B97: 4 | C97: 4 | D97: 0 | E97: 0 | F97: 0 | G97: 0 | H97: 0 | I97: 8 | J97: 0 | K97: 8 | L97: 2 | M97: 7 | N97: 0 | O97: 0 | P97: 0 | Q97: 0 | R97: 1 | S97: 9 | T97: 0 | U97: 10
A98: 23:00:00 | B98: 4 | C98: 3 | D98: 0 | E98: 0 | F98: 0 | G98: 0 | H98: 0 | I98: 7 | J98: 0 | K98: 7 | L98: 6 | M98: 3 | N98: 0 | O98: 0 | P98: 0 | Q98: 0 | R98: 0 | S98: 9 | T98: 0 | U98: 9
A99: 23:15:00 | B99: 7 | C99: 8 | D99: 0 | E99: 0 | F99: 0 | G99: 0 | H99: 0 | I99: 15 | J99: 0 | K99: 15 | L99: 9 | M99: 1 | N99: 1 | O99: 0 | P99: 0 | Q99: 0 | R99: 0 | S99: 11 | T99: 1 | U99: 11
A100: 23:30:00 | B100: 2 | C100: 2 | D100: 0 | E100: 0 | F100: 0 | G100: 0 | H100: 0 | I100: 4 | J100: 0 | K100: 4 | L100: 5 | M100: 1 | N100: 0 | O100: 0 | P100: 0 | Q100: 0 | R100: 1 | S100: 6 | T100: 0 | U100: 7
A101: 23:45:00 | B101: 8 | C101: 1 | D101: 0 | E101: 0 | F101: 0 | G101: 0 | H101: 0 | I101: 9 | J101: 0 | K101: 9 | L101: 3 | M101: 1 | N101: 0 | O101: 0 | P101: 0 | Q101: 0 | R101: 0 | S101: 4 | T101: 0 | U101: 4
A102: TOTAL | B102: =SUM(B6:B101) -> 3730 | C102: =SUM(C6:C101) -> 1869 | D102: 56 | E102: 50 | F102: 4 | G102: 138 | H102: 42 | I102: 5705 | J102: 106 | K102: 5889 | L102: =SUM(L6:L101) -> 3657 | M102: =SUM(M6:M101) -> 2024 | N102: 50 | O102: 53 | P102: 1 | Q102: 139 | R102: 33 | S102: 5784 | T102: 103 | U102: 5957

Sheet 11 04 2016
A1: * Fill the table with data
A2: DO NOT CHANGE THE STRUCTURE OF THE SPREADSHEET (i.e. ADD OR DELETE ROWS/COLUMNS, ETC.)
B4: ='Site Plan'!$A$19&" - "&'Site Plan'!$C$19 -> Direction 1 - Eastbound | I4: TOTAL | L4: ='Site Plan'!$A$20&" - "&'Site Plan'!$C$20 -> Direction 2 - Westbound | S4: TOTAL
A5: TIME | B5: CAR | C5: LGV | D5: OGV1 | E5: OGV2 | F5: PSV | G5: MCL | H5: PCL | I5: CAR + LGV + HGV | J5: HGV | K5: ALL modes | L5: CAR | M5: LGV | N5: OGV1 | O5: OGV2 | P5: PSV | Q5: MCL | R5: PCL | S5: CAR + LGV + HGV | T5: HGV | U5: ALL modes
A6: 00:00:00 | B6: 2 | C6: 3 | D6: 0 | E6: 0 | F6: 0 | G6: 0 | H6: 0 | I6: =SUM(B6:E6) -> 5 | J6: =SUM(D6:E6) -> 0 | K6: =SUM(B6:H6) -> 5 | L6: 2 | M6: 3 | N6: 0 | O6: 0 | P6: 0 | Q6: 0 | R6: 0 | S6: =SUM(L6:O6) -> 5 | T6: =SUM(N6:O6) -> 0 | U6: =SUM(L6:R6) -> 5
A7: 00:15:00 | B7: 3 | C7: 2 | D7: 0 | E7: 0 | F7: 0 | G7: 0 | H7: 0 | I7: =SUM(B7:E7) -> 5 | J7: =SUM(D7:E7) -> 0 | K7: =SUM(B7:H7) -> 5 | L7: 1 | M7: 2 | N7: 0 | O7: 0 | P7: 0 | Q7: 0 | R7: 0 | S7: =SUM(L7:O7) -> 3 | T7: =SUM(N7:O7) -> 0 | U7: =SUM(L7:R7) -> 3
A8: 00:30:00 | B8: 1 | C8: 3 | D8: 0 | E8: 0 | F8: 0 | G8: 0 | H8: 0 | I8: 4 | J8: 0 | K8: 4 | L8: 1 | M8: 0 | N8: 1 | O8: 0 | P8: 0 | Q8: 0 | R8: 0 | S8: 2 | T8: 1 | U8: 2
A9: 00:45:00 | B9: 3 | C9: 0 | D9: 0 | E9: 0 | F9: 0 | G9: 0 | H9: 0 | I9: 3 | J9: 0 | K9: 3 | L9: 2 | M9: 1 | N9: 0 | O9: 0 | P9: 0 | Q9: 0 | R9: 0 | S9: 3 | T9: 0 | U9: 3
A10: 01:00:00 | B10: 1 | C10: 3 | D10: 1 | E10: 0 | F10: 0 | G10: 0 | H10: 0 | I10: 5 | J10: 1 | K10: 5 | L10: 0 | M10: 1 | N10: 1 | O10: 0 | P10: 0 | Q10: 0 | R10: 0 | S10: 2 | T10: 1 | U10: 2
A11: 01:15:00 | B11: 2 | C11: 0 | D11: 1 | E11: 1 | F11: 0 | G11: 0 | H11: 0 | I11: 4 | J11: 2 | K11: 4 | L11: 1 | M11: 0 | N11: 0 | O11: 0 | P11: 0 | Q11: 0 | R11: 0 | S11: 1 | T11: 0 | U11: 1
A12: 01:30:00 | B12: 1 | C12: 0 | D12: 0 | E12: 0 | F12: 0 | G12: 0 | H12: 0 | I12: 1 | J12: 0 | K12: 1 | L12: 1 | M12: 0 | N12: 0 | O12: 0 | P12: 0 | Q12: 0 | R12: 0 | S12: 1 | T12: 0 | U12: 1
A13: 01:45:00 | B13: 0 | C13: 0 | D13: 0 | E13: 0 | F13: 0 | G13: 0 | H13: 0 | I13: 0 | J13: 0 | K13: 0 | L13: 1 | M13: 1 | N13: 0 | O13: 0 | P13: 0 | Q13: 0 | R13: 0 | S13: 2 | T13: 0 | U13: 2
A14: 02:00:00 | B14: 2 | C14: 1 | D14: 0 | E14: 1 | F14: 0 | G14: 0 | H14: 0 | I14: 4 | J14: 1 | K14: 4 | L14: 0 | M14: 2 | N14: 1 | O14: 0 | P14: 0 | Q14: 0 | R14: 0 | S14: 3 | T14: 1 | U14: 3
A15: 02:15:00 | B15: 1 | C15: 1 | D15: 0 | E15: 1 | F15: 0 | G15: 0 | H15: 0 | I15: 3 | J15: 1 | K15: 3 | L15: 1 | M15: 1 | N15: 0 | O15: 1 | P15: 0 | Q15: 0 | R15: 0 | S15: 3 | T15: 1 | U15: 3
A16: 02:30:00 | B16: 2 | C16: 0 | D16: 0 | E16: 0 | F16: 0 | G16: 0 | H16: 0 | I16: 2 | J16: 0 | K16: 2 | L16: 0 | M16: 0 | N16: 0 | O16: 0 | P16: 0 | Q16: 0 | R16: 0 | S16: 0 | T16: 0 | U16: 0
A17: 02:45:00 | B17: 0 | C17: 2 | D17: 0 | E17: 0 | F17: 0 | G17: 0 | H17: 0 | I17: 2 | J17: 0 | K17: 2 | L17: 1 | M17: 1 | N17: 0 | O17: 1 | P17: 0 | Q17: 0 | R17: 0 | S17: 3 | T17: 1 | U17: 3
A18: 03:00:00 | B18: 2 | C18: 1 | D18: 1 | E18: 1 | F18: 0 | G18: 0 | H18: 0 | I18: 5 | J18: 2 | K18: 5 | L18: 1 | M18: 0 | N18: 0 | O18: 0 | P18: 0 | Q18: 0 | R18: 0 | S18: 1 | T18: 0 | U18: 1
A19: 03:15:00 | B19: 1 | C19: 1 | D19: 0 | E19: 0 | F19: 0 | G19: 0 | H19: 0 | I19: 2 | J19: 0 | K19: 2 | L19: 2 | M19: 1 | N19: 0 | O19: 0 | P19: 0 | Q19: 0 | R19: 0 | S19: 3 | T19: 0 | U19: 3
A20: 03:30:00 | B20: 1 | C20: 3 | D20: 0 | E20: 0 | F20: 0 | G20: 0 | H20: 0 | I20: 4 | J20: 0 | K20: 4 | L20: 6 | M20: 1 | N20: 0 | O20: 0 | P20: 0 | Q20: 0 | R20: 0 | S20: 7 | T20: 0 | U20: 7
A21: 03:45:00 | B21: 0 | C21: 1 | D21: 1 | E21: 0 | F21: 0 | G21: 0 | H21: 0 | I21: 2 | J21: 1 | K21: 2 | L21: 4 | M21: 3 | N21: 0 | O21: 0 | P21: 0 | Q21: 0 | R21: 0 | S21: 7 | T21: 0 | U21: 7
A22: 04:00:00 | B22: 0 | C22: 1 | D22: 1 | E22: 0 | F22: 0 | G22: 0 | H22: 0 | I22: 2 | J22: 1 | K22: 2 | L22: 5 | M22: 1 | N22: 1 | O22: 0 | P22: 0 | Q22: 0 | R22: 0 | S22: 7 | T22: 1 | U22: 7
A23: 04:15:00 | B23: 2 | C23: 2 | D23: 0 | E23: 0 | F23: 0 | G23: 0 | H23: 0 | I23: 4 | J23: 0 | K23: 4 | L23: 8 | M23: 7 | N23: 3 | O23: 1 | P23: 0 | Q23: 0 | R23: 0 | S23: 19 | T23: 4 | U23: 19
A24: 04:30:00 | B24: 1 | C24: 3 | D24: 1 | E24: 0 | F24: 0 | G24: 0 | H24: 0 | I24: 5 | J24: 1 | K24: 5 | L24: 7 | M24: 9 | N24: 2 | O24: 1 | P24: 0 | Q24: 0 | R24: 0 | S24: 19 | T24: 3 | U24: 19
A25: 04:45:00 | B25: 8 | C25: 3 | D25: 0 | E25: 0 | F25: 0 | G25: 0 | H25: 0 | I25: 11 | J25: 0 | K25: 11 | L25: 6 | M25: 9 | N25: 0 | O25: 0 | P25: 0 | Q25: 0 | R25: 0 | S25: 15 | T25: 0 | U25: 15
A26: 05:00:00 | B26: 6 | C26: 6 | D26: 1 | E26: 0 | F26: 0 | G26: 0 | H26: 1 | I26: 13 | J26: 1 | K26: 14 | L26: 6 | M26: 12 | N26: 2 | O26: 1 | P26: 0 | Q26: 0 | R26: 0 | S26: 21 | T26: 3 | U26: 21
A27: 05:15:00 | B27: 5 | C27: 10 | D27: 1 | E27: 0 | F27: 0 | G27: 0 | H27: 0 | I27: 16 | J27: 1 | K27: 16 | L27: 20 | M27: 19 | N27: 3 | O27: 1 | P27: 0 | Q27: 0 | R27: 0 | S27: 43 | T27: 4 | U27: 43
A28: 05:30:00 | B28: 8 | C28: 8 | D28: 1 | E28: 0 | F28: 0 | G28: 1 | H28: 0 | I28: 17 | J28: 1 | K28: 18 | L28: 18 | M28: 18 | N28: 2 | O28: 1 | P28: 0 | Q28: 2 | R28: 0 | S28: 39 | T28: 3 | U28: 41
A29: 05:45:00 | B29: 13 | C29: 7 | D29: 2 | E29: 1 | F29: 0 | G29: 0 | H29: 0 | I29: 23 | J29: 3 | K29: 23 | L29: 20 | M29: 27 | N29: 2 | O29: 0 | P29: 0 | Q29: 3 | R29: 0 | S29: 49 | T29: 2 | U29: 52
A30: 06:00:00 | B30: 16 | C30: 10 | D30: 1 | E30: 2 | F30: 0 | G30: 0 | H30: 0 | I30: 29 | J30: 3 | K30: 29 | L30: 22 | M30: 42 | N30: 6 | O30: 3 | P30: 0 | Q30: 0 | R30: 0 | S30: 73 | T30: 9 | U30: 73
A31: 06:15:00 | B31: 28 | C31: 24 | D31: 1 | E31: 0 | F31: 0 | G31: 0 | H31: 0 | I31: 53 | J31: 1 | K31: 53 | L31: 27 | M31: 38 | N31: 4 | O31: 0 | P31: 0 | Q31: 1 | R31: 0 | S31: 69 | T31: 4 | U31: 70
A32: 06:30:00 | B32: 33 | C32: 28 | D32: 1 | E32: 0 | F32: 0 | G32: 0 | H32: 0 | I32: 62 | J32: 1 | K32: 62 | L32: 48 | M32: 25 | N32: 2 | O32: 1 | P32: 2 | Q32: 3 | R32: 0 | S32: 76 | T32: 3 | U32: 81
A33: 06:45:00 | B33: 43 | C33: 29 | D33: 0 | E33: 2 | F33: 0 | G33: 1 | H33: 0 | I33: 74 | J33: 2 | K33: 75 | L33: 55 | M33: 51 | N33: 3 | O33: 1 | P33: 1 | Q33: 2 | R33: 1 | S33: 110 | T33: 4 | U33: 114
A34: 07:00:00 | B34: 76 | C34: 35 | D34: 4 | E34: 1 | F34: 2 | G34: 1 | H34: 0 | I34: 116 | J34: 5 | K34: 119 | L34: 83 | M34: 39 | N34: 4 | O34: 4 | P34: 0 | Q34: 3 | R34: 0 | S34: 130 | T34: 8 | U34: 133
A35: 07:15:00 | B35: 67 | C35: 48 | D35: 2 | E35: 3 | F35: 0 | G35: 0 | H35: 0 | I35: 120 | J35: 5 | K35: 120 | L35: 77 | M35: 65 | N35: 7 | O35: 2 | P35: 0 | Q35: 0 | R35: 0 | S35: 151 | T35: 9 | U35: 151
A36: 07:30:00 | B36: 125 | C36: 49 | D36: 1 | E36: 0 | F36: 0 | G36: 0 | H36: 0 | I36: 175 | J36: 1 | K36: 175 | L36: 65 | M36: 59 | N36: 4 | O36: 2 | P36: 0 | Q36: 1 | R36: 1 | S36: 130 | T36: 6 | U36: 132
A37: 07:45:00 | B37: 95 | C37: 46 | D37: 6 | E37: 1 | F37: 0 | G37: 0 | H37: 0 | I37: 148 | J37: 7 | K37: 148 | L37: 104 | M37: 54 | N37: 3 | O37: 4 | P37: 2 | Q37: 0 | R37: 0 | S37: 165 | T37: 7 | U37: 167
A38: 08:00:00 | B38: 95 | C38: 36 | D38: 5 | E38: 3 | F38: 0 | G38: 2 | H38: 0 | I38: 139 | J38: 8 | K38: 141 | L38: 96 | M38: 42 | N38: 3 | O38: 1 | P38: 0 | Q38: 0 | R38: 1 | S38: 142 | T38: 4 | U38: 143
A39: 08:15:00 | B39: 101 | C39: 47 | D39: 4 | E39: 2 | F39: 3 | G39: 0 | H39: 0 | I39: 154 | J39: 6 | K39: 157 | L39: 83 | M39: 53 | N39: 6 | O39: 3 | P39: 1 | Q39: 0 | R39: 0 | S39: 145 | T39: 9 | U39: 146
A40: 08:30:00 | B40: 95 | C40: 32 | D40: 8 | E40: 2 | F40: 0 | G40: 1 | H40: 0 | I40: 137 | J40: 10 | K40: 138 | L40: 68 | M40: 55 | N40: 4 | O40: 1 | P40: 0 | Q40: 1 | R40: 1 | S40: 128 | T40: 5 | U40: 130
A41: 08:45:00 | B41: 71 | C41: 53 | D41: 7 | E41: 1 | F41: 1 | G41: 1 | H41: 0 | I41: 132 | J41: 8 | K41: 134 | L41: 95 | M41: 42 | N41: 5 | O41: 2 | P41: 0 | Q41: 2 | R41: 1 | S41: 144 | T41: 7 | U41: 147
A42: 09:00:00 | B42: 83 | C42: 40 | D42: 7 | E42: 0 | F42: 0 | G42: 0 | H42: 0 | I42: 130 | J42: 7 | K42: 130 | L42: 64 | M42: 37 | N42: 8 | O42: 1 | P42: 1 | Q42: 0 | R42: 0 | S42: 110 | T42: 9 | U42: 111
A43: 09:15:00 | B43: 93 | C43: 40 | D43: 10 | E43: 0 | F43: 0 | G43: 0 | H43: 0 | I43: 143 | J43: 10 | K43: 143 | L43: 77 | M43: 38 | N43: 2 | O43: 0 | P43: 1 | Q43: 0 | R43: 0 | S43: 117 | T43: 2 | U43: 118
A44: 09:30:00 | B44: 84 | C44: 37 | D44: 3 | E44: 3 | F44: 1 | G44: 0 | H44: 0 | I44: 127 | J44: 6 | K44: 128 | L44: 63 | M44: 36 | N44: 7 | O44: 4 | P44: 0 | Q44: 0 | R44: 0 | S44: 110 | T44: 11 | U44: 110
A45: 09:45:00 | B45: 79 | C45: 36 | D45: 8 | E45: 1 | F45: 0 | G45: 0 | H45: 0 | I45: 124 | J45: 9 | K45: 124 | L45: 90 | M45: 38 | N45: 4 | O45: 0 | P45: 0 | Q45: 0 | R45: 0 | S45: 132 | T45: 4 | U45: 132
A46: 10:00:00 | B46: 79 | C46: 51 | D46: 1 | E46: 4 | F46: 0 | G46: 0 | H46: 0 | I46: 135 | J46: 5 | K46: 135 | L46: 63 | M46: 39 | N46: 3 | O46: 1 | P46: 1 | Q46: 1 | R46: 0 | S46: 106 | T46: 4 | U46: 108
A47: 10:15:00 | B47: 70 | C47: 33 | D47: 10 | E47: 0 | F47: 0 | G47: 1 | H47: 0 | I47: 113 | J47: 10 | K47: 114 | L47: 72 | M47: 36 | N47: 10 | O47: 1 | P47: 0 | Q47: 0 | R47: 0 | S47: 119 | T47: 11 | U47: 119
A48: 10:30:00 | B48: 72 | C48: 50 | D48: 5 | E48: 2 | F48: 0 | G48: 1 | H48: 1 | I48: 129 | J48: 7 | K48: 131 | L48: 68 | M48: 34 | N48: 2 | O48: 2 | P48: 1 | Q48: 3 | R48: 0 | S48: 106 | T48: 4 | U48: 110
A49: 10:45:00 | B49: 69 | C49: 47 | D49: 9 | E49: 0 | F49: 0 | G49: 1 | H49: 0 | I49: 125 | J49: 9 | K49: 126 | L49: 77 | M49: 38 | N49: 4 | O49: 1 | P49: 0 | Q49: 1 | R49: 0 | S49: 120 | T49: 5 | U49: 121
A50: 11:00:00 | B50: 65 | C50: 42 | D50: 7 | E50: 2 | F50: 1 | G50: 0 | H50: 1 | I50: 116 | J50: 9 | K50: 118 | L50: 61 | M50: 37 | N50: 3 | O50: 2 | P50: 1 | Q50: 1 | R50: 0 | S50: 103 | T50: 5 | U50: 105
A51: 11:15:00 | B51: 76 | C51: 39 | D51: 7 | E51: 2 | F51: 0 | G51: 0 | H51: 0 | I51: 124 | J51: 9 | K51: 124 | L51: 96 | M51: 47 | N51: 6 | O51: 5 | P51: 0 | Q51: 1 | R51: 0 | S51: 154 | T51: 11 | U51: 155
A52: 11:30:00 | B52: 78 | C52: 41 | D52: 3 | E52: 3 | F52: 1 | G52: 0 | H52: 0 | I52: 125 | J52: 6 | K52: 126 | L52: 88 | M52: 49 | N52: 7 | O52: 2 | P52: 1 | Q52: 1 | R52: 0 | S52: 146 | T52: 9 | U52: 148
A53: 11:45:00 | B53: 62 | C53: 35 | D53: 10 | E53: 2 | F53: 0 | G53: 0 | H53: 2 | I53: 109 | J53: 12 | K53: 111 | L53: 92 | M53: 37 | N53: 9 | O53: 2 | P53: 0 | Q53: 0 | R53: 1 | S53: 140 | T53: 11 | U53: 141
A54: 12:00:00 | B54: 86 | C54: 43 | D54: 5 | E54: 2 | F54: 0 | G54: 0 | H54: 2 | I54: 136 | J54: 7 | K54: 138 | L54: 71 | M54: 48 | N54: 1 | O54: 2 | P54: 0 | Q54: 0 | R54: 0 | S54: 122 | T54: 3 | U54: 122
A55: 12:15:00 | B55: 80 | C55: 47 | D55: 11 | E55: 1 | F55: 1 | G55: 1 | H55: 0 | I55: 139 | J55: 12 | K55: 141 | L55: 72 | M55: 42 | N55: 4 | O55: 0 | P55: 0 | Q55: 0 | R55: 0 | S55: 118 | T55: 4 | U55: 118
A56: 12:30:00 | B56: 83 | C56: 33 | D56: 9 | E56: 2 | F56: 1 | G56: 0 | H56: 0 | I56: 127 | J56: 11 | K56: 128 | L56: 71 | M56: 41 | N56: 2 | O56: 3 | P56: 0 | Q56: 2 | R56: 0 | S56: 117 | T56: 5 | U56: 119
A57: 12:45:00 | B57: 83 | C57: 38 | D57: 6 | E57: 2 | F57: 2 | G57: 6 | H57: 0 | I57: 129 | J57: 8 | K57: 137 | L57: 78 | M57: 46 | N57: 1 | O57: 2 | P57: 1 | Q57: 1 | R57: 0 | S57: 127 | T57: 3 | U57: 129
A58: 13:00:00 | B58: 76 | C58: 43 | D58: 8 | E58: 1 | F58: 1 | G58: 0 | H58: 1 | I58: 128 | J58: 9 | K58: 130 | L58: 78 | M58: 39 | N58: 7 | O58: 0 | P58: 1 | Q58: 1 | R58: 0 | S58: 124 | T58: 7 | U58: 126
A59: 13:15:00 | B59: 78 | C59: 42 | D59: 2 | E59: 4 | F59: 3 | G59: 0 | H59: 1 | I59: 126 | J59: 6 | K59: 130 | L59: 73 | M59: 46 | N59: 4 | O59: 0 | P59: 0 | Q59: 2 | R59: 0 | S59: 123 | T59: 4 | U59: 125
A60: 13:30:00 | B60: 82 | C60: 54 | D60: 3 | E60: 2 | F60: 1 | G60: 1 | H60: 1 | I60: 141 | J60: 5 | K60: 144 | L60: 92 | M60: 37 | N60: 6 | O60: 3 | P60: 1 | Q60: 0 | R60: 1 | S60: 138 | T60: 9 | U60: 140
A61: 13:45:00 | B61: 82 | C61: 48 | D61: 6 | E61: 2 | F61: 1 | G61: 1 | H61: 1 | I61: 138 | J61: 8 | K61: 141 | L61: 67 | M61: 50 | N61: 8 | O61: 1 | P61: 0 | Q61: 1 | R61: 0 | S61: 126 | T61: 9 | U61: 127
A62: 14:00:00 | B62: 97 | C62: 41 | D62: 4 | E62: 1 | F62: 1 | G62: 0 | H62: 0 | I62: 143 | J62: 5 | K62: 144 | L62: 79 | M62: 47 | N62: 4 | O62: 2 | P62: 0 | Q62: 1 | R62: 0 | S62: 132 | T62: 6 | U62: 133
A63: 14:15:00 | B63: 100 | C63: 35 | D63: 10 | E63: 2 | F63: 0 | G63: 2 | H63: 0 | I63: 147 | J63: 12 | K63: 149 | L63: 78 | M63: 54 | N63: 4 | O63: 0 | P63: 1 | Q63: 2 | R63: 0 | S63: 136 | T63: 4 | U63: 139
A64: 14:30:00 | B64: 81 | C64: 46 | D64: 9 | E64: 5 | F64: 0 | G64: 2 | H64: 0 | I64: 141 | J64: 14 | K64: 143 | L64: 72 | M64: 29 | N64: 4 | O64: 1 | P64: 1 | Q64: 0 | R64: 0 | S64: 106 | T64: 5 | U64: 107
A65: 14:45:00 | B65: 82 | C65: 37 | D65: 4 | E65: 4 | F65: 0 | G65: 0 | H65: 1 | I65: 127 | J65: 8 | K65: 128 | L65: 82 | M65: 42 | N65: 5 | O65: 0 | P65: 1 | Q65: 0 | R65: 0 | S65: 129 | T65: 5 | U65: 130
A66: 15:00:00 | B66: 83 | C66: 53 | D66: 5 | E66: 1 | F66: 0 | G66: 0 | H66: 1 | I66: 142 | J66: 6 | K66: 143 | L66: 79 | M66: 49 | N66: 4 | O66: 1 | P66: 0 | Q66: 0 | R66: 1 | S66: 133 | T66: 5 | U66: 134
A67: 15:15:00 | B67: 72 | C67: 42 | D67: 3 | E67: 3 | F67: 0 | G67: 1 | H67: 1 | I67: 120 | J67: 6 | K67: 122 | L67: 84 | M67: 50 | N67: 9 | O67: 3 | P67: 0 | Q67: 1 | R67: 0 | S67: 146 | T67: 12 | U67: 147
A68: 15:30:00 | B68: 93 | C68: 45 | D68: 9 | E68: 3 | F68: 0 | G68: 0 | H68: 0 | I68: 150 | J68: 12 | K68: 150 | L68: 71 | M68: 57 | N68: 4 | O68: 1 | P68: 0 | Q68: 1 | R68: 2 | S68: 133 | T68: 5 | U68: 136
A69: 15:45:00 | B69: 93 | C69: 54 | D69: 6 | E69: 3 | F69: 1 | G69: 2 | H69: 1 | I69: 156 | J69: 9 | K69: 160 | L69: 89 | M69: 48 | N69: 4 | O69: 1 | P69: 0 | Q69: 1 | R69: 0 | S69: 142 | T69: 5 | U69: 143
A70: 16:00:00 | B70: 101 | C70: 50 | D70: 0 | E70: 2 | F70: 1 | G70: 3 | H70: 0 | I70: 153 | J70: 2 | K70: 157 | L70: 87 | M70: 54 | N70: 2 | O70: 2 | P70: 0 | Q70: 2 | R70: 2 | S70: 145 | T70: 4 | U70: 149
A71: 16:15:00 | B71: 97 | C71: 51 | D71: 3 | E71: 0 | F71: 0 | G71: 0 | H71: 1 | I71: =SUM(B71:E71) -> 151 | J71: =SUM(D71:E71) -> 3 | K71: =SUM(B71:H71) -> 152 | L71: 97 | M71: 46 | N71: 4 | O71: 2 | P71: 0 | Q71: 0 | R71: 0 | S71: =SUM(L71:O71) -> 149 | T71: =SUM(N71:O71) -> 6 | U71: =SUM(L71:R71) -> 149
A72: 16:30:00 | B72: 83 | C72: 62 | D72: 2 | E72: 1 | F72: 0 | G72: 2 | H72: 0 | I72: 148 | J72: 3 | K72: 150 | L72: 116 | M72: 50 | N72: 5 | O72: 0 | P72: 0 | Q72: 2 | R72: 1 | S72: 171 | T72: 5 | U72: 174
A73: 16:45:00 | B73: 103 | C73: 54 | D73: 8 | E73: 2 | F73: 1 | G73: 1 | H73: 1 | I73: 167 | J73: 10 | K73: 170 | L73: 98 | M73: 49 | N73: 3 | O73: 0 | P73: 1 | Q73: 1 | R73: 0 | S73: 150 | T73: 3 | U73: 152
A74: 17:00:00 | B74: 156 | C74: 64 | D74: 2 | E74: 2 | F74: 0 | G74: 2 | H74: 2 | I74: 224 | J74: 4 | K74: 228 | L74: 91 | M74: 45 | N74: 3 | O74: 0 | P74: 0 | Q74: 0 | R74: 0 | S74: 139 | T74: 3 | U74: 139
A75: 17:15:00 | B75: 126 | C75: 64 | D75: 1 | E75: 0 | F75: 1 | G75: 1 | H75: 1 | I75: 191 | J75: 1 | K75: 194 | L75: 121 | M75: 49 | N75: 1 | O75: 0 | P75: 0 | Q75: 2 | R75: 0 | S75: 171 | T75: 1 | U75: 173
A76: 17:30:00 | B76: 127 | C76: 59 | D76: 6 | E76: 1 | F76: 0 | G76: 0 | H76: 0 | I76: 193 | J76: 7 | K76: 193 | L76: 116 | M76: 50 | N76: 1 | O76: 1 | P76: 0 | Q76: 2 | R76: 0 | S76: 168 | T76: 2 | U76: 170
A77: 17:45:00 | B77: 95 | C77: 52 | D77: 3 | E77: 1 | F77: 0 | G77: 1 | H77: 0 | I77: 151 | J77: 4 | K77: 152 | L77: 97 | M77: 48 | N77: 2 | O77: 0 | P77: 0 | Q77: 0 | R77: 0 | S77: 147 | T77: 2 | U77: 147
A78: 18:00:00 | B78: 88 | C78: 32 | D78: 5 | E78: 2 | F78: 0 | G78: 1 | H78: 0 | I78: 127 | J78: 7 | K78: 128 | L78: 97 | M78: 40 | N78: 0 | O78: 0 | P78: 0 | Q78: 2 | R78: 0 | S78: 137 | T78: 0 | U78: 139
A79: 18:15:00 | B79: 87 | C79: 55 | D79: 2 | E79: 1 | F79: 0 | G79: 0 | H79: 0 | I79: 145 | J79: 3 | K79: 145 | L79: 67 | M79: 44 | N79: 0 | O79: 1 | P79: 0 | Q79: 1 | R79: 1 | S79: 112 | T79: 1 | U79: 114
A80: 18:30:00 | B80: 49 | C80: 33 | D80: 2 | E80: 1 | F80: 0 | G80: 1 | H80: 0 | I80: 85 | J80: 3 | K80: 86 | L80: 81 | M80: 42 | N80: 2 | O80: 0 | P80: 0 | Q80: 1 | R80: 1 | S80: 125 | T80: 2 | U80: 127
A81: 18:45:00 | B81: 51 | C81: 38 | D81: 2 | E81: 1 | F81: 0 | G81: 0 | H81: 0 | I81: 92 | J81: 3 | K81: 92 | L81: 64 | M81: 29 | N81: 1 | O81: 1 | P81: 0 | Q81: 0 | R81: 0 | S81: 95 | T81: 2 | U81: 95
A82: 19:00:00 | B82: 57 | C82: 39 | D82: 1 | E82: 0 | F82: 0 | G82: 0 | H82: 1 | I82: 97 | J82: 1 | K82: 98 | L82: 54 | M82: 32 | N82: 1 | O82: 0 | P82: 0 | Q82: 0 | R82: 0 | S82: 87 | T82: 1 | U82: 87
A83: 19:15:00 | B83: 39 | C83: 27 | D83: 1 | E83: 1 | F83: 0 | G83: 3 | H83: 0 | I83: 68 | J83: 2 | K83: 71 | L83: 49 | M83: 27 | N83: 2 | O83: 1 | P83: 0 | Q83: 0 | R83: 0 | S83: 79 | T83: 3 | U83: 79
A84: 19:30:00 | B84: 48 | C84: 26 | D84: 1 | E84: 0 | F84: 0 | G84: 0 | H84: 0 | I84: 75 | J84: 1 | K84: 75 | L84: 31 | M84: 24 | N84: 1 | O84: 0 | P84: 0 | Q84: 1 | R84: 0 | S84: 56 | T84: 1 | U84: 57
A85: 19:45:00 | B85: 28 | C85: 25 | D85: 1 | E85: 0 | F85: 0 | G85: 0 | H85: 0 | I85: 54 | J85: 1 | K85: 54 | L85: 52 | M85: 27 | N85: 0 | O85: 0 | P85: 0 | Q85: 0 | R85: 0 | S85: 79 | T85: 0 | U85: 79
A86: 20:00:00 | B86: 29 | C86: 22 | D86: 2 | E86: 0 | F86: 0 | G86: 0 | H86: 0 | I86: 53 | J86: 2 | K86: 53 | L86: 27 | M86: 21 | N86: 2 | O86: 0 | P86: 0 | Q86: 0 | R86: 0 | S86: 50 | T86: 2 | U86: 50
A87: 20:15:00 | B87: 22 | C87: 19 | D87: 2 | E87: 0 | F87: 0 | G87: 0 | H87: 0 | I87: 43 | J87: 2 | K87: 43 | L87: 24 | M87: 24 | N87: 0 | O87: 1 | P87: 0 | Q87: 0 | R87: 0 | S87: 49 | T87: 1 | U87: 49
A88: 20:30:00 | B88: 26 | C88: 12 | D88: 1 | E88: 0 | F88: 0 | G88: 0 | H88: 0 | I88: 39 | J88: 1 | K88: 39 | L88: 24 | M88: 15 | N88: 0 | O88: 0 | P88: 0 | Q88: 0 | R88: 0 | S88: 39 | T88: 0 | U88: 39
A89: 20:45:00 | B89: 22 | C89: 13 | D89: 0 | E89: 0 | F89: 0 | G89: 0 | H89: 0 | I89: 35 | J89: 0 | K89: 35 | L89: 20 | M89: 12 | N89: 0 | O89: 0 | P89: 0 | Q89: 0 | R89: 0 | S89: 32 | T89: 0 | U89: 32
A90: 21:00:00 | B90: 24 | C90: 13 | D90: 1 | E90: 1 | F90: 0 | G90: 0 | H90: 0 | I90: 39 | J90: 2 | K90: 39 | L90: 23 | M90: 14 | N90: 0 | O90: 0 | P90: 0 | Q90: 0 | R90: 0 | S90: 37 | T90: 0 | U90: 37
A91: 21:15:00 | B91: 16 | C91: 10 | D91: 0 | E91: 0 | F91: 0 | G91: 0 | H91: 0 | I91: 26 | J91: 0 | K91: 26 | L91: 21 | M91: 7 | N91: 1 | O91: 0 | P91: 0 | Q91: 0 | R91: 0 | S91: 29 | T91: 1 | U91: 29
A92: 21:30:00 | B92: 18 | C92: 8 | D92: 0 | E92: 1 | F92: 0 | G92: 2 | H92: 0 | I92: 27 | J92: 1 | K92: 29 | L92: 25 | M92: 6 | N92: 0 | O92: 0 | P92: 0 | Q92: 0 | R92: 0 | S92: 31 | T92: 0 | U92: 31
A93: 21:45:00 | B93: 19 | C93: 14 | D93: 1 | E93: 0 | F93: 0 | G93: 0 | H93: 0 | I93: 34 | J93: 1 | K93: 34 | L93: 12 | M93: 8 | N93: 0 | O93: 0 | P93: 0 | Q93: 0 | R93: 0 | S93: 20 | T93: 0 | U93: 20
A94: 22:00:00 | B94: 18 | C94: 7 | D94: 0 | E94: 0 | F94: 0 | G94: 0 | H94: 0 | I94: 25 | J94: 0 | K94: 25 | L94: 24 | M94: 7 | N94: 0 | O94: 0 | P94: 0 | Q94: 2 | R94: 0 | S94: 31 | T94: 0 | U94: 33
A95: 22:15:00 | B95: 19 | C95: 9 | D95: 2 | E95: 0 | F95: 0 | G95: 0 | H95: 0 | I95: 30 | J95: 2 | K95: 30 | L95: 9 | M95: 7 | N95: 0 | O95: 0 | P95: 0 | Q95: 0 | R95: 0 | S95: 16 | T95: 0 | U95: 16
A96: 22:30:00 | B96: 12 | C96: 9 | D96: 0 | E96: 1 | F96: 0 | G96: 0 | H96: 0 | I96: 22 | J96: 1 | K96: 22 | L96: 10 | M96: 3 | N96: 0 | O96: 1 | P96: 0 | Q96: 0 | R96: 0 | S96: 14 | T96: 1 | U96: 14
A97: 22:45:00 | B97: 5 | C97: 2 | D97: 0 | E97: 0 | F97: 0 | G97: 0 | H97: 0 | I97: 7 | J97: 0 | K97: 7 | L97: 7 | M97: 5 | N97: 0 | O97: 0 | P97: 0 | Q97: 0 | R97: 0 | S97: 12 | T97: 0 | U97: 12
A98: 23:00:00 | B98: 8 | C98: 9 | D98: 0 | E98: 0 | F98: 0 | G98: 0 | H98: 0 | I98: 17 | J98: 0 | K98: 17 | L98: 5 | M98: 4 | N98: 0 | O98: 0 | P98: 0 | Q98: 0 | R98: 1 | S98: 9 | T98: 0 | U98: 10
A99: 23:15:00 | B99: 4 | C99: 8 | D99: 0 | E99: 0 | F99: 0 | G99: 0 | H99: 0 | I99: 12 | J99: 0 | K99: 12 | L99: 3 | M99: 3 | N99: 0 | O99: 0 | P99: 0 | Q99: 0 | R99: 0 | S99: 6 | T99: 0 | U99: 6
A100: 23:30:00 | B100: 5 | C100: 2 | D100: 0 | E100: 0 | F100: 0 | G100: 0 | H100: 0 | I100: 7 | J100: 0 | K100: 7 | L100: 6 | M100: 1 | N100: 1 | O100: 0 | P100: 0 | Q100: 0 | R100: 0 | S100: 8 | T100: 1 | U100: 8
A101: 23:45:00 | B101: 10 | C101: 1 | D101: 0 | E101: 0 | F101: 0 | G101: 0 | H101: 0 | I101: 11 | J101: 0 | K101: 11 | L101: 2 | M101: 1 | N101: 0 | O101: 0 | P101: 0 | Q101: 0 | R101: 0 | S101: 3 | T101: 0 | U101: 3
A102: TOTAL | B102: =SUM(B6:B101) -> 4763 | C102: =SUM(C6:C101) -> 2579 | D102: 280 | E102: 97 | F102: 24 | G102: 43 | H102: 21 | I102: 7719 | J102: 377 | K102: =SUM(K6:K101) -> 7807 | L102: =SUM(L6:L101) -> 4644 | M102: =SUM(M6:M101) -> 2669 | N102: =SUM(N6:N101) -> 237 | O102: =SUM(O6:O101) -> 82 | P102: =SUM(P6:P101) -> 19 | Q102: =SUM(Q6:Q101) -> 55 | R102: =SUM(R6:R101) -> 16 | S102: 7632 | T102: 319 | U102: 7722

Sheet 12 04 2016
A1: * Fill the table with data
A2: DO NOT CHANGE THE STRUCTURE OF THE SPREADSHEET (i.e. ADD OR DELETE ROWS/COLUMNS, ETC.)
B4: ='Site Plan'!$A$19&" - "&'Site Plan'!$C$19 -> Direction 1 - Eastbound | I4: TOTAL | L4: ='Site Plan'!$A$20&" - "&'Site Plan'!$C$20 -> Direction 2 - Westbound | S4: TOTAL
A5: TIME | B5: CAR | C5: LGV | D5: OGV1 | E5: OGV2 | F5: PSV | G5: MCL | H5: PCL | I5: CAR + LGV + HGV | J5: HGV | K5: ALL modes | L5: CAR | M5: LGV | N5: OGV1 | O5: OGV2 | P5: PSV | Q5: MCL | R5: PCL | S5: CAR + LGV + HGV | T5: HGV | U5: ALL modes
A6: 00:00:00 | B6: 2 | C6: 3 | D6: 0 | E6: 0 | F6: 0 | G6: 0 | H6: 0 | I6: =SUM(B6:E6) -> 5 | J6: =SUM(D6:E6) -> 0 | K6: =SUM(B6:H6) -> 5 | L6: 2 | M6: 2 | N6: 0 | O6: 0 | P6: 0 | Q6: 0 | R6: 1 | S6: =SUM(L6:O6) -> 4 | T6: =SUM(N6:O6) -> 0 | U6: =SUM(L6:R6) -> 5
A7: 00:15:00 | B7: 4 | C7: 2 | D7: 0 | E7: 0 | F7: 0 | G7: 0 | H7: 0 | I7: =SUM(B7:E7) -> 6 | J7: =SUM(D7:E7) -> 0 | K7: =SUM(B7:H7) -> 6 | L7: 1 | M7: 1 | N7: 0 | O7: 0 | P7: 0 | Q7: 0 | R7: 0 | S7: =SUM(L7:O7) -> 2 | T7: =SUM(N7:O7) -> 0 | U7: =SUM(L7:R7) -> 2
A8: 00:30:00 | B8: 3 | C8: 3 | D8: 1 | E8: 0 | F8: 0 | G8: 0 | H8: 0 | I8: 7 | J8: 1 | K8: 7 | L8: 1 | M8: 1 | N8: 0 | O8: 0 | P8: 0 | Q8: 0 | R8: 0 | S8: 2 | T8: 0 | U8: 2
A9: 00:45:00 | B9: 3 | C9: 2 | D9: 1 | E9: 0 | F9: 0 | G9: 0 | H9: 0 | I9: 6 | J9: 1 | K9: 6 | L9: 2 | M9: 2 | N9: 0 | O9: 0 | P9: 0 | Q9: 0 | R9: 0 | S9: 4 | T9: 0 | U9: 4
A10: 01:00:00 | B10: 1 | C10: 2 | D10: 0 | E10: 0 | F10: 0 | G10: 0 | H10: 0 | I10: 3 | J10: 0 | K10: 3 | L10: 0 | M10: 0 | N10: 0 | O10: 0 | P10: 0 | Q10: 0 | R10: 0 | S10: 0 | T10: 0 | U10: 0
A11: 01:15:00 | B11: 2 | C11: 0 | D11: 0 | E11: 1 | F11: 0 | G11: 0 | H11: 0 | I11: 3 | J11: 1 | K11: 3 | L11: 1 | M11: 3 | N11: 1 | O11: 0 | P11: 0 | Q11: 0 | R11: 0 | S11: 5 | T11: 1 | U11: 5
A12: 01:30:00 | B12: 1 | C12: 1 | D12: 1 | E12: 0 | F12: 0 | G12: 0 | H12: 0 | I12: 3 | J12: 1 | K12: 3 | L12: 1 | M12: 2 | N12: 0 | O12: 0 | P12: 0 | Q12: 0 | R12: 0 | S12: 3 | T12: 0 | U12: 3
A13: 01:45:00 | B13: 1 | C13: 1 | D13: 0 | E13: 0 | F13: 0 | G13: 0 | H13: 0 | I13: 2 | J13: 0 | K13: 2 | L13: 0 | M13: 1 | N13: 0 | O13: 0 | P13: 0 | Q13: 0 | R13: 0 | S13: 1 | T13: 0 | U13: 1
A14: 02:00:00 | B14: 0 | C14: 0 | D14: 0 | E14: 0 | F14: 0 | G14: 0 | H14: 0 | I14: 0 | J14: 0 | K14: 0 | L14: 0 | M14: 3 | N14: 2 | O14: 0 | P14: 0 | Q14: 0 | R14: 0 | S14: 5 | T14: 2 | U14: 5
A15: 02:15:00 | B15: 2 | C15: 0 | D15: 1 | E15: 1 | F15: 0 | G15: 0 | H15: 0 | I15: 4 | J15: 2 | K15: 4 | L15: 1 | M15: 2 | N15: 0 | O15: 0 | P15: 0 | Q15: 0 | R15: 0 | S15: 3 | T15: 0 | U15: 3
A16: 02:30:00 | B16: 3 | C16: 2 | D16: 0 | E16: 1 | F16: 0 | G16: 0 | H16: 0 | I16: 6 | J16: 1 | K16: 6 | L16: 1 | M16: 1 | N16: 0 | O16: 0 | P16: 0 | Q16: 0 | R16: 0 | S16: 2 | T16: 0 | U16: 2
A17: 02:45:00 | B17: 0 | C17: 2 | D17: 0 | E17: 0 | F17: 0 | G17: 0 | H17: 0 | I17: 2 | J17: 0 | K17: 2 | L17: 2 | M17: 2 | N17: 0 | O17: 0 | P17: 0 | Q17: 0 | R17: 0 | S17: 4 | T17: 0 | U17: 4
A18: 03:00:00 | B18: 0 | C18: 2 | D18: 0 | E18: 0 | F18: 0 | G18: 0 | H18: 0 | I18: 2 | J18: 0 | K18: 2 | L18: 0 | M18: 0 | N18: 0 | O18: 0 | P18: 0 | Q18: 0 | R18: 0 | S18: 0 | T18: 0 | U18: 0
A19: 03:15:00 | B19: 1 | C19: 1 | D19: 0 | E19: 0 | F19: 0 | G19: 0 | H19: 0 | I19: 2 | J19: 0 | K19: 2 | L19: 5 | M19: 1 | N19: 0 | O19: 0 | P19: 0 | Q19: 0 | R19: 0 | S19: 6 | T19: 0 | U19: 6
A20: 03:30:00 | B20: 0 | C20: 1 | D20: 1 | E20: 0 | F20: 0 | G20: 0 | H20: 0 | I20: 2 | J20: 1 | K20: 2 | L20: 5 | M20: 3 | N20: 0 | O20: 0 | P20: 0 | Q20: 0 | R20: 0 | S20: 8 | T20: 0 | U20: 8
A21: 03:45:00 | B21: 1 | C21: 0 | D21: 0 | E21: 0 | F21: 0 | G21: 0 | H21: 0 | I21: 1 | J21: 0 | K21: 1 | L21: 1 | M21: 1 | N21: 1 | O21: 0 | P21: 1 | Q21: 0 | R21: 0 | S21: 3 | T21: 1 | U21: 4
A22: 04:00:00 | B22: 1 | C22: 1 | D22: 0 | E22: 0 | F22: 0 | G22: 0 | H22: 0 | I22: 2 | J22: 0 | K22: 2 | L22: 5 | M22: 2 | N22: 1 | O22: 0 | P22: 0 | Q22: 0 | R22: 0 | S22: 8 | T22: 1 | U22: 8
A23: 04:15:00 | B23: 1 | C23: 2 | D23: 0 | E23: 0 | F23: 0 | G23: 0 | H23: 0 | I23: 3 | J23: 0 | K23: 3 | L23: 6 | M23: 2 | N23: 0 | O23: 0 | P23: 0 | Q23: 1 | R23: 0 | S23: 8 | T23: 0 | U23: 9
A24: 04:30:00 | B24: 1 | C24: 1 | D24: 0 | E24: 0 | F24: 0 | G24: 0 | H24: 0 | I24: 2 | J24: 0 | K24: 2 | L24: 5 | M24: 5 | N24: 2 | O24: 1 | P24: 0 | Q24: 0 | R24: 0 | S24: 13 | T24: 3 | U24: 13
A25: 04:45:00 | B25: 3 | C25: 4 | D25: 1 | E25: 0 | F25: 0 | G25: 0 | H25: 0 | I25: 8 | J25: 1 | K25: 8 | L25: 8 | M25: 9 | N25: 1 | O25: 1 | P25: 0 | Q25: 0 | R25: 0 | S25: 19 | T25: 2 | U25: 19
A26: 05:00:00 | B26: 7 | C26: 2 | D26: 1 | E26: 0 | F26: 0 | G26: 0 | H26: 2 | I26: 10 | J26: 1 | K26: 12 | L26: 9 | M26: 13 | N26: 2 | O26: 0 | P26: 2 | Q26: 0 | R26: 0 | S26: 24 | T26: 2 | U26: 26
A27: 05:15:00 | B27: 6 | C27: 8 | D27: 1 | E27: 0 | F27: 0 | G27: 0 | H27: 0 | I27: 15 | J27: 1 | K27: 15 | L27: 12 | M27: 19 | N27: 2 | O27: 0 | P27: 0 | Q27: 3 | R27: 0 | S27: 33 | T27: 2 | U27: 36
A28: 05:30:00 | B28: 8 | C28: 12 | D28: 1 | E28: 0 | F28: 0 | G28: 0 | H28: 0 | I28: 21 | J28: 1 | K28: 21 | L28: 17 | M28: 17 | N28: 2 | O28: 2 | P28: 0 | Q28: 1 | R28: 0 | S28: 38 | T28: 4 | U28: 39
A29: 05:45:00 | B29: 18 | C29: 6 | D29: 3 | E29: 1 | F29: 0 | G29: 0 | H29: 0 | I29: 28 | J29: 4 | K29: 28 | L29: 18 | M29: 24 | N29: 3 | O29: 1 | P29: 0 | Q29: 1 | R29: 0 | S29: 46 | T29: 4 | U29: 47
A30: 06:00:00 | B30: 10 | C30: 10 | D30: 2 | E30: 0 | F30: 0 | G30: 0 | H30: 1 | I30: 22 | J30: 2 | K30: 23 | L30: 30 | M30: 35 | N30: 4 | O30: 1 | P30: 0 | Q30: 1 | R30: 0 | S30: 70 | T30: 5 | U30: 71
A31: 06:15:00 | B31: 35 | C31: 26 | D31: 2 | E31: 2 | F31: 0 | G31: 0 | H31: 0 | I31: 65 | J31: 4 | K31: 65 | L31: 37 | M31: 41 | N31: 4 | O31: 1 | P31: 0 | Q31: 0 | R31: 0 | S31: 83 | T31: 5 | U31: 83
A32: 06:30:00 | B32: 25 | C32: 20 | D32: 3 | E32: 2 | F32: 0 | G32: 1 | H32: 0 | I32: 50 | J32: 5 | K32: 51 | L32: 42 | M32: 42 | N32: 4 | O32: 0 | P32: 0 | Q32: 1 | R32: 0 | S32: 88 | T32: 4 | U32: 89
A33: 06:45:00 | B33: 36 | C33: 36 | D33: 7 | E33: 0 | F33: 0 | G33: 0 | H33: 0 | I33: 79 | J33: 7 | K33: 79 | L33: 42 | M33: 43 | N33: 5 | O33: 0 | P33: 0 | Q33: 5 | R33: 1 | S33: 90 | T33: 5 | U33: 96
A34: 07:00:00 | B34: 59 | C34: 40 | D34: 4 | E34: 2 | F34: 0 | G34: 0 | H34: 0 | I34: 105 | J34: 6 | K34: 105 | L34: 75 | M34: 47 | N34: 5 | O34: 2 | P34: 0 | Q34: 4 | R34: 0 | S34: 129 | T34: 7 | U34: 133
A35: 07:15:00 | B35: 92 | C35: 45 | D35: 6 | E35: 1 | F35: 1 | G35: 0 | H35: 0 | I35: 144 | J35: 7 | K35: 145 | L35: 73 | M35: 50 | N35: 6 | O35: 1 | P35: 0 | Q35: 0 | R35: 0 | S35: 130 | T35: 7 | U35: 130
A36: 07:30:00 | B36: 109 | C36: 62 | D36: 3 | E36: 1 | F36: 2 | G36: 0 | H36: 0 | I36: 175 | J36: 4 | K36: 177 | L36: 89 | M36: 54 | N36: 6 | O36: 0 | P36: 0 | Q36: 0 | R36: 0 | S36: 149 | T36: 6 | U36: 149
A37: 07:45:00 | B37: 110 | C37: 49 | D37: 3 | E37: 0 | F37: 0 | G37: 0 | H37: 0 | I37: 162 | J37: 3 | K37: 162 | L37: 90 | M37: 66 | N37: 7 | O37: 1 | P37: 0 | Q37: 1 | R37: 0 | S37: 164 | T37: 8 | U37: 165
A38: 08:00:00 | B38: 80 | C38: 50 | D38: 2 | E38: 2 | F38: 0 | G38: 0 | H38: 0 | I38: 134 | J38: 4 | K38: 134 | L38: 94 | M38: 54 | N38: 6 | O38: 3 | P38: 0 | Q38: 0 | R38: 0 | S38: 157 | T38: 9 | U38: 157
A39: 08:15:00 | B39: 98 | C39: 49 | D39: 2 | E39: 1 | F39: 0 | G39: 0 | H39: 1 | I39: 150 | J39: 3 | K39: 151 | L39: 102 | M39: 40 | N39: 3 | O39: 0 | P39: 0 | Q39: 1 | R39: 0 | S39: 145 | T39: 3 | U39: 146
A40: 08:30:00 | B40: 111 | C40: 51 | D40: 5 | E40: 3 | F40: 1 | G40: 0 | H40: 0 | I40: 170 | J40: 8 | K40: 171 | L40: 82 | M40: 48 | N40: 2 | O40: 1 | P40: 0 | Q40: 0 | R40: 1 | S40: 133 | T40: 3 | U40: 134
A41: 08:45:00 | B41: 105 | C41: 57 | D41: 6 | E41: 2 | F41: 0 | G41: 0 | H41: 0 | I41: 170 | J41: 8 | K41: 170 | L41: 80 | M41: 46 | N41: 3 | O41: 1 | P41: 1 | Q41: 0 | R41: 1 | S41: 130 | T41: 4 | U41: 132
A42: 09:00:00 | B42: 86 | C42: 53 | D42: 1 | E42: 2 | F42: 0 | G42: 0 | H42: 1 | I42: 142 | J42: 3 | K42: 143 | L42: 58 | M42: 48 | N42: 3 | O42: 0 | P42: 0 | Q42: 1 | R42: 1 | S42: 109 | T42: 3 | U42: 111
A43: 09:15:00 | B43: 86 | C43: 49 | D43: 3 | E43: 0 | F43: 0 | G43: 0 | H43: 0 | I43: 138 | J43: 3 | K43: 138 | L43: 57 | M43: 40 | N43: 5 | O43: 1 | P43: 0 | Q43: 0 | R43: 0 | S43: 103 | T43: 6 | U43: 103
A44: 09:30:00 | B44: 76 | C44: 42 | D44: 7 | E44: 0 | F44: 1 | G44: 0 | H44: 0 | I44: 125 | J44: 7 | K44: 126 | L44: 54 | M44: 37 | N44: 7 | O44: 3 | P44: 1 | Q44: 1 | R44: 0 | S44: 101 | T44: 10 | U44: 103
A45: 09:45:00 | B45: 81 | C45: 42 | D45: 5 | E45: 0 | F45: 1 | G45: 0 | H45: 0 | I45: 128 | J45: 5 | K45: 129 | L45: 52 | M45: 48 | N45: 4 | O45: 2 | P45: 0 | Q45: 0 | R45: 0 | S45: 106 | T45: 6 | U45: 106
A46: 10:00:00 | B46: 65 | C46: 47 | D46: 6 | E46: 0 | F46: 1 | G46: 0 | H46: 0 | I46: 118 | J46: 6 | K46: 119 | L46: 49 | M46: 40 | N46: 6 | O46: 0 | P46: 0 | Q46: 0 | R46: 0 | S46: 95 | T46: 6 | U46: 95
A47: 10:15:00 | B47: 88 | C47: 50 | D47: 12 | E47: 1 | F47: 0 | G47: 0 | H47: 0 | I47: 151 | J47: 13 | K47: 151 | L47: 62 | M47: 35 | N47: 4 | O47: 1 | P47: 0 | Q47: 0 | R47: 0 | S47: 102 | T47: 5 | U47: 102
A48: 10:30:00 | B48: 64 | C48: 47 | D48: 3 | E48: 2 | F48: 1 | G48: 0 | H48: 0 | I48: 116 | J48: 5 | K48: 117 | L48: 75 | M48: 32 | N48: 8 | O48: 1 | P48: 0 | Q48: 0 | R48: 0 | S48: 116 | T48: 9 | U48: 116
A49: 10:45:00 | B49: 73 | C49: 42 | D49: 7 | E49: 3 | F49: 0 | G49: 0 | H49: 0 | I49: 125 | J49: 10 | K49: 125 | L49: 73 | M49: 32 | N49: 5 | O49: 1 | P49: 1 | Q49: 0 | R49: 0 | S49: 111 | T49: 6 | U49: 112
A50: 11:00:00 | B50: 65 | C50: 39 | D50: 10 | E50: 2 | F50: 1 | G50: 0 | H50: 0 | I50: 116 | J50: 12 | K50: 117 | L50: 57 | M50: 37 | N50: 4 | O50: 2 | P50: 0 | Q50: 0 | R50: 0 | S50: 100 | T50: 6 | U50: 100
A51: 11:15:00 | B51: 74 | C51: 46 | D51: 10 | E51: 1 | F51: 1 | G51: 0 | H51: 0 | I51: 131 | J51: 11 | K51: 132 | L51: 89 | M51: 54 | N51: 6 | O51: 2 | P51: 1 | Q51: 0 | R51: 0 | S51: 151 | T51: 8 | U51: 152
A52: 11:30:00 | B52: 69 | C52: 46 | D52: 8 | E52: 0 | F52: 1 | G52: 0 | H52: 0 | I52: 123 | J52: 8 | K52: 124 | L52: 71 | M52: 42 | N52: 2 | O52: 0 | P52: 0 | Q52: 0 | R52: 0 | S52: 115 | T52: 2 | U52: 115
A53: 11:45:00 | B53: 56 | C53: 47 | D53: 8 | E53: 2 | F53: 2 | G53: 0 | H53: 1 | I53: 113 | J53: 10 | K53: 116 | L53: 66 | M53: 45 | N53: 6 | O53: 1 | P53: 0 | Q53: 0 | R53: 0 | S53: 118 | T53: 7 | U53: 118
A54: 12:00:00 | B54: 69 | C54: 41 | D54: 6 | E54: 1 | F54: 1 | G54: 0 | H54: 0 | I54: 117 | J54: 7 | K54: 118 | L54: 67 | M54: 35 | N54: 5 | O54: 0 | P54: 0 | Q54: 0 | R54: 0 | S54: 107 | T54: 5 | U54: 107
A55: 12:15:00 | B55: 71 | C55: 39 | D55: 8 | E55: 3 | F55: 1 | G55: 1 | H55: 0 | I55: 121 | J55: 11 | K55: 123 | L55: 60 | M55: 42 | N55: 3 | O55: 0 | P55: 0 | Q55: 0 | R55: 0 | S55: 105 | T55: 3 | U55: 105
A56: 12:30:00 | B56: 73 | C56: 37 | D56: 5 | E56: 0 | F56: 0 | G56: 0 | H56: 0 | I56: 115 | J56: 5 | K56: 115 | L56: 91 | M56: 39 | N56: 2 | O56: 1 | P56: 0 | Q56: 1 | R56: 0 | S56: 133 | T56: 3 | U56: 134
A57: 12:45:00 | B57: 70 | C57: 35 | D57: 4 | E57: 2 | F57: 0 | G57: 1 | H57: 1 | I57: 111 | J57: 6 | K57: 113 | L57: 65 | M57: 47 | N57: 7 | O57: 1 | P57: 0 | Q57: 0 | R57: 0 | S57: 120 | T57: 8 | U57: 120
A58: 13:00:00 | B58: 78 | C58: 47 | D58: 2 | E58: 3 | F58: 0 | G58: 1 | H58: 1 | I58: 130 | J58: 5 | K58: 132 | L58: 84 | M58: 48 | N58: 10 | O58: 1 | P58: 1 | Q58: 0 | R58: 0 | S58: 143 | T58: 11 | U58: 144
A59: 13:15:00 | B59: 70 | C59: 49 | D59: 5 | E59: 0 | F59: 1 | G59: 0 | H59: 1 | I59: 124 | J59: 5 | K59: 126 | L59: 70 | M59: 43 | N59: 1 | O59: 2 | P59: 0 | Q59: 0 | R59: 0 | S59: 116 | T59: 3 | U59: 116
A60: 13:30:00 | B60: 71 | C60: 45 | D60: 5 | E60: 4 | F60: 1 | G60: 0 | H60: 0 | I60: 125 | J60: 9 | K60: 126 | L60: 78 | M60: 38 | N60: 9 | O60: 2 | P60: 0 | Q60: 1 | R60: 1 | S60: 127 | T60: 11 | U60: 129
A61: 13:45:00 | B61: 71 | C61: 46 | D61: 14 | E61: 2 | F61: 1 | G61: 0 | H61: 0 | I61: 133 | J61: 16 | K61: 134 | L61: 66 | M61: 42 | N61: 7 | O61: 3 | P61: 1 | Q61: 0 | R61: 0 | S61: 118 | T61: 10 | U61: 119
A62: 14:00:00 | B62: 72 | C62: 40 | D62: 4 | E62: 1 | F62: 1 | G62: 0 | H62: 0 | I62: 117 | J62: 5 | K62: 118 | L62: 79 | M62: 47 | N62: 7 | O62: 2 | P62: 0 | Q62: 1 | R62: 1 | S62: 135 | T62: 9 | U62: 137
A63: 14:15:00 | B63: 81 | C63: 43 | D63: 8 | E63: 1 | F63: 1 | G63: 1 | H63: 0 | I63: 133 | J63: 9 | K63: 135 | L63: 71 | M63: 45 | N63: 4 | O63: 0 | P63: 1 | Q63: 0 | R63: 1 | S63: 120 | T63: 4 | U63: 122
A64: 14:30:00 | B64: 70 | C64: 53 | D64: 7 | E64: 3 | F64: 0 | G64: 0 | H64: 0 | I64: 133 | J64: 10 | K64: 133 | L64: 70 | M64: 48 | N64: 6 | O64: 0 | P64: 0 | Q64: 0 | R64: 0 | S64: 124 | T64: 6 | U64: 124
A65: 14:45:00 | B65: 65 | C65: 47 | D65: 5 | E65: 0 | F65: 0 | G65: 1 | H65: 1 | I65: 117 | J65: 5 | K65: 119 | L65: 85 | M65: 39 | N65: 4 | O65: 2 | P65: 0 | Q65: 0 | R65: 0 | S65: 130 | T65: 6 | U65: 130
A66: 15:00:00 | B66: 87 | C66: 44 | D66: 2 | E66: 2 | F66: 0 | G66: 0 | H66: 0 | I66: 135 | J66: 4 | K66: 135 | L66: 78 | M66: 41 | N66: 6 | O66: 1 | P66: 0 | Q66: 0 | R66: 1 | S66: 126 | T66: 7 | U66: 127
A67: 15:15:00 | B67: 78 | C67: 37 | D67: 10 | E67: 1 | F67: 0 | G67: 0 | H67: 0 | I67: 126 | J67: 11 | K67: 126 | L67: 80 | M67: 49 | N67: 9 | O67: 1 | P67: 1 | Q67: 2 | R67: 0 | S67: 139 | T67: 10 | U67: 142
A68: 15:30:00 | B68: 91 | C68: 46 | D68: 3 | E68: 2 | F68: 0 | G68: 1 | H68: 0 | I68: 142 | J68: 5 | K68: 143 | L68: 95 | M68: 50 | N68: 9 | O68: 2 | P68: 0 | Q68: 0 | R68: 0 | S68: 156 | T68: 11 | U68: 156
A69: 15:45:00 | B69: 108 | C69: 51 | D69: 5 | E69: 0 | F69: 0 | G69: 2 | H69: 0 | I69: 164 | J69: 5 | K69: 166 | L69: 90 | M69: 42 | N69: 1 | O69: 0 | P69: 0 | Q69: 1 | R69: 0 | S69: 133 | T69: 1 | U69: 134
A70: 16:00:00 | B70: 88 | C70: 48 | D70: 6 | E70: 0 | F70: 0 | G70: 1 | H70: 0 | I70: 142 | J70: 6 | K70: 143 | L70: 86 | M70: 51 | N70: 3 | O70: 2 | P70: 0 | Q70: 0 | R70: 0 | S70: 142 | T70: 5 | U70: 142
A71: 16:15:00 | B71: 88 | C71: 48 | D71: 10 | E71: 3 | F71: 0 | G71: 0 | H71: 0 | I71: =SUM(B71:E71) -> 149 | J71: =SUM(D71:E71) -> 13 | K71: =SUM(B71:H71) -> 149 | L71: 86 | M71: 65 | N71: 2 | O71: 4 | P71: 0 | Q71: 0 | R71: 0 | S71: =SUM(L71:O71) -> 157 | T71: =SUM(N71:O71) -> 6 | U71: =SUM(L71:R71) -> 157
A72: 16:30:00 | B72: 96 | C72: 66 | D72: 1 | E72: 4 | F72: 0 | G72: 0 | H72: 2 | I72: 167 | J72: 5 | K72: 169 | L72: 99 | M72: 46 | N72: 4 | O72: 2 | P72: 0 | Q72: 0 | R72: 0 | S72: 151 | T72: 6 | U72: 151
A73: 16:45:00 | B73: 112 | C73: 53 | D73: 4 | E73: 4 | F73: 0 | G73: 1 | H73: 0 | I73: 173 | J73: 8 | K73: 174 | L73: 103 | M73: 60 | N73: 5 | O73: 0 | P73: 0 | Q73: 0 | R73: 0 | S73: 168 | T73: 5 | U73: 168
A74: 17:00:00 | B74: 133 | C74: 55 | D74: 5 | E74: 1 | F74: 0 | G74: 1 | H74: 2 | I74: 194 | J74: 6 | K74: 197 | L74: 98 | M74: 53 | N74: 3 | O74: 1 | P74: 0 | Q74: 1 | R74: 0 | S74: 155 | T74: 4 | U74: 156
A75: 17:15:00 | B75: 113 | C75: 56 | D75: 5 | E75: 2 | F75: 0 | G75: 1 | H75: 0 | I75: 176 | J75: 7 | K75: 177 | L75: 116 | M75: 40 | N75: 2 | O75: 3 | P75: 0 | Q75: 1 | R75: 1 | S75: 161 | T75: 5 | U75: 163
A76: 17:30:00 | B76: 92 | C76: 62 | D76: 2 | E76: 1 | F76: 0 | G76: 0 | H76: 0 | I76: 157 | J76: 3 | K76: 157 | L76: 117 | M76: 49 | N76: 1 | O76: 1 | P76: 0 | Q76: 1 | R76: 1 | S76: 168 | T76: 2 | U76: 170
A77: 17:45:00 | B77: 87 | C77: 58 | D77: 2 | E77: 1 | F77: 0 | G77: 1 | H77: 0 | I77: 148 | J77: 3 | K77: 149 | L77: 98 | M77: 51 | N77: 0 | O77: 1 | P77: 0 | Q77: 1 | R77: 0 | S77: 150 | T77: 1 | U77: 151
A78: 18:00:00 | B78: 83 | C78: 50 | D78: 4 | E78: 1 | F78: 0 | G78: 0 | H78: 1 | I78: 138 | J78: 5 | K78: 139 | L78: 87 | M78: 43 | N78: 2 | O78: 0 | P78: 0 | Q78: 0 | R78: 0 | S78: 132 | T78: 2 | U78: 132
A79: 18:15:00 | B79: 68 | C79: 28 | D79: 2 | E79: 3 | F79: 0 | G79: 1 | H79: 0 | I79: 101 | J79: 5 | K79: 102 | L79: 89 | M79: 32 | N79: 2 | O79: 0 | P79: 0 | Q79: 0 | R79: 2 | S79: 123 | T79: 2 | U79: 125
A80: 18:30:00 | B80: 70 | C80: 40 | D80: 1 | E80: 1 | F80: 0 | G80: 1 | H80: 0 | I80: 112 | J80: 2 | K80: 113 | L80: 69 | M80: 38 | N80: 1 | O80: 1 | P80: 0 | Q80: 0 | R80: 0 | S80: 109 | T80: 2 | U80: 109
A81: 18:45:00 | B81: 50 | C81: 42 | D81: 1 | E81: 0 | F81: 0 | G81: 2 | H81: 1 | I81: 93 | J81: 1 | K81: 96 | L81: 53 | M81: 44 | N81: 0 | O81: 1 | P81: 0 | Q81: 0 | R81: 0 | S81: 98 | T81: 1 | U81: 98
A82: 19:00:00 | B82: 67 | C82: 31 | D82: 1 | E82: 0 | F82: 0 | G82: 1 | H82: 1 | I82: 99 | J82: 1 | K82: 101 | L82: 57 | M82: 36 | N82: 1 | O82: 1 | P82: 0 | Q82: 1 | R82: 0 | S82: 95 | T82: 2 | U82: 96
A83: 19:15:00 | B83: 59 | C83: 33 | D83: 2 | E83: 2 | F83: 0 | G83: 2 | H83: 0 | I83: 96 | J83: 4 | K83: 98 | L83: 49 | M83: 20 | N83: 2 | O83: 1 | P83: 0 | Q83: 2 | R83: 0 | S83: 72 | T83: 3 | U83: 74
A84: 19:30:00 | B84: 38 | C84: 21 | D84: 2 | E84: 1 | F84: 0 | G84: 0 | H84: 1 | I84: 62 | J84: 3 | K84: 63 | L84: 39 | M84: 36 | N84: 1 | O84: 0 | P84: 0 | Q84: 0 | R84: 0 | S84: 76 | T84: 1 | U84: 76
A85: 19:45:00 | B85: 37 | C85: 25 | D85: 1 | E85: 1 | F85: 0 | G85: 1 | H85: 1 | I85: 64 | J85: 2 | K85: 66 | L85: 38 | M85: 21 | N85: 0 | O85: 1 | P85: 0 | Q85: 0 | R85: 1 | S85: 60 | T85: 1 | U85: 61
A86: 20:00:00 | B86: 34 | C86: 27 | D86: 1 | E86: 0 | F86: 0 | G86: 1 | H86: 2 | I86: 62 | J86: 1 | K86: 65 | L86: 38 | M86: 28 | N86: 0 | O86: 0 | P86: 0 | Q86: 0 | R86: 1 | S86: 66 | T86: 0 | U86: 67
A87: 20:15:00 | B87: 23 | C87: 19 | D87: 1 | E87: 0 | F87: 0 | G87: 0 | H87: 0 | I87: 43 | J87: 1 | K87: 43 | L87: 26 | M87: 19 | N87: 0 | O87: 0 | P87: 0 | Q87: 2 | R87: 0 | S87: 45 | T87: 0 | U87: 47
A88: 20:30:00 | B88: 20 | C88: 11 | D88: 2 | E88: 1 | F88: 0 | G88: 0 | H88: 0 | I88: 34 | J88: 3 | K88: 34 | L88: 17 | M88: 10 | N88: 0 | O88: 0 | P88: 0 | Q88: 1 | R88: 0 | S88: 27 | T88: 0 | U88: 28
A89: 20:45:00 | B89: 12 | C89: 17 | D89: 0 | E89: 0 | F89: 0 | G89: 0 | H89: 2 | I89: 29 | J89: 0 | K89: 31 | L89: 13 | M89: 9 | N89: 0 | O89: 0 | P89: 0 | Q89: 1 | R89: 0 | S89: 22 | T89: 0 | U89: 23
A90: 21:00:00 | B90: 15 | C90: 8 | D90: 0 | E90: 0 | F90: 0 | G90: 0 | H90: 0 | I90: 23 | J90: 0 | K90: 23 | L90: 24 | M90: 14 | N90: 2 | O90: 0 | P90: 0 | Q90: 1 | R90: 0 | S90: 40 | T90: 2 | U90: 41
A91: 21:15:00 | B91: 18 | C91: 12 | D91: 1 | E91: 0 | F91: 0 | G91: 0 | H91: 0 | I91: 31 | J91: 1 | K91: 31 | L91: 23 | M91: 17 | N91: 0 | O91: 0 | P91: 0 | Q91: 0 | R91: 2 | S91: 40 | T91: 0 | U91: 42
A92: 21:30:00 | B92: 20 | C92: 12 | D92: 0 | E92: 1 | F92: 0 | G92: 1 | H92: 0 | I92: 33 | J92: 1 | K92: 34 | L92: 27 | M92: 11 | N92: 0 | O92: 0 | P92: 0 | Q92: 0 | R92: 0 | S92: 38 | T92: 0 | U92: 38
A93: 21:45:00 | B93: 32 | C93: 22 | D93: 1 | E93: 0 | F93: 0 | G93: 0 | H93: 1 | I93: 55 | J93: 1 | K93: 56 | L93: 15 | M93: 5 | N93: 0 | O93: 0 | P93: 0 | Q93: 0 | R93: 0 | S93: 20 | T93: 0 | U93: 20
A94: 22:00:00 | B94: 39 | C94: 11 | D94: 0 | E94: 0 | F94: 0 | G94: 0 | H94: 0 | I94: 50 | J94: 0 | K94: 50 | L94: 29 | M94: 11 | N94: 0 | O94: 0 | P94: 0 | Q94: 0 | R94: 0 | S94: 40 | T94: 0 | U94: 40
A95: 22:15:00 | B95: 29 | C95: 18 | D95: 0 | E95: 1 | F95: 0 | G95: 0 | H95: 0 | I95: 48 | J95: 1 | K95: 48 | L95: 20 | M95: 13 | N95: 1 | O95: 1 | P95: 0 | Q95: 0 | R95: 0 | S95: 35 | T95: 2 | U95: 35
A96: 22:30:00 | B96: 11 | C96: 13 | D96: 0 | E96: 0 | F96: 0 | G96: 0 | H96: 0 | I96: 24 | J96: 0 | K96: 24 | L96: 11 | M96: 8 | N96: 0 | O96: 0 | P96: 0 | Q96: 0 | R96: 0 | S96: 19 | T96: 0 | U96: 19
A97: 22:45:00 | B97: 16 | C97: 6 | D97: 0 | E97: 0 | F97: 0 | G97: 0 | H97: 0 | I97: 22 | J97: 0 | K97: 22 | L97: 14 | M97: 11 | N97: 0 | O97: 0 | P97: 0 | Q97: 0 | R97: 0 | S97: 25 | T97: 0 | U97: 25
A98: 23:00:00 | B98: 10 | C98: 6 | D98: 0 | E98: 0 | F98: 0 | G98: 0 | H98: 0 | I98: 16 | J98: 0 | K98: 16 | L98: 8 | M98: 8 | N98: 0 | O98: 0 | P98: 0 | Q98: 0 | R98: 0 | S98: 16 | T98: 0 | U98: 16
A99: 23:15:00 | B99: 5 | C99: 6 | D99: 0 | E99: 0 | F99: 0 | G99: 0 | H99: 0 | I99: 11 | J99: 0 | K99: 11 | L99: 7 | M99: 1 | N99: 0 | O99: 0 | P99: 0 | Q99: 0 | R99: 0 | S99: 8 | T99: 0 | U99: 8
A100: 23:30:00 | B100: 6 | C100: 4 | D100: 1 | E100: 0 | F100: 0 | G100: 0 | H100: 0 | I100: 11 | J100: 1 | K100: 11 | L100: 6 | M100: 3 | N100: 0 | O100: 0 | P100: 0 | Q100: 0 | R100: 0 | S100: 9 | T100: 0 | U100: 9
A101: 23:45:00 | B101: 5 | C101: 4 | D101: 0 | E101: 0 | F101: 0 | G101: 0 | H101: 0 | I101: 9 | J101: 0 | K101: 9 | L101: 4 | M101: 1 | N101: 0 | O101: 1 | P101: 0 | Q101: 0 | R101: 0 | S101: 6 | T101: 1 | U101: 6
A102: TOTAL | B102: =SUM(B6:B101) -> 4623 | C102: =SUM(C6:C101) -> 2715 | D102: 286 | E102: 86 | F102: 20 | G102: 24 | H102: 24 | I102: 7710 | J102: 372 | K102: 7778 | L102: =SUM(L6:L101) -> 4497 | M102: =SUM(M6:M101) -> 2721 | N102: 254 | O102: 69 | P102: 11 | Q102: 39 | R102: 17 | S102: 7541 | T102: 323 | U102: 7608

Sheet 13 04 2016
A1: * Fill the table with data
A2: DO NOT CHANGE THE STRUCTURE OF THE SPREADSHEET (i.e. ADD OR DELETE ROWS/COLUMNS, ETC.)
B4: ='Site Plan'!$A$19&" - "&'Site Plan'!$C$19 -> Direction 1 - Eastbound | I4: TOTAL | L4: ='Site Plan'!$A$20&" - "&'Site Plan'!$C$20 -> Direction 2 - Westbound | S4: TOTAL
A5: TIME | B5: CAR | C5: LGV | D5: OGV1 | E5: OGV2 | F5: PSV | G5: MCL | H5: PCL | I5: CAR + LGV + HGV | J5: HGV | K5: ALL modes | L5: CAR | M5: LGV | N5: OGV1 | O5: OGV2 | P5: PSV | Q5: MCL | R5: PCL | S5: CAR + LGV + HGV | T5: HGV | U5: ALL modes
A6: 00:00:00 | B6: 2 | C6: 4 | D6: 0 | E6: 0 | F6: 0 | G6: 0 | H6: 0 | I6: =SUM(B6:E6) -> 6 | J6: =SUM(D6:E6) -> 0 | K6: =SUM(B6:H6) -> 6 | L6: 3 | M6: 0 | N6: 1 | O6: 0 | P6: 0 | Q6: 0 | R6: 0 | S6: =SUM(L6:O6) -> 4 | T6: =SUM(N6:O6) -> 1 | U6: =SUM(L6:R6) -> 4
A7: 00:15:00 | B7: 3 | C7: 2 | D7: 0 | E7: 0 | F7: 0 | G7: 0 | H7: 0 | I7: =SUM(B7:E7) -> 5 | J7: =SUM(D7:E7) -> 0 | K7: =SUM(B7:H7) -> 5 | L7: 5 | M7: 1 | N7: 0 | O7: 0 | P7: 0 | Q7: 0 | R7: 0 | S7: =SUM(L7:O7) -> 6 | T7: =SUM(N7:O7) -> 0 | U7: =SUM(L7:R7) -> 6
A8: 00:30:00 | B8: 4 | C8: 1 | D8: 0 | E8: 0 | F8: 0 | G8: 0 | H8: 0 | I8: 5 | J8: 0 | K8: 5 | L8: 0 | M8: 0 | N8: 0 | O8: 0 | P8: 0 | Q8: 0 | R8: 0 | S8: 0 | T8: 0 | U8: 0
A9: 00:45:00 | B9: 4 | C9: 2 | D9: 1 | E9: 0 | F9: 0 | G9: 0 | H9: 0 | I9: 7 | J9: 1 | K9: 7 | L9: 2 | M9: 4 | N9: 0 | O9: 0 | P9: 0 | Q9: 0 | R9: 0 | S9: 6 | T9: 0 | U9: 6
A10: 01:00:00 | B10: 0 | C10: 3 | D10: 0 | E10: 0 | F10: 0 | G10: 0 | H10: 0 | I10: 3 | J10: 0 | K10: 3 | L10: 0 | M10: 0 | N10: 0 | O10: 0 | P10: 0 | Q10: 0 | R10: 0 | S10: 0 | T10: 0 | U10: 0
A11: 01:15:00 | B11: 1 | C11: 0 | D11: 1 | E11: 0 | F11: 0 | G11: 0 | H11: 0 | I11: 2 | J11: 1 | K11: 2 | L11: 2 | M11: 1 | N11: 0 | O11: 0 | P11: 0 | Q11: 0 | R11: 0 | S11: 3 | T11: 0 | U11: 3
A12: 01:30:00 | B12: 2 | C12: 1 | D12: 1 | E12: 0 | F12: 0 | G12: 0 | H12: 0 | I12: 4 | J12: 1 | K12: 4 | L12: 0 | M12: 0 | N12: 0 | O12: 0 | P12: 1 | Q12: 0 | R12: 0 | S12: 0 | T12: 0 | U12: 1
A13: 01:45:00 | B13: 0 | C13: 1 | D13: 0 | E13: 0 | F13: 0 | G13: 0 | H13: 0 | I13: 1 | J13: 0 | K13: 1 | L13: 0 | M13: 4 | N13: 0 | O13: 0 | P13: 0 | Q13: 0 | R13: 0 | S13: 4 | T13: 0 | U13: 4
A14: 02:00:00 | B14: 1 | C14: 0 | D14: 0 | E14: 0 | F14: 0 | G14: 0 | H14: 0 | I14: 1 | J14: 0 | K14: 1 | L14: 3 | M14: 0 | N14: 0 | O14: 0 | P14: 0 | Q14: 0 | R14: 0 | S14: 3 | T14: 0 | U14: 3
A15: 02:15:00 | B15: 7 | C15: 1 | D15: 0 | E15: 1 | F15: 0 | G15: 0 | H15: 0 | I15: 9 | J15: 1 | K15: 9 | L15: 0 | M15: 2 | N15: 0 | O15: 0 | P15: 0 | Q15: 0 | R15: 0 | S15: 2 | T15: 0 | U15: 2
A16: 02:30:00 | B16: 0 | C16: 1 | D16: 0 | E16: 0 | F16: 1 | G16: 0 | H16: 0 | I16: 1 | J16: 0 | K16: 2 | L16: 1 | M16: 0 | N16: 0 | O16: 0 | P16: 0 | Q16: 0 | R16: 0 | S16: 1 | T16: 0 | U16: 1
A17: 02:45:00 | B17: 1 | C17: 1 | D17: 0 | E17: 0 | F17: 0 | G17: 0 | H17: 0 | I17: 2 | J17: 0 | K17: 2 | L17: 2 | M17: 0 | N17: 0 | O17: 0 | P17: 0 | Q17: 0 | R17: 0 | S17: 2 | T17: 0 | U17: 2
A18: 03:00:00 | B18: 2 | C18: 1 | D18: 0 | E18: 0 | F18: 0 | G18: 0 | H18: 0 | I18: 3 | J18: 0 | K18: 3 | L18: 0 | M18: 1 | N18: 0 | O18: 0 | P18: 0 | Q18: 0 | R18: 0 | S18: 1 | T18: 0 | U18: 1
A19: 03:15:00 | B19: 0 | C19: 2 | D19: 0 | E19: 0 | F19: 0 | G19: 0 | H19: 0 | I19: 2 | J19: 0 | K19: 2 | L19: 4 | M19: 4 | N19: 0 | O19: 0 | P19: 0 | Q19: 0 | R19: 0 | S19: 8 | T19: 0 | U19: 8
A20: 03:30:00 | B20: 0 | C20: 1 | D20: 1 | E20: 0 | F20: 0 | G20: 0 | H20: 0 | I20: 2 | J20: 1 | K20: 2 | L20: 4 | M20: 1 | N20: 1 | O20: 0 | P20: 0 | Q20: 0 | R20: 0 | S20: 6 | T20: 1 | U20: 6
A21: 03:45:00 | B21: 2 | C21: 0 | D21: 0 | E21: 0 | F21: 0 | G21: 0 | H21: 0 | I21: 2 | J21: 0 | K21: 2 | L21: 1 | M21: 3 | N21: 0 | O21: 0 | P21: 0 | Q21: 0 | R21: 0 | S21: 4 | T21: 0 | U21: 4
A22: 04:00:00 | B22: 0 | C22: 1 | D22: 0 | E22: 1 | F22: 0 | G22: 0 | H22: 0 | I22: 2 | J22: 1 | K22: 2 | L22: 4 | M22: 1 | N22: 0 | O22: 0 | P22: 0 | Q22: 0 | R22: 0 | S22: 5 | T22: 0 | U22: 5
A23: 04:15:00 | B23: 1 | C23: 2 | D23: 1 | E23: 0 | F23: 0 | G23: 0 | H23: 0 | I23: 4 | J23: 1 | K23: 4 | L23: 4 | M23: 5 | N23: 1 | O23: 1 | P23: 0 | Q23: 0 | R23: 0 | S23: 11 | T23: 2 | U23: 11
A24: 04:30:00 | B24: 1 | C24: 1 | D24: 0 | E24: 0 | F24: 1 | G24: 0 | H24: 0 | I24: 2 | J24: 0 | K24: 3 | L24: 4 | M24: 5 | N24: 0 | O24: 0 | P24: 0 | Q24: 0 | R24: 0 | S24: 9 | T24: 0 | U24: 9
A25: 04:45:00 | B25: 4 | C25: 7 | D25: 0 | E25: 0 | F25: 0 | G25: 0 | H25: 0 | I25: 11 | J25: 0 | K25: 11 | L25: 2 | M25: 13 | N25: 2 | O25: 1 | P25: 0 | Q25: 0 | R25: 0 | S25: 18 | T25: 3 | U25: 18
A26: 05:00:00 | B26: 6 | C26: 3 | D26: 1 | E26: 2 | F26: 0 | G26: 0 | H26: 1 | I26: 12 | J26: 3 | K26: 13 | L26: 10 | M26: 12 | N26: 2 | O26: 0 | P26: 0 | Q26: 0 | R26: 0 | S26: 24 | T26: 2 | U26: 24
A27: 05:15:00 | B27: 2 | C27: 8 | D27: 3 | E27: 0 | F27: 0 | G27: 0 | H27: 0 | I27: 13 | J27: 3 | K27: 13 | L27: 16 | M27: 14 | N27: 3 | O27: 0 | P27: 0 | Q27: 1 | R27: 0 | S27: 33 | T27: 3 | U27: 34
A28: 05:30:00 | B28: 14 | C28: 8 | D28: 0 | E28: 0 | F28: 0 | G28: 0 | H28: 0 | I28: 22 | J28: 0 | K28: 22 | L28: 19 | M28: 19 | N28: 2 | O28: 0 | P28: 0 | Q28: 1 | R28: 0 | S28: 40 | T28: 2 | U28: 41
A29: 05:45:00 | B29: 23 | C29: 7 | D29: 2 | E29: 0 | F29: 0 | G29: 0 | H29: 0 | I29: 32 | J29: 2 | K29: 32 | L29: 28 | M29: 32 | N29: 3 | O29: 0 | P29: 0 | Q29: 1 | R29: 0 | S29: 63 | T29: 3 | U29: 64
A30: 06:00:00 | B30: 17 | C30: 10 | D30: 1 | E30: 0 | F30: 0 | G30: 0 | H30: 0 | I30: 28 | J30: 1 | K30: 28 | L30: 28 | M30: 38 | N30: 5 | O30: 0 | P30: 0 | Q30: 1 | R30: 1 | S30: 71 | T30: 5 | U30: 73
A31: 06:15:00 | B31: 34 | C31: 22 | D31: 4 | E31: 0 | F31: 0 | G31: 0 | H31: 0 | I31: 60 | J31: 4 | K31: 60 | L31: 21 | M31: 33 | N31: 2 | O31: 0 | P31: 0 | Q31: 2 | R31: 1 | S31: 56 | T31: 2 | U31: 59
A32: 06:30:00 | B32: 39 | C32: 17 | D32: 0 | E32: 1 | F32: 0 | G32: 0 | H32: 0 | I32: 57 | J32: 1 | K32: 57 | L32: 57 | M32: 34 | N32: 4 | O32: 1 | P32: 0 | Q32: 4 | R32: 0 | S32: 96 | T32: 5 | U32: 100
A33: 06:45:00 | B33: 61 | C33: 30 | D33: 3 | E33: 1 | F33: 0 | G33: 0 | H33: 0 | I33: 95 | J33: 4 | K33: 95 | L33: 57 | M33: 29 | N33: 5 | O33: 1 | P33: 0 | Q33: 3 | R33: 0 | S33: 92 | T33: 6 | U33: 95
A34: 07:00:00 | B34: 77 | C34: 33 | D34: 4 | E34: 0 | F34: 0 | G34: 0 | H34: 2 | I34: 114 | J34: 4 | K34: 116 | L34: 60 | M34: 48 | N34: 1 | O34: 2 | P34: 1 | Q34: 4 | R34: 0 | S34: 111 | T34: 3 | U34: 116
A35: 07:15:00 | B35: 80 | C35: 40 | D35: 4 | E35: 2 | F35: 0 | G35: 0 | H35: 0 | I35: 126 | J35: 6 | K35: 126 | L35: 80 | M35: 57 | N35: 5 | O35: 0 | P35: 0 | Q35: 0 | R35: 0 | S35: 142 | T35: 5 | U35: 142
A36: 07:30:00 | B36: 108 | C36: 50 | D36: 4 | E36: 1 | F36: 0 | G36: 0 | H36: 0 | I36: 163 | J36: 5 | K36: 163 | L36: 98 | M36: 40 | N36: 8 | O36: 1 | P36: 0 | Q36: 1 | R36: 1 | S36: 147 | T36: 9 | U36: 149
A37: 07:45:00 | B37: 132 | C37: 51 | D37: 4 | E37: 2 | F37: 0 | G37: 0 | H37: 0 | I37: 189 | J37: 6 | K37: 189 | L37: 97 | M37: 42 | N37: 4 | O37: 2 | P37: 0 | Q37: 1 | R37: 0 | S37: 145 | T37: 6 | U37: 146
A38: 08:00:00 | B38: 102 | C38: 43 | D38: 5 | E38: 2 | F38: 0 | G38: 2 | H38: 0 | I38: 152 | J38: 7 | K38: 154 | L38: 103 | M38: 47 | N38: 3 | O38: 1 | P38: 0 | Q38: 0 | R38: 0 | S38: 154 | T38: 4 | U38: 154
A39: 08:15:00 | B39: 91 | C39: 57 | D39: 3 | E39: 2 | F39: 1 | G39: 1 | H39: 0 | I39: 153 | J39: 5 | K39: 155 | L39: 99 | M39: 51 | N39: 8 | O39: 3 | P39: 0 | Q39: 1 | R39: 1 | S39: 161 | T39: 11 | U39: 163
A40: 08:30:00 | B40: 87 | C40: 50 | D40: 4 | E40: 3 | F40: 0 | G40: 1 | H40: 0 | I40: 144 | J40: 7 | K40: 145 | L40: 82 | M40: 39 | N40: 6 | O40: 0 | P40: 0 | Q40: 1 | R40: 0 | S40: 127 | T40: 6 | U40: 128
A41: 08:45:00 | B41: 99 | C41: 48 | D41: 10 | E41: 1 | F41: 1 | G41: 1 | H41: 1 | I41: 158 | J41: 11 | K41: 161 | L41: 91 | M41: 37 | N41: 7 | O41: 1 | P41: 0 | Q41: 0 | R41: 1 | S41: 136 | T41: 8 | U41: 137
A42: 09:00:00 | B42: 63 | C42: 42 | D42: 6 | E42: 0 | F42: 0 | G42: 0 | H42: 0 | I42: 111 | J42: 6 | K42: 111 | L42: 77 | M42: 47 | N42: 4 | O42: 0 | P42: 0 | Q42: 0 | R42: 0 | S42: 128 | T42: 4 | U42: 128
A43: 09:15:00 | B43: 74 | C43: 47 | D43: 3 | E43: 3 | F43: 0 | G43: 0 | H43: 0 | I43: 127 | J43: 6 | K43: 127 | L43: 56 | M43: 39 | N43: 6 | O43: 1 | P43: 0 | Q43: 1 | R43: 0 | S43: 102 | T43: 7 | U43: 103
A44: 09:30:00 | B44: 84 | C44: 43 | D44: 7 | E44: 4 | F44: 1 | G44: 0 | H44: 2 | I44: 138 | J44: 11 | K44: 141 | L44: 61 | M44: 33 | N44: 4 | O44: 1 | P44: 0 | Q44: 0 | R44: 0 | S44: 99 | T44: 5 | U44: 99
A45: 09:45:00 | B45: 73 | C45: 49 | D45: 4 | E45: 3 | F45: 0 | G45: 0 | H45: 0 | I45: 129 | J45: 7 | K45: 129 | L45: 73 | M45: 37 | N45: 7 | O45: 0 | P45: 0 | Q45: 0 | R45: 0 | S45: 117 | T45: 7 | U45: 117
A46: 10:00:00 | B46: 68 | C46: 45 | D46: 7 | E46: 1 | F46: 1 | G46: 1 | H46: 1 | I46: 121 | J46: 8 | K46: 124 | L46: 43 | M46: 29 | N46: 7 | O46: 1 | P46: 0 | Q46: 0 | R46: 0 | S46: 80 | T46: 8 | U46: 80
A47: 10:15:00 | B47: 82 | C47: 46 | D47: 5 | E47: 2 | F47: 1 | G47: 0 | H47: 0 | I47: 135 | J47: 7 | K47: 136 | L47: 70 | M47: 47 | N47: 8 | O47: 1 | P47: 2 | Q47: 0 | R47: 0 | S47: 126 | T47: 9 | U47: 128
A48: 10:30:00 | B48: 72 | C48: 43 | D48: 3 | E48: 3 | F48: 0 | G48: 0 | H48: 0 | I48: 121 | J48: 6 | K48: 121 | L48: 70 | M48: 42 | N48: 3 | O48: 4 | P48: 0 | Q48: 1 | R48: 0 | S48: 119 | T48: 7 | U48: 120
A49: 10:45:00 | B49: 83 | C49: 43 | D49: 3 | E49: 3 | F49: 5 | G49: 1 | H49: 0 | I49: 132 | J49: 6 | K49: 138 | L49: 58 | M49: 35 | N49: 3 | O49: 3 | P49: 0 | Q49: 1 | R49: 1 | S49: 99 | T49: 6 | U49: 101
A50: 11:00:00 | B50: 66 | C50: 41 | D50: 5 | E50: 2 | F50: 0 | G50: 0 | H50: 0 | I50: 114 | J50: 7 | K50: 114 | L50: 66 | M50: 37 | N50: 7 | O50: 4 | P50: 0 | Q50: 1 | R50: 1 | S50: 114 | T50: 11 | U50: 116
A51: 11:15:00 | B51: 68 | C51: 41 | D51: 9 | E51: 0 | F51: 0 | G51: 0 | H51: 3 | I51: 118 | J51: 9 | K51: 121 | L51: 78 | M51: 38 | N51: 3 | O51: 1 | P51: 0 | Q51: 1 | R51: 0 | S51: 120 | T51: 4 | U51: 121
A52: 11:30:00 | B52: 79 | C52: 39 | D52: 3 | E52: 0 | F52: 2 | G52: 0 | H52: 0 | I52: 121 | J52: 3 | K52: 123 | L52: 58 | M52: 37 | N52: 4 | O52: 2 | P52: 0 | Q52: 0 | R52: 0 | S52: 101 | T52: 6 | U52: 101
A53: 11:45:00 | B53: 77 | C53: 59 | D53: 5 | E53: 2 | F53: 0 | G53: 1 | H53: 2 | I53: 143 | J53: 7 | K53: 146 | L53: 77 | M53: 46 | N53: 4 | O53: 1 | P53: 0 | Q53: 0 | R53: 0 | S53: 128 | T53: 5 | U53: 128
A54: 12:00:00 | B54: 88 | C54: 48 | D54: 6 | E54: 3 | F54: 3 | G54: 1 | H54: 0 | I54: 145 | J54: 9 | K54: 149 | L54: 72 | M54: 43 | N54: 4 | O54: 1 | P54: 1 | Q54: 2 | R54: 0 | S54: 120 | T54: 5 | U54: 123
A55: 12:15:00 | B55: 61 | C55: 42 | D55: 8 | E55: 3 | F55: 0 | G55: 0 | H55: 1 | I55: 114 | J55: 11 | K55: 115 | L55: 71 | M55: 46 | N55: 4 | O55: 2 | P55: 0 | Q55: 1 | R55: 0 | S55: 123 | T55: 6 | U55: 124
A56: 12:30:00 | B56: 93 | C56: 39 | D56: 8 | E56: 0 | F56: 0 | G56: 2 | H56: 0 | I56: 140 | J56: 8 | K56: 142 | L56: 56 | M56: 41 | N56: 7 | O56: 2 | P56: 2 | Q56: 2 | R56: 1 | S56: 106 | T56: 9 | U56: 111
A57: 12:45:00 | B57: 71 | C57: 54 | D57: 7 | E57: 1 | F57: 1 | G57: 3 | H57: 0 | I57: 133 | J57: 8 | K57: 137 | L57: 91 | M57: 51 | N57: 7 | O57: 1 | P57: 0 | Q57: 0 | R57: 0 | S57: 150 | T57: 8 | U57: 150
A58: 13:00:00 | B58: 80 | C58: 34 | D58: 5 | E58: 1 | F58: 0 | G58: 4 | H58: 3 | I58: 120 | J58: 6 | K58: 127 | L58: 65 | M58: 35 | N58: 10 | O58: 1 | P58: 0 | Q58: 2 | R58: 0 | S58: 111 | T58: 11 | U58: 113
A59: 13:15:00 | B59: 82 | C59: 34 | D59: 8 | E59: 3 | F59: 1 | G59: 2 | H59: 1 | I59: 127 | J59: 11 | K59: 131 | L59: 82 | M59: 39 | N59: 5 | O59: 0 | P59: 0 | Q59: 2 | R59: 0 | S59: 126 | T59: 5 | U59: 128
A60: 13:30:00 | B60: 77 | C60: 46 | D60: 3 | E60: 2 | F60: 1 | G60: 0 | H60: 1 | I60: 128 | J60: 5 | K60: 130 | L60: 70 | M60: 41 | N60: 5 | O60: 1 | P60: 1 | Q60: 0 | R60: 0 | S60: 117 | T60: 6 | U60: 118
A61: 13:45:00 | B61: 88 | C61: 35 | D61: 6 | E61: 2 | F61: 2 | G61: 2 | H61: 1 | I61: 131 | J61: 8 | K61: 136 | L61: 60 | M61: 38 | N61: 6 | O61: 0 | P61: 0 | Q61: 1 | R61: 1 | S61: 104 | T61: 6 | U61: 106
A62: 14:00:00 | B62: 69 | C62: 40 | D62: 7 | E62: 5 | F62: 0 | G62: 0 | H62: 1 | I62: 121 | J62: 12 | K62: 122 | L62: 73 | M62: 46 | N62: 4 | O62: 2 | P62: 0 | Q62: 1 | R62: 0 | S62: 125 | T62: 6 | U62: 126
A63: 14:15:00 | B63: 90 | C63: 45 | D63: 8 | E63: 2 | F63: 2 | G63: 1 | H63: 2 | I63: 145 | J63: 10 | K63: 150 | L63: 57 | M63: 38 | N63: 8 | O63: 0 | P63: 0 | Q63: 1 | R63: 0 | S63: 103 | T63: 8 | U63: 104
A64: 14:30:00 | B64: 74 | C64: 52 | D64: 4 | E64: 3 | F64: 0 | G64: 1 | H64: 0 | I64: 133 | J64: 7 | K64: 134 | L64: 82 | M64: 45 | N64: 6 | O64: 1 | P64: 2 | Q64: 1 | R64: 1 | S64: 134 | T64: 7 | U64: 138
A65: 14:45:00 | B65: 81 | C65: 42 | D65: 9 | E65: 1 | F65: 0 | G65: 1 | H65: 0 | I65: 133 | J65: 10 | K65: 134 | L65: 76 | M65: 40 | N65: 5 | O65: 1 | P65: 0 | Q65: 0 | R65: 0 | S65: 122 | T65: 6 | U65: 122
A66: 15:00:00 | B66: 72 | C66: 40 | D66: 7 | E66: 1 | F66: 0 | G66: 0 | H66: 2 | I66: 120 | J66: 8 | K66: 122 | L66: 94 | M66: 40 | N66: 4 | O66: 4 | P66: 0 | Q66: 0 | R66: 0 | S66: 142 | T66: 8 | U66: 142
A67: 15:15:00 | B67: 77 | C67: 44 | D67: 8 | E67: 0 | F67: 0 | G67: 1 | H67: 0 | I67: 129 | J67: 8 | K67: 130 | L67: 69 | M67: 47 | N67: 3 | O67: 2 | P67: 0 | Q67: 0 | R67: 0 | S67: 121 | T67: 5 | U67: 121
A68: 15:30:00 | B68: 72 | C68: 43 | D68: 5 | E68: 3 | F68: 1 | G68: 1 | H68: 2 | I68: 123 | J68: 8 | K68: 127 | L68: 96 | M68: 50 | N68: 4 | O68: 2 | P68: 0 | Q68: 1 | R68: 0 | S68: 152 | T68: 6 | U68: 153
A69: 15:45:00 | B69: 109 | C69: 49 | D69: 5 | E69: 0 | F69: 0 | G69: 0 | H69: 1 | I69: 163 | J69: 5 | K69: 164 | L69: 91 | M69: 46 | N69: 1 | O69: 1 | P69: 0 | Q69: 1 | R69: 1 | S69: 139 | T69: 2 | U69: 141
A70: 16:00:00 | B70: 93 | C70: 50 | D70: 1 | E70: 1 | F70: 0 | G70: 1 | H70: 0 | I70: 145 | J70: 2 | K70: 146 | L70: 104 | M70: 61 | N70: 4 | O70: 1 | P70: 0 | Q70: 1 | R70: 1 | S70: 170 | T70: 5 | U70: 172
A71: 16:15:00 | B71: 87 | C71: 59 | D71: 4 | E71: 0 | F71: 0 | G71: 1 | H71: 0 | I71: =SUM(B71:E71) -> 150 | J71: =SUM(D71:E71) -> 4 | K71: =SUM(B71:H71) -> 151 | L71: 90 | M71: 57 | N71: 5 | O71: 1 | P71: 0 | Q71: 0 | R71: 2 | S71: =SUM(L71:O71) -> 153 | T71: =SUM(N71:O71) -> 6 | U71: =SUM(L71:R71) -> 155
A72: 16:30:00 | B72: 101 | C72: 55 | D72: 6 | E72: 0 | F72: 0 | G72: 1 | H72: 1 | I72: 162 | J72: 6 | K72: 164 | L72: 111 | M72: 64 | N72: 8 | O72: 0 | P72: 0 | Q72: 0 | R72: 0 | S72: 183 | T72: 8 | U72: 183
A73: 16:45:00 | B73: 113 | C73: 58 | D73: 1 | E73: 0 | F73: 0 | G73: 2 | H73: 1 | I73: 172 | J73: 1 | K73: 175 | L73: 116 | M73: 64 | N73: 2 | O73: 0 | P73: 1 | Q73: 0 | R73: 0 | S73: 182 | T73: 2 | U73: 183
A74: 17:00:00 | B74: 139 | C74: 73 | D74: 1 | E74: 2 | F74: 0 | G74: 2 | H74: 2 | I74: 215 | J74: 3 | K74: 219 | L74: 99 | M74: 63 | N74: 2 | O74: 2 | P74: 0 | Q74: 1 | R74: 0 | S74: 166 | T74: 4 | U74: 167
A75: 17:15:00 | B75: 134 | C75: 60 | D75: 4 | E75: 2 | F75: 0 | G75: 3 | H75: 1 | I75: 200 | J75: 6 | K75: 204 | L75: 96 | M75: 51 | N75: 3 | O75: 2 | P75: 0 | Q75: 4 | R75: 0 | S75: 152 | T75: 5 | U75: 156
A76: 17:30:00 | B76: 117 | C76: 54 | D76: 2 | E76: 3 | F76: 0 | G76: 2 | H76: 0 | I76: 176 | J76: 5 | K76: 178 | L76: 108 | M76: 49 | N76: 2 | O76: 0 | P76: 0 | Q76: 0 | R76: 3 | S76: 159 | T76: 2 | U76: 162
A77: 17:45:00 | B77: 87 | C77: 55 | D77: 4 | E77: 0 | F77: 1 | G77: 0 | H77: 1 | I77: 146 | J77: 4 | K77: 148 | L77: 110 | M77: 54 | N77: 0 | O77: 0 | P77: 0 | Q77: 1 | R77: 2 | S77: 164 | T77: 0 | U77: 167
A78: 18:00:00 | B78: 108 | C78: 57 | D78: 3 | E78: 1 | F78: 0 | G78: 0 | H78: 1 | I78: 169 | J78: 4 | K78: 170 | L78: 87 | M78: 48 | N78: 4 | O78: 4 | P78: 0 | Q78: 2 | R78: 0 | S78: 143 | T78: 8 | U78: 145
A79: 18:15:00 | B79: 95 | C79: 64 | D79: 2 | E79: 0 | F79: 0 | G79: 3 | H79: 0 | I79: 161 | J79: 2 | K79: 164 | L79: 81 | M79: 44 | N79: 2 | O79: 0 | P79: 0 | Q79: 0 | R79: 0 | S79: 127 | T79: 2 | U79: 127
A80: 18:30:00 | B80: 70 | C80: 49 | D80: 4 | E80: 1 | F80: 0 | G80: 1 | H80: 0 | I80: 124 | J80: 5 | K80: 125 | L80: 62 | M80: 41 | N80: 1 | O80: 0 | P80: 0 | Q80: 0 | R80: 3 | S80: 104 | T80: 1 | U80: 107
A81: 18:45:00 | B81: 73 | C81: 44 | D81: 0 | E81: 0 | F81: 0 | G81: 0 | H81: 1 | I81: 117 | J81: 0 | K81: 118 | L81: 77 | M81: 51 | N81: 1 | O81: 0 | P81: 0 | Q81: 0 | R81: 2 | S81: 129 | T81: 1 | U81: 131
A82: 19:00:00 | B82: 79 | C82: 40 | D82: 3 | E82: 0 | F82: 0 | G82: 1 | H82: 2 | I82: 122 | J82: 3 | K82: 125 | L82: 59 | M82: 30 | N82: 1 | O82: 1 | P82: 0 | Q82: 1 | R82: 1 | S82: 91 | T82: 2 | U82: 93
A83: 19:15:00 | B83: 50 | C83: 35 | D83: 1 | E83: 1 | F83: 0 | G83: 1 | H83: 0 | I83: 87 | J83: 2 | K83: 88 | L83: 43 | M83: 34 | N83: 0 | O83: 1 | P83: 0 | Q83: 0 | R83: 0 | S83: 78 | T83: 1 | U83: 78
A84: 19:30:00 | B84: 34 | C84: 24 | D84: 0 | E84: 1 | F84: 0 | G84: 0 | H84: 3 | I84: 59 | J84: 1 | K84: 62 | L84: 51 | M84: 28 | N84: 0 | O84: 0 | P84: 0 | Q84: 0 | R84: 1 | S84: 79 | T84: 0 | U84: 80
A85: 19:45:00 | B85: 37 | C85: 20 | D85: 0 | E85: 0 | F85: 0 | G85: 1 | H85: 1 | I85: 57 | J85: 0 | K85: 59 | L85: 36 | M85: 23 | N85: 0 | O85: 0 | P85: 0 | Q85: 0 | R85: 0 | S85: 59 | T85: 0 | U85: 59
A86: 20:00:00 | B86: 32 | C86: 19 | D86: 0 | E86: 0 | F86: 0 | G86: 0 | H86: 1 | I86: 51 | J86: 0 | K86: 52 | L86: 32 | M86: 21 | N86: 0 | O86: 0 | P86: 0 | Q86: 0 | R86: 0 | S86: 53 | T86: 0 | U86: 53
A87: 20:15:00 | B87: 35 | C87: 21 | D87: 0 | E87: 0 | F87: 0 | G87: 0 | H87: 0 | I87: 56 | J87: 0 | K87: 56 | L87: 41 | M87: 21 | N87: 0 | O87: 0 | P87: 0 | Q87: 0 | R87: 0 | S87: 62 | T87: 0 | U87: 62
A88: 20:30:00 | B88: 21 | C88: 17 | D88: 1 | E88: 0 | F88: 0 | G88: 1 | H88: 0 | I88: 39 | J88: 1 | K88: 40 | L88: 26 | M88: 22 | N88: 0 | O88: 0 | P88: 0 | Q88: 0 | R88: 0 | S88: 48 | T88: 0 | U88: 48
A89: 20:45:00 | B89: 18 | C89: 10 | D89: 0 | E89: 0 | F89: 0 | G89: 0 | H89: 0 | I89: 28 | J89: 0 | K89: 28 | L89: 29 | M89: 26 | N89: 2 | O89: 0 | P89: 0 | Q89: 2 | R89: 0 | S89: 57 | T89: 2 | U89: 59
A90: 21:00:00 | B90: 33 | C90: 20 | D90: 0 | E90: 0 | F90: 0 | G90: 0 | H90: 1 | I90: 53 | J90: 0 | K90: 54 | L90: 24 | M90: 20 | N90: 0 | O90: 0 | P90: 0 | Q90: 0 | R90: 0 | S90: 44 | T90: 0 | U90: 44
A91: 21:15:00 | B91: 24 | C91: 22 | D91: 0 | E91: 1 | F91: 0 | G91: 1 | H91: 0 | I91: 47 | J91: 1 | K91: 48 | L91: 29 | M91: 23 | N91: 0 | O91: 0 | P91: 0 | Q91: 0 | R91: 0 | S91: 52 | T91: 0 | U91: 52
A92: 21:30:00 | B92: 13 | C92: 14 | D92: 0 | E92: 0 | F92: 0 | G92: 1 | H92: 0 | I92: 27 | J92: 0 | K92: 28 | L92: 23 | M92: 14 | N92: 0 | O92: 0 | P92: 0 | Q92: 0 | R92: 0 | S92: 37 | T92: 0 | U92: 37
A93: 21:45:00 | B93: 19 | C93: 6 | D93: 1 | E93: 0 | F93: 0 | G93: 0 | H93: 0 | I93: 26 | J93: 1 | K93: 26 | L93: 26 | M93: 17 | N93: 0 | O93: 0 | P93: 0 | Q93: 4 | R93: 0 | S93: 43 | T93: 0 | U93: 47
A94: 22:00:00 | B94: 25 | C94: 7 | D94: 0 | E94: 0 | F94: 0 | G94: 0 | H94: 0 | I94: 32 | J94: 0 | K94: 32 | L94: 30 | M94: 8 | N94: 0 | O94: 0 | P94: 0 | Q94: 0 | R94: 0 | S94: 38 | T94: 0 | U94: 38
A95: 22:15:00 | B95: 16 | C95: 9 | D95: 1 | E95: 0 | F95: 0 | G95: 0 | H95: 0 | I95: 26 | J95: 1 | K95: 26 | L95: 18 | M95: 14 | N95: 0 | O95: 1 | P95: 0 | Q95: 1 | R95: 0 | S95: 33 | T95: 1 | U95: 34
A96: 22:30:00 | B96: 13 | C96: 7 | D96: 0 | E96: 0 | F96: 0 | G96: 0 | H96: 0 | I96: 20 | J96: 0 | K96: 20 | L96: 12 | M96: 9 | N96: 0 | O96: 0 | P96: 0 | Q96: 0 | R96: 0 | S96: 21 | T96: 0 | U96: 21
A97: 22:45:00 | B97: 13 | C97: 7 | D97: 0 | E97: 0 | F97: 1 | G97: 0 | H97: 0 | I97: 20 | J97: 0 | K97: 21 | L97: 7 | M97: 9 | N97: 0 | O97: 0 | P97: 0 | Q97: 1 | R97: 0 | S97: 16 | T97: 0 | U97: 17
A98: 23:00:00 | B98: 8 | C98: 8 | D98: 0 | E98: 0 | F98: 0 | G98: 0 | H98: 0 | I98: 16 | J98: 0 | K98: 16 | L98: 9 | M98: 3 | N98: 0 | O98: 0 | P98: 0 | Q98: 0 | R98: 0 | S98: 12 | T98: 0 | U98: 12
A99: 23:15:00 | B99: 10 | C99: 5 | D99: 0 | E99: 0 | F99: 0 | G99: 0 | H99: 0 | I99: 15 | J99: 0 | K99: 15 | L99: 13 | M99: 3 | N99: 0 | O99: 0 | P99: 0 | Q99: 1 | R99: 0 | S99: 16 | T99: 0 | U99: 17
A100: 23:30:00 | B100: 8 | C100: 8 | D100: 0 | E100: 0 | F100: 0 | G100: 0 | H100: 0 | I100: 16 | J100: 0 | K100: 16 | L100: 6 | M100: 3 | N100: 0 | O100: 0 | P100: 0 | Q100: 0 | R100: 0 | S100: 9 | T100: 0 | U100: 9
A101: 23:45:00 | B101: 8 | C101: 4 | D101: 0 | E101: 0 | F101: 0 | G101: 0 | H101: 0 | I101: 12 | J101: 0 | K101: 12 | L101: 5 | M101: 2 | N101: 0 | O101: 0 | P101: 0 | Q101: 0 | R101: 0 | S101: 7 | T101: 0 | U101: 7
A102: TOTAL | B102: =SUM(B6:B101) -> 4893 | C102: =SUM(C6:C101) -> 2715 | D102: 260 | E102: 85 | F102: 27 | G102: 49 | H102: 43 | I102: 7953 | J102: 345 | K102: 8072 | L102: =SUM(L6:L101) -> 4639 | M102: =SUM(M6:M101) -> 2747 | N102: 253 | O102: 67 | P102: 11 | Q102: 60 | R102: 26 | S102: 7706 | T102: 320 | U102: 7803

Sheet 14 04 2016
A1: * Fill the table with data
A2: DO NOT CHANGE THE STRUCTURE OF THE SPREADSHEET (i.e. ADD OR DELETE ROWS/COLUMNS, ETC.)
B4: ='Site Plan'!$A$19&" - "&'Site Plan'!$C$19 -> Direction 1 - Eastbound | I4: TOTAL | L4: ='Site Plan'!$A$20&" - "&'Site Plan'!$C$20 -> Direction 2 - Westbound | S4: TOTAL
A5: TIME | B5: CAR | C5: LGV | D5: OGV1 | E5: OGV2 | F5: PSV | G5: MCL | H5: PCL | I5: CAR + LGV + HGV | J5: HGV | K5: ALL modes | L5: CAR | M5: LGV | N5: OGV1 | O5: OGV2 | P5: PSV | Q5: MCL | R5: PCL | S5: CAR + LGV + HGV | T5: HGV | U5: ALL modes
A6: 00:00:00 | B6: 2 | C6: 2 | D6: 0 | E6: 0 | F6: 0 | G6: 0 | H6: 0 | I6: =SUM(B6:E6) -> 4 | J6: =SUM(D6:E6) -> 0 | K6: =SUM(B6:H6) -> 4 | L6: 5 | M6: 2 | N6: 0 | O6: 0 | P6: 0 | Q6: 0 | R6: 0 | S6: =SUM(L6:O6) -> 7 | T6: =SUM(N6:O6) -> 0 | U6: =SUM(L6:R6) -> 7
A7: 00:15:00 | B7: 4 | C7: 6 | D7: 0 | E7: 0 | F7: 0 | G7: 0 | H7: 0 | I7: =SUM(B7:E7) -> 10 | J7: =SUM(D7:E7) -> 0 | K7: =SUM(B7:H7) -> 10 | L7: 1 | M7: 1 | N7: 0 | O7: 0 | P7: 0 | Q7: 0 | R7: 0 | S7: =SUM(L7:O7) -> 2 | T7: =SUM(N7:O7) -> 0 | U7: =SUM(L7:R7) -> 2
A8: 00:30:00 | B8: 3 | C8: 1 | D8: 0 | E8: 0 | F8: 0 | G8: 0 | H8: 0 | I8: 4 | J8: 0 | K8: 4 | L8: 0 | M8: 1 | N8: 0 | O8: 0 | P8: 0 | Q8: 0 | R8: 0 | S8: 1 | T8: 0 | U8: 1
A9: 00:45:00 | B9: 3 | C9: 1 | D9: 0 | E9: 0 | F9: 0 | G9: 0 | H9: 0 | I9: 4 | J9: 0 | K9: 4 | L9: 2 | M9: 0 | N9: 0 | O9: 0 | P9: 0 | Q9: 0 | R9: 0 | S9: 2 | T9: 0 | U9: 2
A10: 01:00:00 | B10: 1 | C10: 3 | D10: 1 | E10: 0 | F10: 0 | G10: 0 | H10: 0 | I10: 5 | J10: 1 | K10: 5 | L10: 1 | M10: 2 | N10: 0 | O10: 0 | P10: 0 | Q10: 0 | R10: 0 | S10: 3 | T10: 0 | U10: 3
A11: 01:15:00 | B11: 1 | C11: 1 | D11: 0 | E11: 0 | F11: 0 | G11: 0 | H11: 0 | I11: 2 | J11: 0 | K11: 2 | L11: 0 | M11: 2 | N11: 1 | O11: 0 | P11: 0 | Q11: 0 | R11: 0 | S11: 3 | T11: 1 | U11: 3
A12: 01:30:00 | B12: 1 | C12: 1 | D12: 0 | E12: 0 | F12: 0 | G12: 0 | H12: 0 | I12: 2 | J12: 0 | K12: 2 | L12: 1 | M12: 0 | N12: 0 | O12: 0 | P12: 0 | Q12: 0 | R12: 0 | S12: 1 | T12: 0 | U12: 1
A13: 01:45:00 | B13: 1 | C13: 2 | D13: 0 | E13: 1 | F13: 0 | G13: 0 | H13: 0 | I13: 4 | J13: 1 | K13: 4 | L13: 0 | M13: 1 | N13: 0 | O13: 0 | P13: 0 | Q13: 0 | R13: 0 | S13: 1 | T13: 0 | U13: 1
A14: 02:00:00 | B14: 1 | C14: 1 | D14: 1 | E14: 1 | F14: 0 | G14: 0 | H14: 0 | I14: 4 | J14: 2 | K14: 4 | L14: 1 | M14: 1 | N14: 1 | O14: 0 | P14: 0 | Q14: 0 | R14: 0 | S14: 3 | T14: 1 | U14: 3
A15: 02:15:00 | B15: 1 | C15: 0 | D15: 0 | E15: 1 | F15: 0 | G15: 0 | H15: 0 | I15: 2 | J15: 1 | K15: 2 | L15: 0 | M15: 3 | N15: 0 | O15: 0 | P15: 0 | Q15: 0 | R15: 0 | S15: 3 | T15: 0 | U15: 3
A16: 02:30:00 | B16: 0 | C16: 1 | D16: 1 | E16: 0 | F16: 0 | G16: 0 | H16: 0 | I16: 2 | J16: 1 | K16: 2 | L16: 0 | M16: 1 | N16: 0 | O16: 0 | P16: 0 | Q16: 0 | R16: 0 | S16: 1 | T16: 0 | U16: 1
A17: 02:45:00 | B17: 1 | C17: 0 | D17: 0 | E17: 0 | F17: 0 | G17: 0 | H17: 0 | I17: 1 | J17: 0 | K17: 1 | L17: 1 | M17: 2 | N17: 0 | O17: 0 | P17: 0 | Q17: 0 | R17: 0 | S17: 3 | T17: 0 | U17: 3
A18: 03:00:00 | B18: 0 | C18: 1 | D18: 0 | E18: 0 | F18: 0 | G18: 0 | H18: 0 | I18: 1 | J18: 0 | K18: 1 | L18: 0 | M18: 2 | N18: 0 | O18: 1 | P18: 0 | Q18: 0 | R18: 0 | S18: 3 | T18: 1 | U18: 3
A19: 03:15:00 | B19: 2 | C19: 0 | D19: 1 | E19: 0 | F19: 0 | G19: 0 | H19: 0 | I19: 3 | J19: 1 | K19: 3 | L19: 2 | M19: 2 | N19: 0 | O19: 0 | P19: 0 | Q19: 0 | R19: 0 | S19: 4 | T19: 0 | U19: 4
A20: 03:30:00 | B20: 3 | C20: 0 | D20: 0 | E20: 1 | F20: 0 | G20: 0 | H20: 0 | I20: 4 | J20: 1 | K20: 4 | L20: 0 | M20: 2 | N20: 0 | O20: 0 | P20: 0 | Q20: 0 | R20: 0 | S20: 2 | T20: 0 | U20: 2
A21: 03:45:00 | B21: 0 | C21: 3 | D21: 0 | E21: 0 | F21: 0 | G21: 0 | H21: 0 | I21: 3 | J21: 0 | K21: 3 | L21: 2 | M21: 4 | N21: 0 | O21: 0 | P21: 0 | Q21: 0 | R21: 0 | S21: 6 | T21: 0 | U21: 6
A22: 04:00:00 | B22: 1 | C22: 2 | D22: 1 | E22: 0 | F22: 0 | G22: 0 | H22: 0 | I22: 4 | J22: 1 | K22: 4 | L22: 4 | M22: 1 | N22: 1 | O22: 1 | P22: 0 | Q22: 0 | R22: 0 | S22: 7 | T22: 2 | U22: 7
A23: 04:15:00 | B23: 4 | C23: 2 | D23: 0 | E23: 0 | F23: 0 | G23: 0 | H23: 0 | I23: 6 | J23: 0 | K23: 6 | L23: 4 | M23: 4 | N23: 0 | O23: 0 | P23: 0 | Q23: 0 | R23: 0 | S23: 8 | T23: 0 | U23: 8
A24: 04:30:00 | B24: 2 | C24: 2 | D24: 1 | E24: 0 | F24: 0 | G24: 0 | H24: 0 | I24: 5 | J24: 1 | K24: 5 | L24: 4 | M24: 10 | N24: 1 | O24: 1 | P24: 0 | Q24: 0 | R24: 0 | S24: 16 | T24: 2 | U24: 16
A25: 04:45:00 | B25: 5 | C25: 3 | D25: 0 | E25: 0 | F25: 0 | G25: 0 | H25: 0 | I25: 8 | J25: 0 | K25: 8 | L25: 5 | M25: 6 | N25: 1 | O25: 1 | P25: 0 | Q25: 0 | R25: 0 | S25: 13 | T25: 2 | U25: 13
A26: 05:00:00 | B26: 5 | C26: 1 | D26: 0 | E26: 0 | F26: 0 | G26: 0 | H26: 2 | I26: 6 | J26: 0 | K26: 8 | L26: 4 | M26: 10 | N26: 3 | O26: 0 | P26: 0 | Q26: 0 | R26: 0 | S26: 17 | T26: 3 | U26: 17
A27: 05:15:00 | B27: 5 | C27: 8 | D27: 1 | E27: 1 | F27: 0 | G27: 0 | H27: 0 | I27: 15 | J27: 2 | K27: 15 | L27: 13 | M27: 23 | N27: 3 | O27: 0 | P27: 0 | Q27: 1 | R27: 0 | S27: 39 | T27: 3 | U27: 40
A28: 05:30:00 | B28: 10 | C28: 7 | D28: 1 | E28: 0 | F28: 0 | G28: 0 | H28: 0 | I28: 18 | J28: 1 | K28: 18 | L28: 23 | M28: 21 | N28: 1 | O28: 2 | P28: 0 | Q28: 1 | R28: 0 | S28: 47 | T28: 3 | U28: 48
A29: 05:45:00 | B29: 18 | C29: 8 | D29: 4 | E29: 0 | F29: 0 | G29: 1 | H29: 0 | I29: 30 | J29: 4 | K29: 31 | L29: 23 | M29: 22 | N29: 3 | O29: 1 | P29: 0 | Q29: 2 | R29: 0 | S29: 49 | T29: 4 | U29: 51
A30: 06:00:00 | B30: 21 | C30: 7 | D30: 1 | E30: 0 | F30: 0 | G30: 0 | H30: 0 | I30: 29 | J30: 1 | K30: 29 | L30: 26 | M30: 36 | N30: 8 | O30: 0 | P30: 0 | Q30: 0 | R30: 0 | S30: 70 | T30: 8 | U30: 70
A31: 06:15:00 | B31: 27 | C31: 14 | D31: 3 | E31: 0 | F31: 0 | G31: 0 | H31: 0 | I31: 44 | J31: 3 | K31: 44 | L31: 43 | M31: 24 | N31: 1 | O31: 0 | P31: 0 | Q31: 2 | R31: 0 | S31: 68 | T31: 1 | U31: 70
A32: 06:30:00 | B32: 43 | C32: 22 | D32: 2 | E32: 0 | F32: 0 | G32: 0 | H32: 0 | I32: 67 | J32: 2 | K32: 67 | L32: 34 | M32: 37 | N32: 3 | O32: 1 | P32: 0 | Q32: 2 | R32: 0 | S32: 75 | T32: 4 | U32: 77
A33: 06:45:00 | B33: 45 | C33: 33 | D33: 4 | E33: 2 | F33: 0 | G33: 0 | H33: 0 | I33: 84 | J33: 6 | K33: 84 | L33: 56 | M33: 38 | N33: 5 | O33: 3 | P33: 2 | Q33: 4 | R33: 0 | S33: 102 | T33: 8 | U33: 108
A34: 07:00:00 | B34: 58 | C34: 49 | D34: 2 | E34: 1 | F34: 0 | G34: 3 | H34: 1 | I34: 110 | J34: 3 | K34: 114 | L34: 66 | M34: 44 | N34: 3 | O34: 2 | P34: 0 | Q34: 2 | R34: 0 | S34: 115 | T34: 5 | U34: 117
A35: 07:15:00 | B35: 74 | C35: 55 | D35: 5 | E35: 0 | F35: 1 | G35: 1 | H35: 0 | I35: 134 | J35: 5 | K35: 136 | L35: 96 | M35: 51 | N35: 9 | O35: 2 | P35: 0 | Q35: 2 | R35: 0 | S35: 158 | T35: 11 | U35: 160
A36: 07:30:00 | B36: 98 | C36: 52 | D36: 6 | E36: 4 | F36: 2 | G36: 0 | H36: 0 | I36: 160 | J36: 10 | K36: 162 | L36: 94 | M36: 67 | N36: 10 | O36: 0 | P36: 0 | Q36: 0 | R36: 1 | S36: 171 | T36: 10 | U36: 172
A37: 07:45:00 | B37: 111 | C37: 43 | D37: 4 | E37: 0 | F37: 0 | G37: 0 | H37: 1 | I37: 158 | J37: 4 | K37: 159 | L37: 102 | M37: 56 | N37: 9 | O37: 2 | P37: 0 | Q37: 0 | R37: 0 | S37: 169 | T37: 11 | U37: 169
A38: 08:00:00 | B38: 103 | C38: 49 | D38: 2 | E38: 1 | F38: 0 | G38: 1 | H38: 0 | I38: 155 | J38: 3 | K38: 156 | L38: 96 | M38: 65 | N38: 6 | O38: 1 | P38: 0 | Q38: 0 | R38: 1 | S38: 168 | T38: 7 | U38: 169
A39: 08:15:00 | B39: 105 | C39: 49 | D39: 4 | E39: 2 | F39: 0 | G39: 2 | H39: 0 | I39: 160 | J39: 6 | K39: 162 | L39: 83 | M39: 58 | N39: 7 | O39: 2 | P39: 0 | Q39: 0 | R39: 0 | S39: 150 | T39: 9 | U39: 150
A40: 08:30:00 | B40: 106 | C40: 44 | D40: 2 | E40: 1 | F40: 0 | G40: 1 | H40: 0 | I40: 153 | J40: 3 | K40: 154 | L40: 89 | M40: 52 | N40: 6 | O40: 0 | P40: 0 | Q40: 0 | R40: 0 | S40: 147 | T40: 6 | U40: 147
A41: 08:45:00 | B41: 127 | C41: 44 | D41: 8 | E41: 0 | F41: 1 | G41: 0 | H41: 1 | I41: 179 | J41: 8 | K41: 181 | L41: 86 | M41: 42 | N41: 12 | O41: 0 | P41: 0 | Q41: 0 | R41: 0 | S41: 140 | T41: 12 | U41: 140
A42: 09:00:00 | B42: 106 | C42: 34 | D42: 6 | E42: 2 | F42: 0 | G42: 0 | H42: 0 | I42: 148 | J42: 8 | K42: 148 | L42: 71 | M42: 38 | N42: 8 | O42: 3 | P42: 0 | Q42: 1 | R42: 0 | S42: 120 | T42: 11 | U42: 121
A43: 09:15:00 | B43: 98 | C43: 47 | D43: 9 | E43: 2 | F43: 0 | G43: 0 | H43: 1 | I43: 156 | J43: 11 | K43: 157 | L43: 53 | M43: 46 | N43: 4 | O43: 1 | P43: 1 | Q43: 1 | R43: 0 | S43: 104 | T43: 5 | U43: 106
A44: 09:30:00 | B44: 89 | C44: 46 | D44: 5 | E44: 1 | F44: 1 | G44: 1 | H44: 0 | I44: 141 | J44: 6 | K44: 143 | L44: 55 | M44: 42 | N44: 7 | O44: 4 | P44: 2 | Q44: 1 | R44: 0 | S44: 108 | T44: 11 | U44: 111
A45: 09:45:00 | B45: 84 | C45: 50 | D45: 4 | E45: 0 | F45: 0 | G45: 1 | H45: 1 | I45: 138 | J45: 4 | K45: 140 | L45: 69 | M45: 29 | N45: 5 | O45: 3 | P45: 0 | Q45: 0 | R45: 0 | S45: 106 | T45: 8 | U45: 106
A46: 10:00:00 | B46: 72 | C46: 54 | D46: 5 | E46: 1 | F46: 1 | G46: 1 | H46: 0 | I46: 132 | J46: 6 | K46: 134 | L46: 63 | M46: 40 | N46: 6 | O46: 1 | P46: 1 | Q46: 0 | R46: 0 | S46: 110 | T46: 7 | U46: 111
A47: 10:15:00 | B47: 96 | C47: 51 | D47: 6 | E47: 0 | F47: 0 | G47: 1 | H47: 0 | I47: 153 | J47: 6 | K47: 154 | L47: 62 | M47: 37 | N47: 5 | O47: 1 | P47: 0 | Q47: 1 | R47: 0 | S47: 105 | T47: 6 | U47: 106
A48: 10:30:00 | B48: 74 | C48: 30 | D48: 9 | E48: 3 | F48: 0 | G48: 0 | H48: 1 | I48: 116 | J48: 12 | K48: 117 | L48: 66 | M48: 48 | N48: 7 | O48: 2 | P48: 0 | Q48: 1 | R48: 2 | S48: 123 | T48: 9 | U48: 126
A49: 10:45:00 | B49: 79 | C49: 53 | D49: 3 | E49: 3 | F49: 1 | G49: 2 | H49: 1 | I49: 138 | J49: 6 | K49: 142 | L49: 72 | M49: 43 | N49: 4 | O49: 0 | P49: 0 | Q49: 0 | R49: 0 | S49: 119 | T49: 4 | U49: 119
A50: 11:00:00 | B50: 86 | C50: 26 | D50: 8 | E50: 1 | F50: 0 | G50: 1 | H50: 0 | I50: 121 | J50: 9 | K50: 122 | L50: 66 | M50: 44 | N50: 8 | O50: 2 | P50: 1 | Q50: 0 | R50: 1 | S50: 120 | T50: 10 | U50: 122
A51: 11:15:00 | B51: 73 | C51: 47 | D51: 8 | E51: 2 | F51: 0 | G51: 0 | H51: 1 | I51: 130 | J51: 10 | K51: 131 | L51: 73 | M51: 37 | N51: 3 | O51: 0 | P51: 0 | Q51: 1 | R51: 0 | S51: 113 | T51: 3 | U51: 114
A52: 11:30:00 | B52: 82 | C52: 43 | D52: 5 | E52: 1 | F52: 2 | G52: 1 | H52: 0 | I52: 131 | J52: 6 | K52: 134 | L52: 69 | M52: 42 | N52: 6 | O52: 2 | P52: 1 | Q52: 1 | R52: 0 | S52: 119 | T52: 8 | U52: 121
A53: 11:45:00 | B53: 85 | C53: 44 | D53: 7 | E53: 4 | F53: 0 | G53: 1 | H53: 1 | I53: 140 | J53: 11 | K53: 142 | L53: 62 | M53: 50 | N53: 9 | O53: 0 | P53: 1 | Q53: 1 | R53: 1 | S53: 121 | T53: 9 | U53: 124
A54: 12:00:00 | B54: 72 | C54: 48 | D54: 4 | E54: 2 | F54: 0 | G54: 1 | H54: 0 | I54: 126 | J54: 6 | K54: 127 | L54: 86 | M54: 54 | N54: 6 | O54: 3 | P54: 0 | Q54: 0 | R54: 0 | S54: 149 | T54: 9 | U54: 149
A55: 12:15:00 | B55: 65 | C55: 44 | D55: 7 | E55: 0 | F55: 0 | G55: 1 | H55: 1 | I55: 116 | J55: 7 | K55: 118 | L55: 60 | M55: 39 | N55: 5 | O55: 3 | P55: 0 | Q55: 0 | R55: 1 | S55: 107 | T55: 8 | U55: 108
A56: 12:30:00 | B56: 64 | C56: 45 | D56: 4 | E56: 2 | F56: 0 | G56: 1 | H56: 0 | I56: 115 | J56: 6 | K56: 116 | L56: 92 | M56: 35 | N56: 3 | O56: 1 | P56: 0 | Q56: 0 | R56: 1 | S56: 131 | T56: 4 | U56: 132
A57: 12:45:00 | B57: 69 | C57: 23 | D57: 8 | E57: 3 | F57: 0 | G57: 3 | H57: 1 | I57: 103 | J57: 11 | K57: 107 | L57: 82 | M57: 37 | N57: 9 | O57: 0 | P57: 0 | Q57: 1 | R57: 0 | S57: 128 | T57: 9 | U57: 129
A58: 13:00:00 | B58: 81 | C58: 38 | D58: 8 | E58: 0 | F58: 1 | G58: 3 | H58: 1 | I58: 127 | J58: 8 | K58: 132 | L58: 77 | M58: 33 | N58: 6 | O58: 1 | P58: 0 | Q58: 1 | R58: 0 | S58: 117 | T58: 7 | U58: 118
A59: 13:15:00 | B59: 88 | C59: 29 | D59: 2 | E59: 1 | F59: 1 | G59: 1 | H59: 1 | I59: 120 | J59: 3 | K59: 123 | L59: 93 | M59: 49 | N59: 5 | O59: 2 | P59: 2 | Q59: 1 | R59: 0 | S59: 149 | T59: 7 | U59: 152
A60: 13:30:00 | B60: 89 | C60: 37 | D60: 5 | E60: 2 | F60: 1 | G60: 1 | H60: 1 | I60: 133 | J60: 7 | K60: 136 | L60: 74 | M60: 41 | N60: 5 | O60: 2 | P60: 1 | Q60: 3 | R60: 0 | S60: 122 | T60: 7 | U60: 126
A61: 13:45:00 | B61: 76 | C61: 36 | D61: 3 | E61: 2 | F61: 0 | G61: 0 | H61: 0 | I61: 117 | J61: 5 | K61: 117 | L61: 65 | M61: 48 | N61: 6 | O61: 3 | P61: 1 | Q61: 1 | R61: 1 | S61: 122 | T61: 9 | U61: 125
A62: 14:00:00 | B62: 54 | C62: 61 | D62: 8 | E62: 0 | F62: 0 | G62: 0 | H62: 0 | I62: 123 | J62: 8 | K62: 123 | L62: 79 | M62: 43 | N62: 4 | O62: 1 | P62: 1 | Q62: 2 | R62: 1 | S62: 127 | T62: 5 | U62: 131
A63: 14:15:00 | B63: 79 | C63: 47 | D63: 3 | E63: 6 | F63: 1 | G63: 1 | H63: 1 | I63: 135 | J63: 9 | K63: 138 | L63: 74 | M63: 39 | N63: 4 | O63: 1 | P63: 0 | Q63: 0 | R63: 0 | S63: 118 | T63: 5 | U63: 118
A64: 14:30:00 | B64: 82 | C64: 41 | D64: 4 | E64: 3 | F64: 0 | G64: 1 | H64: 0 | I64: 130 | J64: 7 | K64: 131 | L64: 75 | M64: 51 | N64: 5 | O64: 0 | P64: 1 | Q64: 0 | R64: 0 | S64: 131 | T64: 5 | U64: 132
A65: 14:45:00 | B65: 85 | C65: 46 | D65: 13 | E65: 3 | F65: 1 | G65: 3 | H65: 0 | I65: 147 | J65: 16 | K65: 151 | L65: 61 | M65: 47 | N65: 5 | O65: 0 | P65: 0 | Q65: 1 | R65: 0 | S65: 113 | T65: 5 | U65: 114
A66: 15:00:00 | B66: 65 | C66: 39 | D66: 2 | E66: 1 | F66: 0 | G66: 0 | H66: 0 | I66: 107 | J66: 3 | K66: 107 | L66: 77 | M66: 43 | N66: 7 | O66: 1 | P66: 0 | Q66: 1 | R66: 1 | S66: 128 | T66: 8 | U66: 130
A67: 15:15:00 | B67: 71 | C67: 51 | D67: 5 | E67: 0 | F67: 0 | G67: 0 | H67: 0 | I67: 127 | J67: 5 | K67: 127 | L67: 84 | M67: 49 | N67: 5 | O67: 0 | P67: 1 | Q67: 0 | R67: 0 | S67: 138 | T67: 5 | U67: 139
A68: 15:30:00 | B68: 85 | C68: 66 | D68: 7 | E68: 5 | F68: 0 | G68: 1 | H68: 0 | I68: 163 | J68: 12 | K68: 164 | L68: 81 | M68: 45 | N68: 4 | O68: 1 | P68: 0 | Q68: 3 | R68: 0 | S68: 131 | T68: 5 | U68: 134
A69: 15:45:00 | B69: 75 | C69: 50 | D69: 4 | E69: 1 | F69: 0 | G69: 1 | H69: 0 | I69: 130 | J69: 5 | K69: 131 | L69: 114 | M69: 53 | N69: 3 | O69: 0 | P69: 0 | Q69: 1 | R69: 0 | S69: 170 | T69: 3 | U69: 171
A70: 16:00:00 | B70: 94 | C70: 53 | D70: 3 | E70: 1 | F70: 0 | G70: 2 | H70: 0 | I70: 151 | J70: 4 | K70: 153 | L70: 86 | M70: 64 | N70: 7 | O70: 0 | P70: 1 | Q70: 1 | R70: 0 | S70: 157 | T70: 7 | U70: 159
A71: 16:15:00 | B71: 119 | C71: 62 | D71: 6 | E71: 3 | F71: 0 | G71: 2 | H71: 0 | I71: =SUM(B71:E71) -> 190 | J71: =SUM(D71:E71) -> 9 | K71: =SUM(B71:H71) -> 192 | L71: 85 | M71: 51 | N71: 6 | O71: 1 | P71: 1 | Q71: 0 | R71: 1 | S71: =SUM(L71:O71) -> 143 | T71: =SUM(N71:O71) -> 7 | U71: =SUM(L71:R71) -> 145
A72: 16:30:00 | B72: 108 | C72: 57 | D72: 5 | E72: 2 | F72: 0 | G72: 0 | H72: 0 | I72: 172 | J72: 7 | K72: 172 | L72: 97 | M72: 63 | N72: 3 | O72: 3 | P72: 0 | Q72: 0 | R72: 0 | S72: 166 | T72: 6 | U72: 166
A73: 16:45:00 | B73: 114 | C73: 49 | D73: 6 | E73: 1 | F73: 0 | G73: 1 | H73: 0 | I73: 170 | J73: 7 | K73: 171 | L73: 113 | M73: 71 | N73: 3 | O73: 0 | P73: 0 | Q73: 2 | R73: 0 | S73: 187 | T73: 3 | U73: 189
A74: 17:00:00 | B74: 145 | C74: 59 | D74: 3 | E74: 4 | F74: 0 | G74: 6 | H74: 3 | I74: 211 | J74: 7 | K74: 220 | L74: 115 | M74: 37 | N74: 3 | O74: 0 | P74: 0 | Q74: 1 | R74: 1 | S74: 155 | T74: 3 | U74: 157
A75: 17:15:00 | B75: 123 | C75: 58 | D75: 4 | E75: 2 | F75: 0 | G75: 0 | H75: 0 | I75: 187 | J75: 6 | K75: 187 | L75: 105 | M75: 53 | N75: 0 | O75: 1 | P75: 0 | Q75: 1 | R75: 0 | S75: 159 | T75: 1 | U75: 160
A76: 17:30:00 | B76: 100 | C76: 51 | D76: 3 | E76: 0 | F76: 0 | G76: 2 | H76: 0 | I76: 154 | J76: 3 | K76: 156 | L76: 104 | M76: 60 | N76: 0 | O76: 3 | P76: 0 | Q76: 1 | R76: 2 | S76: 167 | T76: 3 | U76: 170
A77: 17:45:00 | B77: 77 | C77: 52 | D77: 2 | E77: 3 | F77: 0 | G77: 0 | H77: 0 | I77: 134 | J77: 5 | K77: 134 | L77: 120 | M77: 45 | N77: 2 | O77: 0 | P77: 0 | Q77: 0 | R77: 0 | S77: 167 | T77: 2 | U77: 167
A78: 18:00:00 | B78: 123 | C78: 53 | D78: 4 | E78: 0 | F78: 0 | G78: 0 | H78: 1 | I78: 180 | J78: 4 | K78: 181 | L78: 74 | M78: 44 | N78: 1 | O78: 0 | P78: 0 | Q78: 3 | R78: 0 | S78: 119 | T78: 1 | U78: 122
A79: 18:15:00 | B79: 77 | C79: 50 | D79: 2 | E79: 3 | F79: 0 | G79: 0 | H79: 0 | I79: 132 | J79: 5 | K79: 132 | L79: 80 | M79: 38 | N79: 3 | O79: 0 | P79: 0 | Q79: 0 | R79: 0 | S79: 121 | T79: 3 | U79: 121
A80: 18:30:00 | B80: 71 | C80: 40 | D80: 1 | E80: 1 | F80: 0 | G80: 0 | H80: 0 | I80: 113 | J80: 2 | K80: 113 | L80: 60 | M80: 37 | N80: 1 | O80: 0 | P80: 0 | Q80: 0 | R80: 0 | S80: 98 | T80: 1 | U80: 98
A81: 18:45:00 | B81: 67 | C81: 53 | D81: 2 | E81: 2 | F81: 0 | G81: 0 | H81: 0 | I81: 124 | J81: 4 | K81: 124 | L81: 68 | M81: 34 | N81: 1 | O81: 0 | P81: 0 | Q81: 0 | R81: 0 | S81: 103 | T81: 1 | U81: 103
A82: 19:00:00 | B82: 87 | C82: 33 | D82: 0 | E82: 1 | F82: 0 | G82: 0 | H82: 0 | I82: 121 | J82: 1 | K82: 121 | L82: 62 | M82: 30 | N82: 0 | O82: 0 | P82: 0 | Q82: 0 | R82: 0 | S82: 92 | T82: 0 | U82: 92
A83: 19:15:00 | B83: 69 | C83: 36 | D83: 0 | E83: 0 | F83: 0 | G83: 0 | H83: 0 | I83: 105 | J83: 0 | K83: 105 | L83: 49 | M83: 34 | N83: 1 | O83: 0 | P83: 0 | Q83: 0 | R83: 0 | S83: 84 | T83: 1 | U83: 84
A84: 19:30:00 | B84: 44 | C84: 32 | D84: 0 | E84: 2 | F84: 0 | G84: 0 | H84: 1 | I84: 78 | J84: 2 | K84: 79 | L84: 48 | M84: 25 | N84: 0 | O84: 0 | P84: 0 | Q84: 0 | R84: 1 | S84: 73 | T84: 0 | U84: 74
A85: 19:45:00 | B85: 38 | C85: 33 | D85: 2 | E85: 0 | F85: 0 | G85: 0 | H85: 0 | I85: 73 | J85: 2 | K85: 73 | L85: 38 | M85: 27 | N85: 3 | O85: 2 | P85: 0 | Q85: 1 | R85: 0 | S85: 70 | T85: 5 | U85: 71
A86: 20:00:00 | B86: 30 | C86: 22 | D86: 0 | E86: 0 | F86: 0 | G86: 0 | H86: 0 | I86: 52 | J86: 0 | K86: 52 | L86: 26 | M86: 16 | N86: 0 | O86: 1 | P86: 0 | Q86: 0 | R86: 0 | S86: 43 | T86: 1 | U86: 43
A87: 20:15:00 | B87: 24 | C87: 20 | D87: 0 | E87: 0 | F87: 0 | G87: 0 | H87: 2 | I87: 44 | J87: 0 | K87: 46 | L87: 24 | M87: 19 | N87: 1 | O87: 0 | P87: 0 | Q87: 1 | R87: 0 | S87: 44 | T87: 1 | U87: 45
A88: 20:30:00 | B88: 22 | C88: 13 | D88: 1 | E88: 1 | F88: 0 | G88: 0 | H88: 0 | I88: 37 | J88: 2 | K88: 37 | L88: 28 | M88: 22 | N88: 1 | O88: 0 | P88: 0 | Q88: 0 | R88: 0 | S88: 51 | T88: 1 | U88: 51
A89: 20:45:00 | B89: 21 | C89: 14 | D89: 0 | E89: 0 | F89: 0 | G89: 0 | H89: 1 | I89: 35 | J89: 0 | K89: 36 | L89: 22 | M89: 16 | N89: 0 | O89: 0 | P89: 0 | Q89: 0 | R89: 0 | S89: 38 | T89: 0 | U89: 38
A90: 21:00:00 | B90: 32 | C90: 17 | D90: 0 | E90: 0 | F90: 0 | G90: 1 | H90: 0 | I90: 49 | J90: 0 | K90: 50 | L90: 26 | M90: 13 | N90: 0 | O90: 0 | P90: 0 | Q90: 0 | R90: 0 | S90: 39 | T90: 0 | U90: 39
A91: 21:15:00 | B91: 20 | C91: 15 | D91: 1 | E91: 2 | F91: 0 | G91: 0 | H91: 0 | I91: 38 | J91: 3 | K91: 38 | L91: 27 | M91: 16 | N91: 0 | O91: 0 | P91: 0 | Q91: 0 | R91: 0 | S91: 43 | T91: 0 | U91: 43
A92: 21:30:00 | B92: 26 | C92: 13 | D92: 1 | E92: 0 | F92: 0 | G92: 0 | H92: 0 | I92: 40 | J92: 1 | K92: 40 | L92: 40 | M92: 10 | N92: 0 | O92: 0 | P92: 0 | Q92: 0 | R92: 0 | S92: 50 | T92: 0 | U92: 50
A93: 21:45:00 | B93: 27 | C93: 11 | D93: 0 | E93: 1 | F93: 0 | G93: 0 | H93: 0 | I93: 39 | J93: 1 | K93: 39 | L93: 19 | M93: 16 | N93: 0 | O93: 0 | P93: 0 | Q93: 0 | R93: 0 | S93: 35 | T93: 0 | U93: 35
A94: 22:00:00 | B94: 32 | C94: 13 | D94: 0 | E94: 0 | F94: 0 | G94: 0 | H94: 0 | I94: 45 | J94: 0 | K94: 45 | L94: 26 | M94: 21 | N94: 0 | O94: 0 | P94: 0 | Q94: 0 | R94: 0 | S94: 47 | T94: 0 | U94: 47
A95: 22:15:00 | B95: 14 | C95: 9 | D95: 2 | E95: 0 | F95: 0 | G95: 0 | H95: 0 | I95: 25 | J95: 2 | K95: 25 | L95: 29 | M95: 12 | N95: 0 | O95: 0 | P95: 0 | Q95: 0 | R95: 0 | S95: 41 | T95: 0 | U95: 41
A96: 22:30:00 | B96: 19 | C96: 12 | D96: 0 | E96: 0 | F96: 0 | G96: 0 | H96: 0 | I96: 31 | J96: 0 | K96: 31 | L96: 11 | M96: 14 | N96: 0 | O96: 0 | P96: 0 | Q96: 0 | R96: 0 | S96: 25 | T96: 0 | U96: 25
A97: 22:45:00 | B97: 8 | C97: 5 | D97: 0 | E97: 0 | F97: 0 | G97: 0 | H97: 0 | I97: 13 | J97: 0 | K97: 13 | L97: 11 | M97: 9 | N97: 0 | O97: 1 | P97: 0 | Q97: 1 | R97: 0 | S97: 21 | T97: 1 | U97: 22
A98: 23:00:00 | B98: 13 | C98: 2 | D98: 0 | E98: 0 | F98: 0 | G98: 0 | H98: 0 | I98: 15 | J98: 0 | K98: 15 | L98: 13 | M98: 3 | N98: 0 | O98: 0 | P98: 0 | Q98: 0 | R98: 1 | S98: 16 | T98: 0 | U98: 17
A99: 23:15:00 | B99: 6 | C99: 9 | D99: 0 | E99: 0 | F99: 0 | G99: 0 | H99: 0 | I99: 15 | J99: 0 | K99: 15 | L99: 10 | M99: 5 | N99: 0 | O99: 0 | P99: 0 | Q99: 0 | R99: 0 | S99: 15 | T99: 0 | U99: 15
A100: 23:30:00 | B100: 5 | C100: 6 | D100: 0 | E100: 0 | F100: 0 | G100: 0 | H100: 0 | I100: 11 | J100: 0 | K100: 11 | L100: 5 | M100: 3 | N100: 0 | O100: 0 | P100: 0 | Q100: 1 | R100: 0 | S100: 8 | T100: 0 | U100: 9
A101: 23:45:00 | B101: 5 | C101: 1 | D101: 0 | E101: 0 | F101: 0 | G101: 0 | H101: 0 | I101: 6 | J101: 0 | K101: 6 | L101: 1 | M101: 1 | N101: 0 | O101: 0 | P101: 0 | Q101: 0 | R101: 1 | S101: 2 | T101: 0 | U101: 3
A102: TOTAL | B102: =SUM(B6:B101) -> 4976 | C102: =SUM(C6:C101) -> 2696 | D102: 265 | E102: 96 | F102: 14 | G102: 50 | H102: 25 | I102: 8033 | J102: 361 | K102: 8122 | L102: =SUM(L6:L101) -> 4644 | M102: =SUM(M6:M101) -> 2804 | N102: 284 | O102: 70 | P102: 18 | Q102: 52 | R102: 18 | S102: 7802 | T102: 354 | U102: 7890

Sheet 15 04 2016
A1: * Fill the table with data
A2: DO NOT CHANGE THE STRUCTURE OF THE SPREADSHEET (i.e. ADD OR DELETE ROWS/COLUMNS, ETC.)
B4: ='Site Plan'!$A$19&" - "&'Site Plan'!$C$19 -> Direction 1 - Eastbound | I4: TOTAL | L4: ='Site Plan'!$A$20&" - "&'Site Plan'!$C$20 -> Direction 2 - Westbound | S4: TOTAL
A5: TIME | B5: CAR | C5: LGV | D5: OGV1 | E5: OGV2 | F5: PSV | G5: MCL | H5: PCL | I5: CAR + LGV + HGV | J5: HGV | K5: ALL modes | L5: CAR | M5: LGV | N5: OGV1 | O5: OGV2 | P5: PSV | Q5: MCL | R5: PCL | S5: CAR + LGV + HGV | T5: HGV | U5: ALL modes
A6: 00:00:00 | B6: 2 | C6: 6 | D6: 0 | E6: 0 | F6: 0 | G6: 0 | H6: 0 | I6: =SUM(B6:E6) -> 8 | J6: =SUM(D6:E6) -> 0 | K6: =SUM(B6:H6) -> 8 | L6: 3 | M6: 3 | N6: 0 | O6: 0 | P6: 0 | Q6: 0 | R6: 0 | S6: =SUM(L6:O6) -> 6 | T6: =SUM(N6:O6) -> 0 | U6: =SUM(L6:R6) -> 6
A7: 00:15:00 | B7: 3 | C7: 2 | D7: 0 | E7: 0 | F7: 1 | G7: 0 | H7: 0 | I7: =SUM(B7:E7) -> 5 | J7: =SUM(D7:E7) -> 0 | K7: =SUM(B7:H7) -> 6 | L7: 3 | M7: 2 | N7: 0 | O7: 0 | P7: 0 | Q7: 0 | R7: 0 | S7: =SUM(L7:O7) -> 5 | T7: =SUM(N7:O7) -> 0 | U7: =SUM(L7:R7) -> 5
A8: 00:30:00 | B8: 3 | C8: 2 | D8: 1 | E8: 0 | F8: 0 | G8: 0 | H8: 0 | I8: 6 | J8: 1 | K8: 6 | L8: 0 | M8: 2 | N8: 0 | O8: 0 | P8: 0 | Q8: 0 | R8: 0 | S8: 2 | T8: 0 | U8: 2
A9: 00:45:00 | B9: 5 | C9: 3 | D9: 0 | E9: 0 | F9: 0 | G9: 0 | H9: 0 | I9: 8 | J9: 0 | K9: 8 | L9: 2 | M9: 5 | N9: 0 | O9: 0 | P9: 0 | Q9: 0 | R9: 0 | S9: 7 | T9: 0 | U9: 7
A10: 01:00:00 | B10: 3 | C10: 5 | D10: 0 | E10: 0 | F10: 0 | G10: 0 | H10: 0 | I10: 8 | J10: 0 | K10: 8 | L10: 0 | M10: 2 | N10: 1 | O10: 0 | P10: 0 | Q10: 0 | R10: 0 | S10: 3 | T10: 1 | U10: 3
A11: 01:15:00 | B11: 4 | C11: 5 | D11: 0 | E11: 0 | F11: 0 | G11: 0 | H11: 0 | I11: 9 | J11: 0 | K11: 9 | L11: 1 | M11: 0 | N11: 0 | O11: 0 | P11: 0 | Q11: 0 | R11: 0 | S11: 1 | T11: 0 | U11: 1
A12: 01:30:00 | B12: 2 | C12: 0 | D12: 0 | E12: 0 | F12: 0 | G12: 0 | H12: 0 | I12: 2 | J12: 0 | K12: 2 | L12: 0 | M12: 1 | N12: 0 | O12: 0 | P12: 1 | Q12: 0 | R12: 0 | S12: 1 | T12: 0 | U12: 2
A13: 01:45:00 | B13: 1 | C13: 3 | D13: 0 | E13: 0 | F13: 0 | G13: 0 | H13: 0 | I13: 4 | J13: 0 | K13: 4 | L13: 0 | M13: 0 | N13: 0 | O13: 0 | P13: 0 | Q13: 0 | R13: 0 | S13: 0 | T13: 0 | U13: 0
A14: 02:00:00 | B14: 0 | C14: 0 | D14: 0 | E14: 0 | F14: 0 | G14: 0 | H14: 0 | I14: 0 | J14: 0 | K14: 0 | L14: 0 | M14: 1 | N14: 0 | O14: 0 | P14: 0 | Q14: 0 | R14: 0 | S14: 1 | T14: 0 | U14: 1
A15: 02:15:00 | B15: 1 | C15: 1 | D15: 2 | E15: 1 | F15: 0 | G15: 0 | H15: 0 | I15: 5 | J15: 3 | K15: 5 | L15: 3 | M15: 0 | N15: 0 | O15: 0 | P15: 0 | Q15: 0 | R15: 0 | S15: 3 | T15: 0 | U15: 3
A16: 02:30:00 | B16: 0 | C16: 0 | D16: 0 | E16: 0 | F16: 0 | G16: 0 | H16: 0 | I16: 0 | J16: 0 | K16: 0 | L16: 1 | M16: 2 | N16: 0 | O16: 0 | P16: 0 | Q16: 0 | R16: 0 | S16: 3 | T16: 0 | U16: 3
A17: 02:45:00 | B17: 0 | C17: 1 | D17: 0 | E17: 1 | F17: 0 | G17: 0 | H17: 0 | I17: 2 | J17: 1 | K17: 2 | L17: 2 | M17: 0 | N17: 0 | O17: 0 | P17: 0 | Q17: 0 | R17: 0 | S17: 2 | T17: 0 | U17: 2
A18: 03:00:00 | B18: 0 | C18: 3 | D18: 0 | E18: 0 | F18: 0 | G18: 0 | H18: 0 | I18: 3 | J18: 0 | K18: 3 | L18: 2 | M18: 1 | N18: 0 | O18: 0 | P18: 0 | Q18: 0 | R18: 0 | S18: 3 | T18: 0 | U18: 3
A19: 03:15:00 | B19: 1 | C19: 0 | D19: 1 | E19: 0 | F19: 0 | G19: 0 | H19: 0 | I19: 2 | J19: 1 | K19: 2 | L19: 2 | M19: 1 | N19: 1 | O19: 1 | P19: 0 | Q19: 0 | R19: 0 | S19: 5 | T19: 2 | U19: 5
A20: 03:30:00 | B20: 0 | C20: 2 | D20: 0 | E20: 0 | F20: 0 | G20: 0 | H20: 0 | I20: 2 | J20: 0 | K20: 2 | L20: 3 | M20: 2 | N20: 0 | O20: 0 | P20: 0 | Q20: 0 | R20: 0 | S20: 5 | T20: 0 | U20: 5
A21: 03:45:00 | B21: 0 | C21: 0 | D21: 0 | E21: 0 | F21: 0 | G21: 0 | H21: 0 | I21: 0 | J21: 0 | K21: 0 | L21: 1 | M21: 1 | N21: 0 | O21: 1 | P21: 0 | Q21: 0 | R21: 0 | S21: 3 | T21: 1 | U21: 3
A22: 04:00:00 | B22: 0 | C22: 4 | D22: 1 | E22: 0 | F22: 0 | G22: 0 | H22: 0 | I22: 5 | J22: 1 | K22: 5 | L22: 4 | M22: 6 | N22: 0 | O22: 0 | P22: 1 | Q22: 0 | R22: 0 | S22: 10 | T22: 0 | U22: 11
A23: 04:15:00 | B23: 1 | C23: 3 | D23: 1 | E23: 0 | F23: 0 | G23: 0 | H23: 0 | I23: 5 | J23: 1 | K23: 5 | L23: 4 | M23: 7 | N23: 0 | O23: 0 | P23: 0 | Q23: 0 | R23: 0 | S23: 11 | T23: 0 | U23: 11
A24: 04:30:00 | B24: 4 | C24: 3 | D24: 0 | E24: 0 | F24: 0 | G24: 0 | H24: 0 | I24: 7 | J24: 0 | K24: 7 | L24: 5 | M24: 8 | N24: 1 | O24: 0 | P24: 0 | Q24: 0 | R24: 0 | S24: 14 | T24: 1 | U24: 14
A25: 04:45:00 | B25: 4 | C25: 3 | D25: 0 | E25: 0 | F25: 0 | G25: 0 | H25: 0 | I25: 7 | J25: 0 | K25: 7 | L25: 3 | M25: 7 | N25: 1 | O25: 0 | P25: 0 | Q25: 0 | R25: 0 | S25: 11 | T25: 1 | U25: 11
A26: 05:00:00 | B26: 5 | C26: 2 | D26: 2 | E26: 1 | F26: 0 | G26: 0 | H26: 2 | I26: 10 | J26: 3 | K26: 12 | L26: 5 | M26: 10 | N26: 2 | O26: 0 | P26: 0 | Q26: 0 | R26: 0 | S26: 17 | T26: 2 | U26: 17
A27: 05:15:00 | B27: 3 | C27: 9 | D27: 1 | E27: 1 | F27: 0 | G27: 0 | H27: 0 | I27: 14 | J27: 2 | K27: 14 | L27: 18 | M27: 22 | N27: 5 | O27: 0 | P27: 0 | Q27: 0 | R27: 0 | S27: 45 | T27: 5 | U27: 45
A28: 05:30:00 | B28: 10 | C28: 10 | D28: 3 | E28: 0 | F28: 0 | G28: 0 | H28: 0 | I28: 23 | J28: 3 | K28: 23 | L28: 14 | M28: 22 | N28: 2 | O28: 2 | P28: 0 | Q28: 1 | R28: 0 | S28: 40 | T28: 4 | U28: 41
A29: 05:45:00 | B29: 19 | C29: 9 | D29: 1 | E29: 0 | F29: 1 | G29: 0 | H29: 0 | I29: 29 | J29: 1 | K29: 30 | L29: 24 | M29: 23 | N29: 1 | O29: 1 | P29: 0 | Q29: 1 | R29: 0 | S29: 49 | T29: 2 | U29: 50
A30: 06:00:00 | B30: 21 | C30: 15 | D30: 1 | E30: 1 | F30: 0 | G30: 0 | H30: 0 | I30: 38 | J30: 2 | K30: 38 | L30: 23 | M30: 28 | N30: 6 | O30: 0 | P30: 0 | Q30: 0 | R30: 0 | S30: 57 | T30: 6 | U30: 57
A31: 06:15:00 | B31: 26 | C31: 19 | D31: 4 | E31: 1 | F31: 0 | G31: 0 | H31: 1 | I31: 50 | J31: 5 | K31: 51 | L31: 19 | M31: 42 | N31: 2 | O31: 0 | P31: 0 | Q31: 2 | R31: 0 | S31: 63 | T31: 2 | U31: 65
A32: 06:30:00 | B32: 35 | C32: 22 | D32: 2 | E32: 0 | F32: 0 | G32: 0 | H32: 0 | I32: 59 | J32: 2 | K32: 59 | L32: 46 | M32: 36 | N32: 4 | O32: 1 | P32: 0 | Q32: 1 | R32: 0 | S32: 87 | T32: 5 | U32: 88
A33: 06:45:00 | B33: 46 | C33: 28 | D33: 4 | E33: 0 | F33: 0 | G33: 0 | H33: 0 | I33: 78 | J33: 4 | K33: 78 | L33: 45 | M33: 32 | N33: 6 | O33: 1 | P33: 0 | Q33: 1 | R33: 0 | S33: 84 | T33: 7 | U33: 85
A34: 07:00:00 | B34: 73 | C34: 51 | D34: 5 | E34: 0 | F34: 0 | G34: 0 | H34: 0 | I34: 129 | J34: 5 | K34: 129 | L34: 71 | M34: 46 | N34: 4 | O34: 1 | P34: 0 | Q34: 1 | R34: 0 | S34: 122 | T34: 5 | U34: 123
A35: 07:15:00 | B35: 81 | C35: 38 | D35: 4 | E35: 0 | F35: 2 | G35: 1 | H35: 0 | I35: 123 | J35: 4 | K35: 126 | L35: 91 | M35: 46 | N35: 2 | O35: 0 | P35: 0 | Q35: 0 | R35: 0 | S35: 139 | T35: 2 | U35: 139
A36: 07:30:00 | B36: 104 | C36: 48 | D36: 8 | E36: 1 | F36: 0 | G36: 1 | H36: 0 | I36: 161 | J36: 9 | K36: 162 | L36: 74 | M36: 52 | N36: 3 | O36: 1 | P36: 0 | Q36: 1 | R36: 1 | S36: 130 | T36: 4 | U36: 132
A37: 07:45:00 | B37: 87 | C37: 50 | D37: 1 | E37: 1 | F37: 0 | G37: 1 | H37: 0 | I37: 139 | J37: 2 | K37: 140 | L37: 113 | M37: 36 | N37: 6 | O37: 0 | P37: 0 | Q37: 1 | R37: 0 | S37: 155 | T37: 6 | U37: 156
A38: 08:00:00 | B38: 83 | C38: 66 | D38: 5 | E38: 1 | F38: 0 | G38: 1 | H38: 0 | I38: 155 | J38: 6 | K38: 156 | L38: 95 | M38: 54 | N38: 4 | O38: 0 | P38: 1 | Q38: 0 | R38: 0 | S38: 153 | T38: 4 | U38: 154
A39: 08:15:00 | B39: 130 | C39: 48 | D39: 5 | E39: 1 | F39: 0 | G39: 0 | H39: 0 | I39: 184 | J39: 6 | K39: 184 | L39: 81 | M39: 34 | N39: 4 | O39: 2 | P39: 1 | Q39: 0 | R39: 0 | S39: 121 | T39: 6 | U39: 122
A40: 08:30:00 | B40: 110 | C40: 63 | D40: 4 | E40: 0 | F40: 0 | G40: 0 | H40: 0 | I40: 177 | J40: 4 | K40: 177 | L40: 75 | M40: 46 | N40: 1 | O40: 1 | P40: 0 | Q40: 0 | R40: 1 | S40: 123 | T40: 2 | U40: 124
A41: 08:45:00 | B41: 90 | C41: 52 | D41: 4 | E41: 0 | F41: 1 | G41: 0 | H41: 0 | I41: 146 | J41: 4 | K41: 147 | L41: 83 | M41: 53 | N41: 3 | O41: 2 | P41: 1 | Q41: 0 | R41: 1 | S41: 141 | T41: 5 | U41: 143
A42: 09:00:00 | B42: 67 | C42: 56 | D42: 4 | E42: 1 | F42: 0 | G42: 0 | H42: 0 | I42: 128 | J42: 5 | K42: 128 | L42: 63 | M42: 44 | N42: 6 | O42: 2 | P42: 0 | Q42: 0 | R42: 1 | S42: 115 | T42: 8 | U42: 116
A43: 09:15:00 | B43: 90 | C43: 47 | D43: 6 | E43: 0 | F43: 0 | G43: 0 | H43: 0 | I43: 143 | J43: 6 | K43: 143 | L43: 70 | M43: 38 | N43: 6 | O43: 0 | P43: 1 | Q43: 0 | R43: 0 | S43: 114 | T43: 6 | U43: 115
A44: 09:30:00 | B44: 79 | C44: 49 | D44: 7 | E44: 2 | F44: 1 | G44: 0 | H44: 0 | I44: 137 | J44: 9 | K44: 138 | L44: 57 | M44: 45 | N44: 5 | O44: 2 | P44: 0 | Q44: 0 | R44: 0 | S44: 109 | T44: 7 | U44: 109
A45: 09:45:00 | B45: 85 | C45: 41 | D45: 4 | E45: 1 | F45: 0 | G45: 0 | H45: 0 | I45: 131 | J45: 5 | K45: 131 | L45: 70 | M45: 49 | N45: 7 | O45: 1 | P45: 0 | Q45: 0 | R45: 0 | S45: 127 | T45: 8 | U45: 127
A46: 10:00:00 | B46: 88 | C46: 47 | D46: 2 | E46: 0 | F46: 1 | G46: 1 | H46: 0 | I46: 137 | J46: 2 | K46: 139 | L46: 56 | M46: 41 | N46: 4 | O46: 0 | P46: 0 | Q46: 0 | R46: 0 | S46: 101 | T46: 4 | U46: 101
A47: 10:15:00 | B47: 71 | C47: 49 | D47: 4 | E47: 1 | F47: 0 | G47: 0 | H47: 0 | I47: 125 | J47: 5 | K47: 125 | L47: 56 | M47: 57 | N47: 7 | O47: 1 | P47: 0 | Q47: 0 | R47: 0 | S47: 121 | T47: 8 | U47: 121
A48: 10:30:00 | B48: 93 | C48: 48 | D48: 8 | E48: 3 | F48: 0 | G48: 0 | H48: 0 | I48: 152 | J48: 11 | K48: 152 | L48: 57 | M48: 37 | N48: 4 | O48: 1 | P48: 0 | Q48: 1 | R48: 0 | S48: 99 | T48: 5 | U48: 100
A49: 10:45:00 | B49: 91 | C49: 58 | D49: 6 | E49: 0 | F49: 1 | G49: 0 | H49: 1 | I49: 155 | J49: 6 | K49: 157 | L49: 55 | M49: 47 | N49: 5 | O49: 1 | P49: 0 | Q49: 0 | R49: 0 | S49: 108 | T49: 6 | U49: 108
A50: 11:00:00 | B50: 75 | C50: 38 | D50: 8 | E50: 1 | F50: 0 | G50: 0 | H50: 0 | I50: 122 | J50: 9 | K50: 122 | L50: 95 | M50: 48 | N50: 4 | O50: 1 | P50: 1 | Q50: 0 | R50: 0 | S50: 148 | T50: 5 | U50: 149
A51: 11:15:00 | B51: 86 | C51: 35 | D51: 3 | E51: 1 | F51: 2 | G51: 1 | H51: 0 | I51: 125 | J51: 4 | K51: 128 | L51: 90 | M51: 37 | N51: 6 | O51: 0 | P51: 0 | Q51: 0 | R51: 0 | S51: 133 | T51: 6 | U51: 133
A52: 11:30:00 | B52: 93 | C52: 51 | D52: 10 | E52: 1 | F52: 1 | G52: 0 | H52: 0 | I52: 155 | J52: 11 | K52: 156 | L52: 91 | M52: 46 | N52: 7 | O52: 3 | P52: 2 | Q52: 0 | R52: 0 | S52: 147 | T52: 10 | U52: 149
A53: 11:45:00 | B53: 81 | C53: 51 | D53: 3 | E53: 2 | F53: 1 | G53: 0 | H53: 0 | I53: 137 | J53: 5 | K53: 138 | L53: 70 | M53: 38 | N53: 8 | O53: 2 | P53: 0 | Q53: 0 | R53: 0 | S53: 118 | T53: 10 | U53: 118
A54: 12:00:00 | B54: 80 | C54: 56 | D54: 5 | E54: 1 | F54: 0 | G54: 0 | H54: 0 | I54: 142 | J54: 6 | K54: 142 | L54: 84 | M54: 42 | N54: 2 | O54: 1 | P54: 0 | Q54: 0 | R54: 1 | S54: 129 | T54: 3 | U54: 130
A55: 12:15:00 | B55: 80 | C55: 50 | D55: 10 | E55: 4 | F55: 1 | G55: 0 | H55: 0 | I55: 144 | J55: 14 | K55: 145 | L55: 77 | M55: 45 | N55: 4 | O55: 2 | P55: 1 | Q55: 0 | R55: 0 | S55: 128 | T55: 6 | U55: 129
A56: 12:30:00 | B56: 93 | C56: 42 | D56: 3 | E56: 1 | F56: 0 | G56: 0 | H56: 0 | I56: 139 | J56: 4 | K56: 139 | L56: 84 | M56: 37 | N56: 4 | O56: 1 | P56: 0 | Q56: 1 | R56: 0 | S56: 126 | T56: 5 | U56: 127
A57: 12:45:00 | B57: 88 | C57: 59 | D57: 7 | E57: 2 | F57: 0 | G57: 1 | H57: 0 | I57: 156 | J57: 9 | K57: 157 | L57: 93 | M57: 51 | N57: 11 | O57: 0 | P57: 0 | Q57: 0 | R57: 0 | S57: 155 | T57: 11 | U57: 155
A58: 13:00:00 | B58: 100 | C58: 50 | D58: 5 | E58: 3 | F58: 0 | G58: 1 | H58: 0 | I58: 158 | J58: 8 | K58: 159 | L58: 91 | M58: 43 | N58: 6 | O58: 0 | P58: 0 | Q58: 1 | R58: 0 | S58: 140 | T58: 6 | U58: 141
A59: 13:15:00 | B59: 72 | C59: 40 | D59: 8 | E59: 1 | F59: 1 | G59: 0 | H59: 1 | I59: 121 | J59: 9 | K59: 123 | L59: 80 | M59: 31 | N59: 4 | O59: 1 | P59: 0 | Q59: 1 | R59: 0 | S59: 116 | T59: 5 | U59: 117
A60: 13:30:00 | B60: 101 | C60: 41 | D60: 8 | E60: 2 | F60: 2 | G60: 0 | H60: 0 | I60: 152 | J60: 10 | K60: 154 | L60: 69 | M60: 42 | N60: 7 | O60: 0 | P60: 0 | Q60: 0 | R60: 0 | S60: 118 | T60: 7 | U60: 118
A61: 13:45:00 | B61: 77 | C61: 51 | D61: 7 | E61: 2 | F61: 0 | G61: 0 | H61: 0 | I61: 137 | J61: 9 | K61: 137 | L61: 81 | M61: 30 | N61: 7 | O61: 1 | P61: 0 | Q61: 0 | R61: 1 | S61: 119 | T61: 8 | U61: 120
A62: 14:00:00 | B62: 97 | C62: 51 | D62: 7 | E62: 0 | F62: 1 | G62: 0 | H62: 0 | I62: 155 | J62: 7 | K62: 156 | L62: 90 | M62: 45 | N62: 4 | O62: 0 | P62: 0 | Q62: 1 | R62: 1 | S62: 139 | T62: 4 | U62: 141
A63: 14:15:00 | B63: 72 | C63: 50 | D63: 11 | E63: 2 | F63: 0 | G63: 2 | H63: 0 | I63: 135 | J63: 13 | K63: 137 | L63: 102 | M63: 64 | N63: 6 | O63: 2 | P63: 0 | Q63: 0 | R63: 0 | S63: 174 | T63: 8 | U63: 174
A64: 14:30:00 | B64: 93 | C64: 40 | D64: 8 | E64: 2 | F64: 0 | G64: 2 | H64: 0 | I64: 143 | J64: 10 | K64: 145 | L64: 85 | M64: 66 | N64: 3 | O64: 0 | P64: 0 | Q64: 0 | R64: 0 | S64: 154 | T64: 3 | U64: 154
A65: 14:45:00 | B65: 104 | C65: 47 | D65: 9 | E65: 3 | F65: 1 | G65: 0 | H65: 0 | I65: 163 | J65: 12 | K65: 164 | L65: 89 | M65: 53 | N65: 7 | O65: 0 | P65: 2 | Q65: 0 | R65: 0 | S65: 149 | T65: 7 | U65: 151
A66: 15:00:00 | B66: 103 | C66: 65 | D66: 5 | E66: 1 | F66: 0 | G66: 0 | H66: 0 | I66: 174 | J66: 6 | K66: 174 | L66: 97 | M66: 46 | N66: 4 | O66: 1 | P66: 0 | Q66: 0 | R66: 0 | S66: 148 | T66: 5 | U66: 148
A67: 15:15:00 | B67: 85 | C67: 52 | D67: 4 | E67: 2 | F67: 0 | G67: 1 | H67: 0 | I67: 143 | J67: 6 | K67: 144 | L67: 102 | M67: 42 | N67: 4 | O67: 2 | P67: 0 | Q67: 0 | R67: 0 | S67: 150 | T67: 6 | U67: 150
A68: 15:30:00 | B68: 89 | C68: 42 | D68: 8 | E68: 0 | F68: 1 | G68: 0 | H68: 0 | I68: 139 | J68: 8 | K68: 140 | L68: 75 | M68: 54 | N68: 5 | O68: 0 | P68: 0 | Q68: 0 | R68: 1 | S68: 134 | T68: 5 | U68: 135
A69: 15:45:00 | B69: 97 | C69: 65 | D69: 3 | E69: 0 | F69: 0 | G69: 1 | H69: 0 | I69: 165 | J69: 3 | K69: 166 | L69: 103 | M69: 53 | N69: 2 | O69: 0 | P69: 1 | Q69: 0 | R69: 0 | S69: 158 | T69: 2 | U69: 159
A70: 16:00:00 | B70: 106 | C70: 60 | D70: 3 | E70: 0 | F70: 0 | G70: 0 | H70: 0 | I70: 169 | J70: 3 | K70: 169 | L70: 93 | M70: 58 | N70: 6 | O70: 1 | P70: 0 | Q70: 0 | R70: 0 | S70: 158 | T70: 7 | U70: 158
A71: 16:15:00 | B71: 124 | C71: 54 | D71: 5 | E71: 2 | F71: 0 | G71: 0 | H71: 0 | I71: =SUM(B71:E71) -> 185 | J71: =SUM(D71:E71) -> 7 | K71: =SUM(B71:H71) -> 185 | L71: 110 | M71: 44 | N71: 6 | O71: 0 | P71: 0 | Q71: 0 | R71: 0 | S71: =SUM(L71:O71) -> 160 | T71: =SUM(N71:O71) -> 6 | U71: =SUM(L71:R71) -> 160
A72: 16:30:00 | B72: 137 | C72: 52 | D72: 7 | E72: 3 | F72: 1 | G72: 1 | H72: 1 | I72: 199 | J72: 10 | K72: 202 | L72: 104 | M72: 43 | N72: 1 | O72: 0 | P72: 0 | Q72: 1 | R72: 0 | S72: 148 | T72: 1 | U72: 149
A73: 16:45:00 | B73: 92 | C73: 50 | D73: 2 | E73: 1 | F73: 0 | G73: 1 | H73: 0 | I73: 145 | J73: 3 | K73: 146 | L73: 101 | M73: 75 | N73: 3 | O73: 1 | P73: 0 | Q73: 0 | R73: 0 | S73: 180 | T73: 4 | U73: 180
A74: 17:00:00 | B74: 130 | C74: 64 | D74: 5 | E74: 4 | F74: 0 | G74: 1 | H74: 0 | I74: 203 | J74: 9 | K74: 204 | L74: 111 | M74: 55 | N74: 0 | O74: 0 | P74: 0 | Q74: 0 | R74: 0 | S74: 166 | T74: 0 | U74: 166
A75: 17:15:00 | B75: 125 | C75: 59 | D75: 1 | E75: 2 | F75: 0 | G75: 0 | H75: 1 | I75: 187 | J75: 3 | K75: 188 | L75: 107 | M75: 51 | N75: 0 | O75: 1 | P75: 0 | Q75: 1 | R75: 1 | S75: 159 | T75: 1 | U75: 161
A76: 17:30:00 | B76: 143 | C76: 45 | D76: 6 | E76: 1 | F76: 1 | G76: 1 | H76: 0 | I76: 195 | J76: 7 | K76: 197 | L76: 96 | M76: 51 | N76: 1 | O76: 0 | P76: 0 | Q76: 0 | R76: 1 | S76: 148 | T76: 1 | U76: 149
A77: 17:45:00 | B77: 84 | C77: 48 | D77: 2 | E77: 0 | F77: 0 | G77: 0 | H77: 0 | I77: 134 | J77: 2 | K77: 134 | L77: 107 | M77: 47 | N77: 3 | O77: 0 | P77: 0 | Q77: 0 | R77: 0 | S77: 157 | T77: 3 | U77: 157
A78: 18:00:00 | B78: 91 | C78: 41 | D78: 2 | E78: 1 | F78: 0 | G78: 0 | H78: 0 | I78: 135 | J78: 3 | K78: 135 | L78: 101 | M78: 47 | N78: 4 | O78: 0 | P78: 0 | Q78: 1 | R78: 0 | S78: 152 | T78: 4 | U78: 153
A79: 18:15:00 | B79: 115 | C79: 53 | D79: 4 | E79: 1 | F79: 0 | G79: 0 | H79: 1 | I79: 173 | J79: 5 | K79: 174 | L79: 75 | M79: 42 | N79: 1 | O79: 0 | P79: 0 | Q79: 0 | R79: 1 | S79: 118 | T79: 1 | U79: 119
A80: 18:30:00 | B80: 64 | C80: 50 | D80: 4 | E80: 1 | F80: 0 | G80: 0 | H80: 0 | I80: 119 | J80: 5 | K80: 119 | L80: 70 | M80: 37 | N80: 1 | O80: 0 | P80: 0 | Q80: 0 | R80: 0 | S80: 108 | T80: 1 | U80: 108
A81: 18:45:00 | B81: 79 | C81: 43 | D81: 3 | E81: 0 | F81: 0 | G81: 1 | H81: 1 | I81: 125 | J81: 3 | K81: 127 | L81: 77 | M81: 36 | N81: 1 | O81: 1 | P81: 0 | Q81: 0 | R81: 0 | S81: 115 | T81: 2 | U81: 115
A82: 19:00:00 | B82: 85 | C82: 36 | D82: 0 | E82: 3 | F82: 0 | G82: 0 | H82: 0 | I82: 124 | J82: 3 | K82: 124 | L82: 65 | M82: 45 | N82: 0 | O82: 1 | P82: 0 | Q82: 0 | R82: 0 | S82: 111 | T82: 1 | U82: 111
A83: 19:15:00 | B83: 66 | C83: 40 | D83: 4 | E83: 0 | F83: 1 | G83: 0 | H83: 0 | I83: 110 | J83: 4 | K83: 111 | L83: 55 | M83: 25 | N83: 1 | O83: 0 | P83: 0 | Q83: 1 | R83: 1 | S83: 81 | T83: 1 | U83: 83
A84: 19:30:00 | B84: 52 | C84: 37 | D84: 1 | E84: 0 | F84: 0 | G84: 1 | H84: 0 | I84: 90 | J84: 1 | K84: 91 | L84: 58 | M84: 35 | N84: 0 | O84: 0 | P84: 0 | Q84: 0 | R84: 0 | S84: 93 | T84: 0 | U84: 93
A85: 19:45:00 | B85: 48 | C85: 36 | D85: 4 | E85: 0 | F85: 0 | G85: 0 | H85: 0 | I85: 88 | J85: 4 | K85: 88 | L85: 38 | M85: 26 | N85: 2 | O85: 0 | P85: 0 | Q85: 0 | R85: 0 | S85: 66 | T85: 2 | U85: 66
A86: 20:00:00 | B86: 40 | C86: 26 | D86: 0 | E86: 1 | F86: 0 | G86: 0 | H86: 1 | I86: 67 | J86: 1 | K86: 68 | L86: 34 | M86: 26 | N86: 1 | O86: 0 | P86: 0 | Q86: 0 | R86: 0 | S86: 61 | T86: 1 | U86: 61
A87: 20:15:00 | B87: 40 | C87: 28 | D87: 2 | E87: 0 | F87: 0 | G87: 0 | H87: 0 | I87: 70 | J87: 2 | K87: 70 | L87: 42 | M87: 17 | N87: 1 | O87: 0 | P87: 0 | Q87: 0 | R87: 0 | S87: 60 | T87: 1 | U87: 60
A88: 20:30:00 | B88: 33 | C88: 12 | D88: 0 | E88: 0 | F88: 0 | G88: 0 | H88: 0 | I88: 45 | J88: 0 | K88: 45 | L88: 32 | M88: 10 | N88: 1 | O88: 0 | P88: 0 | Q88: 0 | R88: 0 | S88: 43 | T88: 1 | U88: 43
A89: 20:45:00 | B89: 30 | C89: 15 | D89: 0 | E89: 0 | F89: 0 | G89: 0 | H89: 0 | I89: 45 | J89: 0 | K89: 45 | L89: 18 | M89: 19 | N89: 1 | O89: 0 | P89: 0 | Q89: 0 | R89: 0 | S89: 38 | T89: 1 | U89: 38
A90: 21:00:00 | B90: 22 | C90: 17 | D90: 0 | E90: 0 | F90: 0 | G90: 0 | H90: 0 | I90: 39 | J90: 0 | K90: 39 | L90: 19 | M90: 16 | N90: 0 | O90: 0 | P90: 0 | Q90: 0 | R90: 0 | S90: 35 | T90: 0 | U90: 35
A91: 21:15:00 | B91: 37 | C91: 18 | D91: 1 | E91: 0 | F91: 0 | G91: 0 | H91: 0 | I91: 56 | J91: 1 | K91: 56 | L91: 15 | M91: 10 | N91: 0 | O91: 0 | P91: 0 | Q91: 0 | R91: 0 | S91: 25 | T91: 0 | U91: 25
A92: 21:30:00 | B92: 20 | C92: 16 | D92: 0 | E92: 0 | F92: 0 | G92: 1 | H92: 0 | I92: 36 | J92: 0 | K92: 37 | L92: 24 | M92: 18 | N92: 0 | O92: 0 | P92: 0 | Q92: 0 | R92: 0 | S92: 42 | T92: 0 | U92: 42
A93: 21:45:00 | B93: 23 | C93: 10 | D93: 1 | E93: 0 | F93: 0 | G93: 0 | H93: 0 | I93: 34 | J93: 1 | K93: 34 | L93: 19 | M93: 11 | N93: 0 | O93: 0 | P93: 0 | Q93: 0 | R93: 0 | S93: 30 | T93: 0 | U93: 30
A94: 22:00:00 | B94: 30 | C94: 13 | D94: 1 | E94: 1 | F94: 0 | G94: 0 | H94: 0 | I94: 45 | J94: 2 | K94: 45 | L94: 19 | M94: 12 | N94: 0 | O94: 0 | P94: 0 | Q94: 0 | R94: 1 | S94: 31 | T94: 0 | U94: 32
A95: 22:15:00 | B95: 26 | C95: 21 | D95: 2 | E95: 0 | F95: 0 | G95: 0 | H95: 0 | I95: 49 | J95: 2 | K95: 49 | L95: 23 | M95: 12 | N95: 0 | O95: 0 | P95: 0 | Q95: 0 | R95: 0 | S95: 35 | T95: 0 | U95: 35
A96: 22:30:00 | B96: 25 | C96: 19 | D96: 0 | E96: 0 | F96: 0 | G96: 0 | H96: 0 | I96: 44 | J96: 0 | K96: 44 | L96: 24 | M96: 18 | N96: 0 | O96: 0 | P96: 0 | Q96: 0 | R96: 0 | S96: 42 | T96: 0 | U96: 42
A97: 22:45:00 | B97: 12 | C97: 16 | D97: 0 | E97: 0 | F97: 0 | G97: 0 | H97: 0 | I97: 28 | J97: 0 | K97: 28 | L97: 12 | M97: 11 | N97: 1 | O97: 0 | P97: 0 | Q97: 0 | R97: 0 | S97: 24 | T97: 1 | U97: 24
A98: 23:00:00 | B98: 13 | C98: 11 | D98: 1 | E98: 0 | F98: 0 | G98: 0 | H98: 0 | I98: 25 | J98: 1 | K98: 25 | L98: 12 | M98: 7 | N98: 0 | O98: 0 | P98: 0 | Q98: 0 | R98: 1 | S98: 19 | T98: 0 | U98: 20
A99: 23:15:00 | B99: 24 | C99: 3 | D99: 1 | E99: 0 | F99: 0 | G99: 0 | H99: 0 | I99: 28 | J99: 1 | K99: 28 | L99: 13 | M99: 9 | N99: 0 | O99: 1 | P99: 0 | Q99: 0 | R99: 0 | S99: 23 | T99: 1 | U99: 23
A100: 23:30:00 | B100: 7 | C100: 8 | D100: 1 | E100: 0 | F100: 0 | G100: 0 | H100: 0 | I100: 16 | J100: 1 | K100: 16 | L100: 9 | M100: 7 | N100: 0 | O100: 0 | P100: 0 | Q100: 0 | R100: 0 | S100: 16 | T100: 0 | U100: 16
A101: 23:45:00 | B101: 12 | C101: 10 | D101: 0 | E101: 0 | F101: 0 | G101: 0 | H101: 0 | I101: 22 | J101: 0 | K101: 22 | L101: 8 | M101: 3 | N101: 1 | O101: 0 | P101: 0 | Q101: 0 | R101: 0 | S101: 12 | T101: 1 | U101: 12
A102: TOTAL | B102: =SUM(B6:B101) -> 5322 | C102: =SUM(C6:C101) -> 2958 | D102: 296 | E102: 70 | F102: 22 | G102: 21 | H102: 10 | I102: 8646 | J102: 366 | K102: 8699 | L102: =SUM(L6:L101) -> 4839 | M102: =SUM(M6:M101) -> 2827 | N102: 244 | O102: 45 | P102: 13 | Q102: 18 | R102: 14 | S102: 7955 | T102: 289 | U102: 8000

Sheet 16 04 2016
A1: * Fill the table with data
A2: DO NOT CHANGE THE STRUCTURE OF THE SPREADSHEET (i.e. ADD OR DELETE ROWS/COLUMNS, ETC.)
B4: ='Site Plan'!$A$19&" - "&'Site Plan'!$C$19 -> Direction 1 - Eastbound | I4: TOTAL | L4: ='Site Plan'!$A$20&" - "&'Site Plan'!$C$20 -> Direction 2 - Westbound | S4: TOTAL
A5: TIME | B5: CAR | C5: LGV | D5: OGV1 | E5: OGV2 | F5: PSV | G5: MCL | H5: PCL | I5: CAR + LGV + HGV | J5: HGV | K5: ALL modes | L5: CAR | M5: LGV | N5: OGV1 | O5: OGV2 | P5: PSV | Q5: MCL | R5: PCL | S5: CAR + LGV + HGV | T5: HGV | U5: ALL modes
A6: 00:00:00 | B6: 7 | C6: 13 | D6: 0 | E6: 0 | F6: 0 | G6: 0 | H6: 0 | I6: =SUM(B6:E6) -> 20 | J6: =SUM(D6:E6) -> 0 | K6: =SUM(B6:H6) -> 20 | L6: 1 | M6: 3 | N6: 0 | O6: 0 | P6: 0 | Q6: 0 | R6: 0 | S6: =SUM(L6:O6) -> 4 | T6: =SUM(N6:O6) -> 0 | U6: =SUM(L6:R6) -> 4
A7: 00:15:00 | B7: 9 | C7: 3 | D7: 1 | E7: 0 | F7: 0 | G7: 0 | H7: 0 | I7: =SUM(B7:E7) -> 13 | J7: =SUM(D7:E7) -> 1 | K7: =SUM(B7:H7) -> 13 | L7: 5 | M7: 3 | N7: 0 | O7: 0 | P7: 0 | Q7: 1 | R7: 0 | S7: =SUM(L7:O7) -> 8 | T7: =SUM(N7:O7) -> 0 | U7: =SUM(L7:R7) -> 9
A8: 00:30:00 | B8: 6 | C8: 4 | D8: 0 | E8: 0 | F8: 0 | G8: 0 | H8: 0 | I8: 10 | J8: 0 | K8: 10 | L8: 5 | M8: 2 | N8: 0 | O8: 0 | P8: 0 | Q8: 0 | R8: 0 | S8: 7 | T8: 0 | U8: 7
A9: 00:45:00 | B9: 1 | C9: 1 | D9: 0 | E9: 0 | F9: 0 | G9: 0 | H9: 0 | I9: 2 | J9: 0 | K9: 2 | L9: 4 | M9: 0 | N9: 0 | O9: 0 | P9: 0 | Q9: 0 | R9: 0 | S9: 4 | T9: 0 | U9: 4
A10: 01:00:00 | B10: 1 | C10: 3 | D10: 1 | E10: 0 | F10: 0 | G10: 0 | H10: 0 | I10: 5 | J10: 1 | K10: 5 | L10: 0 | M10: 0 | N10: 0 | O10: 0 | P10: 0 | Q10: 0 | R10: 0 | S10: 0 | T10: 0 | U10: 0
A11: 01:15:00 | B11: 6 | C11: 1 | D11: 0 | E11: 0 | F11: 0 | G11: 0 | H11: 0 | I11: 7 | J11: 0 | K11: 7 | L11: 5 | M11: 3 | N11: 0 | O11: 0 | P11: 0 | Q11: 0 | R11: 0 | S11: 8 | T11: 0 | U11: 8
A12: 01:30:00 | B12: 0 | C12: 0 | D12: 1 | E12: 0 | F12: 0 | G12: 0 | H12: 0 | I12: 1 | J12: 1 | K12: 1 | L12: 2 | M12: 0 | N12: 0 | O12: 0 | P12: 0 | Q12: 0 | R12: 0 | S12: 2 | T12: 0 | U12: 2
A13: 01:45:00 | B13: 1 | C13: 2 | D13: 0 | E13: 0 | F13: 0 | G13: 0 | H13: 0 | I13: 3 | J13: 0 | K13: 3 | L13: 0 | M13: 0 | N13: 0 | O13: 0 | P13: 0 | Q13: 0 | R13: 0 | S13: 0 | T13: 0 | U13: 0
A14: 02:00:00 | B14: 1 | C14: 2 | D14: 0 | E14: 0 | F14: 0 | G14: 0 | H14: 0 | I14: 3 | J14: 0 | K14: 3 | L14: 2 | M14: 1 | N14: 0 | O14: 0 | P14: 0 | Q14: 0 | R14: 0 | S14: 3 | T14: 0 | U14: 3
A15: 02:15:00 | B15: 1 | C15: 1 | D15: 0 | E15: 0 | F15: 0 | G15: 0 | H15: 0 | I15: 2 | J15: 0 | K15: 2 | L15: 0 | M15: 4 | N15: 0 | O15: 0 | P15: 0 | Q15: 0 | R15: 0 | S15: 4 | T15: 0 | U15: 4
A16: 02:30:00 | B16: 1 | C16: 2 | D16: 1 | E16: 1 | F16: 0 | G16: 0 | H16: 0 | I16: 5 | J16: 2 | K16: 5 | L16: 1 | M16: 3 | N16: 0 | O16: 0 | P16: 0 | Q16: 0 | R16: 0 | S16: 4 | T16: 0 | U16: 4
A17: 02:45:00 | B17: 0 | C17: 4 | D17: 0 | E17: 1 | F17: 0 | G17: 0 | H17: 0 | I17: 5 | J17: 1 | K17: 5 | L17: 1 | M17: 1 | N17: 0 | O17: 0 | P17: 0 | Q17: 0 | R17: 0 | S17: 2 | T17: 0 | U17: 2
A18: 03:00:00 | B18: 0 | C18: 1 | D18: 1 | E18: 0 | F18: 0 | G18: 0 | H18: 0 | I18: 2 | J18: 1 | K18: 2 | L18: 4 | M18: 1 | N18: 0 | O18: 0 | P18: 0 | Q18: 0 | R18: 0 | S18: 5 | T18: 0 | U18: 5
A19: 03:15:00 | B19: 0 | C19: 2 | D19: 0 | E19: 0 | F19: 0 | G19: 0 | H19: 0 | I19: 2 | J19: 0 | K19: 2 | L19: 3 | M19: 1 | N19: 0 | O19: 0 | P19: 0 | Q19: 0 | R19: 0 | S19: 4 | T19: 0 | U19: 4
A20: 03:30:00 | B20: 1 | C20: 2 | D20: 0 | E20: 0 | F20: 0 | G20: 0 | H20: 0 | I20: 3 | J20: 0 | K20: 3 | L20: 4 | M20: 5 | N20: 0 | O20: 0 | P20: 0 | Q20: 0 | R20: 0 | S20: 9 | T20: 0 | U20: 9
A21: 03:45:00 | B21: 2 | C21: 0 | D21: 1 | E21: 0 | F21: 0 | G21: 0 | H21: 0 | I21: 3 | J21: 1 | K21: 3 | L21: 3 | M21: 3 | N21: 0 | O21: 0 | P21: 0 | Q21: 0 | R21: 0 | S21: 6 | T21: 0 | U21: 6
A22: 04:00:00 | B22: 0 | C22: 1 | D22: 1 | E22: 1 | F22: 0 | G22: 0 | H22: 0 | I22: 3 | J22: 2 | K22: 3 | L22: 1 | M22: 0 | N22: 0 | O22: 1 | P22: 0 | Q22: 0 | R22: 0 | S22: 2 | T22: 1 | U22: 2
A23: 04:15:00 | B23: 0 | C23: 1 | D23: 0 | E23: 1 | F23: 0 | G23: 0 | H23: 0 | I23: 2 | J23: 1 | K23: 2 | L23: 2 | M23: 2 | N23: 1 | O23: 0 | P23: 0 | Q23: 0 | R23: 0 | S23: 5 | T23: 1 | U23: 5
A24: 04:30:00 | B24: 1 | C24: 3 | D24: 0 | E24: 0 | F24: 0 | G24: 0 | H24: 0 | I24: 4 | J24: 0 | K24: 4 | L24: 1 | M24: 3 | N24: 0 | O24: 0 | P24: 0 | Q24: 0 | R24: 0 | S24: 4 | T24: 0 | U24: 4
A25: 04:45:00 | B25: 2 | C25: 3 | D25: 1 | E25: 0 | F25: 0 | G25: 0 | H25: 0 | I25: 6 | J25: 1 | K25: 6 | L25: 2 | M25: 3 | N25: 0 | O25: 0 | P25: 0 | Q25: 0 | R25: 0 | S25: 5 | T25: 0 | U25: 5
A26: 05:00:00 | B26: 4 | C26: 2 | D26: 0 | E26: 0 | F26: 0 | G26: 0 | H26: 0 | I26: 6 | J26: 0 | K26: 6 | L26: 2 | M26: 1 | N26: 1 | O26: 0 | P26: 0 | Q26: 0 | R26: 0 | S26: 4 | T26: 1 | U26: 4
A27: 05:15:00 | B27: 2 | C27: 6 | D27: 1 | E27: 0 | F27: 0 | G27: 0 | H27: 0 | I27: 9 | J27: 1 | K27: 9 | L27: 4 | M27: 7 | N27: 0 | O27: 0 | P27: 1 | Q27: 0 | R27: 0 | S27: 11 | T27: 0 | U27: 12
A28: 05:30:00 | B28: 7 | C28: 7 | D28: 0 | E28: 1 | F28: 0 | G28: 0 | H28: 0 | I28: 15 | J28: 1 | K28: 15 | L28: 7 | M28: 4 | N28: 0 | O28: 0 | P28: 0 | Q28: 0 | R28: 0 | S28: 11 | T28: 0 | U28: 11
A29: 05:45:00 | B29: 11 | C29: 6 | D29: 1 | E29: 0 | F29: 0 | G29: 0 | H29: 0 | I29: 18 | J29: 1 | K29: 18 | L29: 11 | M29: 9 | N29: 1 | O29: 0 | P29: 0 | Q29: 0 | R29: 0 | S29: 21 | T29: 1 | U29: 21
A30: 06:00:00 | B30: 9 | C30: 5 | D30: 1 | E30: 0 | F30: 0 | G30: 0 | H30: 0 | I30: 15 | J30: 1 | K30: 15 | L30: 11 | M30: 6 | N30: 0 | O30: 0 | P30: 0 | Q30: 0 | R30: 0 | S30: 17 | T30: 0 | U30: 17
A31: 06:15:00 | B31: 11 | C31: 7 | D31: 1 | E31: 0 | F31: 0 | G31: 0 | H31: 0 | I31: 19 | J31: 1 | K31: 19 | L31: 9 | M31: 8 | N31: 2 | O31: 0 | P31: 0 | Q31: 1 | R31: 0 | S31: 19 | T31: 2 | U31: 20
A32: 06:30:00 | B32: 18 | C32: 9 | D32: 0 | E32: 0 | F32: 0 | G32: 0 | H32: 0 | I32: 27 | J32: 0 | K32: 27 | L32: 16 | M32: 12 | N32: 1 | O32: 0 | P32: 0 | Q32: 0 | R32: 0 | S32: 29 | T32: 1 | U32: 29
A33: 06:45:00 | B33: 26 | C33: 9 | D33: 1 | E33: 0 | F33: 0 | G33: 0 | H33: 0 | I33: 36 | J33: 1 | K33: 36 | L33: 10 | M33: 8 | N33: 2 | O33: 1 | P33: 0 | Q33: 1 | R33: 0 | S33: 21 | T33: 3 | U33: 22
A34: 07:00:00 | B34: 23 | C34: 6 | D34: 0 | E34: 0 | F34: 0 | G34: 0 | H34: 1 | I34: 29 | J34: 0 | K34: 30 | L34: 21 | M34: 13 | N34: 1 | O34: 1 | P34: 0 | Q34: 1 | R34: 0 | S34: 36 | T34: 2 | U34: 37
A35: 07:15:00 | B35: 22 | C35: 14 | D35: 2 | E35: 2 | F35: 0 | G35: 0 | H35: 0 | I35: 40 | J35: 4 | K35: 40 | L35: 21 | M35: 13 | N35: 2 | O35: 0 | P35: 0 | Q35: 0 | R35: 1 | S35: 36 | T35: 2 | U35: 37
A36: 07:30:00 | B36: 32 | C36: 26 | D36: 0 | E36: 1 | F36: 0 | G36: 0 | H36: 1 | I36: 59 | J36: 1 | K36: 60 | L36: 23 | M36: 14 | N36: 2 | O36: 0 | P36: 0 | Q36: 0 | R36: 0 | S36: 39 | T36: 2 | U36: 39
A37: 07:45:00 | B37: 46 | C37: 22 | D37: 0 | E37: 1 | F37: 0 | G37: 0 | H37: 0 | I37: 69 | J37: 1 | K37: 69 | L37: 35 | M37: 21 | N37: 1 | O37: 0 | P37: 0 | Q37: 0 | R37: 0 | S37: 57 | T37: 1 | U37: 57
A38: 08:00:00 | B38: 65 | C38: 26 | D38: 6 | E38: 0 | F38: 0 | G38: 0 | H38: 0 | I38: 97 | J38: 6 | K38: 97 | L38: 43 | M38: 24 | N38: 2 | O38: 0 | P38: 0 | Q38: 0 | R38: 1 | S38: 69 | T38: 2 | U38: 70
A39: 08:15:00 | B39: 65 | C39: 27 | D39: 2 | E39: 1 | F39: 0 | G39: 0 | H39: 0 | I39: 95 | J39: 3 | K39: 95 | L39: 56 | M39: 38 | N39: 4 | O39: 2 | P39: 0 | Q39: 0 | R39: 1 | S39: 100 | T39: 6 | U39: 101
A40: 08:30:00 | B40: 69 | C40: 42 | D40: 0 | E40: 0 | F40: 0 | G40: 0 | H40: 1 | I40: 111 | J40: 0 | K40: 112 | L40: 59 | M40: 41 | N40: 3 | O40: 0 | P40: 0 | Q40: 1 | R40: 0 | S40: 103 | T40: 3 | U40: 104
A41: 08:45:00 | B41: 64 | C41: 46 | D41: 2 | E41: 0 | F41: 0 | G41: 0 | H41: 0 | I41: 112 | J41: 2 | K41: 112 | L41: 75 | M41: 33 | N41: 4 | O41: 0 | P41: 0 | Q41: 0 | R41: 0 | S41: 112 | T41: 4 | U41: 112
A42: 09:00:00 | B42: 85 | C42: 41 | D42: 0 | E42: 0 | F42: 0 | G42: 0 | H42: 0 | I42: 126 | J42: 0 | K42: 126 | L42: 56 | M42: 30 | N42: 5 | O42: 2 | P42: 0 | Q42: 1 | R42: 1 | S42: 93 | T42: 7 | U42: 95
A43: 09:15:00 | B43: 88 | C43: 40 | D43: 3 | E43: 0 | F43: 0 | G43: 0 | H43: 0 | I43: 131 | J43: 3 | K43: 131 | L43: 48 | M43: 43 | N43: 4 | O43: 1 | P43: 0 | Q43: 0 | R43: 0 | S43: 96 | T43: 5 | U43: 96
A44: 09:30:00 | B44: 109 | C44: 46 | D44: 0 | E44: 1 | F44: 1 | G44: 0 | H44: 1 | I44: 156 | J44: 1 | K44: 158 | L44: 83 | M44: 34 | N44: 1 | O44: 0 | P44: 0 | Q44: 0 | R44: 0 | S44: 118 | T44: 1 | U44: 118
A45: 09:45:00 | B45: 91 | C45: 45 | D45: 4 | E45: 1 | F45: 0 | G45: 0 | H45: 1 | I45: 141 | J45: 5 | K45: 142 | L45: 85 | M45: 34 | N45: 2 | O45: 0 | P45: 0 | Q45: 0 | R45: 0 | S45: 121 | T45: 2 | U45: 121
A46: 10:00:00 | B46: 103 | C46: 51 | D46: 2 | E46: 1 | F46: 0 | G46: 0 | H46: 0 | I46: 157 | J46: 3 | K46: 157 | L46: 112 | M46: 43 | N46: 2 | O46: 0 | P46: 0 | Q46: 0 | R46: 0 | S46: 157 | T46: 2 | U46: 157
A47: 10:15:00 | B47: 133 | C47: 59 | D47: 7 | E47: 3 | F47: 0 | G47: 0 | H47: 0 | I47: 202 | J47: 10 | K47: 202 | L47: 92 | M47: 44 | N47: 4 | O47: 0 | P47: 0 | Q47: 0 | R47: 1 | S47: 140 | T47: 4 | U47: 141
A48: 10:30:00 | B48: 148 | C48: 56 | D48: 2 | E48: 0 | F48: 0 | G48: 1 | H48: 0 | I48: 206 | J48: 2 | K48: 207 | L48: 98 | M48: 41 | N48: 2 | O48: 0 | P48: 0 | Q48: 0 | R48: 0 | S48: 141 | T48: 2 | U48: 141
A49: 10:45:00 | B49: 137 | C49: 42 | D49: 1 | E49: 0 | F49: 0 | G49: 0 | H49: 1 | I49: 180 | J49: 1 | K49: 181 | L49: 115 | M49: 50 | N49: 3 | O49: 0 | P49: 0 | Q49: 0 | R49: 0 | S49: 168 | T49: 3 | U49: 168
A50: 11:00:00 | B50: 119 | C50: 49 | D50: 2 | E50: 1 | F50: 0 | G50: 2 | H50: 1 | I50: 171 | J50: 3 | K50: 174 | L50: 99 | M50: 48 | N50: 0 | O50: 2 | P50: 0 | Q50: 0 | R50: 0 | S50: 149 | T50: 2 | U50: 149
A51: 11:15:00 | B51: 117 | C51: 48 | D51: 2 | E51: 1 | F51: 0 | G51: 0 | H51: 1 | I51: 168 | J51: 3 | K51: 169 | L51: 101 | M51: 49 | N51: 1 | O51: 0 | P51: 0 | Q51: 0 | R51: 0 | S51: 151 | T51: 1 | U51: 151
A52: 11:30:00 | B52: 103 | C52: 45 | D52: 1 | E52: 0 | F52: 0 | G52: 0 | H52: 0 | I52: 149 | J52: 1 | K52: 149 | L52: 114 | M52: 49 | N52: 2 | O52: 0 | P52: 0 | Q52: 1 | R52: 0 | S52: 165 | T52: 2 | U52: 166
A53: 11:45:00 | B53: 127 | C53: 47 | D53: 1 | E53: 1 | F53: 0 | G53: 0 | H53: 1 | I53: 176 | J53: 2 | K53: 177 | L53: 92 | M53: 45 | N53: 0 | O53: 1 | P53: 0 | Q53: 0 | R53: 0 | S53: 138 | T53: 1 | U53: 138
A54: 12:00:00 | B54: 104 | C54: 52 | D54: 1 | E54: 0 | F54: 0 | G54: 0 | H54: 2 | I54: 157 | J54: 1 | K54: 159 | L54: 91 | M54: 56 | N54: 2 | O54: 0 | P54: 0 | Q54: 0 | R54: 0 | S54: 149 | T54: 2 | U54: 149
A55: 12:15:00 | B55: 125 | C55: 54 | D55: 1 | E55: 0 | F55: 0 | G55: 1 | H55: 1 | I55: 180 | J55: 1 | K55: 182 | L55: 92 | M55: 35 | N55: 2 | O55: 1 | P55: 0 | Q55: 0 | R55: 0 | S55: 130 | T55: 3 | U55: 130
A56: 12:30:00 | B56: 109 | C56: 50 | D56: 1 | E56: 1 | F56: 0 | G56: 1 | H56: 0 | I56: 161 | J56: 2 | K56: 162 | L56: 119 | M56: 55 | N56: 1 | O56: 0 | P56: 0 | Q56: 0 | R56: 0 | S56: 175 | T56: 1 | U56: 175
A57: 12:45:00 | B57: 97 | C57: 49 | D57: 0 | E57: 2 | F57: 0 | G57: 2 | H57: 1 | I57: 148 | J57: 2 | K57: 151 | L57: 116 | M57: 61 | N57: 1 | O57: 0 | P57: 0 | Q57: 1 | R57: 0 | S57: 178 | T57: 1 | U57: 179
A58: 13:00:00 | B58: 91 | C58: 52 | D58: 0 | E58: 3 | F58: 0 | G58: 0 | H58: 0 | I58: 146 | J58: 3 | K58: 146 | L58: 80 | M58: 58 | N58: 0 | O58: 0 | P58: 0 | Q58: 1 | R58: 0 | S58: 138 | T58: 0 | U58: 139
A59: 13:15:00 | B59: 94 | C59: 52 | D59: 1 | E59: 1 | F59: 0 | G59: 0 | H59: 0 | I59: 148 | J59: 2 | K59: 148 | L59: 86 | M59: 48 | N59: 2 | O59: 0 | P59: 0 | Q59: 0 | R59: 0 | S59: 136 | T59: 2 | U59: 136
A60: 13:30:00 | B60: 97 | C60: 62 | D60: 0 | E60: 1 | F60: 0 | G60: 1 | H60: 0 | I60: 160 | J60: 1 | K60: 161 | L60: 104 | M60: 42 | N60: 0 | O60: 0 | P60: 0 | Q60: 0 | R60: 0 | S60: 146 | T60: 0 | U60: 146
A61: 13:45:00 | B61: 82 | C61: 52 | D61: 1 | E61: 2 | F61: 0 | G61: 0 | H61: 0 | I61: 137 | J61: 3 | K61: 137 | L61: 90 | M61: 52 | N61: 0 | O61: 1 | P61: 0 | Q61: 0 | R61: 0 | S61: 143 | T61: 1 | U61: 143
A62: 14:00:00 | B62: 110 | C62: 54 | D62: 2 | E62: 0 | F62: 0 | G62: 0 | H62: 0 | I62: 166 | J62: 2 | K62: 166 | L62: 105 | M62: 56 | N62: 4 | O62: 0 | P62: 0 | Q62: 0 | R62: 1 | S62: 165 | T62: 4 | U62: 166
A63: 14:15:00 | B63: 89 | C63: 50 | D63: 2 | E63: 0 | F63: 0 | G63: 1 | H63: 1 | I63: 141 | J63: 2 | K63: 143 | L63: 80 | M63: 46 | N63: 1 | O63: 0 | P63: 0 | Q63: 1 | R63: 0 | S63: 127 | T63: 1 | U63: 128
A64: 14:30:00 | B64: 83 | C64: 38 | D64: 2 | E64: 0 | F64: 0 | G64: 0 | H64: 0 | I64: 123 | J64: 2 | K64: 123 | L64: 100 | M64: 41 | N64: 4 | O64: 1 | P64: 0 | Q64: 0 | R64: 0 | S64: 146 | T64: 5 | U64: 146
A65: 14:45:00 | B65: 101 | C65: 71 | D65: 0 | E65: 2 | F65: 0 | G65: 2 | H65: 0 | I65: 174 | J65: 2 | K65: 176 | L65: 83 | M65: 57 | N65: 1 | O65: 1 | P65: 0 | Q65: 0 | R65: 0 | S65: 142 | T65: 2 | U65: 142
A66: 15:00:00 | B66: 85 | C66: 54 | D66: 0 | E66: 0 | F66: 0 | G66: 0 | H66: 0 | I66: 139 | J66: 0 | K66: 139 | L66: 105 | M66: 54 | N66: 0 | O66: 0 | P66: 0 | Q66: 0 | R66: 0 | S66: 159 | T66: 0 | U66: 159
A67: 15:15:00 | B67: 103 | C67: 37 | D67: 1 | E67: 0 | F67: 0 | G67: 0 | H67: 0 | I67: 141 | J67: 1 | K67: 141 | L67: 92 | M67: 52 | N67: 1 | O67: 1 | P67: 0 | Q67: 0 | R67: 0 | S67: 146 | T67: 2 | U67: 146
A68: 15:30:00 | B68: 72 | C68: 51 | D68: 1 | E68: 0 | F68: 0 | G68: 0 | H68: 0 | I68: 124 | J68: 1 | K68: 124 | L68: 81 | M68: 48 | N68: 0 | O68: 0 | P68: 0 | Q68: 0 | R68: 0 | S68: 129 | T68: 0 | U68: 129
A69: 15:45:00 | B69: 66 | C69: 40 | D69: 1 | E69: 0 | F69: 0 | G69: 2 | H69: 0 | I69: 107 | J69: 1 | K69: 109 | L69: 85 | M69: 51 | N69: 1 | O69: 0 | P69: 0 | Q69: 0 | R69: 0 | S69: 137 | T69: 1 | U69: 137
A70: 16:00:00 | B70: 49 | C70: 50 | D70: 4 | E70: 0 | F70: 0 | G70: 0 | H70: 0 | I70: 103 | J70: 4 | K70: 103 | L70: 83 | M70: 40 | N70: 2 | O70: 1 | P70: 0 | Q70: 0 | R70: 0 | S70: 126 | T70: 3 | U70: 126
A71: 16:15:00 | B71: 73 | C71: 32 | D71: 1 | E71: 0 | F71: 0 | G71: 0 | H71: 0 | I71: =SUM(B71:E71) -> 106 | J71: =SUM(D71:E71) -> 1 | K71: =SUM(B71:H71) -> 106 | L71: 97 | M71: 55 | N71: 1 | O71: 1 | P71: 0 | Q71: 0 | R71: 1 | S71: =SUM(L71:O71) -> 154 | T71: =SUM(N71:O71) -> 2 | U71: =SUM(L71:R71) -> 155
A72: 16:30:00 | B72: 54 | C72: 31 | D72: 1 | E72: 0 | F72: 0 | G72: 0 | H72: 2 | I72: 86 | J72: 1 | K72: 88 | L72: 74 | M72: 50 | N72: 2 | O72: 0 | P72: 0 | Q72: 0 | R72: 0 | S72: 126 | T72: 2 | U72: 126
A73: 16:45:00 | B73: 73 | C73: 44 | D73: 2 | E73: 0 | F73: 0 | G73: 0 | H73: 2 | I73: 119 | J73: 2 | K73: 121 | L73: 80 | M73: 45 | N73: 3 | O73: 1 | P73: 0 | Q73: 0 | R73: 1 | S73: 129 | T73: 4 | U73: 130
A74: 17:00:00 | B74: 71 | C74: 25 | D74: 1 | E74: 0 | F74: 0 | G74: 1 | H74: 1 | I74: 97 | J74: 1 | K74: 99 | L74: 91 | M74: 48 | N74: 2 | O74: 0 | P74: 0 | Q74: 0 | R74: 0 | S74: 141 | T74: 2 | U74: 141
A75: 17:15:00 | B75: 61 | C75: 29 | D75: 2 | E75: 1 | F75: 0 | G75: 0 | H75: 0 | I75: 93 | J75: 3 | K75: 93 | L75: 67 | M75: 42 | N75: 1 | O75: 0 | P75: 0 | Q75: 0 | R75: 1 | S75: 110 | T75: 1 | U75: 111
A76: 17:30:00 | B76: 53 | C76: 39 | D76: 1 | E76: 0 | F76: 0 | G76: 1 | H76: 0 | I76: 93 | J76: 1 | K76: 94 | L76: 90 | M76: 47 | N76: 1 | O76: 2 | P76: 0 | Q76: 1 | R76: 0 | S76: 140 | T76: 3 | U76: 141
A77: 17:45:00 | B77: 47 | C77: 39 | D77: 3 | E77: 2 | F77: 0 | G77: 2 | H77: 0 | I77: 91 | J77: 5 | K77: 93 | L77: 64 | M77: 46 | N77: 2 | O77: 0 | P77: 0 | Q77: 1 | R77: 1 | S77: 112 | T77: 2 | U77: 114
A78: 18:00:00 | B78: 46 | C78: 45 | D78: 3 | E78: 0 | F78: 0 | G78: 0 | H78: 0 | I78: 94 | J78: 3 | K78: 94 | L78: 57 | M78: 49 | N78: 0 | O78: 0 | P78: 0 | Q78: 0 | R78: 0 | S78: 106 | T78: 0 | U78: 106
A79: 18:15:00 | B79: 54 | C79: 36 | D79: 3 | E79: 0 | F79: 0 | G79: 0 | H79: 0 | I79: 93 | J79: 3 | K79: 93 | L79: 61 | M79: 37 | N79: 0 | O79: 0 | P79: 0 | Q79: 1 | R79: 1 | S79: 98 | T79: 0 | U79: 100
A80: 18:30:00 | B80: 65 | C80: 38 | D80: 0 | E80: 0 | F80: 0 | G80: 0 | H80: 1 | I80: 103 | J80: 0 | K80: 104 | L80: 65 | M80: 28 | N80: 1 | O80: 1 | P80: 0 | Q80: 1 | R80: 1 | S80: 95 | T80: 2 | U80: 97
A81: 18:45:00 | B81: 56 | C81: 28 | D81: 0 | E81: 0 | F81: 0 | G81: 1 | H81: 0 | I81: 84 | J81: 0 | K81: 85 | L81: 50 | M81: 25 | N81: 1 | O81: 0 | P81: 0 | Q81: 0 | R81: 0 | S81: 76 | T81: 1 | U81: 76
A82: 19:00:00 | B82: 70 | C82: 31 | D82: 0 | E82: 0 | F82: 1 | G82: 0 | H82: 0 | I82: 101 | J82: 0 | K82: 102 | L82: 63 | M82: 32 | N82: 1 | O82: 0 | P82: 0 | Q82: 0 | R82: 0 | S82: 96 | T82: 1 | U82: 96
A83: 19:15:00 | B83: 43 | C83: 31 | D83: 0 | E83: 1 | F83: 0 | G83: 0 | H83: 0 | I83: 75 | J83: 1 | K83: 75 | L83: 48 | M83: 26 | N83: 1 | O83: 0 | P83: 0 | Q83: 0 | R83: 1 | S83: 75 | T83: 1 | U83: 76
A84: 19:30:00 | B84: 34 | C84: 28 | D84: 0 | E84: 0 | F84: 1 | G84: 0 | H84: 0 | I84: 62 | J84: 0 | K84: 63 | L84: 43 | M84: 17 | N84: 2 | O84: 0 | P84: 0 | Q84: 0 | R84: 0 | S84: 62 | T84: 2 | U84: 62
A85: 19:45:00 | B85: 31 | C85: 22 | D85: 0 | E85: 0 | F85: 0 | G85: 0 | H85: 0 | I85: 53 | J85: 0 | K85: 53 | L85: 36 | M85: 26 | N85: 0 | O85: 1 | P85: 0 | Q85: 0 | R85: 0 | S85: 63 | T85: 1 | U85: 63
A86: 20:00:00 | B86: 37 | C86: 24 | D86: 0 | E86: 0 | F86: 0 | G86: 0 | H86: 1 | I86: 61 | J86: 0 | K86: 62 | L86: 36 | M86: 13 | N86: 0 | O86: 0 | P86: 0 | Q86: 0 | R86: 0 | S86: 49 | T86: 0 | U86: 49
A87: 20:15:00 | B87: 30 | C87: 16 | D87: 0 | E87: 0 | F87: 0 | G87: 0 | H87: 0 | I87: 46 | J87: 0 | K87: 46 | L87: 38 | M87: 16 | N87: 0 | O87: 0 | P87: 0 | Q87: 0 | R87: 0 | S87: 54 | T87: 0 | U87: 54
A88: 20:30:00 | B88: 26 | C88: 19 | D88: 1 | E88: 0 | F88: 0 | G88: 0 | H88: 0 | I88: 46 | J88: 1 | K88: 46 | L88: 27 | M88: 15 | N88: 2 | O88: 0 | P88: 0 | Q88: 0 | R88: 0 | S88: 44 | T88: 2 | U88: 44
A89: 20:45:00 | B89: 30 | C89: 18 | D89: 0 | E89: 0 | F89: 0 | G89: 0 | H89: 1 | I89: 48 | J89: 0 | K89: 49 | L89: 28 | M89: 19 | N89: 1 | O89: 0 | P89: 0 | Q89: 0 | R89: 0 | S89: 48 | T89: 1 | U89: 48
A90: 21:00:00 | B90: 28 | C90: 17 | D90: 0 | E90: 0 | F90: 0 | G90: 0 | H90: 0 | I90: 45 | J90: 0 | K90: 45 | L90: 26 | M90: 21 | N90: 0 | O90: 0 | P90: 0 | Q90: 1 | R90: 0 | S90: 47 | T90: 0 | U90: 48
A91: 21:15:00 | B91: 27 | C91: 13 | D91: 1 | E91: 0 | F91: 0 | G91: 0 | H91: 0 | I91: 41 | J91: 1 | K91: 41 | L91: 27 | M91: 6 | N91: 0 | O91: 0 | P91: 0 | Q91: 0 | R91: 0 | S91: 33 | T91: 0 | U91: 33
A92: 21:30:00 | B92: 23 | C92: 9 | D92: 1 | E92: 0 | F92: 0 | G92: 0 | H92: 0 | I92: 33 | J92: 1 | K92: 33 | L92: 23 | M92: 11 | N92: 0 | O92: 0 | P92: 0 | Q92: 0 | R92: 0 | S92: 34 | T92: 0 | U92: 34
A93: 21:45:00 | B93: 21 | C93: 7 | D93: 0 | E93: 0 | F93: 0 | G93: 1 | H93: 0 | I93: 28 | J93: 0 | K93: 29 | L93: 25 | M93: 9 | N93: 0 | O93: 0 | P93: 0 | Q93: 0 | R93: 0 | S93: 34 | T93: 0 | U93: 34
A94: 22:00:00 | B94: 19 | C94: 11 | D94: 0 | E94: 0 | F94: 0 | G94: 0 | H94: 0 | I94: 30 | J94: 0 | K94: 30 | L94: 24 | M94: 10 | N94: 0 | O94: 0 | P94: 0 | Q94: 0 | R94: 0 | S94: 34 | T94: 0 | U94: 34
A95: 22:15:00 | B95: 34 | C95: 14 | D95: 0 | E95: 0 | F95: 0 | G95: 0 | H95: 0 | I95: 48 | J95: 0 | K95: 48 | L95: 14 | M95: 12 | N95: 0 | O95: 1 | P95: 0 | Q95: 0 | R95: 0 | S95: 27 | T95: 1 | U95: 27
A96: 22:30:00 | B96: 24 | C96: 19 | D96: 1 | E96: 0 | F96: 0 | G96: 0 | H96: 0 | I96: 44 | J96: 1 | K96: 44 | L96: 20 | M96: 12 | N96: 0 | O96: 0 | P96: 0 | Q96: 1 | R96: 0 | S96: 32 | T96: 0 | U96: 33
A97: 22:45:00 | B97: 13 | C97: 7 | D97: 0 | E97: 0 | F97: 0 | G97: 1 | H97: 0 | I97: 20 | J97: 0 | K97: 21 | L97: 20 | M97: 7 | N97: 0 | O97: 0 | P97: 0 | Q97: 0 | R97: 0 | S97: 27 | T97: 0 | U97: 27
A98: 23:00:00 | B98: 17 | C98: 6 | D98: 0 | E98: 0 | F98: 0 | G98: 0 | H98: 0 | I98: 23 | J98: 0 | K98: 23 | L98: 20 | M98: 17 | N98: 0 | O98: 0 | P98: 0 | Q98: 0 | R98: 0 | S98: 37 | T98: 0 | U98: 37
A99: 23:15:00 | B99: 24 | C99: 11 | D99: 0 | E99: 0 | F99: 0 | G99: 0 | H99: 0 | I99: 35 | J99: 0 | K99: 35 | L99: 15 | M99: 5 | N99: 0 | O99: 0 | P99: 1 | Q99: 0 | R99: 0 | S99: 20 | T99: 0 | U99: 21
A100: 23:30:00 | B100: 22 | C100: 10 | D100: 0 | E100: 0 | F100: 0 | G100: 0 | H100: 0 | I100: 32 | J100: 0 | K100: 32 | L100: 8 | M100: 5 | N100: 0 | O100: 0 | P100: 0 | Q100: 0 | R100: 0 | S100: 13 | T100: 0 | U100: 13
A101: 23:45:00 | B101: 16 | C101: 6 | D101: 0 | E101: 0 | F101: 0 | G101: 0 | H101: 0 | I101: 22 | J101: 0 | K101: 22 | L101: 10 | M101: 9 | N101: 0 | O101: 0 | P101: 0 | Q101: 0 | R101: 0 | S101: 19 | T101: 0 | U101: 19
A102: TOTAL | B102: =SUM(B6:B101) -> 4653 | C102: =SUM(C6:C101) -> 2451 | D102: 89 | E102: 35 | F102: 3 | G102: 20 | H102: 22 | I102: 7228 | J102: 124 | K102: 7273 | L102: =SUM(L6:L101) -> 4483 | M102: =SUM(M6:M101) -> 2412 | N102: 96 | O102: 24 | P102: 2 | Q102: 16 | R102: 13 | S102: 7015 | T102: 120 | U102: 7046

Sheet 17 04 2016
A1: * Fill the table with data
A2: DO NOT CHANGE THE STRUCTURE OF THE SPREADSHEET (i.e. ADD OR DELETE ROWS/COLUMNS, ETC.)
B4: ='Site Plan'!$A$19&" - "&'Site Plan'!$C$19 -> Direction 1 - Eastbound | I4: TOTAL | L4: ='Site Plan'!$A$20&" - "&'Site Plan'!$C$20 -> Direction 2 - Westbound | S4: TOTAL
A5: TIME | B5: CAR | C5: LGV | D5: OGV1 | E5: OGV2 | F5: PSV | G5: MCL | H5: PCL | I5: CAR + LGV + HGV | J5: HGV | K5: ALL modes | L5: CAR | M5: LGV | N5: OGV1 | O5: OGV2 | P5: PSV | Q5: MCL | R5: PCL | S5: CAR + LGV + HGV | T5: HGV | U5: ALL modes
A6: 00:00:00 | B6: 16 | C6: 5 | D6: 0 | E6: 1 | F6: 0 | G6: 0 | H6: 0 | I6: =SUM(B6:E6) -> 22 | J6: =SUM(D6:E6) -> 1 | K6: =SUM(B6:H6) -> 22 | L6: 17 | M6: 10 | N6: 1 | O6: 0 | P6: 0 | Q6: 0 | R6: 0 | S6: =SUM(L6:O6) -> 28 | T6: =SUM(N6:O6) -> 1 | U6: =SUM(L6:R6) -> 28
A7: 00:15:00 | B7: 17 | C7: 14 | D7: 0 | E7: 0 | F7: 0 | G7: 0 | H7: 0 | I7: =SUM(B7:E7) -> 31 | J7: =SUM(D7:E7) -> 0 | K7: =SUM(B7:H7) -> 31 | L7: 16 | M7: 13 | N7: 2 | O7: 0 | P7: 0 | Q7: 0 | R7: 0 | S7: =SUM(L7:O7) -> 31 | T7: =SUM(N7:O7) -> 2 | U7: =SUM(L7:R7) -> 31
A8: 00:30:00 | B8: 18 | C8: 9 | D8: 0 | E8: 0 | F8: 0 | G8: 0 | H8: 0 | I8: 27 | J8: 0 | K8: 27 | L8: 14 | M8: 3 | N8: 0 | O8: 0 | P8: 0 | Q8: 1 | R8: 0 | S8: 17 | T8: 0 | U8: 18
A9: 00:45:00 | B9: 3 | C9: 3 | D9: 0 | E9: 0 | F9: 0 | G9: 0 | H9: 0 | I9: 6 | J9: 0 | K9: 6 | L9: 6 | M9: 3 | N9: 0 | O9: 0 | P9: 0 | Q9: 0 | R9: 0 | S9: 9 | T9: 0 | U9: 9
A10: 01:00:00 | B10: 12 | C10: 8 | D10: 0 | E10: 0 | F10: 0 | G10: 0 | H10: 0 | I10: 20 | J10: 0 | K10: 20 | L10: 8 | M10: 4 | N10: 0 | O10: 0 | P10: 0 | Q10: 0 | R10: 0 | S10: 12 | T10: 0 | U10: 12
A11: 01:15:00 | B11: 9 | C11: 4 | D11: 0 | E11: 0 | F11: 0 | G11: 0 | H11: 0 | I11: 13 | J11: 0 | K11: 13 | L11: 5 | M11: 2 | N11: 0 | O11: 0 | P11: 0 | Q11: 0 | R11: 0 | S11: 7 | T11: 0 | U11: 7
A12: 01:30:00 | B12: 4 | C12: 3 | D12: 0 | E12: 0 | F12: 0 | G12: 0 | H12: 0 | I12: 7 | J12: 0 | K12: 7 | L12: 1 | M12: 1 | N12: 1 | O12: 0 | P12: 0 | Q12: 0 | R12: 0 | S12: 3 | T12: 1 | U12: 3
A13: 01:45:00 | B13: 3 | C13: 1 | D13: 0 | E13: 1 | F13: 0 | G13: 0 | H13: 0 | I13: 5 | J13: 1 | K13: 5 | L13: 1 | M13: 1 | N13: 0 | O13: 0 | P13: 0 | Q13: 0 | R13: 0 | S13: 2 | T13: 0 | U13: 2
A14: 02:00:00 | B14: 3 | C14: 2 | D14: 0 | E14: 1 | F14: 0 | G14: 0 | H14: 0 | I14: 6 | J14: 1 | K14: 6 | L14: 0 | M14: 3 | N14: 0 | O14: 0 | P14: 0 | Q14: 0 | R14: 0 | S14: 3 | T14: 0 | U14: 3
A15: 02:15:00 | B15: 4 | C15: 0 | D15: 0 | E15: 0 | F15: 0 | G15: 0 | H15: 0 | I15: 4 | J15: 0 | K15: 4 | L15: 2 | M15: 2 | N15: 0 | O15: 0 | P15: 0 | Q15: 0 | R15: 0 | S15: 4 | T15: 0 | U15: 4
A16: 02:30:00 | B16: 1 | C16: 4 | D16: 0 | E16: 0 | F16: 0 | G16: 0 | H16: 0 | I16: 5 | J16: 0 | K16: 5 | L16: 3 | M16: 0 | N16: 0 | O16: 0 | P16: 0 | Q16: 0 | R16: 0 | S16: 3 | T16: 0 | U16: 3
A17: 02:45:00 | B17: 1 | C17: 0 | D17: 0 | E17: 0 | F17: 0 | G17: 0 | H17: 0 | I17: 1 | J17: 0 | K17: 1 | L17: 4 | M17: 3 | N17: 0 | O17: 0 | P17: 0 | Q17: 0 | R17: 0 | S17: 7 | T17: 0 | U17: 7
A18: 03:00:00 | B18: 1 | C18: 1 | D18: 0 | E18: 0 | F18: 0 | G18: 0 | H18: 0 | I18: 2 | J18: 0 | K18: 2 | L18: 4 | M18: 0 | N18: 0 | O18: 0 | P18: 0 | Q18: 0 | R18: 0 | S18: 4 | T18: 0 | U18: 4
A19: 03:15:00 | B19: 0 | C19: 4 | D19: 0 | E19: 0 | F19: 0 | G19: 0 | H19: 0 | I19: 4 | J19: 0 | K19: 4 | L19: 3 | M19: 4 | N19: 0 | O19: 0 | P19: 0 | Q19: 0 | R19: 0 | S19: 7 | T19: 0 | U19: 7
A20: 03:30:00 | B20: 0 | C20: 4 | D20: 0 | E20: 0 | F20: 0 | G20: 0 | H20: 0 | I20: 4 | J20: 0 | K20: 4 | L20: 2 | M20: 2 | N20: 0 | O20: 0 | P20: 0 | Q20: 0 | R20: 0 | S20: 4 | T20: 0 | U20: 4
A21: 03:45:00 | B21: 1 | C21: 4 | D21: 0 | E21: 0 | F21: 0 | G21: 0 | H21: 0 | I21: 5 | J21: 0 | K21: 5 | L21: 0 | M21: 4 | N21: 0 | O21: 0 | P21: 0 | Q21: 0 | R21: 0 | S21: 4 | T21: 0 | U21: 4
A22: 04:00:00 | B22: 1 | C22: 1 | D22: 0 | E22: 0 | F22: 0 | G22: 0 | H22: 0 | I22: 2 | J22: 0 | K22: 2 | L22: 3 | M22: 6 | N22: 0 | O22: 0 | P22: 0 | Q22: 0 | R22: 0 | S22: 9 | T22: 0 | U22: 9
A23: 04:15:00 | B23: 3 | C23: 3 | D23: 1 | E23: 0 | F23: 0 | G23: 0 | H23: 0 | I23: 7 | J23: 1 | K23: 7 | L23: 7 | M23: 0 | N23: 0 | O23: 0 | P23: 0 | Q23: 0 | R23: 0 | S23: 7 | T23: 0 | U23: 7
A24: 04:30:00 | B24: 1 | C24: 0 | D24: 0 | E24: 0 | F24: 0 | G24: 0 | H24: 0 | I24: 1 | J24: 0 | K24: 1 | L24: 0 | M24: 1 | N24: 0 | O24: 0 | P24: 0 | Q24: 0 | R24: 0 | S24: 1 | T24: 0 | U24: 1
A25: 04:45:00 | B25: 1 | C25: 2 | D25: 0 | E25: 0 | F25: 0 | G25: 0 | H25: 0 | I25: 3 | J25: 0 | K25: 3 | L25: 4 | M25: 2 | N25: 0 | O25: 0 | P25: 0 | Q25: 0 | R25: 0 | S25: 6 | T25: 0 | U25: 6
A26: 05:00:00 | B26: 5 | C26: 2 | D26: 0 | E26: 0 | F26: 0 | G26: 0 | H26: 0 | I26: 7 | J26: 0 | K26: 7 | L26: 3 | M26: 2 | N26: 0 | O26: 0 | P26: 0 | Q26: 0 | R26: 0 | S26: 5 | T26: 0 | U26: 5
A27: 05:15:00 | B27: 4 | C27: 4 | D27: 0 | E27: 0 | F27: 0 | G27: 0 | H27: 0 | I27: 8 | J27: 0 | K27: 8 | L27: 2 | M27: 2 | N27: 0 | O27: 0 | P27: 0 | Q27: 0 | R27: 0 | S27: 4 | T27: 0 | U27: 4
A28: 05:30:00 | B28: 2 | C28: 4 | D28: 0 | E28: 0 | F28: 0 | G28: 0 | H28: 0 | I28: 6 | J28: 0 | K28: 6 | L28: 8 | M28: 2 | N28: 0 | O28: 0 | P28: 0 | Q28: 0 | R28: 0 | S28: 10 | T28: 0 | U28: 10
A29: 05:45:00 | B29: 4 | C29: 2 | D29: 0 | E29: 0 | F29: 0 | G29: 0 | H29: 0 | I29: 6 | J29: 0 | K29: 6 | L29: 2 | M29: 1 | N29: 0 | O29: 0 | P29: 0 | Q29: 0 | R29: 0 | S29: 3 | T29: 0 | U29: 3
A30: 06:00:00 | B30: 5 | C30: 1 | D30: 0 | E30: 0 | F30: 0 | G30: 0 | H30: 0 | I30: 6 | J30: 0 | K30: 6 | L30: 6 | M30: 4 | N30: 0 | O30: 0 | P30: 0 | Q30: 0 | R30: 0 | S30: 10 | T30: 0 | U30: 10
A31: 06:15:00 | B31: 5 | C31: 2 | D31: 0 | E31: 0 | F31: 0 | G31: 0 | H31: 0 | I31: 7 | J31: 0 | K31: 7 | L31: 6 | M31: 7 | N31: 0 | O31: 0 | P31: 0 | Q31: 0 | R31: 0 | S31: 13 | T31: 0 | U31: 13
A32: 06:30:00 | B32: 8 | C32: 4 | D32: 0 | E32: 0 | F32: 0 | G32: 0 | H32: 0 | I32: 12 | J32: 0 | K32: 12 | L32: 11 | M32: 2 | N32: 0 | O32: 0 | P32: 0 | Q32: 0 | R32: 0 | S32: 13 | T32: 0 | U32: 13
A33: 06:45:00 | B33: 11 | C33: 2 | D33: 0 | E33: 0 | F33: 0 | G33: 0 | H33: 0 | I33: 13 | J33: 0 | K33: 13 | L33: 15 | M33: 6 | N33: 1 | O33: 0 | P33: 0 | Q33: 0 | R33: 0 | S33: 22 | T33: 1 | U33: 22
A34: 07:00:00 | B34: 10 | C34: 5 | D34: 0 | E34: 0 | F34: 0 | G34: 0 | H34: 1 | I34: 15 | J34: 0 | K34: 16 | L34: 18 | M34: 5 | N34: 0 | O34: 1 | P34: 0 | Q34: 0 | R34: 0 | S34: 24 | T34: 1 | U34: 24
A35: 07:15:00 | B35: 8 | C35: 5 | D35: 0 | E35: 0 | F35: 0 | G35: 0 | H35: 0 | I35: 13 | J35: 0 | K35: 13 | L35: 8 | M35: 6 | N35: 1 | O35: 0 | P35: 0 | Q35: 0 | R35: 0 | S35: 15 | T35: 1 | U35: 15
A36: 07:30:00 | B36: 14 | C36: 6 | D36: 0 | E36: 0 | F36: 0 | G36: 0 | H36: 2 | I36: 20 | J36: 0 | K36: 22 | L36: 19 | M36: 7 | N36: 0 | O36: 0 | P36: 0 | Q36: 0 | R36: 1 | S36: 26 | T36: 0 | U36: 27
A37: 07:45:00 | B37: 23 | C37: 16 | D37: 1 | E37: 0 | F37: 0 | G37: 0 | H37: 0 | I37: 40 | J37: 1 | K37: 40 | L37: 18 | M37: 15 | N37: 0 | O37: 0 | P37: 0 | Q37: 0 | R37: 1 | S37: 33 | T37: 0 | U37: 34
A38: 08:00:00 | B38: 23 | C38: 6 | D38: 1 | E38: 0 | F38: 0 | G38: 0 | H38: 0 | I38: 30 | J38: 1 | K38: 30 | L38: 19 | M38: 16 | N38: 0 | O38: 0 | P38: 0 | Q38: 1 | R38: 1 | S38: 35 | T38: 0 | U38: 37
A39: 08:15:00 | B39: 34 | C39: 15 | D39: 1 | E39: 0 | F39: 0 | G39: 1 | H39: 0 | I39: 50 | J39: 1 | K39: 51 | L39: 34 | M39: 16 | N39: 0 | O39: 1 | P39: 0 | Q39: 0 | R39: 1 | S39: 51 | T39: 1 | U39: 52
A40: 08:30:00 | B40: 26 | C40: 24 | D40: 0 | E40: 1 | F40: 0 | G40: 2 | H40: 3 | I40: 51 | J40: 1 | K40: 56 | L40: 26 | M40: 18 | N40: 0 | O40: 1 | P40: 0 | Q40: 0 | R40: 0 | S40: 45 | T40: 1 | U40: 45
A41: 08:45:00 | B41: 32 | C41: 25 | D41: 1 | E41: 0 | F41: 0 | G41: 3 | H41: 2 | I41: 58 | J41: 1 | K41: 63 | L41: 28 | M41: 18 | N41: 1 | O41: 0 | P41: 0 | Q41: 0 | R41: 0 | S41: 47 | T41: 1 | U41: 47
A42: 09:00:00 | B42: 31 | C42: 20 | D42: 2 | E42: 0 | F42: 0 | G42: 0 | H42: 2 | I42: 53 | J42: 2 | K42: 55 | L42: 44 | M42: 18 | N42: 1 | O42: 1 | P42: 0 | Q42: 1 | R42: 0 | S42: 64 | T42: 2 | U42: 65
A43: 09:15:00 | B43: 41 | C43: 36 | D43: 1 | E43: 2 | F43: 0 | G43: 1 | H43: 1 | I43: 80 | J43: 3 | K43: 82 | L43: 33 | M43: 27 | N43: 3 | O43: 0 | P43: 0 | Q43: 3 | R43: 0 | S43: 63 | T43: 3 | U43: 66
A44: 09:30:00 | B44: 73 | C44: 27 | D44: 1 | E44: 2 | F44: 0 | G44: 3 | H44: 2 | I44: 103 | J44: 3 | K44: 108 | L44: 58 | M44: 22 | N44: 3 | O44: 1 | P44: 0 | Q44: 3 | R44: 0 | S44: 84 | T44: 4 | U44: 87
A45: 09:45:00 | B45: 70 | C45: 48 | D45: 1 | E45: 0 | F45: 0 | G45: 2 | H45: 1 | I45: 119 | J45: 1 | K45: 122 | L45: 38 | M45: 29 | N45: 1 | O45: 0 | P45: 0 | Q45: 2 | R45: 0 | S45: 68 | T45: 1 | U45: 70
A46: 10:00:00 | B46: 90 | C46: 51 | D46: 0 | E46: 3 | F46: 0 | G46: 3 | H46: 1 | I46: 144 | J46: 3 | K46: 148 | L46: 55 | M46: 31 | N46: 1 | O46: 2 | P46: 0 | Q46: 2 | R46: 1 | S46: 89 | T46: 3 | U46: 92
A47: 10:15:00 | B47: 96 | C47: 50 | D47: 1 | E47: 0 | F47: 0 | G47: 0 | H47: 2 | I47: 147 | J47: 1 | K47: 149 | L47: 75 | M47: 47 | N47: 3 | O47: 2 | P47: 0 | Q47: 1 | R47: 2 | S47: 127 | T47: 5 | U47: 130
A48: 10:30:00 | B48: 99 | C48: 42 | D48: 0 | E48: 1 | F48: 0 | G48: 6 | H48: 1 | I48: 142 | J48: 1 | K48: 149 | L48: 87 | M48: 47 | N48: 1 | O48: 1 | P48: 0 | Q48: 2 | R48: 0 | S48: 136 | T48: 2 | U48: 138
A49: 10:45:00 | B49: 92 | C49: 43 | D49: 2 | E49: 4 | F49: 0 | G49: 8 | H49: 2 | I49: 141 | J49: 6 | K49: 151 | L49: 90 | M49: 43 | N49: 1 | O49: 1 | P49: 0 | Q49: 1 | R49: 0 | S49: 135 | T49: 2 | U49: 136
A50: 11:00:00 | B50: 90 | C50: 49 | D50: 0 | E50: 2 | F50: 0 | G50: 0 | H50: 5 | I50: 141 | J50: 2 | K50: 146 | L50: 103 | M50: 45 | N50: 0 | O50: 0 | P50: 0 | Q50: 1 | R50: 0 | S50: 148 | T50: 0 | U50: 149
A51: 11:15:00 | B51: 109 | C51: 46 | D51: 1 | E51: 0 | F51: 0 | G51: 4 | H51: 2 | I51: 156 | J51: 1 | K51: 162 | L51: 94 | M51: 45 | N51: 4 | O51: 1 | P51: 0 | Q51: 1 | R51: 1 | S51: 144 | T51: 5 | U51: 146
A52: 11:30:00 | B52: 123 | C52: 45 | D52: 2 | E52: 0 | F52: 0 | G52: 3 | H52: 2 | I52: 170 | J52: 2 | K52: 175 | L52: 77 | M52: 45 | N52: 1 | O52: 2 | P52: 0 | Q52: 1 | R52: 0 | S52: 125 | T52: 3 | U52: 126
A53: 11:45:00 | B53: 128 | C53: 49 | D53: 0 | E53: 1 | F53: 0 | G53: 3 | H53: 1 | I53: 178 | J53: 1 | K53: 182 | L53: 81 | M53: 41 | N53: 1 | O53: 0 | P53: 0 | Q53: 3 | R53: 0 | S53: 123 | T53: 1 | U53: 126
A54: 12:00:00 | B54: 109 | C54: 59 | D54: 0 | E54: 1 | F54: 0 | G54: 0 | H54: 2 | I54: 169 | J54: 1 | K54: 171 | L54: 92 | M54: 51 | N54: 0 | O54: 0 | P54: 0 | Q54: 1 | R54: 2 | S54: 143 | T54: 0 | U54: 146
A55: 12:15:00 | B55: 117 | C55: 42 | D55: 0 | E55: 1 | F55: 0 | G55: 2 | H55: 1 | I55: 160 | J55: 1 | K55: 163 | L55: 110 | M55: 41 | N55: 1 | O55: 1 | P55: 0 | Q55: 0 | R55: 0 | S55: 153 | T55: 2 | U55: 153
A56: 12:30:00 | B56: 66 | C56: 44 | D56: 0 | E56: 1 | F56: 1 | G56: 5 | H56: 0 | I56: 111 | J56: 1 | K56: 117 | L56: 89 | M56: 55 | N56: 0 | O56: 0 | P56: 0 | Q56: 3 | R56: 0 | S56: 144 | T56: 0 | U56: 147
A57: 12:45:00 | B57: 92 | C57: 42 | D57: 0 | E57: 0 | F57: 2 | G57: 1 | H57: 2 | I57: 134 | J57: 0 | K57: 139 | L57: 98 | M57: 50 | N57: 2 | O57: 0 | P57: 0 | Q57: 1 | R57: 2 | S57: 150 | T57: 2 | U57: 153
A58: 13:00:00 | B58: 106 | C58: 30 | D58: 0 | E58: 1 | F58: 0 | G58: 1 | H58: 0 | I58: 137 | J58: 1 | K58: 138 | L58: 85 | M58: 48 | N58: 0 | O58: 2 | P58: 0 | Q58: 5 | R58: 0 | S58: 135 | T58: 2 | U58: 140
A59: 13:15:00 | B59: 93 | C59: 39 | D59: 2 | E59: 3 | F59: 0 | G59: 0 | H59: 0 | I59: 137 | J59: 5 | K59: 137 | L59: 81 | M59: 42 | N59: 0 | O59: 0 | P59: 0 | Q59: 2 | R59: 1 | S59: 123 | T59: 0 | U59: 126
A60: 13:30:00 | B60: 95 | C60: 40 | D60: 0 | E60: 1 | F60: 0 | G60: 2 | H60: 0 | I60: 136 | J60: 1 | K60: 138 | L60: 72 | M60: 39 | N60: 1 | O60: 2 | P60: 0 | Q60: 3 | R60: 1 | S60: 114 | T60: 3 | U60: 118
A61: 13:45:00 | B61: 97 | C61: 36 | D61: 3 | E61: 3 | F61: 0 | G61: 1 | H61: 1 | I61: 139 | J61: 6 | K61: 141 | L61: 92 | M61: 42 | N61: 0 | O61: 1 | P61: 0 | Q61: 5 | R61: 0 | S61: 135 | T61: 1 | U61: 140
A62: 14:00:00 | B62: 95 | C62: 31 | D62: 1 | E62: 3 | F62: 0 | G62: 1 | H62: 0 | I62: 130 | J62: 4 | K62: 131 | L62: 86 | M62: 47 | N62: 2 | O62: 2 | P62: 0 | Q62: 3 | R62: 0 | S62: 137 | T62: 4 | U62: 140
A63: 14:15:00 | B63: 67 | C63: 31 | D63: 2 | E63: 0 | F63: 0 | G63: 1 | H63: 0 | I63: 100 | J63: 2 | K63: 101 | L63: 88 | M63: 45 | N63: 0 | O63: 0 | P63: 0 | Q63: 1 | R63: 0 | S63: 133 | T63: 0 | U63: 134
A64: 14:30:00 | B64: 92 | C64: 41 | D64: 1 | E64: 0 | F64: 0 | G64: 1 | H64: 1 | I64: 134 | J64: 1 | K64: 136 | L64: 96 | M64: 39 | N64: 2 | O64: 1 | P64: 0 | Q64: 3 | R64: 0 | S64: 138 | T64: 3 | U64: 141
A65: 14:45:00 | B65: 77 | C65: 31 | D65: 1 | E65: 0 | F65: 0 | G65: 2 | H65: 1 | I65: 109 | J65: 1 | K65: 112 | L65: 69 | M65: 40 | N65: 1 | O65: 1 | P65: 0 | Q65: 0 | R65: 1 | S65: 111 | T65: 2 | U65: 112
A66: 15:00:00 | B66: 59 | C66: 31 | D66: 1 | E66: 2 | F66: 0 | G66: 2 | H66: 1 | I66: 93 | J66: 3 | K66: 96 | L66: 78 | M66: 50 | N66: 1 | O66: 2 | P66: 0 | Q66: 4 | R66: 0 | S66: 131 | T66: 3 | U66: 135
A67: 15:15:00 | B67: 61 | C67: 34 | D67: 0 | E67: 1 | F67: 0 | G67: 2 | H67: 0 | I67: 96 | J67: 1 | K67: 98 | L67: 77 | M67: 47 | N67: 2 | O67: 3 | P67: 0 | Q67: 5 | R67: 0 | S67: 129 | T67: 5 | U67: 134
A68: 15:30:00 | B68: 59 | C68: 34 | D68: 0 | E68: 0 | F68: 0 | G68: 1 | H68: 0 | I68: 93 | J68: 0 | K68: 94 | L68: 62 | M68: 33 | N68: 1 | O68: 1 | P68: 0 | Q68: 2 | R68: 2 | S68: 97 | T68: 2 | U68: 101
A69: 15:45:00 | B69: 67 | C69: 36 | D69: 0 | E69: 1 | F69: 0 | G69: 2 | H69: 1 | I69: 104 | J69: 1 | K69: 107 | L69: 83 | M69: 36 | N69: 0 | O69: 0 | P69: 0 | Q69: 1 | R69: 2 | S69: 119 | T69: 0 | U69: 122
A70: 16:00:00 | B70: 61 | C70: 28 | D70: 0 | E70: 0 | F70: 0 | G70: 4 | H70: 0 | I70: 89 | J70: 0 | K70: 93 | L70: 87 | M70: 37 | N70: 0 | O70: 1 | P70: 0 | Q70: 1 | R70: 0 | S70: 125 | T70: 1 | U70: 126
A71: 16:15:00 | B71: 67 | C71: 16 | D71: 0 | E71: 0 | F71: 0 | G71: 4 | H71: 0 | I71: =SUM(B71:E71) -> 83 | J71: =SUM(D71:E71) -> 0 | K71: =SUM(B71:H71) -> 87 | L71: 79 | M71: 39 | N71: 2 | O71: 0 | P71: 1 | Q71: 4 | R71: 0 | S71: =SUM(L71:O71) -> 120 | T71: =SUM(N71:O71) -> 2 | U71: =SUM(L71:R71) -> 125
A72: 16:30:00 | B72: 74 | C72: 29 | D72: 1 | E72: 0 | F72: 0 | G72: 2 | H72: 1 | I72: 104 | J72: 1 | K72: 107 | L72: 75 | M72: 42 | N72: 1 | O72: 0 | P72: 0 | Q72: 2 | R72: 0 | S72: 118 | T72: 1 | U72: 120
A73: 16:45:00 | B73: 58 | C73: 37 | D73: 0 | E73: 0 | F73: 0 | G73: 2 | H73: 1 | I73: 95 | J73: 0 | K73: 98 | L73: 62 | M73: 44 | N73: 1 | O73: 2 | P73: 0 | Q73: 1 | R73: 0 | S73: 109 | T73: 3 | U73: 110
A74: 17:00:00 | B74: 56 | C74: 28 | D74: 0 | E74: 0 | F74: 0 | G74: 1 | H74: 0 | I74: 84 | J74: 0 | K74: 85 | L74: 60 | M74: 30 | N74: 2 | O74: 0 | P74: 0 | Q74: 0 | R74: 0 | S74: 92 | T74: 2 | U74: 92
A75: 17:15:00 | B75: 53 | C75: 24 | D75: 0 | E75: 0 | F75: 0 | G75: 1 | H75: 1 | I75: 77 | J75: 0 | K75: 79 | L75: 57 | M75: 36 | N75: 0 | O75: 0 | P75: 0 | Q75: 0 | R75: 0 | S75: 93 | T75: 0 | U75: 93
A76: 17:30:00 | B76: 44 | C76: 25 | D76: 0 | E76: 0 | F76: 0 | G76: 2 | H76: 0 | I76: 69 | J76: 0 | K76: 71 | L76: 55 | M76: 29 | N76: 1 | O76: 1 | P76: 0 | Q76: 3 | R76: 0 | S76: 86 | T76: 2 | U76: 89
A77: 17:45:00 | B77: 50 | C77: 31 | D77: 2 | E77: 3 | F77: 1 | G77: 1 | H77: 0 | I77: 86 | J77: 5 | K77: 88 | L77: 48 | M77: 26 | N77: 0 | O77: 0 | P77: 0 | Q77: 0 | R77: 3 | S77: 74 | T77: 0 | U77: 77
A78: 18:00:00 | B78: 38 | C78: 22 | D78: 0 | E78: 0 | F78: 0 | G78: 1 | H78: 1 | I78: 60 | J78: 0 | K78: 62 | L78: 34 | M78: 33 | N78: 2 | O78: 0 | P78: 0 | Q78: 1 | R78: 0 | S78: 69 | T78: 2 | U78: 70
A79: 18:15:00 | B79: 44 | C79: 24 | D79: 0 | E79: 1 | F79: 0 | G79: 0 | H79: 0 | I79: 69 | J79: 1 | K79: 69 | L79: 52 | M79: 27 | N79: 1 | O79: 0 | P79: 0 | Q79: 2 | R79: 0 | S79: 80 | T79: 1 | U79: 82
A80: 18:30:00 | B80: 40 | C80: 14 | D80: 0 | E80: 1 | F80: 0 | G80: 1 | H80: 1 | I80: 55 | J80: 1 | K80: 57 | L80: 43 | M80: 26 | N80: 1 | O80: 0 | P80: 0 | Q80: 0 | R80: 0 | S80: 70 | T80: 1 | U80: 70
A81: 18:45:00 | B81: 37 | C81: 29 | D81: 2 | E81: 1 | F81: 0 | G81: 0 | H81: 0 | I81: 69 | J81: 3 | K81: 69 | L81: 34 | M81: 26 | N81: 1 | O81: 0 | P81: 0 | Q81: 0 | R81: 0 | S81: 61 | T81: 1 | U81: 61
A82: 19:00:00 | B82: 31 | C82: 14 | D82: 1 | E82: 0 | F82: 0 | G82: 2 | H82: 0 | I82: 46 | J82: 1 | K82: 48 | L82: 25 | M82: 20 | N82: 0 | O82: 1 | P82: 0 | Q82: 0 | R82: 0 | S82: 46 | T82: 1 | U82: 46
A83: 19:15:00 | B83: 47 | C83: 20 | D83: 1 | E83: 0 | F83: 0 | G83: 0 | H83: 0 | I83: 68 | J83: 1 | K83: 68 | L83: 42 | M83: 19 | N83: 0 | O83: 0 | P83: 0 | Q83: 2 | R83: 0 | S83: 61 | T83: 0 | U83: 63
A84: 19:30:00 | B84: 24 | C84: 20 | D84: 1 | E84: 0 | F84: 0 | G84: 0 | H84: 0 | I84: 45 | J84: 1 | K84: 45 | L84: 30 | M84: 23 | N84: 0 | O84: 0 | P84: 0 | Q84: 2 | R84: 0 | S84: 53 | T84: 0 | U84: 55
A85: 19:45:00 | B85: 35 | C85: 16 | D85: 0 | E85: 0 | F85: 0 | G85: 0 | H85: 0 | I85: 51 | J85: 0 | K85: 51 | L85: 26 | M85: 26 | N85: 0 | O85: 0 | P85: 0 | Q85: 0 | R85: 0 | S85: 52 | T85: 0 | U85: 52
A86: 20:00:00 | B86: 21 | C86: 14 | D86: 0 | E86: 0 | F86: 0 | G86: 0 | H86: 0 | I86: 35 | J86: 0 | K86: 35 | L86: 36 | M86: 14 | N86: 0 | O86: 0 | P86: 0 | Q86: 0 | R86: 0 | S86: 50 | T86: 0 | U86: 50
A87: 20:15:00 | B87: 32 | C87: 18 | D87: 1 | E87: 0 | F87: 0 | G87: 0 | H87: 0 | I87: 51 | J87: 1 | K87: 51 | L87: 28 | M87: 16 | N87: 0 | O87: 0 | P87: 0 | Q87: 0 | R87: 0 | S87: 44 | T87: 0 | U87: 44
A88: 20:30:00 | B88: 19 | C88: 10 | D88: 0 | E88: 0 | F88: 0 | G88: 1 | H88: 1 | I88: 29 | J88: 0 | K88: 31 | L88: 30 | M88: 14 | N88: 0 | O88: 0 | P88: 0 | Q88: 1 | R88: 0 | S88: 44 | T88: 0 | U88: 45
A89: 20:45:00 | B89: 14 | C89: 9 | D89: 0 | E89: 0 | F89: 0 | G89: 1 | H89: 0 | I89: 23 | J89: 0 | K89: 24 | L89: 16 | M89: 11 | N89: 0 | O89: 0 | P89: 0 | Q89: 0 | R89: 0 | S89: 27 | T89: 0 | U89: 27
A90: 21:00:00 | B90: 23 | C90: 8 | D90: 0 | E90: 0 | F90: 0 | G90: 0 | H90: 0 | I90: 31 | J90: 0 | K90: 31 | L90: 16 | M90: 10 | N90: 0 | O90: 0 | P90: 0 | Q90: 0 | R90: 0 | S90: 26 | T90: 0 | U90: 26
A91: 21:15:00 | B91: 16 | C91: 16 | D91: 1 | E91: 0 | F91: 0 | G91: 0 | H91: 0 | I91: 33 | J91: 1 | K91: 33 | L91: 15 | M91: 8 | N91: 1 | O91: 0 | P91: 0 | Q91: 0 | R91: 0 | S91: 24 | T91: 1 | U91: 24
A92: 21:30:00 | B92: 15 | C92: 8 | D92: 2 | E92: 0 | F92: 0 | G92: 1 | H92: 0 | I92: 25 | J92: 2 | K92: 26 | L92: 22 | M92: 9 | N92: 0 | O92: 0 | P92: 0 | Q92: 0 | R92: 0 | S92: 31 | T92: 0 | U92: 31
A93: 21:45:00 | B93: 17 | C93: 8 | D93: 0 | E93: 0 | F93: 0 | G93: 0 | H93: 0 | I93: 25 | J93: 0 | K93: 25 | L93: 15 | M93: 9 | N93: 0 | O93: 0 | P93: 0 | Q93: 0 | R93: 0 | S93: 24 | T93: 0 | U93: 24
A94: 22:00:00 | B94: 11 | C94: 11 | D94: 0 | E94: 0 | F94: 0 | G94: 0 | H94: 0 | I94: 22 | J94: 0 | K94: 22 | L94: 15 | M94: 8 | N94: 0 | O94: 0 | P94: 0 | Q94: 0 | R94: 0 | S94: 23 | T94: 0 | U94: 23
A95: 22:15:00 | B95: 13 | C95: 7 | D95: 0 | E95: 0 | F95: 0 | G95: 0 | H95: 0 | I95: 20 | J95: 0 | K95: 20 | L95: 16 | M95: 3 | N95: 0 | O95: 0 | P95: 0 | Q95: 0 | R95: 0 | S95: 19 | T95: 0 | U95: 19
A96: 22:30:00 | B96: 9 | C96: 6 | D96: 0 | E96: 0 | F96: 0 | G96: 0 | H96: 0 | I96: 15 | J96: 0 | K96: 15 | L96: 7 | M96: 1 | N96: 0 | O96: 1 | P96: 0 | Q96: 0 | R96: 0 | S96: 9 | T96: 1 | U96: 9
A97: 22:45:00 | B97: 8 | C97: 5 | D97: 0 | E97: 0 | F97: 0 | G97: 0 | H97: 0 | I97: 13 | J97: 0 | K97: 13 | L97: 8 | M97: 3 | N97: 0 | O97: 0 | P97: 0 | Q97: 0 | R97: 0 | S97: 11 | T97: 0 | U97: 11
A98: 23:00:00 | B98: 9 | C98: 8 | D98: 0 | E98: 1 | F98: 0 | G98: 0 | H98: 0 | I98: 18 | J98: 1 | K98: 18 | L98: 10 | M98: 4 | N98: 1 | O98: 0 | P98: 0 | Q98: 0 | R98: 0 | S98: 15 | T98: 1 | U98: 15
A99: 23:15:00 | B99: 3 | C99: 2 | D99: 0 | E99: 0 | F99: 0 | G99: 0 | H99: 0 | I99: 5 | J99: 0 | K99: 5 | L99: 2 | M99: 1 | N99: 0 | O99: 0 | P99: 0 | Q99: 0 | R99: 0 | S99: 3 | T99: 0 | U99: 3
A100: 23:30:00 | B100: 6 | C100: 1 | D100: 0 | E100: 0 | F100: 0 | G100: 0 | H100: 0 | I100: 7 | J100: 0 | K100: 7 | L100: 1 | M100: 2 | N100: 0 | O100: 0 | P100: 0 | Q100: 0 | R100: 0 | S100: 3 | T100: 0 | U100: 3
A101: 23:45:00 | B101: 7 | C101: 0 | D101: 0 | E101: 0 | F101: 0 | G101: 0 | H101: 0 | I101: 7 | J101: 0 | K101: 7 | L101: 0 | M101: 2 | N101: 1 | O101: 0 | P101: 0 | Q101: 0 | R101: 1 | S101: 3 | T101: 1 | U101: 4
A102: TOTAL | B102: =SUM(B6:B101) -> 3689 | C102: =SUM(C6:C101) -> 1810 | D102: 39 | E102: 44 | F102: 4 | G102: 87 | H102: 46 | I102: 5582 | J102: 83 | K102: 5719 | L102: =SUM(L6:L101) -> 3562 | M102: =SUM(M6:M101) -> 1934 | N102: 55 | O102: 36 | P102: 1 | Q102: 81 | R102: 23 | S102: 5587 | T102: 91 | U102: 5692

Sheet 18 04 2016
A1: * Fill the table with data
A2: DO NOT CHANGE THE STRUCTURE OF THE SPREADSHEET (i.e. ADD OR DELETE ROWS/COLUMNS, ETC.)
B4: ='Site Plan'!$A$19&" - "&'Site Plan'!$C$19 -> Direction 1 - Eastbound | I4: TOTAL | L4: ='Site Plan'!$A$20&" - "&'Site Plan'!$C$20 -> Direction 2 - Westbound | S4: TOTAL
A5: TIME | B5: CAR | C5: LGV | D5: OGV1 | E5: OGV2 | F5: PSV | G5: MCL | H5: PCL | I5: CAR + LGV + HGV | J5: HGV | K5: ALL modes | L5: CAR | M5: LGV | N5: OGV1 | O5: OGV2 | P5: PSV | Q5: MCL | R5: PCL | S5: CAR + LGV + HGV | T5: HGV | U5: ALL modes
A6: 00:00:00 | B6: 2 | C6: 1 | D6: 0 | E6: 0 | F6: 0 | G6: 0 | H6: 0 | I6: =SUM(B6:E6) -> 3 | J6: =SUM(D6:E6) -> 0 | K6: =SUM(B6:H6) -> 3 | L6: 0 | M6: 2 | N6: 0 | O6: 0 | P6: 0 | Q6: 0 | R6: 0 | S6: =SUM(L6:O6) -> 2 | T6: =SUM(N6:O6) -> 0 | U6: =SUM(L6:R6) -> 2
A7: 00:15:00 | B7: 6 | C7: 0 | D7: 0 | E7: 0 | F7: 0 | G7: 0 | H7: 0 | I7: =SUM(B7:E7) -> 6 | J7: =SUM(D7:E7) -> 0 | K7: =SUM(B7:H7) -> 6 | L7: 1 | M7: 1 | N7: 0 | O7: 0 | P7: 0 | Q7: 0 | R7: 0 | S7: =SUM(L7:O7) -> 2 | T7: =SUM(N7:O7) -> 0 | U7: =SUM(L7:R7) -> 2
A8: 00:30:00 | B8: 0 | C8: 2 | D8: 2 | E8: 0 | F8: 0 | G8: 0 | H8: 0 | I8: 4 | J8: 2 | K8: 4 | L8: 0 | M8: 1 | N8: 0 | O8: 0 | P8: 0 | Q8: 0 | R8: 1 | S8: 1 | T8: 0 | U8: 2
A9: 00:45:00 | B9: 0 | C9: 0 | D9: 0 | E9: 0 | F9: 0 | G9: 0 | H9: 0 | I9: 0 | J9: 0 | K9: 0 | L9: 0 | M9: 0 | N9: 0 | O9: 0 | P9: 0 | Q9: 0 | R9: 0 | S9: 0 | T9: 0 | U9: 0
A10: 01:00:00 | B10: 2 | C10: 5 | D10: 0 | E10: 0 | F10: 0 | G10: 0 | H10: 0 | I10: 7 | J10: 0 | K10: 7 | L10: 2 | M10: 1 | N10: 0 | O10: 0 | P10: 0 | Q10: 0 | R10: 0 | S10: 3 | T10: 0 | U10: 3
A11: 01:15:00 | B11: 2 | C11: 1 | D11: 0 | E11: 0 | F11: 0 | G11: 0 | H11: 0 | I11: 3 | J11: 0 | K11: 3 | L11: 2 | M11: 0 | N11: 0 | O11: 0 | P11: 0 | Q11: 0 | R11: 0 | S11: 2 | T11: 0 | U11: 2
A12: 01:30:00 | B12: 0 | C12: 0 | D12: 1 | E12: 0 | F12: 0 | G12: 0 | H12: 0 | I12: 1 | J12: 1 | K12: 1 | L12: 0 | M12: 1 | N12: 0 | O12: 0 | P12: 1 | Q12: 0 | R12: 0 | S12: 1 | T12: 0 | U12: 2
A13: 01:45:00 | B13: 1 | C13: 0 | D13: 0 | E13: 0 | F13: 1 | G13: 0 | H13: 0 | I13: 1 | J13: 0 | K13: 2 | L13: 1 | M13: 1 | N13: 0 | O13: 0 | P13: 0 | Q13: 0 | R13: 0 | S13: 2 | T13: 0 | U13: 2
A14: 02:00:00 | B14: 1 | C14: 0 | D14: 0 | E14: 1 | F14: 0 | G14: 0 | H14: 0 | I14: 2 | J14: 1 | K14: 2 | L14: 2 | M14: 1 | N14: 0 | O14: 0 | P14: 0 | Q14: 0 | R14: 0 | S14: 3 | T14: 0 | U14: 3
A15: 02:15:00 | B15: 1 | C15: 3 | D15: 0 | E15: 0 | F15: 0 | G15: 0 | H15: 0 | I15: 4 | J15: 0 | K15: 4 | L15: 1 | M15: 1 | N15: 0 | O15: 0 | P15: 0 | Q15: 0 | R15: 0 | S15: 2 | T15: 0 | U15: 2
A16: 02:30:00 | B16: 0 | C16: 0 | D16: 1 | E16: 0 | F16: 0 | G16: 0 | H16: 0 | I16: 1 | J16: 1 | K16: 1 | L16: 1 | M16: 0 | N16: 0 | O16: 0 | P16: 0 | Q16: 0 | R16: 0 | S16: 1 | T16: 0 | U16: 1
A17: 02:45:00 | B17: 0 | C17: 3 | D17: 0 | E17: 1 | F17: 0 | G17: 0 | H17: 0 | I17: 4 | J17: 1 | K17: 4 | L17: 5 | M17: 1 | N17: 0 | O17: 0 | P17: 0 | Q17: 0 | R17: 0 | S17: 6 | T17: 0 | U17: 6
A18: 03:00:00 | B18: 1 | C18: 2 | D18: 0 | E18: 0 | F18: 0 | G18: 0 | H18: 0 | I18: 3 | J18: 0 | K18: 3 | L18: 1 | M18: 3 | N18: 0 | O18: 0 | P18: 0 | Q18: 0 | R18: 0 | S18: 4 | T18: 0 | U18: 4
A19: 03:15:00 | B19: 1 | C19: 0 | D19: 1 | E19: 0 | F19: 0 | G19: 0 | H19: 0 | I19: 2 | J19: 1 | K19: 2 | L19: 2 | M19: 0 | N19: 0 | O19: 0 | P19: 0 | Q19: 0 | R19: 0 | S19: 2 | T19: 0 | U19: 2
A20: 03:30:00 | B20: 0 | C20: 3 | D20: 0 | E20: 0 | F20: 0 | G20: 0 | H20: 0 | I20: 3 | J20: 0 | K20: 3 | L20: 2 | M20: 1 | N20: 0 | O20: 0 | P20: 0 | Q20: 0 | R20: 0 | S20: 3 | T20: 0 | U20: 3
A21: 03:45:00 | B21: 0 | C21: 1 | D21: 1 | E21: 0 | F21: 0 | G21: 0 | H21: 0 | I21: 2 | J21: 1 | K21: 2 | L21: 2 | M21: 1 | N21: 0 | O21: 0 | P21: 0 | Q21: 0 | R21: 0 | S21: 3 | T21: 0 | U21: 3
A22: 04:00:00 | B22: 0 | C22: 1 | D22: 0 | E22: 0 | F22: 0 | G22: 0 | H22: 0 | I22: 1 | J22: 0 | K22: 1 | L22: 4 | M22: 1 | N22: 0 | O22: 0 | P22: 0 | Q22: 0 | R22: 0 | S22: 5 | T22: 0 | U22: 5
A23: 04:15:00 | B23: 1 | C23: 1 | D23: 0 | E23: 0 | F23: 0 | G23: 0 | H23: 0 | I23: 2 | J23: 0 | K23: 2 | L23: 5 | M23: 1 | N23: 0 | O23: 0 | P23: 0 | Q23: 0 | R23: 0 | S23: 6 | T23: 0 | U23: 6
A24: 04:30:00 | B24: 0 | C24: 4 | D24: 0 | E24: 0 | F24: 0 | G24: 0 | H24: 0 | I24: 4 | J24: 0 | K24: 4 | L24: 10 | M24: 12 | N24: 0 | O24: 1 | P24: 0 | Q24: 0 | R24: 0 | S24: 23 | T24: 1 | U24: 23
A25: 04:45:00 | B25: 3 | C25: 0 | D25: 0 | E25: 0 | F25: 0 | G25: 0 | H25: 0 | I25: 3 | J25: 0 | K25: 3 | L25: 6 | M25: 11 | N25: 0 | O25: 0 | P25: 0 | Q25: 0 | R25: 0 | S25: 17 | T25: 0 | U25: 17
A26: 05:00:00 | B26: 4 | C26: 2 | D26: 2 | E26: 1 | F26: 0 | G26: 2 | H26: 1 | I26: 9 | J26: 3 | K26: 12 | L26: 15 | M26: 14 | N26: 0 | O26: 0 | P26: 0 | Q26: 0 | R26: 0 | S26: 29 | T26: 0 | U26: 29
A27: 05:15:00 | B27: 12 | C27: 8 | D27: 1 | E27: 0 | F27: 0 | G27: 0 | H27: 0 | I27: 21 | J27: 1 | K27: 21 | L27: 17 | M27: 19 | N27: 4 | O27: 0 | P27: 0 | Q27: 0 | R27: 0 | S27: 40 | T27: 4 | U27: 40
A28: 05:30:00 | B28: 12 | C28: 9 | D28: 3 | E28: 0 | F28: 0 | G28: 0 | H28: 1 | I28: 24 | J28: 3 | K28: 25 | L28: 16 | M28: 18 | N28: 3 | O28: 0 | P28: 0 | Q28: 1 | R28: 1 | S28: 37 | T28: 3 | U28: 39
A29: 05:45:00 | B29: 23 | C29: 8 | D29: 0 | E29: 1 | F29: 0 | G29: 0 | H29: 0 | I29: 32 | J29: 1 | K29: 32 | L29: 19 | M29: 29 | N29: 2 | O29: 3 | P29: 0 | Q29: 2 | R29: 0 | S29: 53 | T29: 5 | U29: 55
A30: 06:00:00 | B30: 18 | C30: 4 | D30: 2 | E30: 0 | F30: 0 | G30: 0 | H30: 0 | I30: 24 | J30: 2 | K30: 24 | L30: 39 | M30: 32 | N30: 4 | O30: 0 | P30: 0 | Q30: 0 | R30: 0 | S30: 75 | T30: 4 | U30: 75
A31: 06:15:00 | B31: 28 | C31: 21 | D31: 2 | E31: 0 | F31: 0 | G31: 0 | H31: 0 | I31: 51 | J31: 2 | K31: 51 | L31: 24 | M31: 37 | N31: 1 | O31: 1 | P31: 0 | Q31: 2 | R31: 0 | S31: 63 | T31: 2 | U31: 65
A32: 06:30:00 | B32: 40 | C32: 24 | D32: 4 | E32: 0 | F32: 0 | G32: 0 | H32: 0 | I32: 68 | J32: 4 | K32: 68 | L32: 52 | M32: 33 | N32: 3 | O32: 0 | P32: 0 | Q32: 4 | R32: 0 | S32: 88 | T32: 3 | U32: 92
A33: 06:45:00 | B33: 54 | C33: 24 | D33: 3 | E33: 3 | F33: 0 | G33: 0 | H33: 0 | I33: 84 | J33: 6 | K33: 84 | L33: 45 | M33: 32 | N33: 6 | O33: 1 | P33: 1 | Q33: 0 | R33: 2 | S33: 84 | T33: 7 | U33: 87
A34: 07:00:00 | B34: 44 | C34: 38 | D34: 7 | E34: 2 | F34: 0 | G34: 0 | H34: 1 | I34: 91 | J34: 9 | K34: 92 | L34: 69 | M34: 29 | N34: 3 | O34: 2 | P34: 0 | Q34: 2 | R34: 0 | S34: 103 | T34: 5 | U34: 105
A35: 07:15:00 | B35: 90 | C35: 24 | D35: 5 | E35: 0 | F35: 0 | G35: 1 | H35: 0 | I35: 119 | J35: 5 | K35: 120 | L35: 68 | M35: 33 | N35: 3 | O35: 3 | P35: 0 | Q35: 1 | R35: 1 | S35: 107 | T35: 6 | U35: 109
A36: 07:30:00 | B36: 114 | C36: 42 | D36: 2 | E36: 2 | F36: 0 | G36: 1 | H36: 0 | I36: 160 | J36: 4 | K36: 161 | L36: 72 | M36: 52 | N36: 3 | O36: 0 | P36: 0 | Q36: 3 | R36: 0 | S36: 127 | T36: 3 | U36: 130
A37: 07:45:00 | B37: 102 | C37: 44 | D37: 6 | E37: 4 | F37: 3 | G37: 1 | H37: 0 | I37: 156 | J37: 10 | K37: 160 | L37: 104 | M37: 54 | N37: 5 | O37: 1 | P37: 0 | Q37: 3 | R37: 0 | S37: 164 | T37: 6 | U37: 167
A38: 08:00:00 | B38: 80 | C38: 54 | D38: 7 | E38: 1 | F38: 0 | G38: 0 | H38: 0 | I38: 142 | J38: 8 | K38: 142 | L38: 107 | M38: 49 | N38: 5 | O38: 3 | P38: 2 | Q38: 2 | R38: 1 | S38: 164 | T38: 8 | U38: 169
A39: 08:15:00 | B39: 104 | C39: 55 | D39: 4 | E39: 2 | F39: 0 | G39: 0 | H39: 0 | I39: 165 | J39: 6 | K39: 165 | L39: 80 | M39: 49 | N39: 10 | O39: 2 | P39: 0 | Q39: 0 | R39: 0 | S39: 141 | T39: 12 | U39: 141
A40: 08:30:00 | B40: 114 | C40: 45 | D40: 2 | E40: 0 | F40: 0 | G40: 3 | H40: 0 | I40: 161 | J40: 2 | K40: 164 | L40: 93 | M40: 52 | N40: 10 | O40: 4 | P40: 0 | Q40: 0 | R40: 1 | S40: 159 | T40: 14 | U40: 160
A41: 08:45:00 | B41: 102 | C41: 43 | D41: 2 | E41: 0 | F41: 2 | G41: 0 | H41: 0 | I41: 147 | J41: 2 | K41: 149 | L41: 70 | M41: 44 | N41: 6 | O41: 0 | P41: 0 | Q41: 0 | R41: 0 | S41: 120 | T41: 6 | U41: 120
A42: 09:00:00 | B42: 73 | C42: 45 | D42: 7 | E42: 3 | F42: 3 | G42: 0 | H42: 1 | I42: 128 | J42: 10 | K42: 132 | L42: 51 | M42: 46 | N42: 1 | O42: 0 | P42: 0 | Q42: 0 | R42: 0 | S42: 98 | T42: 1 | U42: 98
A43: 09:15:00 | B43: 104 | C43: 37 | D43: 6 | E43: 2 | F43: 1 | G43: 0 | H43: 0 | I43: 149 | J43: 8 | K43: 150 | L43: 57 | M43: 48 | N43: 6 | O43: 1 | P43: 0 | Q43: 0 | R43: 0 | S43: 112 | T43: 7 | U43: 112
A44: 09:30:00 | B44: 63 | C44: 53 | D44: 4 | E44: 4 | F44: 1 | G44: 0 | H44: 3 | I44: 124 | J44: 8 | K44: 128 | L44: 61 | M44: 46 | N44: 7 | O44: 1 | P44: 1 | Q44: 0 | R44: 0 | S44: 115 | T44: 8 | U44: 116
A45: 09:45:00 | B45: 72 | C45: 36 | D45: 5 | E45: 1 | F45: 2 | G45: 0 | H45: 0 | I45: 114 | J45: 6 | K45: 116 | L45: 67 | M45: 38 | N45: 7 | O45: 1 | P45: 0 | Q45: 1 | R45: 0 | S45: 113 | T45: 8 | U45: 114
A46: 10:00:00 | B46: 82 | C46: 41 | D46: 5 | E46: 2 | F46: 0 | G46: 0 | H46: 1 | I46: 130 | J46: 7 | K46: 131 | L46: 67 | M46: 47 | N46: 6 | O46: 3 | P46: 0 | Q46: 1 | R46: 1 | S46: 123 | T46: 9 | U46: 125
A47: 10:15:00 | B47: 72 | C47: 49 | D47: 6 | E47: 2 | F47: 0 | G47: 2 | H47: 1 | I47: 129 | J47: 8 | K47: 132 | L47: 67 | M47: 32 | N47: 5 | O47: 2 | P47: 0 | Q47: 0 | R47: 0 | S47: 106 | T47: 7 | U47: 106
A48: 10:30:00 | B48: 63 | C48: 46 | D48: 6 | E48: 2 | F48: 0 | G48: 1 | H48: 0 | I48: 117 | J48: 8 | K48: 118 | L48: 46 | M48: 37 | N48: 6 | O48: 2 | P48: 0 | Q48: 0 | R48: 1 | S48: 91 | T48: 8 | U48: 92
A49: 10:45:00 | B49: 61 | C49: 33 | D49: 4 | E49: 2 | F49: 0 | G49: 2 | H49: 0 | I49: 100 | J49: 6 | K49: 102 | L49: 68 | M49: 40 | N49: 7 | O49: 1 | P49: 0 | Q49: 0 | R49: 0 | S49: 116 | T49: 8 | U49: 116
A50: 11:00:00 | B50: 85 | C50: 38 | D50: 7 | E50: 1 | F50: 0 | G50: 0 | H50: 0 | I50: 131 | J50: 8 | K50: 131 | L50: 72 | M50: 40 | N50: 3 | O50: 2 | P50: 0 | Q50: 0 | R50: 1 | S50: 117 | T50: 5 | U50: 118
A51: 11:15:00 | B51: 84 | C51: 35 | D51: 7 | E51: 4 | F51: 0 | G51: 0 | H51: 1 | I51: 130 | J51: 11 | K51: 131 | L51: 73 | M51: 40 | N51: 7 | O51: 0 | P51: 0 | Q51: 1 | R51: 0 | S51: 120 | T51: 7 | U51: 121
A52: 11:30:00 | B52: 76 | C52: 33 | D52: 2 | E52: 4 | F52: 2 | G52: 0 | H52: 0 | I52: 115 | J52: 6 | K52: 117 | L52: 69 | M52: 44 | N52: 4 | O52: 1 | P52: 2 | Q52: 1 | R52: 0 | S52: 118 | T52: 5 | U52: 121
A53: 11:45:00 | B53: 71 | C53: 43 | D53: 10 | E53: 3 | F53: 1 | G53: 1 | H53: 1 | I53: 127 | J53: 13 | K53: 130 | L53: 74 | M53: 62 | N53: 10 | O53: 2 | P53: 0 | Q53: 0 | R53: 0 | S53: 148 | T53: 12 | U53: 148
A54: 12:00:00 | B54: 67 | C54: 52 | D54: 3 | E54: 0 | F54: 1 | G54: 0 | H54: 0 | I54: 122 | J54: 3 | K54: 123 | L54: 65 | M54: 43 | N54: 10 | O54: 0 | P54: 0 | Q54: 0 | R54: 0 | S54: 118 | T54: 10 | U54: 118
A55: 12:15:00 | B55: 62 | C55: 26 | D55: 7 | E55: 3 | F55: 1 | G55: 2 | H55: 1 | I55: 98 | J55: 10 | K55: 102 | L55: 79 | M55: 43 | N55: 2 | O55: 1 | P55: 0 | Q55: 0 | R55: 0 | S55: 125 | T55: 3 | U55: 125
A56: 12:30:00 | B56: 81 | C56: 43 | D56: 8 | E56: 2 | F56: 1 | G56: 0 | H56: 0 | I56: 134 | J56: 10 | K56: 135 | L56: 72 | M56: 54 | N56: 9 | O56: 0 | P56: 1 | Q56: 1 | R56: 0 | S56: 135 | T56: 9 | U56: 137
A57: 12:45:00 | B57: 83 | C57: 49 | D57: 8 | E57: 1 | F57: 0 | G57: 1 | H57: 1 | I57: 141 | J57: 9 | K57: 143 | L57: 69 | M57: 33 | N57: 4 | O57: 0 | P57: 0 | Q57: 1 | R57: 0 | S57: 106 | T57: 4 | U57: 107
A58: 13:00:00 | B58: 73 | C58: 37 | D58: 7 | E58: 6 | F58: 0 | G58: 1 | H58: 1 | I58: 123 | J58: 13 | K58: 125 | L58: 54 | M58: 32 | N58: 4 | O58: 1 | P58: 0 | Q58: 2 | R58: 0 | S58: 91 | T58: 5 | U58: 93
A59: 13:15:00 | B59: 106 | C59: 51 | D59: 7 | E59: 4 | F59: 0 | G59: 1 | H59: 2 | I59: 168 | J59: 11 | K59: 171 | L59: 66 | M59: 41 | N59: 3 | O59: 4 | P59: 0 | Q59: 1 | R59: 0 | S59: 114 | T59: 7 | U59: 115
A60: 13:30:00 | B60: 82 | C60: 32 | D60: 5 | E60: 0 | F60: 1 | G60: 0 | H60: 0 | I60: 119 | J60: 5 | K60: 120 | L60: 76 | M60: 40 | N60: 3 | O60: 3 | P60: 1 | Q60: 2 | R60: 0 | S60: 122 | T60: 6 | U60: 125
A61: 13:45:00 | B61: 87 | C61: 42 | D61: 5 | E61: 1 | F61: 1 | G61: 0 | H61: 0 | I61: 135 | J61: 6 | K61: 136 | L61: 71 | M61: 25 | N61: 9 | O61: 1 | P61: 0 | Q61: 1 | R61: 0 | S61: 106 | T61: 10 | U61: 107
A62: 14:00:00 | B62: 76 | C62: 37 | D62: 3 | E62: 1 | F62: 0 | G62: 0 | H62: 0 | I62: 117 | J62: 4 | K62: 117 | L62: 96 | M62: 50 | N62: 5 | O62: 3 | P62: 1 | Q62: 1 | R62: 1 | S62: 154 | T62: 8 | U62: 157
A63: 14:15:00 | B63: 80 | C63: 37 | D63: 6 | E63: 1 | F63: 1 | G63: 0 | H63: 0 | I63: 124 | J63: 7 | K63: 125 | L63: 84 | M63: 43 | N63: 7 | O63: 3 | P63: 0 | Q63: 1 | R63: 0 | S63: 137 | T63: 10 | U63: 138
A64: 14:30:00 | B64: 92 | C64: 43 | D64: 3 | E64: 4 | F64: 3 | G64: 1 | H64: 0 | I64: 142 | J64: 7 | K64: 146 | L64: 64 | M64: 47 | N64: 9 | O64: 2 | P64: 0 | Q64: 0 | R64: 0 | S64: 122 | T64: 11 | U64: 122
A65: 14:45:00 | B65: 57 | C65: 38 | D65: 5 | E65: 0 | F65: 0 | G65: 0 | H65: 0 | I65: 100 | J65: 5 | K65: 100 | L65: 73 | M65: 43 | N65: 4 | O65: 2 | P65: 0 | Q65: 1 | R65: 0 | S65: 122 | T65: 6 | U65: 123
A66: 15:00:00 | B66: 107 | C66: 52 | D66: 7 | E66: 5 | F66: 2 | G66: 0 | H66: 0 | I66: 171 | J66: 12 | K66: 173 | L66: 89 | M66: 39 | N66: 2 | O66: 0 | P66: 0 | Q66: 0 | R66: 1 | S66: 130 | T66: 2 | U66: 131
A67: 15:15:00 | B67: 83 | C67: 50 | D67: 8 | E67: 3 | F67: 0 | G67: 2 | H67: 0 | I67: 144 | J67: 11 | K67: 146 | L67: 78 | M67: 39 | N67: 4 | O67: 0 | P67: 0 | Q67: 0 | R67: 1 | S67: 121 | T67: 4 | U67: 122
A68: 15:30:00 | B68: 95 | C68: 48 | D68: 5 | E68: 1 | F68: 0 | G68: 0 | H68: 0 | I68: 149 | J68: 6 | K68: 149 | L68: 92 | M68: 54 | N68: 2 | O68: 5 | P68: 0 | Q68: 2 | R68: 0 | S68: 153 | T68: 7 | U68: 155
A69: 15:45:00 | B69: 81 | C69: 75 | D69: 5 | E69: 2 | F69: 0 | G69: 0 | H69: 0 | I69: 163 | J69: 7 | K69: 163 | L69: 74 | M69: 51 | N69: 5 | O69: 0 | P69: 0 | Q69: 1 | R69: 0 | S69: 130 | T69: 5 | U69: 131
A70: 16:00:00 | B70: 82 | C70: 49 | D70: 4 | E70: 1 | F70: 0 | G70: 0 | H70: 0 | I70: 136 | J70: 5 | K70: 136 | L70: 89 | M70: 53 | N70: 7 | O70: 1 | P70: 1 | Q70: 2 | R70: 0 | S70: 150 | T70: 8 | U70: 153
A71: 16:15:00 | B71: 93 | C71: 46 | D71: 8 | E71: 2 | F71: 0 | G71: 3 | H71: 0 | I71: =SUM(B71:E71) -> 149 | J71: =SUM(D71:E71) -> 10 | K71: =SUM(B71:H71) -> 152 | L71: 103 | M71: 47 | N71: 5 | O71: 1 | P71: 1 | Q71: 2 | R71: 1 | S71: =SUM(L71:O71) -> 156 | T71: =SUM(N71:O71) -> 6 | U71: =SUM(L71:R71) -> 160
A72: 16:30:00 | B72: 119 | C72: 62 | D72: 4 | E72: 1 | F72: 0 | G72: 2 | H72: 1 | I72: 186 | J72: 5 | K72: 189 | L72: 104 | M72: 51 | N72: 1 | O72: 3 | P72: 0 | Q72: 2 | R72: 0 | S72: 159 | T72: 4 | U72: 161
A73: 16:45:00 | B73: 117 | C73: 52 | D73: 4 | E73: 5 | F73: 0 | G73: 1 | H73: 2 | I73: 178 | J73: 9 | K73: 181 | L73: 100 | M73: 58 | N73: 4 | O73: 0 | P73: 0 | Q73: 0 | R73: 0 | S73: 162 | T73: 4 | U73: 162
A74: 17:00:00 | B74: 151 | C74: 51 | D74: 3 | E74: 0 | F74: 0 | G74: 3 | H74: 2 | I74: 205 | J74: 3 | K74: 210 | L74: 116 | M74: 54 | N74: 3 | O74: 0 | P74: 0 | Q74: 0 | R74: 0 | S74: 173 | T74: 3 | U74: 173
A75: 17:15:00 | B75: 146 | C75: 60 | D75: 3 | E75: 3 | F75: 0 | G75: 3 | H75: 0 | I75: 212 | J75: 6 | K75: 215 | L75: 101 | M75: 47 | N75: 1 | O75: 0 | P75: 0 | Q75: 1 | R75: 0 | S75: 149 | T75: 1 | U75: 150
A76: 17:30:00 | B76: 103 | C76: 61 | D76: 1 | E76: 0 | F76: 0 | G76: 2 | H76: 0 | I76: 165 | J76: 1 | K76: 167 | L76: 95 | M76: 50 | N76: 1 | O76: 0 | P76: 0 | Q76: 0 | R76: 1 | S76: 146 | T76: 1 | U76: 147
A77: 17:45:00 | B77: 109 | C77: 46 | D77: 5 | E77: 1 | F77: 0 | G77: 0 | H77: 0 | I77: 161 | J77: 6 | K77: 161 | L77: 117 | M77: 46 | N77: 4 | O77: 0 | P77: 0 | Q77: 0 | R77: 1 | S77: 167 | T77: 4 | U77: 168
A78: 18:00:00 | B78: 87 | C78: 54 | D78: 1 | E78: 0 | F78: 0 | G78: 2 | H78: 0 | I78: 142 | J78: 1 | K78: 144 | L78: 94 | M78: 58 | N78: 1 | O78: 2 | P78: 0 | Q78: 1 | R78: 0 | S78: 155 | T78: 3 | U78: 156
A79: 18:15:00 | B79: 75 | C79: 43 | D79: 2 | E79: 1 | F79: 0 | G79: 0 | H79: 0 | I79: 121 | J79: 3 | K79: 121 | L79: 80 | M79: 54 | N79: 3 | O79: 1 | P79: 0 | Q79: 0 | R79: 0 | S79: 138 | T79: 4 | U79: 138
A80: 18:30:00 | B80: 66 | C80: 29 | D80: 1 | E80: 0 | F80: 0 | G80: 2 | H80: 0 | I80: 96 | J80: 1 | K80: 98 | L80: 72 | M80: 42 | N80: 3 | O80: 0 | P80: 0 | Q80: 2 | R80: 0 | S80: 117 | T80: 3 | U80: 119
A81: 18:45:00 | B81: 47 | C81: 36 | D81: 1 | E81: 1 | F81: 0 | G81: 0 | H81: 2 | I81: 85 | J81: 2 | K81: 87 | L81: 61 | M81: 28 | N81: 1 | O81: 0 | P81: 0 | Q81: 0 | R81: 0 | S81: 90 | T81: 1 | U81: 90
A82: 19:00:00 | B82: 64 | C82: 28 | D82: 3 | E82: 0 | F82: 0 | G82: 0 | H82: 1 | I82: 95 | J82: 3 | K82: 96 | L82: 63 | M82: 35 | N82: 2 | O82: 0 | P82: 0 | Q82: 0 | R82: 2 | S82: 100 | T82: 2 | U82: 102
A83: 19:15:00 | B83: 45 | C83: 36 | D83: 0 | E83: 2 | F83: 0 | G83: 1 | H83: 0 | I83: 83 | J83: 2 | K83: 84 | L83: 49 | M83: 24 | N83: 0 | O83: 0 | P83: 0 | Q83: 0 | R83: 0 | S83: 73 | T83: 0 | U83: 73
A84: 19:30:00 | B84: 25 | C84: 26 | D84: 2 | E84: 1 | F84: 0 | G84: 1 | H84: 0 | I84: 54 | J84: 3 | K84: 55 | L84: 39 | M84: 25 | N84: 1 | O84: 0 | P84: 0 | Q84: 1 | R84: 1 | S84: 65 | T84: 1 | U84: 67
A85: 19:45:00 | B85: 36 | C85: 21 | D85: 0 | E85: 0 | F85: 0 | G85: 0 | H85: 0 | I85: 57 | J85: 0 | K85: 57 | L85: 33 | M85: 25 | N85: 1 | O85: 2 | P85: 0 | Q85: 0 | R85: 0 | S85: 61 | T85: 3 | U85: 61
A86: 20:00:00 | B86: 33 | C86: 21 | D86: 0 | E86: 0 | F86: 0 | G86: 1 | H86: 0 | I86: 54 | J86: 0 | K86: 55 | L86: 26 | M86: 22 | N86: 1 | O86: 0 | P86: 0 | Q86: 0 | R86: 0 | S86: 49 | T86: 1 | U86: 49
A87: 20:15:00 | B87: 39 | C87: 20 | D87: 2 | E87: 0 | F87: 0 | G87: 0 | H87: 0 | I87: 61 | J87: 2 | K87: 61 | L87: 37 | M87: 15 | N87: 0 | O87: 0 | P87: 0 | Q87: 0 | R87: 0 | S87: 52 | T87: 0 | U87: 52
A88: 20:30:00 | B88: 22 | C88: 15 | D88: 0 | E88: 0 | F88: 0 | G88: 0 | H88: 0 | I88: 37 | J88: 0 | K88: 37 | L88: 36 | M88: 15 | N88: 0 | O88: 0 | P88: 0 | Q88: 0 | R88: 0 | S88: 51 | T88: 0 | U88: 51
A89: 20:45:00 | B89: 32 | C89: 11 | D89: 1 | E89: 0 | F89: 0 | G89: 0 | H89: 0 | I89: 44 | J89: 1 | K89: 44 | L89: 19 | M89: 19 | N89: 1 | O89: 0 | P89: 0 | Q89: 0 | R89: 0 | S89: 39 | T89: 1 | U89: 39
A90: 21:00:00 | B90: 36 | C90: 14 | D90: 1 | E90: 0 | F90: 0 | G90: 0 | H90: 0 | I90: 51 | J90: 1 | K90: 51 | L90: 21 | M90: 7 | N90: 0 | O90: 1 | P90: 0 | Q90: 0 | R90: 0 | S90: 29 | T90: 1 | U90: 29
A91: 21:15:00 | B91: 17 | C91: 6 | D91: 1 | E91: 0 | F91: 0 | G91: 1 | H91: 0 | I91: 24 | J91: 1 | K91: 25 | L91: 27 | M91: 10 | N91: 0 | O91: 1 | P91: 0 | Q91: 0 | R91: 0 | S91: 38 | T91: 1 | U91: 38
A92: 21:30:00 | B92: 31 | C92: 15 | D92: 0 | E92: 1 | F92: 0 | G92: 0 | H92: 0 | I92: 47 | J92: 1 | K92: 47 | L92: 29 | M92: 7 | N92: 0 | O92: 0 | P92: 0 | Q92: 0 | R92: 0 | S92: 36 | T92: 0 | U92: 36
A93: 21:45:00 | B93: 26 | C93: 12 | D93: 0 | E93: 0 | F93: 0 | G93: 0 | H93: 0 | I93: 38 | J93: 0 | K93: 38 | L93: 26 | M93: 8 | N93: 0 | O93: 1 | P93: 0 | Q93: 0 | R93: 0 | S93: 35 | T93: 1 | U93: 35
A94: 22:00:00 | B94: 19 | C94: 3 | D94: 1 | E94: 0 | F94: 0 | G94: 1 | H94: 0 | I94: 23 | J94: 1 | K94: 24 | L94: 15 | M94: 6 | N94: 2 | O94: 0 | P94: 0 | Q94: 0 | R94: 0 | S94: 23 | T94: 2 | U94: 23
A95: 22:15:00 | B95: 16 | C95: 10 | D95: 0 | E95: 0 | F95: 0 | G95: 0 | H95: 0 | I95: 26 | J95: 0 | K95: 26 | L95: 9 | M95: 6 | N95: 0 | O95: 1 | P95: 0 | Q95: 0 | R95: 0 | S95: 16 | T95: 1 | U95: 16
A96: 22:30:00 | B96: 6 | C96: 3 | D96: 3 | E96: 1 | F96: 0 | G96: 0 | H96: 0 | I96: 13 | J96: 4 | K96: 13 | L96: 7 | M96: 9 | N96: 0 | O96: 0 | P96: 0 | Q96: 0 | R96: 0 | S96: 16 | T96: 0 | U96: 16
A97: 22:45:00 | B97: 4 | C97: 2 | D97: 0 | E97: 0 | F97: 0 | G97: 0 | H97: 0 | I97: 6 | J97: 0 | K97: 6 | L97: 5 | M97: 3 | N97: 0 | O97: 0 | P97: 0 | Q97: 0 | R97: 0 | S97: 8 | T97: 0 | U97: 8
A98: 23:00:00 | B98: 7 | C98: 5 | D98: 0 | E98: 0 | F98: 0 | G98: 0 | H98: 0 | I98: 12 | J98: 0 | K98: 12 | L98: 6 | M98: 6 | N98: 0 | O98: 0 | P98: 0 | Q98: 0 | R98: 1 | S98: 12 | T98: 0 | U98: 13
A99: 23:15:00 | B99: 2 | C99: 2 | D99: 0 | E99: 0 | F99: 0 | G99: 1 | H99: 1 | I99: 4 | J99: 0 | K99: 6 | L99: 6 | M99: 2 | N99: 0 | O99: 0 | P99: 0 | Q99: 0 | R99: 0 | S99: 8 | T99: 0 | U99: 8
A100: 23:30:00 | B100: 5 | C100: 6 | D100: 0 | E100: 0 | F100: 0 | G100: 0 | H100: 0 | I100: 11 | J100: 0 | K100: 11 | L100: 1 | M100: 3 | N100: 1 | O100: 0 | P100: 0 | Q100: 0 | R100: 0 | S100: 5 | T100: 1 | U100: 5
A101: 23:45:00 | B101: 5 | C101: 2 | D101: 0 | E101: 0 | F101: 0 | G101: 0 | H101: 0 | I101: 7 | J101: 0 | K101: 7 | L101: 1 | M101: 2 | N101: 0 | O101: 0 | P101: 0 | Q101: 0 | R101: 0 | S101: 3 | T101: 0 | U101: 3
A102: TOTAL | B102: =SUM(B6:B101) -> 4845 | C102: =SUM(C6:C101) -> 2520 | D102: 270 | E102: 102 | F102: 27 | G102: 46 | H102: 25 | I102: 7737 | J102: 372 | K102: 7835 | L102: =SUM(L6:L101) -> 4498 | M102: =SUM(M6:M101) -> 2650 | N102: 262 | O102: 76 | P102: 12 | Q102: 49 | R102: 20 | S102: 7486 | T102: 338 | U102: 7567

Sheet 19 04 2016
A1: * Fill the table with data
A2: DO NOT CHANGE THE STRUCTURE OF THE SPREADSHEET (i.e. ADD OR DELETE ROWS/COLUMNS, ETC.)
B4: ='Site Plan'!$A$19&" - "&'Site Plan'!$C$19 -> Direction 1 - Eastbound | I4: TOTAL | L4: ='Site Plan'!$A$20&" - "&'Site Plan'!$C$20 -> Direction 2 - Westbound | S4: TOTAL
A5: TIME | B5: CAR | C5: LGV | D5: OGV1 | E5: OGV2 | F5: PSV | G5: MCL | H5: PCL | I5: CAR + LGV + HGV | J5: HGV | K5: ALL modes | L5: CAR | M5: LGV | N5: OGV1 | O5: OGV2 | P5: PSV | Q5: MCL | R5: PCL | S5: CAR + LGV + HGV | T5: HGV | U5: ALL modes
A6: 00:00:00 | B6: 6 | C6: 2 | D6: 0 | E6: 0 | F6: 0 | G6: 0 | H6: 0 | I6: =SUM(B6:E6) -> 8 | J6: =SUM(D6:E6) -> 0 | K6: =SUM(B6:H6) -> 8 | L6: 3 | M6: 1 | N6: 0 | O6: 0 | P6: 0 | Q6: 0 | R6: 0 | S6: =SUM(L6:O6) -> 4 | T6: =SUM(N6:O6) -> 0 | U6: =SUM(L6:R6) -> 4
A7: 00:15:00 | B7: 3 | C7: 2 | D7: 1 | E7: 0 | F7: 0 | G7: 0 | H7: 0 | I7: =SUM(B7:E7) -> 6 | J7: =SUM(D7:E7) -> 1 | K7: =SUM(B7:H7) -> 6 | L7: 2 | M7: 0 | N7: 0 | O7: 0 | P7: 0 | Q7: 0 | R7: 0 | S7: =SUM(L7:O7) -> 2 | T7: =SUM(N7:O7) -> 0 | U7: =SUM(L7:R7) -> 2
A8: 00:30:00 | B8: 3 | C8: 0 | D8: 0 | E8: 0 | F8: 0 | G8: 0 | H8: 0 | I8: 3 | J8: 0 | K8: 3 | L8: 0 | M8: 1 | N8: 0 | O8: 0 | P8: 0 | Q8: 0 | R8: 0 | S8: 1 | T8: 0 | U8: 1
A9: 00:45:00 | B9: 3 | C9: 4 | D9: 1 | E9: 0 | F9: 0 | G9: 0 | H9: 0 | I9: 8 | J9: 1 | K9: 8 | L9: 2 | M9: 1 | N9: 1 | O9: 0 | P9: 0 | Q9: 0 | R9: 0 | S9: 4 | T9: 1 | U9: 4
A10: 01:00:00 | B10: 0 | C10: 2 | D10: 0 | E10: 0 | F10: 0 | G10: 0 | H10: 0 | I10: 2 | J10: 0 | K10: 2 | L10: 0 | M10: 0 | N10: 0 | O10: 0 | P10: 0 | Q10: 0 | R10: 0 | S10: 0 | T10: 0 | U10: 0
A11: 01:15:00 | B11: 1 | C11: 2 | D11: 0 | E11: 0 | F11: 0 | G11: 0 | H11: 0 | I11: 3 | J11: 0 | K11: 3 | L11: 2 | M11: 1 | N11: 0 | O11: 0 | P11: 0 | Q11: 0 | R11: 0 | S11: 3 | T11: 0 | U11: 3
A12: 01:30:00 | B12: 0 | C12: 2 | D12: 0 | E12: 0 | F12: 0 | G12: 0 | H12: 0 | I12: 2 | J12: 0 | K12: 2 | L12: 0 | M12: 0 | N12: 0 | O12: 0 | P12: 0 | Q12: 0 | R12: 0 | S12: 0 | T12: 0 | U12: 0
A13: 01:45:00 | B13: 2 | C13: 0 | D13: 0 | E13: 1 | F13: 0 | G13: 0 | H13: 0 | I13: 3 | J13: 1 | K13: 3 | L13: 0 | M13: 1 | N13: 0 | O13: 0 | P13: 0 | Q13: 0 | R13: 0 | S13: 1 | T13: 0 | U13: 1
A14: 02:00:00 | B14: 1 | C14: 1 | D14: 2 | E14: 0 | F14: 0 | G14: 0 | H14: 0 | I14: 4 | J14: 2 | K14: 4 | L14: 0 | M14: 2 | N14: 0 | O14: 0 | P14: 0 | Q14: 0 | R14: 1 | S14: 2 | T14: 0 | U14: 3
A15: 02:15:00 | B15: 1 | C15: 1 | D15: 0 | E15: 1 | F15: 0 | G15: 0 | H15: 0 | I15: 3 | J15: 1 | K15: 3 | L15: 1 | M15: 2 | N15: 0 | O15: 0 | P15: 0 | Q15: 0 | R15: 0 | S15: 3 | T15: 0 | U15: 3
A16: 02:30:00 | B16: 1 | C16: 1 | D16: 0 | E16: 0 | F16: 0 | G16: 0 | H16: 0 | I16: 2 | J16: 0 | K16: 2 | L16: 0 | M16: 2 | N16: 0 | O16: 0 | P16: 1 | Q16: 0 | R16: 0 | S16: 2 | T16: 0 | U16: 3
A17: 02:45:00 | B17: 0 | C17: 0 | D17: 0 | E17: 0 | F17: 0 | G17: 0 | H17: 0 | I17: 0 | J17: 0 | K17: 0 | L17: 1 | M17: 2 | N17: 0 | O17: 1 | P17: 0 | Q17: 0 | R17: 0 | S17: 4 | T17: 1 | U17: 4
A18: 03:00:00 | B18: 0 | C18: 2 | D18: 0 | E18: 1 | F18: 0 | G18: 0 | H18: 0 | I18: 3 | J18: 1 | K18: 3 | L18: 0 | M18: 1 | N18: 1 | O18: 0 | P18: 0 | Q18: 0 | R18: 0 | S18: 2 | T18: 1 | U18: 2
A19: 03:15:00 | B19: 0 | C19: 0 | D19: 2 | E19: 0 | F19: 0 | G19: 0 | H19: 0 | I19: 2 | J19: 2 | K19: 2 | L19: 3 | M19: 2 | N19: 0 | O19: 0 | P19: 0 | Q19: 0 | R19: 0 | S19: 5 | T19: 0 | U19: 5
A20: 03:30:00 | B20: 0 | C20: 2 | D20: 0 | E20: 0 | F20: 0 | G20: 0 | H20: 0 | I20: 2 | J20: 0 | K20: 2 | L20: 1 | M20: 0 | N20: 0 | O20: 0 | P20: 0 | Q20: 0 | R20: 0 | S20: 1 | T20: 0 | U20: 1
A21: 03:45:00 | B21: 0 | C21: 1 | D21: 0 | E21: 0 | F21: 0 | G21: 0 | H21: 0 | I21: 1 | J21: 0 | K21: 1 | L21: 3 | M21: 1 | N21: 0 | O21: 0 | P21: 0 | Q21: 0 | R21: 0 | S21: 4 | T21: 0 | U21: 4
A22: 04:00:00 | B22: 1 | C22: 1 | D22: 0 | E22: 0 | F22: 0 | G22: 0 | H22: 0 | I22: 2 | J22: 0 | K22: 2 | L22: 6 | M22: 3 | N22: 0 | O22: 0 | P22: 0 | Q22: 0 | R22: 0 | S22: 9 | T22: 0 | U22: 9
A23: 04:15:00 | B23: 1 | C23: 2 | D23: 0 | E23: 0 | F23: 0 | G23: 0 | H23: 0 | I23: 3 | J23: 0 | K23: 3 | L23: 3 | M23: 6 | N23: 1 | O23: 0 | P23: 0 | Q23: 1 | R23: 0 | S23: 10 | T23: 1 | U23: 11
A24: 04:30:00 | B24: 0 | C24: 2 | D24: 0 | E24: 0 | F24: 0 | G24: 0 | H24: 0 | I24: 2 | J24: 0 | K24: 2 | L24: 3 | M24: 10 | N24: 1 | O24: 0 | P24: 0 | Q24: 0 | R24: 0 | S24: 14 | T24: 1 | U24: 14
A25: 04:45:00 | B25: 4 | C25: 3 | D25: 0 | E25: 0 | F25: 1 | G25: 0 | H25: 0 | I25: 7 | J25: 0 | K25: 8 | L25: 3 | M25: 6 | N25: 4 | O25: 0 | P25: 0 | Q25: 0 | R25: 0 | S25: 13 | T25: 4 | U25: 13
A26: 05:00:00 | B26: 5 | C26: 4 | D26: 4 | E26: 0 | F26: 0 | G26: 1 | H26: 1 | I26: 13 | J26: 4 | K26: 15 | L26: 14 | M26: 9 | N26: 1 | O26: 0 | P26: 0 | Q26: 0 | R26: 0 | S26: 24 | T26: 1 | U26: 24
A27: 05:15:00 | B27: 9 | C27: 6 | D27: 2 | E27: 0 | F27: 0 | G27: 0 | H27: 1 | I27: 17 | J27: 2 | K27: 18 | L27: 9 | M27: 17 | N27: 3 | O27: 0 | P27: 0 | Q27: 0 | R27: 0 | S27: 29 | T27: 3 | U27: 29
A28: 05:30:00 | B28: 10 | C28: 9 | D28: 1 | E28: 0 | F28: 0 | G28: 0 | H28: 0 | I28: 20 | J28: 1 | K28: 20 | L28: 19 | M28: 23 | N28: 2 | O28: 3 | P28: 0 | Q28: 0 | R28: 0 | S28: 47 | T28: 5 | U28: 47
A29: 05:45:00 | B29: 24 | C29: 7 | D29: 1 | E29: 1 | F29: 0 | G29: 0 | H29: 0 | I29: 33 | J29: 2 | K29: 33 | L29: 22 | M29: 24 | N29: 2 | O29: 1 | P29: 0 | Q29: 1 | R29: 1 | S29: 49 | T29: 3 | U29: 51
A30: 06:00:00 | B30: 16 | C30: 9 | D30: 3 | E30: 0 | F30: 0 | G30: 0 | H30: 1 | I30: 28 | J30: 3 | K30: 29 | L30: 38 | M30: 29 | N30: 7 | O30: 1 | P30: 0 | Q30: 1 | R30: 1 | S30: 75 | T30: 8 | U30: 77
A31: 06:15:00 | B31: 30 | C31: 18 | D31: 2 | E31: 0 | F31: 0 | G31: 0 | H31: 0 | I31: 50 | J31: 2 | K31: 50 | L31: 31 | M31: 41 | N31: 3 | O31: 0 | P31: 0 | Q31: 2 | R31: 0 | S31: 75 | T31: 3 | U31: 77
A32: 06:30:00 | B32: 34 | C32: 24 | D32: 2 | E32: 1 | F32: 0 | G32: 0 | H32: 0 | I32: 61 | J32: 3 | K32: 61 | L32: 39 | M32: 30 | N32: 4 | O32: 1 | P32: 1 | Q32: 2 | R32: 0 | S32: 74 | T32: 5 | U32: 77
A33: 06:45:00 | B33: 45 | C33: 44 | D33: 6 | E33: 1 | F33: 0 | G33: 1 | H33: 0 | I33: 96 | J33: 7 | K33: 97 | L33: 60 | M33: 51 | N33: 9 | O33: 2 | P33: 0 | Q33: 3 | R33: 0 | S33: 122 | T33: 11 | U33: 125
A34: 07:00:00 | B34: 59 | C34: 50 | D34: 6 | E34: 1 | F34: 0 | G34: 2 | H34: 1 | I34: 116 | J34: 7 | K34: 119 | L34: 75 | M34: 62 | N34: 4 | O34: 2 | P34: 0 | Q34: 4 | R34: 1 | S34: 143 | T34: 6 | U34: 148
A35: 07:15:00 | B35: 84 | C35: 59 | D35: 5 | E35: 0 | F35: 0 | G35: 0 | H35: 0 | I35: 148 | J35: 5 | K35: 148 | L35: 60 | M35: 67 | N35: 10 | O35: 2 | P35: 0 | Q35: 3 | R35: 1 | S35: 139 | T35: 12 | U35: 143
A36: 07:30:00 | B36: 87 | C36: 49 | D36: 4 | E36: 1 | F36: 2 | G36: 1 | H36: 0 | I36: 141 | J36: 5 | K36: 144 | L36: 96 | M36: 68 | N36: 4 | O36: 0 | P36: 0 | Q36: 2 | R36: 0 | S36: 168 | T36: 4 | U36: 170
A37: 07:45:00 | B37: 110 | C37: 49 | D37: 6 | E37: 1 | F37: 1 | G37: 2 | H37: 1 | I37: 166 | J37: 7 | K37: 170 | L37: 111 | M37: 51 | N37: 5 | O37: 0 | P37: 0 | Q37: 0 | R37: 0 | S37: 167 | T37: 5 | U37: 167
A38: 08:00:00 | B38: 86 | C38: 45 | D38: 1 | E38: 1 | F38: 0 | G38: 0 | H38: 0 | I38: 133 | J38: 2 | K38: 133 | L38: 99 | M38: 58 | N38: 4 | O38: 1 | P38: 0 | Q38: 0 | R38: 1 | S38: 162 | T38: 5 | U38: 163
A39: 08:15:00 | B39: 94 | C39: 37 | D39: 5 | E39: 2 | F39: 1 | G39: 0 | H39: 0 | I39: 138 | J39: 7 | K39: 139 | L39: 101 | M39: 39 | N39: 4 | O39: 1 | P39: 0 | Q39: 1 | R39: 0 | S39: 145 | T39: 5 | U39: 146
A40: 08:30:00 | B40: 111 | C40: 29 | D40: 6 | E40: 0 | F40: 2 | G40: 1 | H40: 0 | I40: 146 | J40: 6 | K40: 149 | L40: 79 | M40: 45 | N40: 5 | O40: 2 | P40: 0 | Q40: 2 | R40: 1 | S40: 131 | T40: 7 | U40: 134
A41: 08:45:00 | B41: 108 | C41: 40 | D41: 6 | E41: 1 | F41: 0 | G41: 1 | H41: 0 | I41: 155 | J41: 7 | K41: 156 | L41: 68 | M41: 46 | N41: 7 | O41: 2 | P41: 1 | Q41: 0 | R41: 2 | S41: 123 | T41: 9 | U41: 126
A42: 09:00:00 | B42: 99 | C42: 51 | D42: 4 | E42: 3 | F42: 2 | G42: 1 | H42: 2 | I42: 157 | J42: 7 | K42: 162 | L42: 44 | M42: 49 | N42: 7 | O42: 1 | P42: 0 | Q42: 1 | R42: 0 | S42: 101 | T42: 8 | U42: 102
A43: 09:15:00 | B43: 95 | C43: 40 | D43: 7 | E43: 1 | F43: 0 | G43: 1 | H43: 2 | I43: 143 | J43: 8 | K43: 146 | L43: 56 | M43: 44 | N43: 4 | O43: 1 | P43: 0 | Q43: 0 | R43: 1 | S43: 105 | T43: 5 | U43: 106
A44: 09:30:00 | B44: 63 | C44: 53 | D44: 9 | E44: 1 | F44: 1 | G44: 0 | H44: 0 | I44: 126 | J44: 10 | K44: 127 | L44: 55 | M44: 48 | N44: 7 | O44: 1 | P44: 0 | Q44: 0 | R44: 0 | S44: 111 | T44: 8 | U44: 111
A45: 09:45:00 | B45: 93 | C45: 55 | D45: 5 | E45: 1 | F45: 1 | G45: 0 | H45: 0 | I45: 154 | J45: 6 | K45: 155 | L45: 48 | M45: 37 | N45: 4 | O45: 2 | P45: 0 | Q45: 2 | R45: 0 | S45: 91 | T45: 6 | U45: 93
A46: 10:00:00 | B46: 77 | C46: 31 | D46: 8 | E46: 3 | F46: 0 | G46: 0 | H46: 0 | I46: 119 | J46: 11 | K46: 119 | L46: 69 | M46: 33 | N46: 6 | O46: 1 | P46: 0 | Q46: 2 | R46: 0 | S46: 109 | T46: 7 | U46: 111
A47: 10:15:00 | B47: 82 | C47: 38 | D47: 5 | E47: 0 | F47: 0 | G47: 2 | H47: 0 | I47: 125 | J47: 5 | K47: 127 | L47: 82 | M47: 43 | N47: 8 | O47: 2 | P47: 1 | Q47: 0 | R47: 0 | S47: 135 | T47: 10 | U47: 136
A48: 10:30:00 | B48: 74 | C48: 43 | D48: 6 | E48: 0 | F48: 0 | G48: 0 | H48: 0 | I48: 123 | J48: 6 | K48: 123 | L48: 71 | M48: 35 | N48: 4 | O48: 1 | P48: 1 | Q48: 0 | R48: 0 | S48: 111 | T48: 5 | U48: 112
A49: 10:45:00 | B49: 69 | C49: 53 | D49: 4 | E49: 2 | F49: 1 | G49: 0 | H49: 0 | I49: 128 | J49: 6 | K49: 129 | L49: 56 | M49: 32 | N49: 8 | O49: 0 | P49: 0 | Q49: 3 | R49: 0 | S49: 96 | T49: 8 | U49: 99
A50: 11:00:00 | B50: 61 | C50: 39 | D50: 6 | E50: 3 | F50: 1 | G50: 4 | H50: 1 | I50: 109 | J50: 9 | K50: 115 | L50: 54 | M50: 38 | N50: 3 | O50: 4 | P50: 2 | Q50: 0 | R50: 1 | S50: 99 | T50: 7 | U50: 102
A51: 11:15:00 | B51: 81 | C51: 49 | D51: 7 | E51: 3 | F51: 0 | G51: 1 | H51: 0 | I51: 140 | J51: 10 | K51: 141 | L51: 77 | M51: 52 | N51: 10 | O51: 0 | P51: 1 | Q51: 2 | R51: 1 | S51: 139 | T51: 10 | U51: 143
A52: 11:30:00 | B52: 52 | C52: 41 | D52: 7 | E52: 2 | F52: 1 | G52: 1 | H52: 0 | I52: 102 | J52: 9 | K52: 104 | L52: 68 | M52: 31 | N52: 4 | O52: 1 | P52: 0 | Q52: 1 | R52: 0 | S52: 104 | T52: 5 | U52: 105
A53: 11:45:00 | B53: 83 | C53: 38 | D53: 12 | E53: 3 | F53: 2 | G53: 0 | H53: 1 | I53: 136 | J53: 15 | K53: 139 | L53: 70 | M53: 38 | N53: 6 | O53: 1 | P53: 0 | Q53: 1 | R53: 0 | S53: 115 | T53: 7 | U53: 116
A54: 12:00:00 | B54: 73 | C54: 45 | D54: 6 | E54: 4 | F54: 2 | G54: 1 | H54: 1 | I54: 128 | J54: 10 | K54: 132 | L54: 71 | M54: 44 | N54: 7 | O54: 3 | P54: 0 | Q54: 0 | R54: 0 | S54: 125 | T54: 10 | U54: 125
A55: 12:15:00 | B55: 78 | C55: 55 | D55: 6 | E55: 2 | F55: 0 | G55: 0 | H55: 1 | I55: 141 | J55: 8 | K55: 142 | L55: 99 | M55: 44 | N55: 4 | O55: 0 | P55: 1 | Q55: 2 | R55: 0 | S55: 147 | T55: 4 | U55: 150
A56: 12:30:00 | B56: 55 | C56: 48 | D56: 2 | E56: 5 | F56: 1 | G56: 1 | H56: 0 | I56: 110 | J56: 7 | K56: 112 | L56: 67 | M56: 56 | N56: 1 | O56: 0 | P56: 0 | Q56: 1 | R56: 0 | S56: 124 | T56: 1 | U56: 125
A57: 12:45:00 | B57: 69 | C57: 43 | D57: 2 | E57: 2 | F57: 1 | G57: 2 | H57: 0 | I57: 116 | J57: 4 | K57: 119 | L57: 82 | M57: 36 | N57: 4 | O57: 1 | P57: 0 | Q57: 0 | R57: 0 | S57: 123 | T57: 5 | U57: 123
A58: 13:00:00 | B58: 85 | C58: 49 | D58: 2 | E58: 1 | F58: 1 | G58: 0 | H58: 1 | I58: 137 | J58: 3 | K58: 139 | L58: 75 | M58: 39 | N58: 8 | O58: 1 | P58: 1 | Q58: 1 | R58: 0 | S58: 123 | T58: 9 | U58: 125
A59: 13:15:00 | B59: 62 | C59: 35 | D59: 2 | E59: 4 | F59: 1 | G59: 0 | H59: 0 | I59: 103 | J59: 6 | K59: 104 | L59: 64 | M59: 52 | N59: 7 | O59: 0 | P59: 1 | Q59: 3 | R59: 0 | S59: 123 | T59: 7 | U59: 127
A60: 13:30:00 | B60: 8 | C60: 6 | D60: 2 | E60: 0 | F60: 0 | G60: 0 | H60: 0 | I60: 16 | J60: 2 | K60: 16 | L60: 4 | M60: 3 | N60: 1 | O60: 0 | P60: 1 | Q60: 0 | R60: 0 | S60: 8 | T60: 1 | U60: 9
A61: 13:45:00 | B61: * | C61: * | D61: * | E61: * | F61: * | G61: * | H61: * | I61: =SUM(B61:H61) -> 0 | J61: 0 | K61: 0 | L61: * | M61: * | N61: * | O61: * | P61: * | Q61: * | R61: * | S61: =SUM(L61:R61) -> 0 | T61: 0 | U61: 0
A62: 14:00:00 | B62: * | C62: * | D62: * | E62: * | F62: * | G62: * | H62: * | I62: 0 | J62: 0 | K62: 0 | L62: * | M62: * | N62: * | O62: * | P62: * | Q62: * | R62: * | S62: 0 | T62: 0 | U62: 0
A63: 14:15:00 | B63: * | C63: * | D63: * | E63: * | F63: * | G63: * | H63: * | I63: 0 | J63: 0 | K63: 0 | L63: * | M63: * | N63: * | O63: * | P63: * | Q63: * | R63: * | S63: 0 | T63: 0 | U63: 0
A64: 14:30:00 | B64: * | C64: * | D64: * | E64: * | F64: * | G64: * | H64: * | I64: 0 | J64: 0 | K64: 0 | L64: * | M64: * | N64: * | O64: * | P64: * | Q64: * | R64: * | S64: 0 | T64: 0 | U64: 0
A65: 14:45:00 | B65: * | C65: * | D65: * | E65: * | F65: * | G65: * | H65: * | I65: 0 | J65: 0 | K65: 0 | L65: * | M65: * | N65: * | O65: * | P65: * | Q65: * | R65: * | S65: 0 | T65: 0 | U65: 0
A66: 15:00:00 | B66: * | C66: * | D66: * | E66: * | F66: * | G66: * | H66: * | I66: 0 | J66: 0 | K66: 0 | L66: * | M66: * | N66: * | O66: * | P66: * | Q66: * | R66: * | S66: 0 | T66: 0 | U66: 0
A67: 15:15:00 | B67: * | C67: * | D67: * | E67: * | F67: * | G67: * | H67: * | I67: 0 | J67: 0 | K67: 0 | L67: * | M67: * | N67: * | O67: * | P67: * | Q67: * | R67: * | S67: 0 | T67: 0 | U67: 0
A68: 15:30:00 | B68: * | C68: * | D68: * | E68: * | F68: * | G68: * | H68: * | I68: 0 | J68: 0 | K68: 0 | L68: * | M68: * | N68: * | O68: * | P68: * | Q68: * | R68: * | S68: 0 | T68: 0 | U68: 0
A69: 15:45:00 | B69: * | C69: * | D69: * | E69: * | F69: * | G69: * | H69: * | I69: 0 | J69: 0 | K69: 0 | L69: * | M69: * | N69: * | O69: * | P69: * | Q69: * | R69: * | S69: 0 | T69: 0 | U69: 0
A70: 16:00:00 | B70: * | C70: * | D70: * | E70: * | F70: * | G70: * | H70: * | I70: 0 | J70: 0 | K70: 0 | L70: * | M70: * | N70: * | O70: * | P70: * | Q70: * | R70: * | S70: 0 | T70: 0 | U70: 0
A71: 16:15:00 | B71: * | C71: * | D71: * | E71: * | F71: * | G71: * | H71: * | I71: 0 | J71: =SUM(D71:E71) -> 0 | K71: =SUM(B71:H71) -> 0 | L71: * | M71: * | N71: * | O71: * | P71: * | Q71: * | R71: * | S71: 0 | T71: =SUM(N71:O71) -> 0 | U71: =SUM(L71:R71) -> 0
A72: 16:30:00 | B72: * | C72: * | D72: * | E72: * | F72: * | G72: * | H72: * | I72: 0 | J72: 0 | K72: 0 | L72: * | M72: * | N72: * | O72: * | P72: * | Q72: * | R72: * | S72: 0 | T72: 0 | U72: 0
A73: 16:45:00 | B73: * | C73: * | D73: * | E73: * | F73: * | G73: * | H73: * | I73: 0 | J73: 0 | K73: 0 | L73: * | M73: * | N73: * | O73: * | P73: * | Q73: * | R73: * | S73: 0 | T73: 0 | U73: 0
A74: 17:00:00 | B74: * | C74: * | D74: * | E74: * | F74: * | G74: * | H74: * | I74: 0 | J74: 0 | K74: 0 | L74: * | M74: * | N74: * | O74: * | P74: * | Q74: * | R74: * | S74: 0 | T74: 0 | U74: 0
A75: 17:15:00 | B75: * | C75: * | D75: * | E75: * | F75: * | G75: * | H75: * | I75: 0 | J75: 0 | K75: 0 | L75: * | M75: * | N75: * | O75: * | P75: * | Q75: * | R75: * | S75: 0 | T75: 0 | U75: 0
A76: 17:30:00 | B76: * | C76: * | D76: * | E76: * | F76: * | G76: * | H76: * | I76: 0 | J76: 0 | K76: 0 | L76: * | M76: * | N76: * | O76: * | P76: * | Q76: * | R76: * | S76: 0 | T76: 0 | U76: 0
A77: 17:45:00 | B77: * | C77: * | D77: * | E77: * | F77: * | G77: * | H77: * | I77: 0 | J77: 0 | K77: 0 | L77: * | M77: * | N77: * | O77: * | P77: * | Q77: * | R77: * | S77: 0 | T77: 0 | U77: 0
A78: 18:00:00 | B78: * | C78: * | D78: * | E78: * | F78: * | G78: * | H78: * | I78: 0 | J78: 0 | K78: 0 | L78: * | M78: * | N78: * | O78: * | P78: * | Q78: * | R78: * | S78: 0 | T78: 0 | U78: 0
A79: 18:15:00 | B79: * | C79: * | D79: * | E79: * | F79: * | G79: * | H79: * | I79: 0 | J79: 0 | K79: 0 | L79: * | M79: * | N79: * | O79: * | P79: * | Q79: * | R79: * | S79: 0 | T79: 0 | U79: 0
A80: 18:30:00 | B80: * | C80: * | D80: * | E80: * | F80: * | G80: * | H80: * | I80: 0 | J80: 0 | K80: 0 | L80: * | M80: * | N80: * | O80: * | P80: * | Q80: * | R80: * | S80: 0 | T80: 0 | U80: 0
A81: 18:45:00 | B81: * | C81: * | D81: * | E81: * | F81: * | G81: * | H81: * | I81: 0 | J81: 0 | K81: 0 | L81: * | M81: * | N81: * | O81: * | P81: * | Q81: * | R81: * | S81: 0 | T81: 0 | U81: 0
A82: 19:00:00 | B82: * | C82: * | D82: * | E82: * | F82: * | G82: * | H82: * | I82: 0 | J82: 0 | K82: 0 | L82: * | M82: * | N82: * | O82: * | P82: * | Q82: * | R82: * | S82: 0 | T82: 0 | U82: 0
A83: 19:15:00 | B83: * | C83: * | D83: * | E83: * | F83: * | G83: * | H83: * | I83: 0 | J83: 0 | K83: 0 | L83: * | M83: * | N83: * | O83: * | P83: * | Q83: * | R83: * | S83: 0 | T83: 0 | U83: 0
A84: 19:30:00 | B84: * | C84: * | D84: * | E84: * | F84: * | G84: * | H84: * | I84: 0 | J84: 0 | K84: 0 | L84: * | M84: * | N84: * | O84: * | P84: * | Q84: * | R84: * | S84: 0 | T84: 0 | U84: 0
A85: 19:45:00 | B85: * | C85: * | D85: * | E85: * | F85: * | G85: * | H85: * | I85: 0 | J85: 0 | K85: 0 | L85: * | M85: * | N85: * | O85: * | P85: * | Q85: * | R85: * | S85: 0 | T85: 0 | U85: 0
A86: 20:00:00 | B86: * | C86: * | D86: * | E86: * | F86: * | G86: * | H86: * | I86: 0 | J86: 0 | K86: 0 | L86: * | M86: * | N86: * | O86: * | P86: * | Q86: * | R86: * | S86: 0 | T86: 0 | U86: 0
A87: 20:15:00 | B87: * | C87: * | D87: * | E87: * | F87: * | G87: * | H87: * | I87: 0 | J87: 0 | K87: 0 | L87: * | M87: * | N87: * | O87: * | P87: * | Q87: * | R87: * | S87: 0 | T87: 0 | U87: 0
A88: 20:30:00 | B88: * | C88: * | D88: * | E88: * | F88: * | G88: * | H88: * | I88: 0 | J88: 0 | K88: 0 | L88: * | M88: * | N88: * | O88: * | P88: * | Q88: * | R88: * | S88: 0 | T88: 0 | U88: 0
A89: 20:45:00 | B89: * | C89: * | D89: * | E89: * | F89: * | G89: * | H89: * | I89: 0 | J89: 0 | K89: 0 | L89: * | M89: * | N89: * | O89: * | P89: * | Q89: * | R89: * | S89: 0 | T89: 0 | U89: 0
A90: 21:00:00 | B90: * | C90: * | D90: * | E90: * | F90: * | G90: * | H90: * | I90: 0 | J90: 0 | K90: 0 | L90: * | M90: * | N90: * | O90: * | P90: * | Q90: * | R90: * | S90: 0 | T90: 0 | U90: 0
A91: 21:15:00 | B91: * | C91: * | D91: * | E91: * | F91: * | G91: * | H91: * | I91: 0 | J91: 0 | K91: 0 | L91: * | M91: * | N91: * | O91: * | P91: * | Q91: * | R91: * | S91: 0 | T91: 0 | U91: 0
A92: 21:30:00 | B92: * | C92: * | D92: * | E92: * | F92: * | G92: * | H92: * | I92: 0 | J92: 0 | K92: 0 | L92: * | M92: * | N92: * | O92: * | P92: * | Q92: * | R92: * | S92: 0 | T92: 0 | U92: 0
A93: 21:45:00 | B93: * | C93: * | D93: * | E93: * | F93: * | G93: * | H93: * | I93: 0 | J93: 0 | K93: 0 | L93: * | M93: * | N93: * | O93: * | P93: * | Q93: * | R93: * | S93: 0 | T93: 0 | U93: 0
A94: 22:00:00 | B94: * | C94: * | D94: * | E94: * | F94: * | G94: * | H94: * | I94: 0 | J94: 0 | K94: 0 | L94: * | M94: * | N94: * | O94: * | P94: * | Q94: * | R94: * | S94: 0 | T94: 0 | U94: 0
A95: 22:15:00 | B95: * | C95: * | D95: * | E95: * | F95: * | G95: * | H95: * | I95: 0 | J95: 0 | K95: 0 | L95: * | M95: * | N95: * | O95: * | P95: * | Q95: * | R95: * | S95: 0 | T95: 0 | U95: 0
A96: 22:30:00 | B96: * | C96: * | D96: * | E96: * | F96: * | G96: * | H96: * | I96: 0 | J96: 0 | K96: 0 | L96: * | M96: * | N96: * | O96: * | P96: * | Q96: * | R96: * | S96: 0 | T96: 0 | U96: 0
A97: 22:45:00 | B97: * | C97: * | D97: * | E97: * | F97: * | G97: * | H97: * | I97: 0 | J97: 0 | K97: 0 | L97: * | M97: * | N97: * | O97: * | P97: * | Q97: * | R97: * | S97: 0 | T97: 0 | U97: 0
A98: 23:00:00 | B98: * | C98: * | D98: * | E98: * | F98: * | G98: * | H98: * | I98: 0 | J98: 0 | K98: 0 | L98: * | M98: * | N98: * | O98: * | P98: * | Q98: * | R98: * | S98: 0 | T98: 0 | U98: 0
A99: 23:15:00 | B99: * | C99: * | D99: * | E99: * | F99: * | G99: * | H99: * | I99: 0 | J99: 0 | K99: 0 | L99: * | M99: * | N99: * | O99: * | P99: * | Q99: * | R99: * | S99: 0 | T99: 0 | U99: 0
A100: 23:30:00 | B100: * | C100: * | D100: * | E100: * | F100: * | G100: * | H100: * | I100: 0 | J100: 0 | K100: 0 | L100: * | M100: * | N100: * | O100: * | P100: * | Q100: * | R100: * | S100: 0 | T100: 0 | U100: 0
A101: 23:45:00 | B101: * | C101: * | D101: * | E101: * | F101: * | G101: * | H101: * | I101: 0 | J101: 0 | K101: 0 | L101: * | M101: * | N101: * | O101: * | P101: * | Q101: * | R101: * | S101: 0 | T101: 0 | U101: 0
A102: TOTAL | B102: =SUM(B6:B101) -> 2298 | C102: =SUM(C6:C101) -> 1321 | D102: 168 | E102: 53 | F102: 22 | G102: 23 | H102: 14 | I102: 3840 | J102: 221 | K102: 3899 | L102: =SUM(L6:L101) -> 2166 | M102: =SUM(M6:M101) -> 1456 | N102: 185 | O102: 39 | P102: 12 | Q102: 41 | R102: 12 | S102: 3846 | T102: 224 | U102: 3911

Sheet rolling hour totals_dir 1
A1: * The table is calculated automatically based on sheet 'Form'
A2: !!! it is at that stage the user should manually remove all the values, which are outliers, incomplete, etc.
A4: AUTOMATIC TRAFFIC COUNT, 1HR SUMMARY
A5: ='Site Plan'!A19 -> Direction 1 | B5: ='Site Plan'!C19 -> Eastbound
A7: CAR + LGV + HGV | BP7: Mean, can be used to identify the busiest hour
B8: ='Site Plan'!$Q$3 -> 2016-04-07 | C8: =IF($B$8+COLUMN(B8)-1<='Site Plan'!$Q$4,$B$8+COLUMN(B8)-1,"") -> 2016-04-08 | D8: =IF($B$8+COLUMN(C8)-1<='Site Plan'!$Q$4,$B$8+COLUMN(C8)-1,"") -> 2016-04-09 | E8: =IF($B$8+COLUMN(D8)-1<='Site Plan'!$Q$4,$B$8+COLUMN(D8)-1,"") -> 2016-04-10 | F8: =IF($B$8+COLUMN(E8)-1<='Site Plan'!$Q$4,$B$8+COLUMN(E8)-1,"") -> 2016-04-11 | G8: =IF($B$8+COLUMN(F8)-1<='Site Plan'!$Q$4,$B$8+COLUMN(F8)-1,"") -> 2016-04-12 | H8: =IF($B$8+COLUMN(G8)-1<='Site Plan'!$Q$4,$B$8+COLUMN(G8)-1,"") -> 2016-04-13 | I8: =IF($B$8+COLUMN(H8)-1<='Site Plan'!$Q$4,$B$8+COLUMN(H8)-1,"") -> 2016-04-14 | J8: =IF($B$8+COLUMN(I8)-1<='Site Plan'!$Q$4,$B$8+COLUMN(I8)-1,"") -> 2016-04-15 | K8: =IF($B$8+COLUMN(J8)-1<='Site Plan'!$Q$4,$B$8+COLUMN(J8)-1,"") -> 2016-04-16 | L8: =IF($B$8+COLUMN(K8)-1<='Site Plan'!$Q$4,$B$8+COLUMN(K8)-1,"") -> 2016-04-17 | M8: =IF($B$8+COLUMN(L8)-1<='Site Plan'!$Q$4,$B$8+COLUMN(L8)-1,"") -> 2016-04-18 | N8: =IF($B$8+COLUMN(M8)-1<='Site Plan'!$Q$4,$B$8+COLUMN(M8)-1,"") -> 2016-04-19 | O8: =IF($B$8+COLUMN(N8)-1<='Site Plan'!$Q$4,$B$8+COLUMN(N8)-1,"") ->  | P8: =IF($B$8+COLUMN(O8)-1<='Site Plan'!$Q$4,$B$8+COLUMN(O8)-1,"") ->  | Q8: =IF($B$8+COLUMN(P8)-1<='Site Plan'!$Q$4,$B$8+COLUMN(P8)-1,"") ->  | R8: =IF($B$8+COLUMN(Q8)-1<='Site Plan'!$Q$4,$B$8+COLUMN(Q8)-1,"") ->  | S8: =IF($B$8+COLUMN(R8)-1<='Site Plan'!$Q$4,$B$8+COLUMN(R8)-1,"") ->  | T8: =IF($B$8+COLUMN(S8)-1<='Site Plan'!$Q$4,$B$8+COLUMN(S8)-1,"") ->  | U8: =IF($B$8+COLUMN(T8)-1<='Site Plan'!$Q$4,$B$8+COLUMN(T8)-1,"") ->  | V8: =IF($B$8+COLUMN(U8)-1<='Site Plan'!$Q$4,$B$8+COLUMN(U8)-1,"") ->  | W8: =IF($B$8+COLUMN(V8)-1<='Site Plan'!$Q$4,$B$8+COLUMN(V8)-1,"") ->  | X8: =IF($B$8+COLUMN(W8)-1<='Site Plan'!$Q$4,$B$8+COLUMN(W8)-1,"") ->  | Y8: =IF($B$8+COLUMN(X8)-1<='Site Plan'!$Q$4,$B$8+COLUMN(X8)-1,"") ->  | Z8: =IF($B$8+COLUMN(Y8)-1<='Site Plan'!$Q$4,$B$8+COLUMN(Y8)-1,"") ->  | AA8: =IF($B$8+COLUMN(Z8)-1<='Site Plan'!$Q$4,$B$8+COLUMN(Z8)-1,"") ->  | AB8: =IF($B$8+COLUMN(AA8)-1<='Site Plan'!$Q$4,$B$8+COLUMN(AA8)-1,"") ->  | AC8: =IF($B$8+COLUMN(AB8)-1<='Site Plan'!$Q$4,$B$8+COLUMN(AB8)-1,"") ->  | AD8: =IF($B$8+COLUMN(AC8)-1<='Site Plan'!$Q$4,$B$8+COLUMN(AC8)-1,"") ->  | AE8: =IF($B$8+COLUMN(AD8)-1<='Site Plan'!$Q$4,$B$8+COLUMN(AD8)-1,"") ->  | AF8: =IF($B$8+COLUMN(AE8)-1<='Site Plan'!$Q$4,$B$8+COLUMN(AE8)-1,"") ->  | AG8: =IF($B$8+COLUMN(AF8)-1<='Site Plan'!$Q$4,$B$8+COLUMN(AF8)-1,"") ->  | AH8: =IF($B$8+COLUMN(AG8)-1<='Site Plan'!$Q$4,$B$8+COLUMN(AG8)-1,"") ->  | AI8: =IF($B$8+COLUMN(AH8)-1<='Site Plan'!$Q$4,$B$8+COLUMN(AH8)-1,"") ->  | AJ8: =IF($B$8+COLUMN(AI8)-1<='Site Plan'!$Q$4,$B$8+COLUMN(AI8)-1,"") ->  | AK8: =IF($B$8+COLUMN(AJ8)-1<='Site Plan'!$Q$4,$B$8+COLUMN(AJ8)-1,"") ->  | AL8: =IF($B$8+COLUMN(AK8)-1<='Site Plan'!$Q$4,$B$8+COLUMN(AK8)-1,"") ->  | AM8: =IF($B$8+COLUMN(AL8)-1<='Site Plan'!$Q$4,$B$8+COLUMN(AL8)-1,"") ->  | AN8: =IF($B$8+COLUMN(AM8)-1<='Site Plan'!$Q$4,$B$8+COLUMN(AM8)-1,"") ->  | AO8: =IF($B$8+COLUMN(AN8)-1<='Site Plan'!$Q$4,$B$8+COLUMN(AN8)-1,"") ->  | AP8: =IF($B$8+COLUMN(AO8)-1<='Site Plan'!$Q$4,$B$8+COLUMN(AO8)-1,"") ->  | AQ8: =IF($B$8+COLUMN(AP8)-1<='Site Plan'!$Q$4,$B$8+COLUMN(AP8)-1,"") ->  | AR8: =IF($B$8+COLUMN(AQ8)-1<='Site Plan'!$Q$4,$B$8+COLUMN(AQ8)-1,"") ->  | AS8: =IF($B$8+COLUMN(AR8)-1<='Site Plan'!$Q$4,$B$8+COLUMN(AR8)-1,"") ->  | AT8: =IF($B$8+COLUMN(AS8)-1<='Site Plan'!$Q$4,$B$8+COLUMN(AS8)-1,"") ->  | AU8: =IF($B$8+COLUMN(AT8)-1<='Site Plan'!$Q$4,$B$8+COLUMN(AT8)-1,"") ->  | AV8: =IF($B$8+COLUMN(AU8)-1<='Site Plan'!$Q$4,$B$8+COLUMN(AU8)-1,"") ->  | AW8: =IF($B$8+COLUMN(AV8)-1<='Site Plan'!$Q$4,$B$8+COLUMN(AV8)-1,"") ->  | AX8: =IF($B$8+COLUMN(AW8)-1<='Site Plan'!$Q$4,$B$8+COLUMN(AW8)-1,"") ->  | AY8: =IF($B$8+COLUMN(AX8)-1<='Site Plan'!$Q$4,$B$8+COLUMN(AX8)-1,"") ->  | AZ8: =IF($B$8+COLUMN(AY8)-1<='Site Plan'!$Q$4,$B$8+COLUMN(AY8)-1,"") ->  | BA8: =IF($B$8+COLUMN(AZ8)-1<='Site Plan'!$Q$4,$B$8+COLUMN(AZ8)-1,"") ->  | BB8: =IF($B$8+COLUMN(BA8)-1<='Site Plan'!$Q$4,$B$8+COLUMN(BA8)-1,"") ->  | BC8: =IF($B$8+COLUMN(BB8)-1<='Site Plan'!$Q$4,$B$8+COLUMN(BB8)-1,"") ->  | BD8: =IF($B$8+COLUMN(BC8)-1<='Site Plan'!$Q$4,$B$8+COLUMN(BC8)-1,"") ->  | BE8: =IF($B$8+COLUMN(BD8)-1<='Site Plan'!$Q$4,$B$8+COLUMN(BD8)-1,"") ->  | BF8: =IF($B$8+COLUMN(BE8)-1<='Site Plan'!$Q$4,$B$8+COLUMN(BE8)-1,"") ->  | BG8: =IF($B$8+COLUMN(BF8)-1<='Site Plan'!$Q$4,$B$8+COLUMN(BF8)-1,"") ->  | BH8: =IF($B$8+COLUMN(BG8)-1<='Site Plan'!$Q$4,$B$8+COLUMN(BG8)-1,"") ->  | BI8: =IF($B$8+COLUMN(BH8)-1<='Site Plan'!$Q$4,$B$8+COLUMN(BH8)-1,"") ->  | BJ8: =IF($B$8+COLUMN(BI8)-1<='Site Plan'!$Q$4,$B$8+COLUMN(BI8)-1,"") ->  | BK8: =IF($B$8+COLUMN(BJ8)-1<='Site Plan'!$Q$4,$B$8+COLUMN(BJ8)-1,"") ->  | BL8: =IF($B$8+COLUMN(BK8)-1<='Site Plan'!$Q$4,$B$8+COLUMN(BK8)-1,"") ->  | BM8: =IF($B$8+COLUMN(BL8)-1<='Site Plan'!$Q$4,$B$8+COLUMN(BL8)-1,"") ->  | BP8: Mon | BQ8: Tue | BR8: Wed | BS8: Thu | BT8: Fri | BU8: Sat | BV8: Sun
A9: TIME | B9: =IF(B8="","",CHOOSE(WEEKDAY(B8),"Sun","Mon","Tue","Wed","Thu","Fri","Sat")) -> Thu | C9: =IF(C8="","",CHOOSE(WEEKDAY(C8),"Sun","Mon","Tue","Wed","Thu","Fri","Sat")) -> Fri | D9: Sat | E9: Sun | F9: Mon | G9: Tue | H9: Wed | I9: Thu | J9: Fri | K9: Sat | L9: Sun | M9: Mon | N9: Tue | BP9: Mean | BQ9: Mean | BR9: Mean | BS9: Mean | BT9: Mean | BU9: Mean | BV9: Mean
A10: 00:00:00 | B10: =IF(B$8="","",SUMIFS(INDIRECT("'"&TEXT(B$8,"DD_MMM_YYYY")&"'!I$6:I$101"),INDIRECT("'"&TEXT(B$8,"DD_MMM_YYYY")&"'!a$6:a$101"),">="&$A10,INDIRECT("'"&TEXT(B$8,"DD_MMM_YYYY")&"'!a$6:a$101"),"<="&$A13)) -> 25 | C10: =IF(C$8="","",SUMIFS(INDIRECT("'"&TEXT(C$8,"DD_MMM_YYYY")&"'!I$6:I$101"),INDIRECT("'"&TEXT(C$8,"DD_MMM_YYYY")&"'!a$6:a$101"),">="&$A10,INDIRECT("'"&TEXT(C$8,"DD_MMM_YYYY")&"'!a$6:a$101"),"<="&$A13)) -> 32 | D10: 49 | E10: 73 | F10: 17 | G10: 24 | H10: 23 | I10: 22 | J10: 27 | K10: 45 | L10: 86 | M10: 13 | N10: 25 | BP10: =IF(COUNTIFS($B$9:$BM$9,BP$8,$B10:$BM10,">0")=0,"",SUMIFS($B10:$BM10,$B$9:$BM$9,BP$8)/COUNTIFS($B$9:$BM$9,BP$8,$B10:$BM10,">0")) -> 15 | BQ10: =IF(COUNTIFS($B$9:$BM$9,BQ$8,$B10:$BM10,">0")=0,"",SUMIFS($B10:$BM10,$B$9:$BM$9,BQ$8)/COUNTIFS($B$9:$BM$9,BQ$8,$B10:$BM10,">0")) -> 24.5 | BR10: =IF(COUNTIFS($B$9:$BM$9,BR$8,$B10:$BM10,">0")=0,"",SUMIFS($B10:$BM10,$B$9:$BM$9,BR$8)/COUNTIFS($B$9:$BM$9,BR$8,$B10:$BM10,">0")) -> 23 | BS10: 23.5 | BT10: 29.5 | BU10: 47 | BV10: 79.5
A11: 00:15:00 | B11: =IF(B$8="","",SUMIFS(INDIRECT("'"&TEXT(B$8,"DD_MMM_YYYY")&"'!I$6:I$101"),INDIRECT("'"&TEXT(B$8,"DD_MMM_YYYY")&"'!a$6:a$101"),">="&$A11,INDIRECT("'"&TEXT(B$8,"DD_MMM_YYYY")&"'!a$6:a$101"),"<="&$A14)) -> 18 | C11: 24 | D11: 44 | E11: 55 | F11: 17 | G11: 22 | H11: 20 | I11: 23 | J11: 27 | K11: 30 | L11: 84 | M11: 17 | N11: 19 | BP11: =IF(COUNTIFS($B$9:$BM$9,BP$8,$B11:$BM11,">0")=0,"",SUMIFS($B11:$BM11,$B$9:$BM$9,BP$8)/COUNTIFS($B$9:$BM$9,BP$8,$B11:$BM11,">0")) -> 17 | BQ11: 20.5 | BR11: 20 | BS11: 20.5 | BT11: 25.5 | BU11: 37 | BV11: 69.5
A12: 00:30:00 | B12: 14 | C12: 20 | D12: 29 | E12: 43 | F12: 16 | G12: 19 | H12: 17 | I12: 15 | J12: 31 | K12: 24 | L12: 66 | M12: 14 | N12: 16 | BP12: 15 | BQ12: 17.5 | BR12: 17 | BS12: 14.5 | BT12: 25.5 | BU12: 26.5 | BV12: 54.5
A13: 00:45:00 | B13: 11 | C13: 13 | D13: 24 | E13: 32 | F13: 13 | G13: 15 | H13: 16 | I13: 13 | J13: 27 | K13: 15 | L13: 46 | M13: 11 | N13: 15 | BP13: 12 | BQ13: 15 | BR13: 16 | BS13: 12 | BT13: 20 | BU13: 19.5 | BV13: 39
A14: 01:00:00 | B14: 8 | C14: 11 | D14: 19 | E14: 34 | F14: 10 | G14: 11 | H14: 10 | I14: 13 | J14: 23 | K14: 16 | L14: 45 | M14: 12 | N14: 10 | U14: =IF(U$8="","",SUMIFS(INDIRECT("'"&TEXT(U$8,"DD_MMM_YYYY")&"'!I$6:I$101"),INDIRECT("'"&TEXT(U$8,"DD_MMM_YYYY")&"'!a$6:a$101"),">="&$A14,INDIRECT("'"&TEXT(U$8,"DD_MMM_YYYY")&"'!a$6:a$101"),"<="&$A17)) ->  | BP14: 11 | BQ14: 10.5 | BR14: 10 | BS14: 10.5 | BT14: 17 | BU14: 17.5 | BV14: 39.5
A15: 01:15:00 | B15: 7 | C15: 15 | D15: 13 | E15: 35 | F15: 9 | G15: 8 | H15: 8 | I15: 12 | J15: 15 | K15: 14 | L15: 31 | M15: 7 | N15: 12 | BP15: 8 | BQ15: 10 | BR15: 8 | BS15: 9.5 | BT15: 15 | BU15: 13.5 | BV15: 33
A16: 01:30:00 | B16: 9 | C16: 14 | D16: 13 | E16: 30 | F16: 8 | G16: 9 | H16: 15 | I16: 12 | J16: 11 | K16: 9 | L16: 22 | M16: 8 | N16: 12 | BP16: 8 | BQ16: 10.5 | BR16: 15 | BS16: 10.5 | BT16: 12.5 | BU16: 11 | BV16: 26
A17: 01:45:00 | B17: 9 | C17: 12 | D17: 8 | E17: 29 | F17: 9 | G17: 12 | H17: 12 | I17: 12 | J17: 9 | K17: 13 | L17: 20 | M17: 8 | N17: 12 | BP17: 8.5 | BQ17: 12 | BR17: 12 | BS17: 10.5 | BT17: 10.5 | BU17: 10.5 | BV17: 24.5
A18: 02:00:00 | B18: 10 | C18: 13 | D18: 4 | E18: 24 | F18: 11 | G18: 12 | H18: 13 | I18: 9 | J18: 7 | K18: 15 | L18: 16 | M18: 11 | N18: 9 | X18: =IF(X$8="","",SUMIFS(INDIRECT("'"&TEXT(X$8,"DD_MMM_YYYY")&"'!I$6:I$101"),INDIRECT("'"&TEXT(X$8,"DD_MMM_YYYY")&"'!a$6:a$101"),">="&$A18,INDIRECT("'"&TEXT(X$8,"DD_MMM_YYYY")&"'!a$6:a$101"),"<="&$A21)) ->  | BP18: 11 | BQ18: 10.5 | BR18: 13 | BS18: 9.5 | BT18: 10 | BU18: 9.5 | BV18: 20
A19: 02:15:00 | B19: 11 | C19: 12 | D19: 5 | E19: 22 | F19: 12 | G19: 14 | H19: 15 | I19: 6 | J19: 10 | K19: 14 | L19: 12 | M19: 12 | N19: 8 | BP19: 12 | BQ19: 11 | BR19: 15 | BS19: 8.5 | BT19: 11 | BU19: 9.5 | BV19: 17
A20: 02:30:00 | B20: 8 | C20: 11 | D20: 4 | E20: 22 | F20: 11 | G20: 12 | H20: 8 | I20: 7 | J20: 7 | K20: 14 | L20: 12 | M20: 10 | N20: 7 | BP20: 10.5 | BQ20: 9.5 | BR20: 8 | BS20: 7.5 | BT20: 9 | BU20: 9 | BV20: 17
A21: 02:45:00 | B21: 8 | C21: 14 | D21: 8 | E21: 15 | F21: 13 | G21: 8 | H21: 9 | I21: 9 | J21: 9 | K21: 12 | L21: 11 | M21: 12 | N21: 7 | BP21: 12.5 | BQ21: 7.5 | BR21: 9 | BS21: 8.5 | BT21: 11.5 | BU21: 10 | BV21: 13
A22: 03:00:00 | B22: 6 | C22: 11 | D22: 10 | E22: 14 | F22: 13 | G22: 7 | H22: 9 | I22: 11 | J22: 7 | K22: 10 | L22: 15 | M22: 10 | N22: 8 | AA22: =IF(AA$8="","",SUMIFS(INDIRECT("'"&TEXT(AA$8,"DD_MMM_YYYY")&"'!I$6:I$101"),INDIRECT("'"&TEXT(AA$8,"DD_MMM_YYYY")&"'!a$6:a$101"),">="&$A22,INDIRECT("'"&TEXT(AA$8,"DD_MMM_YYYY")&"'!a$6:a$101"),"<="&$A25)) ->  | BP22: 11.5 | BQ22: 7.5 | BR22: 9 | BS22: 8.5 | BT22: 9 | BU22: 10 | BV22: 14.5
A23: 03:15:00 | B23: 10 | C23: 11 | D23: 12 | E23: 10 | F23: 10 | G23: 7 | H23: 8 | I23: 14 | J23: 9 | K23: 11 | L23: 15 | M23: 8 | N23: 7 | BP23: 9 | BQ23: 7 | BR23: 8 | BS23: 12 | BT23: 10 | BU23: 11.5 | BV23: 12.5
A24: 03:30:00 | B24: 12 | C24: 10 | D24: 11 | E24: 10 | F24: 12 | G24: 8 | H24: 10 | I24: 17 | J24: 12 | K24: 11 | L24: 18 | M24: 8 | N24: 8 | BP24: 10 | BQ24: 8 | BR24: 10 | BS24: 14.5 | BT24: 11 | BU24: 11 | BV24: 14
A25: 03:45:00 | B25: 17 | C25: 16 | D25: 10 | E25: 11 | F25: 13 | G25: 8 | H25: 10 | I25: 18 | J25: 17 | K25: 12 | L25: 15 | M25: 9 | N25: 8 | BP25: 11 | BQ25: 8 | BR25: 10 | BS25: 17.5 | BT25: 16.5 | BU25: 11 | BV25: 13
A26: 04:00:00 | B26: 24 | C26: 19 | D26: 13 | E26: 11 | F26: 22 | G26: 15 | H26: 19 | I26: 23 | J26: 24 | K26: 15 | L26: 13 | M26: 10 | N26: 14 | AD26: =IF(AD$8="","",SUMIFS(INDIRECT("'"&TEXT(AD$8,"DD_MMM_YYYY")&"'!I$6:I$101"),INDIRECT("'"&TEXT(AD$8,"DD_MMM_YYYY")&"'!a$6:a$101"),">="&$A26,INDIRECT("'"&TEXT(AD$8,"DD_MMM_YYYY")&"'!a$6:a$101"),"<="&$A29)) ->  | BP26: 16 | BQ26: 14.5 | BR26: 19 | BS26: 23.5 | BT26: 21.5 | BU26: 14 | BV26: 12
A27: 04:15:00 | B27: 30 | C27: 31 | D27: 18 | E27: 18 | F27: 33 | G27: 23 | H27: 29 | I27: 25 | J27: 29 | K27: 18 | L27: 18 | M27: 18 | N27: 25 | BP27: 25.5 | BQ27: 24 | BR27: 29 | BS27: 27.5 | BT27: 30 | BU27: 18 | BV27: 18
A28: 04:30:00 | B28: 38 | C28: 39 | D28: 23 | E28: 20 | F28: 45 | G28: 35 | H28: 38 | I28: 34 | J28: 38 | K28: 25 | L28: 19 | M28: 37 | N28: 39 | BP28: 41 | BQ28: 37 | BR28: 38 | BS28: 36 | BT28: 38.5 | BU28: 24 | BV28: 19.5
A29: 04:45:00 | B29: 52 | C29: 52 | D29: 35 | E29: 25 | F29: 57 | G29: 54 | H29: 58 | I29: 47 | J29: 54 | K29: 36 | L29: 24 | M29: 57 | N29: 57 | BP29: 57 | BQ29: 55.5 | BR29: 58 | BS29: 49.5 | BT29: 53 | BU29: 35.5 | BV29: 24.5
A30: 05:00:00 | B30: 76 | C30: 70 | D30: 44 | E30: 32 | F30: 69 | G30: 74 | H30: 79 | I30: 69 | J30: 76 | K30: 48 | L30: 27 | M30: 86 | N30: 83 | AG30: =IF(AG$8="","",SUMIFS(INDIRECT("'"&TEXT(AG$8,"DD_MMM_YYYY")&"'!I$6:I$101"),INDIRECT("'"&TEXT(AG$8,"DD_MMM_YYYY")&"'!a$6:a$101"),">="&$A30,INDIRECT("'"&TEXT(AG$8,"DD_MMM_YYYY")&"'!a$6:a$101"),"<="&$A33)) ->  | BP30: 77.5 | BQ30: 78.5 | BR30: 79 | BS30: 72.5 | BT30: 73 | BU30: 46 | BV30: 29.5
A31: 05:15:00 | B31: 94 | C31: 89 | D31: 49 | E31: 30 | F31: 85 | G31: 86 | H31: 95 | I31: 92 | J31: 104 | K31: 57 | L31: 26 | M31: 101 | N31: 98 | BP31: 93 | BQ31: 92 | BR31: 95 | BS31: 93 | BT31: 96.5 | BU31: 53 | BV31: 28
A32: 05:30:00 | B32: 131 | C32: 119 | D32: 53 | E32: 45 | F32: 122 | G32: 136 | H32: 142 | I32: 121 | J32: 140 | K32: 67 | L32: 25 | M32: 131 | N32: 131 | BP32: 126.5 | BQ32: 133.5 | BR32: 142 | BS32: 126 | BT32: 129.5 | BU32: 60 | BV32: 35
A33: 05:45:00 | B33: 183 | C33: 140 | D33: 61 | E33: 49 | F33: 167 | G33: 165 | H33: 177 | I33: 170 | J33: 176 | K33: 79 | L33: 31 | M33: 175 | N33: 172 | BP33: 171 | BQ33: 168.5 | BR33: 177 | BS33: 176.5 | BT33: 158 | BU33: 70 | BV33: 40
A34: 06:00:00 | B34: 217 | C34: 188 | D34: 81 | E34: 54 | F34: 218 | G34: 216 | H34: 240 | I34: 224 | J34: 225 | K34: 97 | L34: 38 | M34: 227 | N34: 235 | AJ34: =IF(AJ$8="","",SUMIFS(INDIRECT("'"&TEXT(AJ$8,"DD_MMM_YYYY")&"'!I$6:I$101"),INDIRECT("'"&TEXT(AJ$8,"DD_MMM_YYYY")&"'!a$6:a$101"),">="&$A34,INDIRECT("'"&TEXT(AJ$8,"DD_MMM_YYYY")&"'!a$6:a$101"),"<="&$A37)) ->  | BP34: 222.5 | BQ34: 225.5 | BR34: 240 | BS34: 220.5 | BT34: 206.5 | BU34: 89 | BV34: 46
A35: 06:15:00 | B35: 273 | C35: 246 | D35: 98 | E35: 56 | F35: 305 | G35: 299 | H35: 326 | I35: 305 | J35: 316 | K35: 111 | L35: 47 | M35: 294 | N35: 323 | BP35: 299.5 | BQ35: 311 | BR35: 326 | BS35: 289 | BT35: 281 | BU35: 104.5 | BV35: 51.5
A36: 06:30:00 | B36: 345 | C36: 313 | D36: 138 | E36: 58 | F36: 372 | G36: 378 | H36: 392 | I36: 395 | J36: 389 | K36: 132 | L36: 53 | M36: 362 | N36: 421 | BP36: 367 | BQ36: 399.5 | BR36: 392 | BS36: 370 | BT36: 351 | BU36: 135 | BV36: 55.5
A37: 06:45:00 | B37: 419 | C37: 388 | D37: 187 | E37: 78 | F37: 485 | G37: 503 | H37: 498 | I37: 488 | J37: 491 | K37: 164 | L37: 61 | M37: 454 | N37: 501 | BP37: 469.5 | BQ37: 502 | BR37: 498 | BS37: 453.5 | BT37: 439.5 | BU37: 175.5 | BV37: 69.5
A38: 07:00:00 | B38: 491 | C38: 463 | D38: 222 | E38: 88 | F38: 559 | G38: 586 | H38: 592 | I38: 562 | J38: 552 | K38: 197 | L38: 88 | M38: 526 | N38: 571 | AM38: =IF(AM$8="","",SUMIFS(INDIRECT("'"&TEXT(AM$8,"DD_MMM_YYYY")&"'!I$6:I$101"),INDIRECT("'"&TEXT(AM$8,"DD_MMM_YYYY")&"'!a$6:a$101"),">="&$A38,INDIRECT("'"&TEXT(AM$8,"DD_MMM_YYYY")&"'!a$6:a$101"),"<="&$A41)) ->  | BP38: 542.5 | BQ38: 578.5 | BR38: 592 | BS38: 526.5 | BT38: 507.5 | BU38: 209.5 | BV38: 88
A39: 07:15:00 | B39: 529 | C39: 502 | D39: 275 | E39: 120 | F39: 582 | G39: 615 | H39: 630 | I39: 607 | J39: 578 | K39: 265 | L39: 103 | M39: 577 | N39: 588 | BP39: 579.5 | BQ39: 601.5 | BR39: 630 | BS39: 568 | BT39: 540 | BU39: 270 | BV39: 111.5
A40: 07:30:00 | B40: 569 | C40: 526 | D40: 341 | E40: 145 | F40: 616 | G40: 621 | H40: 657 | I40: 633 | J40: 639 | K40: 320 | L40: 140 | M40: 623 | N40: 578 | BP40: 619.5 | BQ40: 599.5 | BR40: 657 | BS40: 601 | BT40: 582.5 | BU40: 330.5 | BV40: 142.5
A41: 07:45:00 | B41: 549 | C41: 570 | D41: 397 | E41: 163 | F41: 578 | G41: 616 | H41: 638 | I41: 626 | J41: 655 | K41: 372 | L41: 171 | M41: 624 | N41: 583 | BP41: 601 | BQ41: 599.5 | BR41: 638 | BS41: 587.5 | BT41: 612.5 | BU41: 384.5 | BV41: 167
A42: 08:00:00 | B42: 559 | C42: 553 | D42: 482 | E42: 212 | F42: 562 | G42: 624 | H42: 607 | I42: 647 | J42: 662 | K42: 415 | L42: 189 | M42: 615 | N42: 572 | AP42: =IF(AP$8="","",SUMIFS(INDIRECT("'"&TEXT(AP$8,"DD_MMM_YYYY")&"'!I$6:I$101"),INDIRECT("'"&TEXT(AP$8,"DD_MMM_YYYY")&"'!a$6:a$101"),">="&$A42,INDIRECT("'"&TEXT(AP$8,"DD_MMM_YYYY")&"'!a$6:a$101"),"<="&$A45)) ->  | BP42: 588.5 | BQ42: 598 | BR42: 607 | BS42: 603 | BT42: 607.5 | BU42: 448.5 | BV42: 200.5
A43: 08:15:00 | B43: 567 | C43: 572 | D43: 533 | E43: 253 | F43: 553 | G43: 632 | H43: 566 | I43: 640 | J43: 635 | K43: 444 | L43: 212 | M43: 601 | N43: 596 | BP43: 577 | BQ43: 614 | BR43: 566 | BS43: 603.5 | BT43: 603.5 | BU43: 488.5 | BV43: 232.5
A44: 08:30:00 | B44: 554 | C44: 582 | D44: 551 | E44: 310 | F44: 542 | G44: 620 | H44: 540 | I44: 636 | J44: 594 | K44: 480 | L44: 242 | M44: 585 | N44: 601 | BP44: 563.5 | BQ44: 610.5 | BR44: 540 | BS44: 595 | BT44: 588 | BU44: 515.5 | BV44: 276
A45: 08:45:00 | B45: 552 | C45: 556 | D45: 566 | E45: 380 | F45: 532 | G45: 575 | H45: 534 | I45: 624 | J45: 554 | K45: 525 | L45: 294 | M45: 548 | N45: 581 | BP45: 540 | BQ45: 578 | BR45: 534 | BS45: 588 | BT45: 555 | BU45: 545.5 | BV45: 337
A46: 09:00:00 | B46: 555 | C46: 574 | D46: 576 | E46: 461 | F46: 524 | G46: 533 | H46: 505 | I46: 583 | J46: 539 | K46: 554 | L46: 355 | M46: 515 | N46: 580 | AS46: =IF(AS$8="","",SUMIFS(INDIRECT("'"&TEXT(AS$8,"DD_MMM_YYYY")&"'!I$6:I$101"),INDIRECT("'"&TEXT(AS$8,"DD_MMM_YYYY")&"'!a$6:a$101"),">="&$A46,INDIRECT("'"&TEXT(AS$8,"DD_MMM_YYYY")&"'!a$6:a$101"),"<="&$A49)) ->  | BP46: 519.5 | BQ46: 556.5 | BR46: 505 | BS46: 569 | BT46: 556.5 | BU46: 565 | BV46: 408
A47: 09:15:00 | B47: 559 | C47: 588 | D47: 594 | E47: 544 | F47: 529 | G47: 509 | H47: 515 | I47: 567 | J47: 548 | K47: 585 | L47: 446 | M47: 517 | N47: 542 | BP47: 523 | BQ47: 525.5 | BR47: 515 | BS47: 563 | BT47: 568 | BU47: 589.5 | BV47: 495
A48: 09:30:00 | B48: 557 | C48: 599 | D48: 650 | E48: 591 | F48: 499 | G48: 522 | H48: 523 | I48: 564 | J48: 530 | K48: 656 | L48: 513 | M48: 497 | N48: 524 | BP48: 498 | BQ48: 523 | BR48: 523 | BS48: 560.5 | BT48: 564.5 | BU48: 653 | BV48: 552
A49: 09:45:00 | B49: 576 | C49: 622 | D49: 671 | E49: 592 | F49: 501 | G49: 513 | H49: 506 | I49: 539 | J49: 545 | K49: 706 | L49: 552 | M49: 490 | N49: 521 | BP49: 495.5 | BQ49: 517 | BR49: 506 | BS49: 557.5 | BT49: 583.5 | BU49: 688.5 | BV49: 572
A50: 10:00:00 | B50: 588 | C50: 607 | D50: 668 | E50: 612 | F50: 502 | G50: 510 | H50: 509 | I50: 539 | J50: 569 | K50: 745 | L50: 574 | M50: 476 | N50: 495 | AV50: =IF(AV$8="","",SUMIFS(INDIRECT("'"&TEXT(AV$8,"DD_MMM_YYYY")&"'!I$6:I$101"),INDIRECT("'"&TEXT(AV$8,"DD_MMM_YYYY")&"'!a$6:a$101"),">="&$A50,INDIRECT("'"&TEXT(AV$8,"DD_MMM_YYYY")&"'!a$6:a$101"),"<="&$A53)) ->  | BP50: 489 | BQ50: 502.5 | BR50: 509 | BS50: 563.5 | BT50: 588 | BU50: 706.5 | BV50: 593
A51: 10:15:00 | B51: 618 | C51: 604 | D51: 687 | E51: 598 | F51: 483 | G51: 508 | H51: 502 | I51: 528 | J51: 554 | K51: 759 | L51: 571 | M51: 477 | N51: 485 | BP51: 480 | BQ51: 496.5 | BR51: 502 | BS51: 573 | BT51: =IF(COUNTIFS($B$9:$BM$9,BT$8,$B51:$BM51,">0")=0,"",SUMIFS($B51:$BM51,$B$9:$BM$9,BT$8)/COUNTIFS($B$9:$BM$9,BT$8,$B51:$BM51,">0")) -> 579 | BU51: 723 | BV51: 584.5
A52: 10:30:00 | B52: 621 | C52: 578 | D52: 646 | E52: 589 | F52: 494 | G52: 488 | H52: 485 | I52: 505 | J52: 554 | K52: 725 | L52: 580 | M52: 478 | N52: 500 | BP52: 486 | BQ52: 494 | BR52: 485 | BS52: 563 | BT52: 566 | BU52: 685.5 | BV52: 584.5
A53: 10:45:00 | B53: 607 | C53: 552 | D53: 673 | E53: 607 | F53: 490 | G53: 495 | H53: 485 | I53: 520 | J53: 557 | K53: 668 | L53: 608 | M53: 476 | N53: 479 | BP53: 483 | BQ53: 487 | BR53: 485 | BS53: 563.5 | BT53: 554.5 | BU53: 670.5 | BV53: 607.5
A54: 11:00:00 | B54: 575 | C54: 580 | D54: 671 | E54: 598 | F54: 474 | G54: 483 | H54: 496 | I54: 522 | J54: 539 | K54: 664 | L54: 645 | M54: 503 | N54: 487 | AY54: =IF(AY$8="","",SUMIFS(INDIRECT("'"&TEXT(AY$8,"DD_MMM_YYYY")&"'!I$6:I$101"),INDIRECT("'"&TEXT(AY$8,"DD_MMM_YYYY")&"'!a$6:a$101"),">="&$A54,INDIRECT("'"&TEXT(AY$8,"DD_MMM_YYYY")&"'!a$6:a$101"),"<="&$A57)) ->  | BP54: 488.5 | BQ54: 485 | BR54: 496 | BS54: 548.5 | BT54: 559.5 | BU54: 667.5 | BV54: 621.5
A55: 11:15:00 | B55: 554 | C55: 575 | D55: 673 | E55: 590 | F55: 494 | G55: 484 | H55: 527 | I55: 527 | J55: 559 | K55: 650 | L55: 673 | M55: 494 | N55: 506 | BP55: 494 | BQ55: 495 | BR55: 527 | BS55: 540.5 | BT55: 567 | BU55: 661.5 | BV55: 631.5
A56: 11:30:00 | B56: 548 | C56: 599 | D56: 715 | E56: 579 | F56: 509 | G56: 474 | H56: 523 | I56: 513 | J56: 578 | K56: 662 | L56: 677 | M56: 462 | N56: 507 | BP56: 485.5 | BQ56: 490.5 | BR56: 523 | BS56: 530.5 | BT56: 588.5 | BU56: 688.5 | BV56: 628
A57: 11:45:00 | B57: 576 | C57: 597 | D57: 708 | E57: 574 | F57: 511 | G57: 466 | H57: 542 | I57: 497 | J57: 562 | K57: 674 | L57: 618 | M57: 481 | N57: 515 | BP57: 496 | BQ57: 490.5 | BR57: 542 | BS57: 536.5 | BT57: 579.5 | BU57: 691 | BV57: 596
A58: 12:00:00 | B58: 591 | C58: 589 | D58: 724 | E58: 556 | F58: 531 | G58: 464 | H58: 532 | I58: 460 | J58: 581 | K58: 646 | L58: 574 | M58: 495 | N58: 495 | BB58: =IF(BB$8="","",SUMIFS(INDIRECT("'"&TEXT(BB$8,"DD_MMM_YYYY")&"'!I$6:I$101"),INDIRECT("'"&TEXT(BB$8,"DD_MMM_YYYY")&"'!a$6:a$101"),">="&$A58,INDIRECT("'"&TEXT(BB$8,"DD_MMM_YYYY")&"'!a$6:a$101"),"<="&$A61)) ->  | BP58: 513 | BQ58: 479.5 | BR58: 532 | BS58: 525.5 | BT58: 585 | BU58: 685 | BV58: 565
A59: 12:15:00 | B59: 596 | C59: 593 | D59: 697 | E59: 543 | F59: 523 | G59: 477 | H59: 507 | I59: 461 | J59: 597 | K59: 635 | L59: 542 | M59: 496 | N59: 504 | BP59: 509.5 | BQ59: 490.5 | BR59: 507 | BS59: 528.5 | BT59: 595 | BU59: 666 | BV59: 542.5
A60: 12:30:00 | B60: 596 | C60: 595 | D60: 668 | E60: 544 | F60: 510 | G60: 480 | H60: 520 | I60: 465 | J60: 574 | K60: 603 | L60: 519 | M60: 566 | N60: 466 | BP60: 538 | BQ60: 473 | BR60: 520 | BS60: 530.5 | BT60: 584.5 | BU60: 635.5 | BV60: 531.5
A61: 12:45:00 | B61: 592 | C61: 602 | D61: 645 | E61: 553 | F61: 524 | G61: 490 | H61: 508 | I61: 483 | J61: 587 | K61: 602 | L61: 544 | M61: 551 | N61: 372 | BP61: 537.5 | BQ61: 431 | BR61: 508 | BS61: 537.5 | BT61: 594.5 | BU61: 623.5 | BV61: 548.5
A62: 13:00:00 | B62: 595 | C62: 614 | D62: 626 | E62: 544 | F62: 533 | G62: 512 | H62: 506 | I62: 497 | J62: 568 | K62: 591 | L62: 549 | M62: 545 | N62: 256 | BE62: =IF(BE$8="","",SUMIFS(INDIRECT("'"&TEXT(BE$8,"DD_MMM_YYYY")&"'!I$6:I$101"),INDIRECT("'"&TEXT(BE$8,"DD_MMM_YYYY")&"'!a$6:a$101"),">="&$A62,INDIRECT("'"&TEXT(BE$8,"DD_MMM_YYYY")&"'!a$6:a$101"),"<="&$A65)) ->  | BP62: 539 | BQ62: 384 | BR62: 506 | BS62: 546 | BT62: 591 | BU62: 608.5 | BV62: 546.5
A63: 13:15:00 | B63: 565 | C63: 623 | D63: 608 | E63: 520 | F63: 548 | G63: 499 | H63: 507 | I63: 493 | J63: 565 | K63: 611 | L63: 542 | M63: 539 | N63: 119 | BP63: 543.5 | BQ63: 309 | BR63: 507 | BS63: 529 | BT63: 594 | BU63: 609.5 | BV63: 531
A64: 13:30:00 | B64: 556 | C64: 629 | D64: 600 | E64: 531 | F64: 569 | G64: 508 | H64: 525 | I64: 508 | J64: 579 | K64: 604 | L64: 505 | M64: 495 | N64: 16 | BP64: 532 | BQ64: 262 | BR64: 525 | BS64: 532 | BT64: 604 | BU64: 602 | BV64: 518
A65: 13:45:00 | B65: 535 | C65: 673 | D65: 573 | E65: 527 | F65: 569 | G65: 516 | H65: 530 | I65: 505 | J65: 570 | K65: 567 | L65: 503 | M65: 518 | N65: 0 | BP65: 543.5 | BQ65: 516 | BR65: 530 | BS65: 520 | BT65: 621.5 | BU65: 570 | BV65: 515
A66: 14:00:00 | B66: 485 | C66: 646 | D66: 558 | E66: 502 | F66: 558 | G66: 500 | H66: 532 | I66: 535 | J66: 596 | K66: 604 | L66: 473 | M66: 483 | N66: 0 | BH66: =IF(BH$8="","",SUMIFS(INDIRECT("'"&TEXT(BH$8,"DD_MMM_YYYY")&"'!I$6:I$101"),INDIRECT("'"&TEXT(BH$8,"DD_MMM_YYYY")&"'!a$6:a$101"),">="&$A66,INDIRECT("'"&TEXT(BH$8,"DD_MMM_YYYY")&"'!a$6:a$101"),"<="&$A69)) ->  | BP66: 520.5 | BQ66: 500 | BR66: 532 | BS66: 510 | BT66: 621 | BU66: 581 | BV66: 487.5
A67: 14:15:00 | B67: 508 | C67: 627 | D67: 538 | E67: 497 | F67: 557 | G67: 518 | H67: 531 | I67: 519 | J67: 615 | K67: 577 | L67: 436 | M67: 537 | N67: 0 | BP67: 547 | BQ67: 518 | BR67: 531 | BS67: 513.5 | BT67: 621 | BU67: 557.5 | BV67: 466.5
A68: 14:30:00 | B68: 511 | C68: 617 | D68: 484 | E68: 442 | F68: 530 | G68: 511 | H68: 515 | I68: 511 | J68: 623 | K68: 577 | L68: 432 | M68: 557 | N68: 0 | BP68: 543.5 | BQ68: 511 | BR68: 515 | BS68: 511 | BT68: 620 | BU68: 530.5 | BV68: 437
A69: 14:45:00 | B69: 532 | C69: 607 | D69: 453 | E69: 423 | F69: 539 | G69: 520 | H69: 505 | I69: 544 | J69: 619 | K69: 578 | L69: 391 | M69: 564 | N69: 0 | BP69: 551.5 | BQ69: 520 | BR69: 505 | BS69: 538 | BT69: 613 | BU69: 515.5 | BV69: 407
A70: 15:00:00 | B70: 571 | C70: 644 | D70: 416 | E70: 425 | F70: 568 | G70: 567 | H70: 535 | I70: 527 | J70: 621 | K70: 511 | L70: 386 | M70: 627 | N70: 0 | BK70: =IF(BK$8="","",SUMIFS(INDIRECT("'"&TEXT(BK$8,"DD_MMM_YYYY")&"'!I$6:I$101"),INDIRECT("'"&TEXT(BK$8,"DD_MMM_YYYY")&"'!a$6:a$101"),">="&$A70,INDIRECT("'"&TEXT(BK$8,"DD_MMM_YYYY")&"'!a$6:a$101"),"<="&$A73)) ->  | BP70: 597.5 | BQ70: 567 | BR70: 535 | BS70: 549 | BT70: 632.5 | BU70: 463.5 | BV70: 405.5
A71: 15:15:00 | B71: 586 | C71: 651 | D71: 439 | E71: 390 | F71: 579 | G71: 574 | H71: 560 | I71: 571 | J71: 616 | K71: 475 | L71: 382 | M71: 592 | N71: 0 | BP71: 585.5 | BQ71: 574 | BR71: 560 | BS71: 578.5 | BT71: 633.5 | BU71: 457 | BV71: 386
A72: 15:30:00 | B72: 586 | C72: 652 | D72: 445 | E72: 385 | F72: 610 | G72: 597 | H72: 581 | I72: 634 | J72: 658 | K72: 440 | L72: 369 | M72: 597 | N72: 0 | BP72: 603.5 | BQ72: 597 | BR72: 581 | BS72: 610 | BT72: 655 | BU72: 442.5 | BV72: 377
A73: 15:45:00 | B73: 613 | C73: 687 | D73: 456 | E73: 368 | F73: 608 | G73: 622 | H73: 620 | I73: 643 | J73: 718 | K73: 402 | L73: 380 | M73: 634 | N73: 0 | BP73: 621 | BQ73: 622 | BR73: 620 | BS73: 628 | BT73: 702.5 | BU73: 429 | BV73: 374
A74: 16:00:00 | B74: 628 | C74: 704 | D74: 457 | E74: 324 | F74: 619 | G74: 631 | H74: 629 | I74: 683 | J74: 698 | K74: 414 | L74: 371 | M74: 649 | N74: 0 | BP74: 634 | BQ74: 631 | BR74: 629 | BS74: 655.5 | BT74: 701 | BU74: 435.5 | BV74: 347.5
A75: 16:15:00 | B75: =IF(B$8="","",SUMIFS(INDIRECT("'"&TEXT(B$8,"DD_MMM_YYYY")&"'!I$6:I$101"),INDIRECT("'"&TEXT(B$8,"DD_MMM_YYYY")&"'!a$6:a$101"),">="&$A75,INDIRECT("'"&TEXT(B$8,"DD_MMM_YYYY")&"'!a$6:a$101"),"<="&$A78)) -> 656 | C75: 750 | D75: 427 | E75: 340 | F75: 690 | G75: 683 | H75: 699 | I75: 743 | J75: 732 | K75: 408 | L75: 366 | M75: 718 | N75: 0 | R75: =IF(R$8="","",SUMIFS(INDIRECT("'"&TEXT(R$8,"DD_MMM_YYYY")&"'!I$6:I$101"),INDIRECT("'"&TEXT(R$8,"DD_MMM_YYYY")&"'!a$6:a$101"),">="&$A75,INDIRECT("'"&TEXT(R$8,"DD_MMM_YYYY")&"'!a$6:a$101"),"<="&$A78)) ->  | BP75: =IF(COUNTIFS($B$9:$BM$9,BP$8,$B75:$BM75,">0")=0,"",SUMIFS($B75:$BM75,$B$9:$BM$9,BP$8)/COUNTIFS($B$9:$BM$9,BP$8,$B75:$BM75,">0")) -> 704 | BQ75: 683 | BR75: 699 | BS75: 699.5 | BT75: 741 | BU75: 417.5 | BV75: 353
A76: 16:30:00 | B76: 715 | C76: 796 | D76: 417 | E76: 319 | F76: 730 | G76: 710 | H76: 749 | I76: 740 | J76: 734 | K76: 395 | L76: 360 | M76: 781 | N76: 0 | BP76: 755.5 | BQ76: 710 | BR76: 749 | BS76: 727.5 | BT76: 765 | BU76: 406 | BV76: 339.5
A77: 16:45:00 | B77: 711 | C77: 751 | D77: 425 | E77: 284 | F77: 775 | G77: 700 | H77: 763 | I77: 722 | J77: 730 | K77: 402 | L77: 325 | M77: 760 | N77: 0 | BP77: 767.5 | BQ77: 700 | BR77: 763 | BS77: 716.5 | BT77: 740.5 | BU77: 413.5 | BV77: 304.5
A78: 17:00:00 | B78: 704 | C78: 693 | D78: 435 | E78: 276 | F78: 759 | G78: 675 | H78: 737 | I78: 686 | J78: 719 | K78: 374 | L78: 316 | M78: 743 | N78: 0 | BP78: 751 | BQ78: 675 | BR78: 737 | BS78: 695 | BT78: 706 | BU78: 404.5 | BV78: 296
A79: 17:15:00 | B79: 673 | C79: 648 | D79: 443 | E79: 259 | F79: 662 | G79: 619 | H79: 691 | I79: 655 | J79: 651 | K79: 371 | L79: 292 | M79: 680 | N79: 0 | U79: =IF(U$8="","",SUMIFS(INDIRECT("'"&TEXT(U$8,"DD_MMM_YYYY")&"'!I$6:I$101"),INDIRECT("'"&TEXT(U$8,"DD_MMM_YYYY")&"'!a$6:a$101"),">="&$A79,INDIRECT("'"&TEXT(U$8,"DD_MMM_YYYY")&"'!a$6:a$101"),"<="&$A82)) ->  | BP79: 671 | BQ79: 619 | BR79: 691 | BS79: 664 | BT79: 649.5 | BU79: 407 | BV79: 275.5
A80: 17:30:00 | B80: 614 | C80: 587 | D80: 427 | E80: 271 | F80: 616 | G80: 544 | H80: 652 | I80: 600 | J80: 637 | K80: 371 | L80: 284 | M80: 589 | N80: 0 | BP80: 602.5 | BQ80: 544 | BR80: 652 | BS80: 607 | BT80: 612 | BU80: 399 | BV80: 277.5
A81: 17:45:00 | B81: 547 | C81: 527 | D81: 392 | E81: 258 | F81: 508 | G81: 499 | H81: 600 | I81: 559 | J81: 561 | K81: 381 | L81: 270 | M81: 520 | N81: 0 | BP81: 514 | BQ81: 499 | BR81: 600 | BS81: 553 | BT81: 544 | BU81: 386.5 | BV81: 264
A82: 18:00:00 | B82: 531 | C82: 507 | D82: 364 | E82: 253 | F82: 449 | G82: 444 | H82: 571 | I82: 549 | J82: 552 | K82: 374 | L82: 253 | M82: 444 | N82: 0 | BP82: 446.5 | BQ82: 444 | BR82: 571 | BS82: 540 | BT82: 529.5 | BU82: 369 | BV82: 253
